Workbook

Sheet EliteStageConfig
A1: ID[csknu] | B1: roles[csna] | C1: rolesPos[cna] | D1: rolesTime[cna] | E1: time[cn] | F1: summonType[cn] | G1: hurtRate[cn] | H1: rewardId[csna] | I1: trigger[cn] | J1: tipType[cn] | K1: energy[cna]
A2: 波数id（关卡*100+波数） | B2: 角色id数组 | C2: 角色位置数组 | D2: 角色创建时间轴 | E2: 波数时间轴 | F2: 刷怪类型 | G2: 环境伤害倍率 | H2: 关卡奖励道具ID道具数量数组 | I2: 触发下一大波间隔参数 | J2: 波数提示类型 | K2: 能量掉落
A3: 10101 | B3: ='1'!P15 -> 70011|70011^70012|70011^70012|70011^70013|70011^70012^70013|70014|70014^70012|70012^70013|70014^70011|70011|70013^70012 | C3: ='1'!P38 -> 0|0^0|0^0|0^0|0^0^0|0|0^0|0^0|0^0|0|0^0 | D3: ='1'!P52 -> 4|3^2|4^2|4^2|3^2^2|4|2^4|3^3|3^5|8|2^4 | E3: 12 | F3: 3 | G3: 0 | H3: 0 | I3: 3 | J3: 0 | K3: 130004^1
A4: 10102 | B4: ='1'!AD15 -> 70011|70011^70012|70011^70013|70014^70012|70011|70013^70012|70014^70011|70012|70013^70012 | C4: ='1'!AD37 -> 0|0^0|0^0|0^0|0|0^0|0^0|0|0^0 | D4: ='1'!AD51 -> 8|8^3|8^4|5^4|10|4^4|4^8|6|5^4 | E4: 10 | F4: 3 | G4: 0 | H4: 0 | I4: 0 | J4: 1 | K4: 130003^2|130004^1
A5: 10201 | B5: ='1'!P68 -> 70021|70021^70022|70023^70021|70024^70022|70022|70021|70023^70022|70021^70022|70021^70024|70023^70022|70024^70022 | C5: ='1'!P91 -> 0|0^0|0^0|0^0|0|0|0^0|0^0|0^0|0^0|0^0 | D5: ='1'!P105 -> 6|4^3|2^6|3^4|4|10|3^4|8^3|8^2|3^4|3^4 | E5: 12 | F5: 3 | G5: 0 | H5: 0 | I5: 3 | J5: 0 | K5: 130003^2|130004^1
A6: 10202 | B6: ='1'!AD68 -> 70024|70021^70022|70023^70021|70022|70023^70022|70024^70022|70021|70023^70024|70021^70022|70023^70022 | C6: ='1'!AD90 -> 0|0^0|0^0|0|0^0|0^0|0|0^0|0^0|0^0 | D6: ='1'!AD104 -> 3|7^3|2^8|4|2^4|3^4|8|3^2|7^3|3^3 | E6: 10 | F6: 3 | G6: 0 | H6: 0 | I6: 0 | J6: 1 | K6: 130004^1
A7: 10301 | B7: ='1'!P121 -> 70032|70031^70033|70031^70032|70033^70032|70031|70034^70032|70031^70032|70033^70032|70031^70034|70034^70032|70033^70032^70031 | C7: ='1'!P144 -> 0|0^0|0^0|0^0|0|0^0|0^0|0^0|0^0|0^0|0^0^0 | D7: ='1'!P158 -> 4|5^2|7^2|3^4|8|4^3|8^2|2^4|8^2|8^3|2^2^6 | E7: 14 | F7: 3 | G7: 0 | H7: 0 | I7: 3 | J7: 0 | K7: 130003^2|130004^1
A8: 10302 | B8: ='1'!AD121 -> 70031^70031^70031^70031^70032^70032^70031^70033^70032^70031^70031^70031^70031^70032^70034^70034^70032^70033^70033^70033^70033^70032^70032 | C8: ='1'!AD143 -> 2^1^3^5^2^5^4^1^5^4^2^3^5^4^2^3^5^4^2^1^3^2^1 | D8: ='1'!AD157 -> 1^1^1^1^3^3^6^6^6^10^10^10^10^15^15^15^15^20^20^20^20^25^25 | E8: 0 | F8: 1 | G8: 0 | H8: 0 | I8: 0 | J8: 1 | K8: 130004^1
A9: 11101 | B9: ='2'!P15 -> 70041|70041^70042|70042^70041|70044^70043^70041|70043^70042^70041|70041^70044|70041^70042|70044^70043^70042|70043^70041^70042|70041^70043|70044^70042^70043 | C9: ='2'!P38 -> 0|0^0|0^0|0^0^0|0^0^0|0^0|0^0|0^0^0|0^0^0|0^0|0^0^0 | D9: ='2'!P52 -> 5|5^3|4^7|2^2^7|2^4^6|8^2|8^3|2^3^4|2^7^2|9^2|2^4^3 | E9: 11 | F9: 3 | G9: 0 | H9: 0 | I9: 3 | J9: 0 | K9: 130003^3|130004^1
A10: 11102 | B10: ='2'!AD15 -> 70041^70044|70042|70041^70042|70043^70041^70042|70042^70044|70043^70042|70041^70044|70041^70042|70043^70042^70041 | C10: ='2'!AD37 -> 0^0|0|0^0|0^0^0|0^0|0^0|0^0|0^0|0^0^0 | D10: ='2'!AD51 -> 16^4|8|10^2|2^10^2|5^5|5^5|12^2|12^5|8^5^15 | E10: 10 | F10: 3 | G10: 0 | H10: 0 | I10: 0 | J10: 1 | K10: 130003^1|130004^1
A11: 11201 | B11: ='2'!P68 -> 70051^70052^70051^70051^70052^70052^70051^70054^70051^70051^70051^70052^70051^70053^70052^70053^70051^70051^70051^70052^70054^70052^70051^70051^70052^70051^70051^70051^70052^70052^70052^70053^70051^70053^70051^70053^70054^70054^70053^70052^70052^70052^70053^70051^70051^70051^70054^70051^70051^70051^70051^70051^70052^70052^70052^70051^70051^70054^70051^70053^70053^70053^70051^70054 | C11: ='2'!P91 -> 2^1^3^4^2^3^5^6^2^1^3^7^4^2^1^3^5^8^6^2^1^3^7^9^4^2^1^3^5^8^6^4^2^1^3^5^7^9^4^2^1^3^5^8^6^4^1^5^7^9^8^6^2^1^3^7^9^6^4^2^1^3^5^7 | D11: ='2'!P105 -> 5^5^5^10^10^10^10^15^15^15^15^15^21^21^21^21^21^30^30^30^30^30^30^30^35^35^35^35^35^45^45^45^45^45^45^45^45^45^50^50^50^50^50^60^60^60^60^60^60^60^75^75^75^75^75^75^75^85^85^85^85^85^85^85 | E11: 0 | F11: 1 | G11: 0 | H11: 0 | I11: 5 | J11: 0 | K11: 130003^3|130004^1
A12: 11202 | B12: ='2'!AD68 -> 70051^70054^70051^70052^70052^70053^70052^70052^70051^70051^70053^70051^70051^70052^70051^70054^70051^70052^70052^70053^70053^70053^70052^70051^70053^70054^70053^70051^70052^70052^70052^70052^70052^70054^70053^70053^70053^70054 | C12: ='2'!AD90 -> 2^1^3^4^2^1^3^5^4^2^1^3^5^4^2^1^3^5^4^2^1^3^5^6^4^1^5^7^4^2^1^3^5^4^2^1^3^5 | D12: ='2'!AD104 -> 1^1^1^3^3^3^3^3^6^6^6^6^6^10^10^10^10^10^15^15^15^15^15^20^20^20^20^20^26^26^26^26^26^35^25^35^25^35 | E12: 0 | F12: 1 | G12: 0 | H12: 0 | I12: 0 | J12: 1 | K12: 130003^1|130004^1
A13: 11301 | B13: ='2'!P121 -> 70061^70062^70062^70061^70062^70061^70064^70061^70062^70061^70062^70062^70062^70061^70061^70063^70063^70061^70064^70062^70063^70062^70064^70061^70061^70061^70061^70061^70064^70062^70063^70063^70062^70064^70062^70061^70062^70061^70062^70062^70063^70061^70064^70061^70063^70062^70062^70062^70062^70062^70064^70063^70065^70063^70064 | C13: ='2'!P144 -> 4^2^3^5^6^4^1^5^7^4^2^1^3^5^4^2^3^5^6^2^1^3^7^4^2^1^3^5^6^4^2^3^5^7^4^2^1^3^5^6^4^2^1^3^5^7^4^2^3^5^8^2^1^3^9 | D13: ='2'!P158 -> 4^4^4^4^7^7^7^7^7^11^11^11^11^11^17^17^17^17^25^25^25^25^25^35^35^35^35^35^45^45^45^45^45^45^55^55^55^55^55^65^65^65^65^65^65^65^70^70^70^70^80^80^80^80^80 | E13: 0 | F13: 1 | G13: 0 | H13: 0 | I13: 4 | J13: 0 | K13: 130003^3|130004^1
A14: 11302 | B14: ='2'!AD121 -> 70061^70062|70062^70064|70061^70062^70063|70061^70063|70062^70064|70061^70063|70062^70064|70061^70062|70061^70062^70063 | C14: ='2'!AD143 -> 0^0|0^0|0^0^0|0^0|0^0|0^0|0^0|0^0|0^0^0 | D14: ='2'!AD157 -> 15^4|7^3|6^4^3|8^3|7^3|10^3|6^2|12^2|10^3^3 | E14: 12 | F14: 3 | G14: 0 | H14: 0 | I14: 0 | J14: 1 | K14: 130003^1|130004^1
A15: 12101 | B15: ='3'!P15 -> 70071|70074^70072|70071^70072|70073^70071^70074|70071^70072|70074^70073^70072|70071^70072|70073^70071^70072|70072^70071^70074|70071^70072|70074^70073^70072 | C15: ='3'!P38 -> 0|0^0|0^0|0^0^0|0^0|0^0^0|0^0|0^0^0|0^0^0|0^0|0^0^0 | D15: ='3'!P52 -> 6|3^4|7^3|2^8^2|8^3|2^3^4|8^3|2^7^3|3^7^2|7^4|2^3^4 | E15: 12 | F15: 3 | G15: 0 | H15: 0 | I15: 5 | J15: 0 | K15: 130003^3|130004^2
A16: 12102 | B16: ='3'!AD15 -> 70071^70074|70072^70071|70073^70072|70071^70072|70073^70074^70071|70074^70071^70072|70072^70071|70071^70074^70072|70072^70073|70072^70071^70074 | C16: ='3'!AD37 -> 0^0|0^0|0^0|0^0|0^0^0|0^0^0|0^0|0^0^0|0^0|0^0^0 | D16: ='3'!AD51 -> 20^4|6^6|4^6|8^3|4^2^7|2^7^4|4^9|8^2^4|6^4|4^7^2 | E16: 8 | F16: 3 | G16: 0 | H16: 0 | I16: 0 | J16: 1 | K16: 130003^1|130004^1
A17: 12201 | B17: ='3'!P68 -> 70084^70081|70081^70082|70083^70081^70082|70083^70082|70085|70082^70081^70084|70082^70081|70083^70084^70082|70085|70081^70082|70083^70082^70084 | C17: ='3'!P95 -> 0^0|0^0|0^0^0|0^0|100|0^0^0|0^0|0^0^0|100|0^0|0^0^0 | D17: ='3'!P109 -> 2^5|6^3|2^4^4|3^4|5|3^7^2|4^7|3^2^4|6|8^6|4^4^4 | E17: 11 | F17: 3 | G17: 0 | H17: 0 | I17: 5 | J17: 0 | K17: 130003^3|130004^2
A18: 12202 | B18: ='3'!AD68 -> 70081^70082|70085^70082^70086|70083^70081|70081^70082|70083^70084^70081|70082^70081|70083^70082|70081^70084|70082^70081|70084^70081^70083^70082 | C18: ='3'!AD90 -> 0^0|100^0^0|0^0|0^0|0^0^0|0^0|0^0|0^0|0^0|0^0^0^0 | D18: ='3'!AD108 -> 18^6|6^6^1|3^8|7^6|3^2^6|4^7|3^4|9^2|3^8|2^6^2^3 | E18: 9 | F18: 3 | G18: 0 | H18: 0 | I18: 0 | J18: 1 | K18: 130003^1|130004^1
A19: 12301 | B19: ='3'!P125 -> 70091^70092^70091^70092^70094^70092^70092^70094^70093^70093^70094^70092^70092^70091^70091^70092^70091^70091^70092^70095^70095^70095^70095^70091^70094^70091^70093^70091^70094^70091^70091^70091^70092^70092^70092^70091^70091^70092^70094^70093^70093^70093^70094^70092^70095^70095^70095^70095^70095^70091^70091^70092^70092^70092^70091^70091^70094^70092^70093^70096^70093^70092^70094 | C19: ='3'!P152 -> 4^1^5^2^1^3^6^4^2^3^5^7^8^4^2^1^3^5^9^101^102^103^104^8^6^2^1^3^7^9^6^4^2^1^3^5^7^6^4^2^1^3^5^7^101^102^103^104^105^6^4^2^1^3^5^7^6^4^2^1^3^5^7 | D19: ='3'!P166 -> 4^4^4^10^10^10^17^17^17^17^17^17^25^25^25^25^25^25^25^30^30^30^30^38^38^38^38^38^38^38^47^47^47^47^47^47^47^57^57^57^57^57^57^57^60^60^60^60^60^70^70^70^70^70^70^70^80^80^80^80^80^80^80 | E19: 0 | F19: 1 | G19: 0 | H19: 0 | I19: 5 | J19: 0 | K19: 130003^3|130004^2
A20: 12302 | B20: ='3'!AD125 -> 70091^70091^70092^70094^70092^70094^70092^70091^70091^70095^70095^70095^70095^70095^70091^70092^70092^70093^70093^70093^70092^70092^70091^70092^70091^70091^70092^70091^70091^70092^70094^70091^70093^70093^70093^70091^70092^70095^70095^70095^70095^70095^70092^70093^70092^70094^70092^70093^70092^70091^70091^70091^70094^70091^70091^70091^70091^70092^70092^70091^70092^70092^70091^70092^70093^70091^70096^70091^70093^70092 | C20: ='3'!AD147 -> 8^6^4^2^1^3^5^7^9^101^102^103^104^105^8^6^4^2^1^3^5^7^9^6^4^2^1^3^5^7^8^4^2^1^3^5^9^101^102^103^104^105^6^4^2^1^3^5^7^6^4^2^1^3^5^7^6^4^2^1^3^5^7^8^4^2^1^3^5^9 | D20: ='3'!AD165 -> 2^2^2^2^2^2^2^2^2^5^5^5^5^5^10^10^10^10^10^10^10^10^10^20^20^20^20^20^20^20^30^30^30^30^30^30^30^35^35^35^35^35^45^45^45^45^45^45^45^55^55^55^55^55^55^55^65^65^65^65^65^65^65^75^75^75^75^75^75^75 | E20: 0 | F20: 1 | G20: 0 | H20: 0 | I20: 0 | J20: 1 | K20: 130003^1|130005^1
A21: 13101 | B21: ='4'!P15 -> 70101^70102^70104|70102^70101|70104^70103^70102|70101^70102^70104|70105|70103^70104^70102|70102^70101|70104^70103^70101|70105^70106|70103^70102^70104 | C21: ='4'!P42 -> 0^0^0|0^0|0^0^0|0^0^0|100|0^0^0|0^0|0^0^0|100^0|0^0^0 | D21: ='4'!P56 -> 4^2^1|3^6|2^3^4|7^3^2|7|3^2^5|3^9|2^3^8|8^1|3^5^3 | E21: 11 | F21: 3 | G21: 0 | H21: 0 | I21: 5 | J21: 0 | K21: 130003^4|130004^1
A22: 13102 | B22: ='4'!AD15 -> 70101^70104|70102^70101|70104^70102^70103|70101^70102|70105|70102^70101^70104|70103^70101^70102 | C22: ='4'!AD42 -> 0^0|0^0|0^0^0|0^0|100|0^0^0|0^0^0 | D22: ='4'!AD55 -> 20^3|4^8|3^4^3|7^5|7|3^8^2|2^7^3 | E22: 10 | F22: 3 | G22: 0 | H22: 0 | I22: 4 | J22: 0 | K22: 130005^1
A23: 13103 | B23: ='4'!AR15 -> 70104^70102^70102^70104^70101^70101^70101^70105^70105^70101^70103^70104^70103^70101^70102^70104^70103^70103^70104^70102^70102^70101^70101^70101^70101^70102^70104^70102^70103^70102^70104 | C23: ='4'!AR42 -> 4^2^3^5^4^1^5^102^104^4^2^1^3^5^6^4^2^3^5^7^6^4^2^3^5^7^6^4^1^5^7 | D23: ='4'!AR55 -> 3^3^3^3^5^5^5^9^9^15^15^15^15^15^22^22^22^22^22^22^35^35^35^35^35^35^45^45^45^45^45 | E23: 0 | F23: 1 | G23: 0 | H23: 0 | I23: 0 | J23: 1 | K23: 130003^2|130004^1
A24: 13201 | B24: ='4'!P71 -> 70112^70114|70111^70112|70112^70113^70111|70111^70112^70114|70113^70112^70114|70115|70112^70114|70112^70111^70113|70115|70113^70112^70114 | C24: ='4'!P98 -> 0^0|0^0|0^0^0|0^0^0|0^0^0|100|0^0|0^0^0|100|0^0^0 | D24: ='4'!P112 -> 4^2|7^3|3^3^5|7^3^2|4^4^2|7|6^3|3^7^3|8|3^6^2 | E24: 11 | F24: 3 | G24: 0 | H24: 0 | I24: 5 | J24: 0 | K24: 130003^4|130004^1
A25: 13202 | B25: ='4'!AD71 -> 70113^70112^70111|70111|70113^70113^70112|70112^70111^70113|70115^70116|70112^70111^70113|70113^70111^70112 | C25: ='4'!AD98 -> 0^0^0|0|0^0^0|0^0^0|100^0|0^0^0|0^0^0 | D25: ='4'!AD111 -> 4^6^12|12|3^4^4|3^8^2|8^1|3^9^2|3^7^4 | E25: 12 | F25: 3 | G25: 0 | H25: 0 | I25: 5 | J25: 0 | K25: 130005^1
A26: 13203 | B26: ='4'!AR71 -> 70114^70112^70116^70112^70114^70111^70111^70111^70115^70115^70115^70111^70113^70114^70113^70111^70112^70114^70113^70113^70114^70112^70112^70111^70111^70111^70111^70112^70114^70112^70113^70112^70114 | C26: ='4'!AR98 -> 4^2^1^3^5^4^1^5^102^103^104^4^2^1^3^5^6^4^2^3^5^7^6^4^2^3^5^7^6^4^1^5^7 | D26: ='4'!AR111 -> 3^3^3^3^3^5^5^5^9^9^9^15^15^15^15^15^23^23^23^23^23^23^33^33^33^33^33^33^45^45^45^45^45 | E26: 0 | F26: 1 | G26: 0 | H26: 0 | I26: 5 | J26: 1 | K26: 130003^2|130004^1
A27: 13301 | B27: ='4'!P127 -> 70122^70121^70121^70122^70124^70122^70122^70122^70124^70122^70123^70124^70123^70122^70122^70124^70121^70122^70121^70124^70122^70125^70125^70125^70125^70125^70124^70122^70123^70122^70123^70122^70124^70122^70121^70121^70122^70121^70121^70122^70121^70121^70123^70124^70123^70121^70121^70125^70125^70125^70125^70125^70124^70122^70121^70126^70127^70122^70124 | C27: ='4'!P154 -> 4^2^3^5^6^4^1^5^7^6^2^1^3^7^8^4^2^1^3^5^9^101^102^103^104^105^6^4^2^1^3^5^7^8^4^2^1^3^5^9^8^6^4^1^5^7^9^101^102^103^104^105^8^4^2^1^3^5^9 | D27: ='4'!P168 -> 4^4^4^4^10^10^10^10^10^17^17^17^17^17^25^25^25^25^25^25^25^30^30^30^30^30^40^40^40^40^40^40^40^50^50^50^50^50^50^50^60^60^60^60^60^60^60^65^65^65^65^65^75^75^75^75^75^75^75 | E27: 0 | F27: 1 | G27: 0 | H27: 0 | I27: 0 | J27: 0 | K27: 130003^2|130004^2
A28: 13302 | B28: ='4'!AD127 -> 70122^70121^70124|70122^70121|70123^70122^70124|70122^70121|70125^70127|70122^70121^70124|70123^70121^70122 | C28: ='4'!AD154 -> 0^0^0|0^0|0^0^0|0^0|100^0|0^0^0|0^0^0 | D28: ='4'!AD167 -> 5^16^3|3^8|3^5^3|4^8|8^1|4^10^2|4^12^3 | E28: 10 | F28: 3 | G28: 0 | H28: 0 | I28: 3 | J28: 0 | K28: 130005^1
A29: 13303 | B29: ='4'!AR127 -> 70121^70122^70122^70121^70124^70124^70124^70125^70125^70125^70122^70121^70123^70123^70121^70122^70124^70121^70123^70123^70121^70124^70122^70121^70121^70121^70121^70122^70124^70122^70123^70123^70122^70124 | C29: ='4'!AR154 -> 4^2^3^5^4^1^5^102^103^104^6^4^2^3^5^7^8^4^2^3^7^9^6^4^2^3^5^7^6^4^2^3^5^7 | D29: ='4'!AR167 -> 2^2^2^2^5^5^5^9^9^9^14^14^14^14^14^14^20^20^20^20^20^20^27^27^27^27^27^27^35^35^35^35^35^35 | E29: 0 | F29: 1 | G29: 0 | H29: 0 | I29: 0 | J29: 1 | K29: 130003^2|130004^1
A30: 14101 | B30: ='5'!P15 -> 70131^70132|70132^70134|70131^70133^70132|70131^70132^70134|70135|70133^70132^70134|70133^70132^70131|70132^70131|70133^70132^70134|70135^70136 | C30: ='5'!P42 -> 0^0|0^0|0^0^0|0^0^0|100|0^0^0|0^0^0|0^0|0^0^0|100^0 | D30: ='5'!P56 -> 6^2|4^3|6^2^3|7^3^2|8|3^4^3|2^3^8|4^8|3^4^2|8^1 | E30: 12 | F30: 3 | G30: 0 | H30: 0 | I30: 5 | J30: 0 | K30: 130003^2|130004^2
A31: 14102 | B31: ='5'!AD15 -> 70131^70132|70132^70134^70133|70133^70131^70134|70132^70131|70135^70136|70133^70131^70134|70133^70131^70132|70133^70131^70132 | C31: ='5'!AD42 -> 0^0|0^0^0|0^0^0|0^0|100^0|0^0^0|0^0^0|0^0^0 | D31: ='5'!AD55 -> 16^6|5^3^2|2^8^2|4^8|8^1|2^9^2|2^9^3|3^8^4 | E31: 12 | F31: 3 | G31: 0 | H31: 0 | I31: 4 | J31: 0 | K31: 130005^1
A32: 14103 | B32: ='5'!AR15 -> 70131^70131^70131^70131^70131^70132^70134^70132^70135^70135^70135^70132^70133^70134^70133^70132^70134^70132^70131^70131^70131^70132^70134^70132^70131^70133^70133^70133^70131^70132^70134^70132^70132^70132^70134 | C32: ='5'!AR42 -> 4^2^1^3^5^4^1^5^101^103^105^4^2^1^3^5^8^6^2^1^3^7^9^6^4^2^1^3^5^7^6^4^1^5^7 | D32: ='5'!AR55 -> 2^2^2^2^2^4^4^4^8^8^8^15^15^15^15^15^22^22^22^22^22^22^22^30^30^30^30^30^30^30^40^40^40^40^40 | E32: 0 | F32: 1 | G32: 0 | H32: 0 | I32: 0 | J32: 1 | K32: 130003^2|130004^1
A33: 14201 | B33: ='5'!P71 -> 70142^70144|70141^70142|70144^70143^70142|70141^70142^70144|70145|70143^70142^70144|70145|70142^70144^70141|70145^70146|70143^70142^70144 | C33: ='5'!P98 -> 0^0|0^0|0^0^0|0^0^0|100|0^0^0|100|0^0^0|100^0|0^0^0 | D33: ='5'!P112 -> 4^3|8^3|2^3^4|8^3^2|8|3^4^3|8|3^2^8|9^1|3^4^2 | E33: 12 | F33: 3 | G33: 0 | H33: 0 | I33: 4 | J33: 0 | K33: 130003^2|130004^2
A34: 14202 | B34: ='5'!AD71 -> 70141^70142|70143^70142|70143^70141^70142|70143^70142^70141|70145|70142^70143^70143^70141|70142^70141|70145|70143^70141^70142 | C34: ='5'!AD98 -> 0^0|0^0|0^0^0|0^0^0|100|0^0^0^0|0^0|100|0^0^0 | D34: ='5'!AD111 -> 17^6|4^4|2^8^3|2^3^9|8|3^2^2^7|3^9|9|2^8^3 | E34: 12 | F34: 3 | G34: 0 | H34: 0 | I34: 4 | J34: 0 | K34: 130005^1
A35: 14203 | B35: ='5'!AR71 -> 70144^70141^70141^70144^70142^70142^70142^70145^70145^70145^70142^70141^70143^70146^70143^70141^70142^70144^70142^70141^70142^70141^70142^70144^70142^70141^70143^70143^70141^70142^70144^70142^70141^70141^70142^70144^70142^70142^70144^70142^70142 | C35: ='5'!AR98 -> 4^2^3^5^4^1^5^101^103^105^6^4^2^1^3^5^7^8^6^4^1^5^7^9^6^4^2^3^5^7^8^6^4^5^7^9^4^2^1^3^5 | D35: ='5'!AR111 -> 3^3^3^3^5^5^5^8^8^8^12^12^12^12^12^12^12^17^17^17^17^17^17^17^25^25^25^25^25^25^35^35^35^35^35^35^45^45^45^45^45 | E35: 0 | F35: 1 | G35: 0 | H35: 0 | I35: 0 | J35: 1 | K35: 130003^2|130004^1
A36: 14301 | B36: ='5'!P127 -> 70154^70151^70151^70151^70154^70152^70152^70152^70152^70152^70153^70154^70153^70152^70155^70155^70155^70155^70155^70152^70151^70152^70154^70152^70151^70152^70154^70152^70153^70153^70152^70154^70155^70155^70155^70155^70155^70152^70154^70151^70151^70151^70154^70152^70154^70152^70153^70156^70153^70152^70154^70155^70155^70155^70155^70155 | C36: ='5'!P154 -> 4^2^1^3^5^6^4^5^7^8^2^1^3^9^101^102^103^104^105^6^4^2^1^3^5^7^6^4^2^3^5^7^101^102^103^104^105^6^4^2^1^3^5^7^8^6^2^1^3^7^9^101^102^103^104^105 | D36: ='5'!P168 -> 5^5^5^5^5^10^10^10^10^16^16^16^16^16^20^20^20^20^20^27^27^27^27^27^27^27^35^35^35^35^35^35^40^40^40^40^40^50^50^50^50^50^50^50^60^60^60^60^60^60^60^65^65^65^65^65 | E36: 0 | F36: 1 | G36: 0 | H36: 0 | I36: 4 | J36: 0 | K36: 130003^2|130004^2
A37: 14302 | B37: ='5'!AD127 -> 70153^70152^70151|70152^70151|70153^70152^70153|70152^70151|70155^70156|70153^70153^70152^70151|70153^70151^70152|70155|70153^70151^70152 | C37: ='5'!AD154 -> 0^0^0|0^0|0^0^0|0^0|100^0|0^0^0^0|0^0^0|100|0^0^0 | D37: ='5'!AD167 -> 4^6^14|3^7|3^4^2|3^8|8^1|2^2^3^6|2^8^3|9|2^9^3 | E37: 10 | F37: 3 | G37: 0 | H37: 0 | I37: 4 | J37: 0 | K37: 130003^3|130004^1
A38: 14303 | B38: ='5'!AR127 -> 70152^70151^70151^70151^70152^70154^70152^70154^70155^70155^70155^70154^70152^70153^70153^70152^70154^70152^70151^70151^70151^70151^70152^70154^70152^70153^70153^70153^70152^70154^70151^70152^70154^70152^70151^70155^70155^70155^70155^70155 | C38: ='5'!AR154 -> 4^2^1^3^5^4^1^5^101^103^105^6^4^2^3^5^7^6^4^2^3^5^7^8^6^2^1^3^7^9^6^4^1^5^7^101^102^103^104^105 | D38: ='5'!AR167 -> 3^3^3^3^3^5^5^5^8^8^8^12^12^12^12^12^12^17^17^17^17^17^17^25^25^25^25^25^25^25^35^35^35^35^35^40^40^40^40^40 | E38: 0 | F38: 1 | G38: 0 | H38: 0 | I38: 0 | J38: 1 | K38: 130005^1
A39: 15101 | B39: ='6'!P15 -> 70164^70162^70162^70164^70161^70161^70164^70164^70161^70161^70162^70163^70162^70163^70162^70164^70162^70161^70162^70161^70162^70164^70165^70165^70165^70165^70165^70162^70164^70161^70161^70162^70161^70161^70164^70162^70165^70165^70165^70165^70165^70164^70162^70161^70163^70163^70161^70162^70164^70165^70165^70165^70165^70165^70164^70162^70163^70166^70163^70162^70164 | C39: ='6'!P42 -> 4^2^3^5^6^4^2^3^5^7^6^2^1^3^7^8^6^4^1^5^7^9^101^102^103^104^105^8^6^4^2^1^3^5^7^9^101^102^103^104^105^8^6^4^2^3^5^7^9^101^102^103^104^105^6^4^2^1^3^5^7 | D39: ='6'!P56 -> 5^5^5^5^10^10^10^10^10^10^17^17^17^17^17^25^25^25^25^25^25^25^30^30^30^30^30^40^40^40^40^40^40^40^40^40^45^45^45^45^45^55^55^55^55^55^55^55^55^60^60^60^60^60^70^70^70^70^70^70^70 | E39: 0 | F39: 1 | G39: 0 | H39: 0 | I39: 4 | J39: 0 | K39: 130003^2|130004^2
A40: 15102 | B40: ='6'!AD15 -> 70163^70164^70161^70162^70161^70165^70162^70164^70163^70162^70161^70161^70162^70164^70165^70161^70163^70161^70162^70162^70164^70161 | C40: ='6'!AD42 -> 0^0^0^0^0^100^0^0^0^0^0^0^0^0^100^0^0^0^0^0^0^0 | D40: ='6'!AD55 -> 4^5^15^4^8^8^4^2^2^3^6^8^3^2^7^5^2^8^3^3^2^9 | E40: 13 | F40: 3 | G40: 0 | H40: 0 | I40: 4 | J40: 0 | K40: 130003^3|130004^1
A41: 15103 | B41: ='6'!AR15 -> 70165^70165^70165^70165^70162^70162^70162^70164^70164^70164^70161^70161^70161^70161^70163^70163^70163^70164^70162^70161^70161^70162^70164^70162^70161^70163^70164^70163^70161^70162^70164^70162^70162^70162^70164^70165^70165^70165^70165^70165 | C41: ='6'!AR42 -> 101^102^104^105^2^1^3^4^1^5^6^4^5^7^4^1^5^6^4^2^3^5^7^6^4^2^1^3^5^7^6^4^1^5^7^101^102^103^104^105 | D41: ='6'!AR55 -> 2^2^2^2^4^4^4^7^7^7^12^12^12^12^18^18^18^25^25^25^25^25^25^35^35^35^35^35^35^35^45^45^45^45^45^50^50^50^50^50 | E41: 0 | F41: 1 | G41: 0 | H41: 0 | I41: 0 | J41: 1 | K41: 130005^1
A42: 15201 | B42: ='6'!P71 -> 70171^70172^70171^70172^70174^70173^70171^70172^70175^70171^70174^70171^70172^70173^70172^70174^70175^70172^70173^70171^70172^70174^70171^70172^70175^70173^70176 | C42: ='6'!P98 -> 0^0^0^0^0^0^0^0^100^0^0^0^0^0^0^0^100^0^0^0^0^0^0^0^100^0^0 | D42: ='6'!P112 -> 8^3^7^3^2^3^8^2^8^5^2^7^3^3^4^3^9^3^2^7^3^2^7^4^8^3^1 | E42: 12 | F42: 3 | G42: 0 | H42: 0 | I42: 4 | J42: 0 | K42: 130003^3|130004^1
A43: 15202 | B43: ='6'!AD71 -> 70172^70172^70172^70172^70172^70175^70175^70175^70175^70175^70174^70173^70172^70176^70172^70173^70174^70171^70171^70171^70171^70171^70172^70171^70171^70172^70171^70171^70172^70174^70172^70171^70173^70173^70171^70172^70174^70172^70171^70173^70172^70173^70171^70172^70175^70175^70175^70175^70175 | C43: ='6'!AD98 -> 4^2^1^3^5^101^102^103^104^105^6^4^2^1^3^5^7^4^2^1^3^5^6^4^2^1^3^5^7^8^6^4^2^3^5^7^9^6^4^2^1^3^5^7^101^102^103^104^105 | D43: ='6'!AD111 -> 2^2^2^2^2^5^5^5^5^5^10^10^10^10^10^10^10^17^17^17^17^17^25^25^25^25^25^25^25^35^35^35^35^35^35^35^35^45^45^45^45^45^45^45^50^50^50^50^50 | E43: 0 | F43: 1 | G43: 0 | H43: 0 | I43: 4 | J43: 0 | K43: 130003^2|130004^2
A44: 15203 | B44: ='6'!AR71 -> 70173^70171^70172^70171^70171^70172^70174^70175^70173^70171^70172^70171^70174^70172^70173^70171^70172^70172^70174^70175^70172 | C44: ='6'!AR98 -> 0^0^0^0^0^0^0^100^0^0^0^0^0^0^0^0^0^0^0^100^0 | D44: ='6'!AR111 -> 6^14^4^7^7^3^3^8^3^8^3^6^2^4^2^8^3^6^3^8^3 | E44: 12 | F44: 3 | G44: 0 | H44: 0 | I44: 4 | J44: 0 | K44: 130005^1|130003^1
A45: 15204 | B45: ='6'!BF71 -> 70171^70171^70171^70171^70172^70172^70172^70174^70174^70175^70175^70175^70175^70173^70173^70173^70174^70172^70171^70171^70172^70174^70172^70171^70173^70174^70173^70171^70172^70175^70175^70175^70175 | C45: ='6'!BF98 -> 4^2^3^5^4^1^5^2^3^101^102^104^105^4^1^5^6^4^2^3^5^7^6^4^2^1^3^5^7^101^102^104^105 | D45: ='6'!BF111 -> 2^2^2^2^4^4^4^6^6^8^8^8^8^10^10^10^15^15^15^15^15^15^25^25^25^25^25^25^25^30^30^30^30 | E45: 0 | F45: 1 | G45: 0 | H45: 0 | I45: 0 | J45: 1 | K45: 130003^3|130004^1
A46: 15301 | B46: ='6'!P127 -> 70184^70181^70181^70184^70182^70182^70182^70182^70182^70181^70183^70182^70183^70181^70182^70184^70182^70181^70182^70181^70182^70184^70185^70185^70185^70185^70185^70182^70181^70183^70183^70181^70182^70185^70185^70185^70185^70185^70184^70182^70181^70183^70183^70181^70182^70184^70185^70185^70185^70185^70185^70184^70182^70181^70187^70181^70182^70184 | C46: ='6'!P154 -> 6^2^3^7^4^2^3^5^6^4^2^1^3^5^7^8^6^4^1^5^7^9^101^102^103^104^105^6^4^2^3^5^7^101^102^103^104^105^8^6^4^2^3^5^7^9^101^102^103^104^105^6^4^2^1^3^5^7 | D46: ='6'!P168 -> 5^5^5^5^10^10^10^10^17^17^17^17^17^17^17^25^25^25^25^25^25^25^30^30^30^30^30^40^40^40^40^40^40^45^45^45^45^45^55^55^55^55^55^55^55^55^60^60^60^60^60^70^70^70^70^70^70^70 | E46: 0 | F46: 1 | G46: 0 | H46: 0 | I46: 4 | J46: 0 | K46: 130003^3|130004^1
A47: 15302 | B47: ='6'!AD127 -> 70182^70181^70184^70181^70182^70181^70183^70185^70182^70183^70182^70183^70181^70182^70184^70183^70181^70182^70186^70183^70182^70187 | C47: ='6'!AD154 -> 0^0^0^0^0^0^0^100^0^0^0^0^0^0^0^0^0^0^0^0^0^0 | D47: ='6'!AD167 -> 8^14^3^7^3^9^3^8^2^3^6^2^5^3^2^2^8^3^1^2^4^1 | E47: 10 | F47: 3 | G47: 0 | H47: 0 | I47: 4 | J47: 0 | K47: 130003^2|130004^2
A48: 15303 | B48: ='6'!AR127 -> 70185^70185^70185^70185^70182^70182^70182^70184^70181^70181^70181^70184^70183^70183^70183^70184^70182^70181^70182^70181^70182^70184^70182^70181^70183^70183^70181^70182^70184^70182^70182^70182^70182^70184^70185^70185^70185^70185^70185 | C48: ='6'!AR154 -> 101^102^104^105^6^1^7^4^2^1^3^5^4^1^5^8^6^2^1^3^7^9^6^4^2^3^5^7^6^4^2^3^5^7^101^102^103^104^105 | D48: ='6'!AR167 -> 3^3^3^3^5^5^5^9^9^9^9^9^15^15^15^22^22^22^22^22^22^22^30^30^30^30^30^30^40^40^40^40^40^40^45^45^45^45^45 | E48: 0 | F48: 1 | G48: 0 | H48: 0 | I48: 4 | J48: 0 | K48: 130005^1|130003^1
A49: 15304 | B49: ='6'!BF127 -> 70183^70183^70183^70182^70182^70182^70184^70184^70181^70181^70181^70181^70185^70185^70185^70185^70185^70184^70182^70183^70187^70183^70182^70184^70182^70181^70184^70181^70182^70181^70181^70181^70183^70183^70181^70181^70181^70182^70182^70182^70182^70182^70182^70182 | C49: ='6'!BF154 -> 2^1^3^4^1^5^2^3^6^4^5^7^101^102^103^104^105^6^4^2^1^3^5^7^6^4^1^5^7^8^6^4^2^3^5^7^9^6^4^2^1^3^5^7 | D49: ='6'!BF167 -> 2^2^2^4^4^4^6^6^8^8^8^8^10^10^10^10^10^17^17^17^17^17^17^17^25^25^25^25^25^35^35^35^35^35^35^35^35^45^45^45^45^45^45^45 | E49: 0 | F49: 1 | G49: 0 | H49: 0 | I49: 0 | J49: 1 | K49: 130003^3|130004^1
A50: 16101 | B50: ='7'!P15 -> 70194^70192^70192^70194^70192^70191^70191^70191^70192^70192^70191^70193^70192^70193^70191^70192^70195^70195^70195^70195^70195^70192^70191^70194^70192^70194^70191^70192^70192^70191^70193^70194^70193^70191^70192^70192^70192^70191^70191^70191^70192^70192^70195^70195^70195^70195^70195^70192^70191^70191^70196^70191^70191^70192^70194^70192^70191^70193^70193^70191^70192^70194 | C50: ='7'!P42 -> 4^2^3^5^6^2^1^3^7^6^4^2^1^3^5^7^101^102^103^104^105^8^4^2^1^3^5^9^6^4^2^1^3^5^7^6^4^2^1^3^5^7^101^102^103^104^105^6^4^2^1^3^5^7^8^6^4^2^3^5^7^9 | D50: ='7'!P56 -> 5^5^5^5^10^10^10^10^10^16^16^16^16^16^16^16^20^20^20^20^20^27^27^27^27^27^27^27^35^35^35^35^35^35^35^45^45^45^45^45^45^45^50^50^50^50^50^60^60^60^60^60^60^60^70^70^70^70^70^70^70^70 | E50: 0 | F50: 1 | G50: 0 | H50: 0 | I50: 4 | J50: 0 | K50: 130003^3|130004^1
A51: 16102 | B51: ='7'!AD15 -> 70195^70191^70192^70191^70193^70192^70191^70194^70191^70192^70193^70191^70192^70194^70194^70192^70191^70195^70192 | C51: ='7'!AD42 -> 100^0^0^0^0^0^0^0^0^0^0^0^0^0^0^0^0^100^0 | D51: ='7'!AD55 -> 9^14^4^8^3^5^9^2^9^3^2^7^3^2^2^3^9^7^4 | E51: 13 | F51: 3 | G51: 0 | H51: 0 | I51: 4 | J51: 0 | K51: 130003^2|130004^2
A52: 16103 | B52: ='7'!AR15 -> 70193^70191^70193^70191^70193^70194^70192^70192^70192^70192^70194^70191^70191^70192^70191^70191^70195^70195^70195^70195^70195^70194^70192^70191^70196^70191^70192^70194^70193^70193^70194^70193^70193^70192^70192^70191^70191^70191^70192^70192^70194^70192^70191^70193^70193^70191^70192^70194 | C52: ='7'!AR42 -> 4^2^1^3^5^8^6^2^1^7^9^6^4^1^5^7^101^102^103^104^105^6^4^2^1^3^5^7^6^2^1^3^7^6^4^2^1^3^5^7^8^6^4^2^3^5^7^9 | D52: ='7'!AR55 -> 4^4^4^4^4^6^6^6^6^6^6^10^10^10^10^10^15^15^15^15^15^22^22^22^22^22^22^22^30^30^30^30^30^40^40^40^40^40^40^40^50^50^50^50^50^50^50^50 | E52: 0 | F52: 1 | G52: 0 | H52: 0 | I52: 3 | J52: 0 | K52: 130005^1|130003^1
A53: 16104 | B53: ='7'!BF15 -> 70191^70191^70191^70191^70192^70192^70192^70194^70194^70195^70195^70195^70195^70193^70193^70193^70194^70191^70191^70191^70191^70194^70192^70192^70192^70192^70192^70192^70192^70191^70193^70193^70191^70192^70192 | C53: ='7'!BF42 -> 4^2^3^5^4^1^5^2^3^101^102^104^105^4^1^5^6^4^2^3^5^7^6^4^1^5^7^8^6^4^2^3^5^7^9 | D53: ='7'!BF55 -> 2^2^2^2^4^4^4^6^6^8^8^8^8^10^10^10^17^17^17^17^17^17^25^25^25^25^25^35^35^35^35^35^35^35^35 | E53: 0 | F53: 1 | G53: 0 | H53: 0 | I53: 0 | J53: 1 | K53: 130003^3|130004^1
A54: 16201 | B54: ='7'!P71 -> 70202^70204^70201^70202^70201^70203^70202^70204^70202^70201^70205^70203^70202^70201^70204^70203^70202^70201^70201^70202^70204^70205^70202^70207^70204^70203^70201^70202 | C54: ='7'!P98 -> 0^0^0^0^0^0^0^0^0^0^100^0^0^0^0^0^0^0^0^0^0^100^0^0^0^0^0^0 | D54: ='7'!P112 -> 3^2^5^4^8^3^6^2^3^9^8^2^3^8^2^2^3^9^9^3^2^8^3^1^2^2^7^3 | E54: 13 | F54: 3 | G54: 0 | H54: 0 | I54: 4 | J54: 0 | K54: 130003^3|130004^1
A55: 16202 | B55: ='7'!AD71 -> 70204^70201^70201^70201^70204^70202^70201^70202^70201^70202^70205^70205^70205^70205^70205^70202^70203^70203^70203^70202^70204^70202^70201^70202^70201^70202^70204^70202^70201^70203^70202^70203^70201^70202^70204^70202^70201^70201^70201^70201^70202^70204^70205^70205^70205^70205^70205 | C55: ='7'!AD98 -> 4^2^1^3^5^6^2^1^3^7^101^102^103^104^105^6^4^1^5^7^8^4^2^1^3^5^9^8^4^2^1^3^5^9^8^6^4^2^3^5^7^9^101^102^103^104^105 | D55: ='7'!AD111 -> 5^5^5^5^5^10^10^10^10^10^15^15^15^15^15^22^22^22^22^22^30^30^30^30^30^30^30^40^40^40^40^40^40^40^50^50^50^50^50^50^50^50^55^55^55^55^55 | E55: 0 | F55: 1 | G55: 0 | H55: 0 | I55: 4 | J55: 0 | K55: 130003^2|130004^2
A56: 16203 | B56: ='7'!AR71 -> 70205^70205^70205^70205^70205^70204^70202^70207^70202^70204^70201^70201^70201^70201^70201^70202^70201^70203^70202^70203^70201^70202^70204^70201^70202^70202^70202^70201^70204^70202^70201^70203^70202^70203^70201^70202^70205^70205^70205^70205^70205^70204^70202^70201^70201^70203^70201^70201^70202^70204 | C56: ='7'!AR98 -> 101^102^103^104^105^6^2^1^3^7^4^2^1^3^5^8^4^2^1^3^5^9^8^6^4^1^5^7^9^6^4^2^1^3^5^7^101^102^103^104^105^8^6^4^2^1^3^5^7^9 | D56: ='7'!AR111 -> 3^3^3^3^3^6^6^6^6^6^10^10^10^10^10^15^15^15^15^15^15^15^25^25^25^25^25^25^25^35^35^35^35^35^35^35^40^40^40^40^40^50^50^50^50^50^50^50^50^50 | E56: 0 | F56: 1 | G56: 0 | H56: 0 | I56: 3 | J56: 0 | K56: 130005^1|130003^1
A57: 16204 | B57: ='7'!BF71 -> 70203^70203^70203^70202^70202^70202^70204^70204^70201^70201^70201^70201^70205^70205^70205^70205^70205^70204^70202^70203^70203^70202^70204^70202^70201^70201^70204^70201^70201^70202^70202^70204^70202^70203^70203^70202^70204^70202 | C57: ='7'!BF98 -> 4^1^5^6^1^7^2^3^4^2^3^5^101^102^103^104^105^8^6^2^3^7^9^6^4^2^1^3^5^7^8^6^4^2^3^5^7^9 | D57: ='7'!BF111 -> 3^3^3^5^5^5^8^8^12^12^12^12^17^17^17^17^17^23^23^23^23^23^23^30^30^30^30^30^30^30^40^40^40^40^40^40^40^40 | E57: 0 | F57: 1 | G57: 0 | H57: 0 | I57: 0 | J57: 1 | K57: 130003^3|130004^1
A58: 16301 | B58: ='7'!P127 -> 70214^70211^70211^70211^70214^70212^70212^70214^70212^70212^70212^70211^70213^70211^70213^70211^70212^70215^70215^70215^70215^70215^70214^70212^70211^70211^70211^70212^70214^70214^70212^70213^70212^70213^70212^70214^70212^70211^70211^70211^70211^70211^70211^70212^70214^70212^70213^70212^70213^70212^70214^70215^70215^70215^70215^70215^70212^70212^70213^70219^70213^70212^70212 | C58: ='7'!P154 -> 6^2^1^3^7^4^2^1^3^5^8^6^2^1^3^7^9^101^102^103^104^105^8^6^2^1^3^7^9^8^4^2^1^3^5^9^8^6^4^2^3^5^7^9^6^4^2^1^3^5^7^101^102^103^104^105^8^6^2^1^3^7^9 | D58: ='7'!P168 -> 5^5^5^5^5^10^10^10^10^10^16^16^16^16^16^16^16^20^20^20^20^20^27^27^27^27^27^27^27^35^35^35^35^35^35^35^45^45^45^45^45^45^45^45^55^55^55^55^55^55^55^60^60^60^60^60^70^70^70^70^70^70^70 | E58: 0 | F58: 1 | G58: 0 | H58: 0 | I58: 4 | J58: 0 | K58: 130003^3|130004^1
A59: 16302 | B59: ='7'!AD127 -> 70215^70215^70215^70215^70212^70212^70212^70214^70213^70213^70214^70214^70212^70211^70211^70212^70214^70212^70212^70213^70214^70213^70212^70212^70212^70211^70213^70213^70211^70212^70215^70215^70215^70215^70215^70214^70219^70216^70212^70214 | C59: ='7'!AD154 -> 101^102^104^105^6^1^7^6^2^3^7^8^4^2^3^5^9^6^4^2^1^3^5^7^8^4^2^3^5^9^101^102^103^104^105^6^4^1^5^7 | D59: ='7'!AD167 -> 3^3^3^3^6^6^6^10^10^10^10^15^15^15^15^15^15^22^22^22^22^22^22^22^30^30^30^30^30^30^35^35^35^35^35^45^45^45^45^45 | E59: 0 | F59: 1 | G59: 0 | H59: 0 | I59: 4 | J59: 0 | K59: 130003^2|130004^2
A60: 16303 | B60: ='7'!AR127 -> 70212^70214^70211|70213^70211|70215^70212|70213^70212^70214|70212^70211|70215^70214|70213^70212^70214|70213^70211^70212 | C60: ='7'!AR154 -> 0^0^0|0^0|100^0|0^0^0|0^0|100^0|0^0^0|0^0^0 | D60: ='7'!AR167 -> 6^4^16|3^8|8^4|3^6^2|3^9|8^2|3^6^2|2^9^2 | E60: 10 | F60: 3 | G60: 0 | H60: 0 | I60: 3 | J60: 0 | K60: 130005^1|130003^1
A61: 16304 | B61: ='7'!BF127 -> 70214^70213^70219^70213^70214^70212^70212^70212^70215^70215^70215^70215^70211^70211^70211^70211^70211^70214^70212^70213^70213^70212^70214^70212^70211^70211^70214^70211^70211^70212^70212^70211^70211^70213^70211^70211^70212^70214^70212^70211^70213^70213^70211^70212^70214 | C61: ='7'!BF154 -> 4^2^1^3^5^6^1^7^101^102^104^105^6^4^1^5^7^6^4^2^3^5^7^8^4^2^1^3^5^9^6^4^2^1^3^5^7^8^6^4^2^3^5^7^9 | D61: ='7'!BF167 -> 3^3^3^3^3^5^5^5^8^8^8^8^12^12^12^12^12^17^17^17^17^17^17^23^23^23^23^23^23^23^30^30^30^30^30^30^30^40^40^40^40^40^40^40^40 | E61: 0 | F61: 1 | G61: 0 | H61: 0 | I61: 0 | J61: 1 | K61: 130003^3|130004^1
A62: 17101 | B62: ='8'!P15 -> 70222^70224^70221^70222^70223^70221^70222^70225^70221^70222^70224^70221^70224^70223^70221^70222^70221^70222^70225^70222^70224^70221^70222^70223^70221^70222^70224 | C62: ='8'!P42 -> 0^0^0^0^0^0^0^100^0^0^0^0^0^0^0^0^0^0^100^0^0^0^0^0^0^0^0 | D62: ='8'!P56 -> 6^3^9^4^3^8^3^6^6^3^2^8^2^2^7^3^9^3^8^3^2^9^3^2^8^3^2 | E62: 14 | F62: 3 | G62: 0 | H62: 0 | I62: 4 | J62: 0 | K62: 130003^3|130004^1
A63: 17102 | B63: ='8'!AD15 -> 70225^70225^70225^70225^70222^70222^70222^70223^70226^70223^70224^70221^70221^70224^70222^70221^70221^70222^70221^70221^70222^70224^70222^70221^70223^70223^70221^70222^70224^70222^70221^70222^70224^70222^70221^70222^70225^70225^70225^70225^70225 | C63: ='8'!AD42 -> 101^102^104^105^4^1^5^6^1^7^4^2^3^5^6^4^2^1^3^5^7^8^6^4^2^3^5^7^9^6^4^2^1^3^5^7^101^102^103^104^105 | D63: ='8'!AD55 -> 3^3^3^3^6^6^6^10^10^10^15^15^15^15^22^22^22^22^22^22^22^30^30^30^30^30^30^30^30^40^40^40^40^40^40^40^45^45^45^45^45 | E63: 0 | F63: 1 | G63: 0 | H63: 0 | I63: 4 | J63: 0 | K63: 130003^2|130004^2
A64: 17103 | B64: ='8'!AR15 -> 70223^70221^70222^70224^70221^70221^70222^70225^70223^70222^70221^70224^70224^70223^70222^70221^70222^70226^70223^70221^70222^70224 | C64: ='8'!AR42 -> 0^0^0^0^0^0^0^100^0^0^0^0^0^0^0^0^0^0^0^0^0^0 | D64: ='8'!AR55 -> 5^17^3^2^6^7^4^6^3^3^8^2^2^3^5^9^3^1^2^8^3^2 | E64: 13 | F64: 3 | G64: 0 | H64: 0 | I64: 3 | J64: 0 | K64: 130005^1|130003^1
A65: 17104 | B65: ='8'!BF15 -> 70221^70221^70221^70221^70222^70222^70222^70224^70224^70225^70225^70225^70225^70223^70223^70223^70224^70221^70221^70221^70221^70224^70222^70222^70222^70222^70222^70222^70222^70221^70223^70223^70221^70222^70222 | C65: ='8'!BF42 -> 4^2^3^5^4^1^5^2^3^101^102^104^105^4^1^5^6^4^2^3^5^7^6^4^1^5^7^8^6^4^2^3^5^7^9 | D65: ='8'!BF55 -> 2^2^2^2^4^4^4^6^6^8^8^8^8^10^10^10^15^15^15^15^15^15^25^25^25^25^25^35^35^35^35^35^35^35^35 | E65: 0 | F65: 1 | G65: 0 | H65: 0 | I65: 0 | J65: 1 | K65: 130003^3|130004^1
A66: 17201 | B66: ='8'!P71 -> 70234^70232^70232^70234^70231^70231^70232^70232^70231^70231^70234^70232^70233^70232^70233^70232^70234^70232^70231^70231^70232^70231^70231^70232^70235^70235^70235^70235^70235^70234^70231^70232^70232^70232^70231^70234^70231^70231^70232^70233^70233^70232^70231^70231^70234^70232^70231^70232^70231^70232^70234^70235^70235^70235^70235^70235^70232^70231^70233^70237^70233^70231^70232 | C66: ='8'!P98 -> 6^2^3^7^6^4^2^3^5^7^6^4^2^1^3^5^7^8^4^2^1^3^5^9^101^102^103^104^105^8^6^2^1^3^7^9^8^6^4^2^3^5^7^9^8^6^4^1^5^7^9^101^102^103^104^105^6^4^2^1^3^5^7 | D66: ='8'!P112 -> 5^5^5^5^10^10^10^10^10^10^17^17^17^17^17^17^17^25^25^25^25^25^25^25^30^30^30^30^30^40^40^40^40^40^40^40^50^50^50^50^50^50^50^50^60^60^60^60^60^60^60^65^65^65^65^65^75^75^75^75^75^75^75 | E66: 0 | F66: 1 | G66: 0 | H66: 0 | I66: 4 | J66: 0 | K66: 130003^3|130004^1
A67: 17202 | B67: ='8'!AD71 -> 70231^70234^70233^70232^70231^70235^70232^70233^70231^70234^70231^70232^70232^70233^70231^70232^70234^70231^70235^70233^70237 | C67: ='8'!AD98 -> 0^0^0^0^0^100^0^0^0^0^0^0^0^0^0^0^0^0^100^0^0 | D67: ='8'!AD111 -> 17^5^3^4^8^8^4^2^9^2^8^3^3^2^8^3^2^9^7^3^1 | E67: 14 | F67: 3 | G67: 0 | H67: 0 | I67: 4 | J67: 0 | K67: 130003^2|130004^2
A68: 17203 | B68: ='8'!AR71 -> 70235^70235^70235^70235^70235^70234^70232^70232^70232^70234^70231^70231^70231^70231^70231^70232^70231^70233^70233^70233^70231^70232^70234^70231^70232^70232^70232^70231^70234^70232^70231^70233^70232^70233^70231^70232^70235^70235^70235^70235^70235^70234^70232^70231^70233^70231^70232^70234 | C68: ='8'!AR98 -> 101^102^103^104^105^6^2^1^3^7^4^2^1^3^5^8^4^2^1^3^5^9^8^6^4^1^5^7^9^6^4^2^1^3^5^7^101^102^103^104^105^8^6^2^1^3^7^9 | D68: ='8'!AR111 -> 3^3^3^3^3^6^6^6^6^6^10^10^10^10^10^17^17^17^17^17^17^17^25^25^25^25^25^25^25^35^35^35^35^35^35^35^40^40^40^40^40^50^50^50^50^50^50^50 | E68: 0 | F68: 1 | G68: 0 | H68: 0 | I68: 3 | J68: 0 | K68: 130005^1|130003^1
A69: 17204 | B69: ='8'!BF71 -> 70233^70237^70233^70232^70232^70232^70234^70234^70231^70231^70231^70231^70235^70235^70235^70235^70234^70232^70233^70233^70232^70234^70232^70231^70231^70234^70231^70231^70232^70232^70234^70232^70233^70233^70232^70234^70232 | C69: ='8'!BF98 -> 4^1^5^6^1^7^2^3^4^2^3^5^101^102^104^105^8^6^2^3^7^9^6^4^2^1^3^5^7^8^6^4^2^3^5^7^9 | D69: ='8'!BF111 -> 3^3^3^5^5^5^8^8^12^12^12^12^17^17^17^17^25^25^25^25^25^25^35^35^35^35^35^35^35^45^45^45^45^45^45^45^45 | E69: 0 | F69: 1 | G69: 0 | H69: 0 | I69: 0 | J69: 1 | K69: 130003^3|130004^1
A70: 17301 | B70: ='8'!P127 -> 70241^70244^70244^70242^70241^70243^70241^70242^70245^70244^70241^70242^70244^70242^70243^70241^70241^70242^70243^70242^70244^70245^70242^70249^70244^70243^70242 | C70: ='8'!P154 -> 0^0^0^0^0^0^0^0^100^0^0^0^0^0^0^0^0^0^0^0^0^100^0^0^0^0^0 | D70: ='8'!P168 -> 8^3^2^4^8^2^8^3^9^2^9^3^2^3^2^10^9^4^4^4^2^8^3^1^2^3^5 | E70: 10 | F70: 3 | G70: 0 | H70: 0 | I70: 4 | J70: 0 | K70: 130003^3|130004^1
A71: 17302 | B71: ='8'!AD127 -> 70245^70245^70245^70245^70245^70242^70242^70242^70244^70243^70243^70244^70244^70242^70241^70241^70242^70244^70242^70242^70243^70244^70243^70242^70242^70242^70241^70243^70243^70243^70241^70242^70245^70245^70245^70245^70245^70244^70249^70246^70242^70244 | C71: ='8'!AD154 -> 101^102^103^104^105^6^1^7^6^2^3^7^8^4^2^3^5^9^6^4^2^1^3^5^7^8^4^2^1^3^5^9^101^102^103^104^105^6^4^1^5^7 | D71: ='8'!AD167 -> 5^5^5^5^5^10^10^10^15^15^15^15^22^22^22^22^22^22^30^30^30^30^30^30^30^40^40^40^40^40^40^40^45^45^45^45^45^55^55^55^55^55 | E71: 0 | F71: 1 | G71: 0 | H71: 0 | I71: 4 | J71: 0 | K71: 130003^2|130004^2
A72: 17303 | B72: ='8'!AR127 -> 70242^70244^70241^70243^70241^70245^70241^70243^70242^70244^70242^70241^70245^70242^70243^70242^70244^70249^70241^70242 | C72: ='8'!AR154 -> 0^0^0^0^0^100^0^0^0^0^0^0^100^0^0^0^0^0^0^0 | D72: ='8'!AR167 -> 5^3^16^3^8^7^6^3^4^3^3^9^8^2^3^5^2^2^9^3 | E72: 10 | F72: 3 | G72: 0 | H72: 0 | I72: 3 | J72: 0 | K72: 130005^1|130003^1
A73: 17304 | B73: ='8'!BF127 -> 70244^70243^70243^70244^70242^70242^70242^70245^70245^70245^70245^70241^70241^70241^70241^70241^70244^70242^70243^70243^70242^70244^70242^70241^70241^70244^70241^70241^70242^70242^70241^70241^70243^70241^70241^70242^70244^70242^70241^70243^70243^70241^70242^70244 | C73: ='8'!BF154 -> 4^2^3^5^6^1^7^101^102^104^105^6^4^1^5^7^6^4^2^3^5^7^8^4^2^1^3^5^9^6^4^2^1^3^5^7^8^6^4^2^3^5^7^9 | D73: ='8'!BF167 -> 3^3^3^3^5^5^5^8^8^8^8^12^12^12^12^12^17^17^17^17^17^17^25^25^25^25^25^25^25^35^35^35^35^35^35^35^45^45^45^45^45^45^45^45 | E73: 0 | F73: 1 | G73: 0 | H73: 0 | I73: 0 | J73: 1 | K73: 130003^3|130004^1
A74: 18101 | B74: ='9'!P15 -> 70254^70252^70252^70252^70254^70252^70251^70251^70251^70252^70252^70251^70253^70252^70253^70251^70252^70255^70255^70255^70255^70255^70252^70251^70254^70252^70254^70251^70252^70252^70251^70253^70254^70253^70251^70252^70252^70252^70251^70251^70251^70252^70252^70255^70255^70255^70255^70255^70252^70251^70251^70256^70251^70251^70252^70254^70252^70251^70253^70252^70253^70251^70252^70254 | C74: ='9'!P42 -> 4^2^1^3^5^6^2^1^3^7^6^4^2^1^3^5^7^101^102^103^104^105^8^4^2^1^3^5^9^6^4^2^1^3^5^7^6^4^2^1^3^5^7^101^102^103^104^105^6^4^2^1^3^5^7^8^6^4^2^1^3^5^7^9 | D74: ='9'!P56 -> 5^5^5^5^5^10^10^10^10^10^16^16^16^16^16^16^16^20^20^20^20^20^27^27^27^27^27^27^27^35^35^35^35^35^35^35^45^45^45^45^45^45^45^50^50^50^50^50^60^60^60^60^60^60^60^70^70^70^70^70^70^70^70^70 | E74: 0 | F74: 1 | G74: 0 | H74: 0 | I74: 4 | J74: 0 | K74: 130003^3|130004^1
A75: 18102 | B75: ='9'!AD15 -> 70255^70254^70252^70252^70251^70253^70251^70252^70251^70254^70251^70252^70253^70251^70252^70254^70254^70252^70251^70255^70252^70256 | C75: ='9'!AD42 -> 100^0^0^0^0^0^0^0^0^0^0^0^0^0^0^0^0^0^0^100^0^0 | D75: ='9'!AD55 -> 12^4^6^4^8^3^8^3^13^2^12^4^2^11^3^2^2^3^14^8^4^1 | E75: 14 | F75: 3 | G75: 0 | H75: 0 | I75: 4 | J75: 0 | K75: 130003^2|130004^2
A76: 18103 | B76: ='9'!AR15 -> 70253^70251^70251^70252^70254^70251^70252^70255^70253^70252^70251^70254^70254^70253^70251^70251^70252^70253^70251^70252^70254 | C76: ='9'!AR42 -> 0^0^0^0^0^0^0^100^0^0^0^0^0^0^0^0^0^0^0^0^0 | D76: ='9'!AR55 -> 5^17^10^3^2^12^4^8^3^3^13^2^2^3^14^16^4^2^14^3^2 | E76: 13 | F76: 3 | G76: 0 | H76: 0 | I76: 3 | J76: 0 | K76: 130005^1|130003^1
A77: 18104 | B77: ='9'!BF15 -> 70251^70251^70251^70251^70252^70252^70252^70254^70254^70255^70255^70255^70255^70253^70253^70253^70254^70251^70251^70251^70251^70254^70252^70252^70256^70252^70252^70252^70252^70251^70253^70253^70251^70252^70252 | C77: ='9'!BF42 -> 4^2^3^5^4^1^5^2^3^101^102^104^105^4^1^5^6^4^2^3^5^7^6^4^1^5^7^8^6^4^2^3^5^7^9 | D77: ='9'!BF55 -> 2^2^2^2^4^4^4^6^6^8^8^8^8^10^10^10^15^15^15^15^15^15^25^25^25^25^25^35^35^35^35^35^35^35^35 | E77: 0 | F77: 1 | G77: 0 | H77: 0 | I77: 0 | J77: 1 | K77: 130003^3|130004^1
A78: 18201 | B78: ='9'!P71 -> 70262^70261^70264^70262^70261^70262^70263^70264^70262^70261^70265^70261^70262^70261^70264^70262^70263^70261^70262^70261^70264^70265^70262^70268^70264^70263^70261^70262 | C78: ='9'!P98 -> 0^0^0^0^0^0^0^0^0^0^100^0^0^0^0^0^0^0^0^0^0^100^0^0^0^0^0^0 | D78: ='9'!P112 -> 3^7^2^4^11^6^3^3^4^12^6^11^4^13^2^3^2^14^4^15^2^8^4^1^2^3^14^3 | E78: 12 | F78: 3 | G78: 0 | H78: 0 | I78: 4 | J78: 0 | K78: 130003^3|130004^1
A79: 18202 | B79: ='9'!AD71 -> 70264^70261^70261^70264^70262^70262^70262^70265^70265^70265^70265^70265^70263^70261^70263^70261^70263^70264^70262^70261^70261^70261^70262^70264^70262^70261^70263^70262^70263^70261^70262^70264^70262^70261^70261^70267^70261^70261^70262^70264^70265^70265^70265^70265^70265 | C79: ='9'!AD98 -> 4^2^3^5^6^1^7^101^102^103^104^105^4^2^1^3^5^8^4^2^1^3^5^9^8^4^2^1^3^5^9^8^6^4^2^1^3^5^7^9^101^102^103^104^105 | D79: ='9'!AD111 -> 3^3^3^3^6^6^6^10^10^10^10^10^17^17^17^17^17^25^25^25^25^25^25^25^35^35^35^35^35^35^35^45^45^45^45^45^45^45^45^45^50^50^50^50^50 | E79: 0 | F79: 1 | G79: 0 | H79: 0 | I79: 4 | J79: 0 | K79: 130003^2|130004^2
A80: 18203 | B80: ='9'!AR71 -> 70265^70265^70265^70265^70265^70264^70262^70262^70262^70264^70261^70261^70261^70261^70261^70262^70261^70263^70263^70263^70261^70262^70264^70261^70262^70261^70262^70261^70262^70261^70264^70262^70261^70263^70264^70263^70261^70262^70265^70265^70265^70265^70265^70264^70262^70261^70267^70263^70268^70261^70262^70264 | C80: ='9'!AR98 -> 101^102^103^104^105^6^2^1^3^7^4^2^1^3^5^8^4^2^1^3^5^9^8^6^4^2^1^3^5^7^9^6^4^2^1^3^5^7^101^102^103^104^105^8^6^4^2^1^3^5^7^9 | D80: ='9'!AR111 -> 5^5^5^5^5^10^10^10^10^10^15^15^15^15^15^22^22^22^22^22^22^22^30^30^30^30^30^30^30^30^30^40^40^40^40^40^40^40^45^45^45^45^45^55^55^55^55^55^55^55^55^55 | E80: 0 | F80: 1 | G80: 0 | H80: 0 | I80: 3 | J80: 0 | K80: 130005^1|130003^1
A81: 18204 | B81: ='9'!BF71 -> 70263^70263^70263^70262^70262^70262^70264^70264^70261^70261^70261^70261^70265^70265^70265^70265^70264^70262^70263^70263^70262^70264^70262^70261^70261^70264^70261^70261^70262^70262^70264^70262^70263^70263^70262^70264^70262 | C81: ='9'!BF98 -> 4^1^5^6^1^7^2^3^4^2^3^5^101^102^104^105^8^6^2^3^7^9^6^4^2^1^3^5^7^8^6^4^2^3^5^7^9 | D81: ='9'!BF111 -> 2^2^2^4^4^4^7^7^11^11^11^11^16^16^16^16^22^22^22^22^22^22^30^30^30^30^30^30^30^40^40^40^40^40^40^40^40 | E81: 0 | F81: 1 | G81: 0 | H81: 0 | I81: 0 | J81: 1 | K81: 130003^3|130004^1
A82: 18301 | B82: ='9'!P127 -> 70274^70271^70271^70271^70274^70272^70272^70274^70272^70272^70272^70271^70273^70272^70273^70271^70272^70275^70275^70275^70275^70275^70274^70272^70271^70271^70271^70272^70274^70274^70272^70273^70272^70273^70272^70274^70272^70271^70271^70271^70272^70271^70271^70271^70272^70274^70272^70273^70272^70273^70272^70274^70275^70275^70275^70275^70275^70272^70272^70271^70273^70279^70273^70271^70272^70272 | C82: ='9'!P154 -> 6^2^1^3^7^4^2^1^3^5^8^6^2^1^3^7^9^101^102^103^104^105^8^6^2^1^3^7^9^8^4^2^1^3^5^9^8^6^4^2^1^3^5^7^9^6^4^2^1^3^5^7^101^102^103^104^105^8^6^4^2^1^3^5^7^9 | D82: ='9'!P168 -> 5^5^5^5^5^10^10^10^10^10^16^16^16^16^16^16^16^20^20^20^20^20^27^27^27^27^27^27^27^35^35^35^35^35^35^35^45^45^45^45^45^45^45^45^45^55^55^55^55^55^55^55^60^60^60^60^60^70^70^70^70^70^70^70^70^70 | E82: 0 | F82: 1 | G82: 0 | H82: 0 | I82: 4 | J82: 0 | K82: 130003^3|130004^1
A83: 18302 | B83: ='9'!AD127 -> 70275^70275^70275^70275^70272^70272^70272^70274^70273^70273^70274^70274^70272^70271^70271^70272^70274^70272^70272^70273^70274^70273^70272^70272^70272^70271^70273^70273^70273^70271^70272^70275^70275^70275^70275^70275^70274^70272^70276^70279^70274 | C83: ='9'!AD154 -> 101^102^104^105^6^1^7^6^2^3^7^8^4^2^3^5^9^6^4^2^1^3^5^7^8^4^2^1^3^5^9^101^102^103^104^105^6^4^1^5^7 | D83: ='9'!AD167 -> 5^5^5^5^10^10^10^15^15^15^15^22^22^22^22^22^22^30^30^30^30^30^30^30^40^40^40^40^40^40^40^45^45^45^45^45^55^55^55^55^55 | E83: 0 | F83: 1 | G83: 0 | H83: 0 | I83: 4 | J83: 0 | K83: 130003^2|130004^2
A84: 18303 | B84: ='9'!AR127 -> 70272^70274^70271^70273^70271^70275^70272^70271^70273^70272^70274^70272^70271^70275^70274^70271^70273^70272^70274^70273^70271^70279 | C84: ='9'!AR154 -> 0^0^0^0^0^100^0^0^0^0^0^0^0^100^0^0^0^0^0^0^0^0 | D84: ='9'!AR167 -> 6^4^18^3^12^8^3^8^3^3^2^3^14^8^3^12^2^3^2^3^14^2 | E84: 10 | F84: 3 | G84: 0 | H84: 0 | I84: 3 | J84: 0 | K84: 130005^1|130003^1
A85: 18304 | B85: ='9'!BF127 -> 70274^70273^70273^70274^70272^70272^70272^70275^70275^70275^70275^70271^70271^70271^70271^70271^70274^70272^70273^70273^70272^70274^70272^70271^70271^70274^70271^70271^70272^70272^70271^70271^70273^70271^70271^70272^70274^70272^70271^70273^70273^70271^70272^70274 | C85: ='9'!BF154 -> 4^2^3^5^6^1^7^101^102^104^105^6^4^1^5^7^6^4^2^3^5^7^8^4^2^1^3^5^9^6^4^2^1^3^5^7^8^6^4^2^3^5^7^9 | D85: ='9'!BF167 -> 3^3^3^3^5^5^5^8^8^8^8^12^12^12^12^12^17^17^17^17^17^17^23^23^23^23^23^23^23^30^30^30^30^30^30^30^40^40^40^40^40^40^40^40 | E85: 0 | F85: 1 | G85: 0 | H85: 0 | I85: 0 | J85: 1 | K85: 130003^3|130004^1
A86: 19101 | B86: ='10'!P15 -> 70284^70282^70282^70282^70284^70281^70281^70282^70281^70282^70281^70281^70284^70282^70283^70283^70283^70282^70284^70285^70285^70285^70285^70285^70282^70281^70281^70282^70281^70281^70282^70284^70282^70281^70283^70282^70283^70281^70282^70284^70282^70282^70281^70281^70281^70282^70282^70285^70285^70285^70285^70285^70282^70281^70281^70284^70281^70281^70282^70284^70282^70281^70283^70284^70283^70281^70282^70284 | C86: ='10'!P42 -> 4^2^1^3^5^6^4^2^1^3^5^7^6^4^2^1^3^5^7^101^102^103^104^105^6^4^2^1^3^5^7^8^6^4^2^1^3^5^7^9^6^4^2^1^3^5^7^101^102^103^104^105^6^4^2^1^3^5^7^8^6^4^2^1^3^5^7^9 | D86: ='10'!P56 -> 5^5^5^5^5^10^10^10^10^10^10^10^16^16^16^16^16^16^16^20^20^20^20^20^27^27^27^27^27^27^27^35^35^35^35^35^35^35^35^35^45^45^45^45^45^45^45^50^50^50^50^50^60^60^60^60^60^60^60^70^70^70^70^70^70^70^70^70 | E86: 0 | F86: 1 | G86: 0 | H86: 0 | I86: 4 | J86: 0 | K86: 130003^3|130004^1
A87: 19102 | B87: ='10'!AD15 -> 70285^70281^70284^70282^70281^70283^70281^70282^70281^70284^70281^70282^70283^70281^70282^70284^70284^70282^70281^70285^70282 | C87: ='10'!AD42 -> 100^0^0^0^0^0^0^0^0^0^0^0^0^0^0^0^0^0^0^100^0 | D87: ='10'!AD55 -> 7^14^5^4^10^2^11^3^14^3^15^4^2^12^3^2^2^3^15^8^4 | E87: 12 | F87: 3 | G87: 0 | H87: 0 | I87: 4 | J87: 0 | K87: 130003^2|130004^2
A88: 19103 | B88: ='10'!AR15 -> 70283^70281^70284^70281^70282^70281^70282^70283^70285^70283^70282^70281^70284^70284^70283^70281^70281^70282^70283^70281^70282^70284 | C88: ='10'!AR42 -> 0^0^0^0^0^0^0^0^100^0^0^0^0^0^0^0^0^0^0^0^0^0 | D88: ='10'!AR55 -> 4^18^3^10^4^11^3^2^8^3^4^11^2^2^3^12^15^3^2^13^3^2 | E88: 11 | F88: 3 | G88: 0 | H88: 0 | I88: 3 | J88: 0 | K88: 130005^1|130003^1
A89: 19104 | B89: ='10'!BF15 -> 70281^70281^70281^70281^70282^70282^70282^70284^70284^70285^70285^70285^70285^70283^70283^70283^70284^70281^70281^70281^70281^70284^70282^70282^70282^70282^70282^70282^70282^70281^70283^70283^70281^70282^70282 | C89: ='10'!BF42 -> 4^2^3^5^4^1^5^2^3^101^102^104^105^4^1^5^6^4^2^3^5^7^6^4^1^5^7^8^6^4^2^3^5^7^9 | D89: ='10'!BF55 -> 2^2^2^2^4^4^4^6^6^8^8^8^8^10^10^10^17^17^17^17^17^17^25^25^25^25^25^35^35^35^35^35^35^35^35 | E89: 0 | F89: 1 | G89: 0 | H89: 0 | I89: 0 | J89: 1 | K89: 130003^3|130004^1
A90: 19201 | B90: ='10'!P71 -> 70294^70292^70292^70292^70294^70291^70291^70291^70291^70291^70294^70292^70293^70292^70293^70292^70294^70292^70291^70291^70292^70291^70291^70292^70295^70295^70295^70295^70295^70294^70291^70292^70292^70292^70291^70294^70291^70291^70292^70293^70293^70293^70292^70291^70291^70294^70292^70291^70291^70292^70291^70291^70292^70294^70295^70295^70295^70295^70295^70292^70291^70293^70294^70293^70291^70292 | C90: ='10'!P98 -> 6^2^1^3^7^6^2^1^3^7^6^4^2^1^3^5^7^8^4^2^1^3^5^9^101^102^103^104^105^8^6^2^1^3^7^9^8^6^4^2^1^3^5^7^9^8^6^4^2^1^3^5^7^9^101^102^103^104^105^6^4^2^1^3^5^7 | D90: ='10'!P112 -> 5^5^5^5^5^10^10^10^10^10^17^17^17^17^17^17^17^25^25^25^25^25^25^25^30^30^30^30^30^40^40^40^40^40^40^40^50^50^50^50^50^50^50^50^50^60^60^60^60^60^60^60^60^60^65^65^65^65^65^75^75^75^75^75^75^75 | E90: 0 | F90: 1 | G90: 0 | H90: 0 | I90: 4 | J90: 0 | K90: 130003^3|130004^1
A91: 19202 | B91: ='10'!AD71 -> 70294^70291^70291^70291^70294^70292^70292^70292^70295^70295^70295^70295^70293^70292^70293^70292^70293^70294^70292^70291^70291^70291^70292^70294^70292^70291^70293^70292^70293^70291^70292^70294^70292^70291^70291^70292^70291^70291^70292^70294^70295^70295^70295^70295^70295 | C91: ='10'!AD98 -> 4^2^1^3^5^6^1^7^101^102^104^105^4^2^1^3^5^8^4^2^1^3^5^9^8^4^2^1^3^5^9^8^6^4^2^1^3^5^7^9^101^102^103^104^105 | D91: ='10'!AD111 -> 5^5^5^5^5^10^10^10^15^15^15^15^22^22^22^22^22^30^30^30^30^30^30^30^40^40^40^40^40^40^40^50^50^50^50^50^50^50^50^50^55^55^55^55^55 | E91: 0 | F91: 1 | G91: 0 | H91: 0 | I91: 4 | J91: 0 | K91: 130003^2|130004^2
A92: 19203 | B92: ='10'!AR71 -> 70295^70291^70291^70292^70294^70291^70292^70293^70291^70292^70292^70291^70294^70293^70291^70292^70295^70292^70293^70291^70292^70294 | C92: ='10'!AR98 -> 100^0^0^0^0^0^0^0^0^0^0^0^0^0^0^0^100^0^0^0^0^0 | D92: ='10'!AR111 -> 7^18^9^3^2^11^4^2^12^3^4^12^2^2^14^3^8^4^2^14^3^2 | E92: 11 | F92: 3 | G92: 0 | H92: 0 | I92: 3 | J92: 0 | K92: 130005^1|130003^1
A93: 19204 | B93: ='10'!BF71 -> 70293^70293^70293^70292^70292^70292^70294^70294^70291^70291^70291^70291^70295^70295^70295^70295^70294^70292^70293^70293^70292^70294^70292^70291^70291^70294^70291^70291^70292^70292^70294^70292^70293^70293^70292^70294^70292 | C93: ='10'!BF98 -> 4^1^5^6^1^7^2^3^4^2^3^5^101^102^104^105^8^6^2^3^7^9^6^4^2^1^3^5^7^8^6^4^2^3^5^7^9 | D93: ='10'!BF111 -> 3^3^3^5^5^5^8^8^12^12^12^12^18^18^18^18^25^25^25^25^25^25^35^35^35^35^35^35^35^45^45^45^45^45^45^45^45 | E93: 0 | F93: 1 | G93: 0 | H93: 0 | I93: 0 | J93: 1 | K93: 130003^3|130004^1
A94: 19301 | B94: ='10'!P127 -> 70301^70304^70301^70302^70301^70302^70303^70305^70302^70303^70301^70302^70304^70301^70302^70303^70304^70301^70302^70303^70302^70304^70305^70301^70304^70304^70303^70302 | C94: ='10'!P154 -> 0^0^0^0^0^0^0^100^0^0^0^0^0^0^0^0^0^0^0^0^0^0^100^0^0^0^0^0 | D94: ='10'!P168 -> 9^3^9^4^10^3^2^8^3^2^11^4^2^11^3^2^2^14^4^15^2^2^8^10^2^2^3^4 | E94: 9 | F94: 3 | G94: 0 | H94: 0 | I94: 4 | J94: 0 | K94: 130003^3|130004^1
A95: 19302 | B95: ='10'!AD127 -> 70305^70305^70305^70305^70302^70302^70302^70302^70304^70303^70303^70304^70304^70302^70301^70301^70301^70302^70304^70302^70302^70303^70304^70303^70302^70302^70302^70301^70303^70303^70303^70301^70302^70305^70305^70305^70305^70305^70304^70302^70306^70302^70304 | C95: ='10'!AD154 -> 101^102^104^105^6^1^3^7^6^2^3^7^8^4^2^1^3^5^9^6^4^2^1^3^5^7^8^4^2^1^3^5^9^101^102^103^104^105^6^4^1^5^7 | D95: ='10'!AD167 -> 5^5^5^5^10^10^10^10^15^15^15^15^22^22^22^22^22^22^22^30^30^30^30^30^30^30^40^40^40^40^40^40^40^45^45^45^45^45^55^55^55^55^55 | E95: 0 | F95: 1 | G95: 0 | H95: 0 | I95: 4 | J95: 0 | K95: 130003^2|130004^2
A96: 19303 | B96: ='10'!AR127 -> 70304^70302^70302^70302^70304^70301^70303^70302^70303^70302^70303^70301^70305^70305^70305^70305^70305^70304^70302^70303^70303^70303^70302^70304^70302^70301^70301^70302^70301^70301^70302^70305^70305^70305^70305^70305^70304^70302^70303^70302^70303^70302^70304^70302^70302^70301^70301^70303^70301^70301^70302^70302 | C96: ='10'!AR154 -> 4^2^1^3^5^6^4^2^1^3^5^7^101^102^103^104^105^6^4^2^1^3^5^7^6^4^2^1^3^5^7^101^102^103^104^105^8^4^2^1^3^5^9^8^6^4^2^1^3^5^7^9 | D96: ='10'!AR167 -> 5^5^5^5^5^10^10^10^10^10^10^10^15^15^15^15^15^22^22^22^22^22^22^22^30^30^30^30^30^30^30^35^35^35^35^35^45^45^45^45^45^45^45^55^55^55^55^55^55^55^55^55 | E96: 0 | F96: 1 | G96: 0 | H96: 0 | I96: 3 | J96: 0 | K96: 130005^1|130003^1
A97: 19304 | B97: ='10'!BF127 -> 70304^70303^70303^70304^70302^70302^70302^70305^70305^70305^70305^70301^70301^70301^70301^70301^70304^70302^70303^70303^70302^70304^70302^70301^70301^70304^70301^70301^70302^70302^70301^70301^70303^70301^70301^70302^70304^70302^70301^70303^70303^70301^70302^70304 | C97: ='10'!BF154 -> 4^2^3^5^6^1^7^101^102^104^105^6^4^1^5^7^6^4^2^3^5^7^8^4^2^1^3^5^9^6^4^2^1^3^5^7^8^6^4^2^3^5^7^9 | D97: ='10'!BF167 -> 3^3^3^3^5^5^5^8^8^8^8^12^12^12^12^12^18^18^18^18^18^18^25^25^25^25^25^25^25^35^35^35^35^35^35^35^45^45^45^45^45^45^45^45 | E97: 0 | F97: 1 | G97: 0 | H97: 0 | I97: 0 | J97: 1 | K97: 130003^3|130004^1
A98: 20101 | B98: ='11'!P15 -> 70311^70312^70314^70311^70312^70311^70312^70313^70314^70315^70313^70311^70312^70311^70312^70313^70314^70311^70312^70315^70312^70311^70314^70311^70312^70313^70314 | C98: ='11'!P42 -> 0^0^0^0^0^0^0^0^0^100^0^0^0^0^0^0^0^0^0^100^0^0^0^0^0^0^0 | D98: ='11'!P56 -> 8^3^2^11^4^9^3^2^2^9^3^13^4^11^3^2^2^15^4^9^4^16^3^14^3^2^2 | E98: 11 | F98: 3 | G98: 0 | H98: 0 | I98: 4 | J98: 0 | K98: 130003^3|130004^1
A99: 20102 | B99: ='11'!AD15 -> 70315^70315^70315^70315^70312^70312^70312^70312^70313^70313^70313^70314^70311^70311^70311^70314^70312^70311^70311^70312^70311^70311^70312^70314^70312^70311^70313^70313^70313^70311^70312^70314^70312^70311^70312^70314^70312^70311^70312^70315^70315^70315^70315^70315 | C99: ='11'!AD42 -> 101^102^104^105^8^4^1^5^6^1^7^4^2^1^3^5^6^4^2^1^3^5^7^8^6^4^2^1^3^5^7^9^6^4^2^1^3^5^7^101^102^103^104^105 | D99: ='11'!AD55 -> 5^5^5^5^10^10^10^10^15^15^15^20^20^20^20^20^27^27^27^27^27^27^27^35^35^35^35^35^35^35^35^35^45^45^45^45^45^45^45^50^50^50^50^50 | E99: 0 | F99: 1 | G99: 0 | H99: 0 | I99: 4 | J99: 0 | K99: 130003^2|130004^2
A100: 20103 | B100: ='11'!AR15 -> 70311^70313^70311^70312^70314^70311^70312^70315^70312^70311^70311^70312^70314^70311^70313^70314^70311^70312^70311^70312^70313^70314 | C100: ='11'!AR42 -> 0^0^0^0^0^0^0^100^0^0^0^0^0^0^0^0^0^0^0^0^0^0 | D100: ='11'!AR55 -> 18^6^10^3^2^12^4^7^2^8^13^3^2^14^3^2^15^4^13^3^3^2 | E100: 10 | F100: 3 | G100: 0 | H100: 0 | I100: 3 | J100: 0 | K100: 130005^1|130003^1
A101: 20104 | B101: ='11'!BF15 -> 70311^70311^70311^70311^70312^70312^70312^70314^70314^70315^70315^70315^70315^70313^70313^70313^70314^70311^70311^70311^70311^70314^70312^70312^70312^70312^70312^70312^70312^70311^70313^70313^70311^70312^70312 | C101: ='11'!BF42 -> 4^2^3^5^4^1^5^2^3^101^102^104^105^4^1^5^6^4^2^3^5^7^6^4^1^5^7^8^6^4^2^3^5^7^9 | D101: ='11'!BF55 -> 2^2^2^2^4^4^4^6^6^8^8^8^8^10^10^10^15^15^15^15^15^15^22^22^22^22^22^30^30^30^30^30^30^30^30 | E101: 0 | F101: 1 | G101: 0 | H101: 0 | I101: 0 | J101: 1 | K101: 130003^3|130004^1
A102: 20201 | B102: ='11'!P71 -> 70324^70322^70322^70322^70324^70321^70321^70321^70321^70321^70324^70322^70323^70322^70323^70322^70324^70322^70321^70321^70322^70321^70321^70322^70325^70325^70325^70325^70325^70324^70321^70322^70322^70322^70321^70324^70321^70321^70322^70323^70323^70323^70322^70321^70321^70324^70322^70321^70321^70322^70321^70321^70322^70324^70325^70325^70325^70325^70325^70322^70321^70323^70324^70323^70321^70322 | C102: ='11'!P98 -> 6^2^1^3^7^6^2^1^3^7^6^4^2^1^3^5^7^8^4^2^1^3^5^9^101^102^103^104^105^8^6^2^1^3^7^9^8^6^4^2^1^3^5^7^9^8^6^4^2^1^3^5^7^9^101^102^103^104^105^6^4^2^1^3^5^7 | D102: ='11'!P112 -> 5^5^5^5^5^10^10^10^10^10^17^17^17^17^17^17^17^25^25^25^25^25^25^25^30^30^30^30^30^40^40^40^40^40^40^40^50^50^50^50^50^50^50^50^50^60^60^60^60^60^60^60^60^60^65^65^65^65^65^75^75^75^75^75^75^75 | E102: 0 | F102: 1 | G102: 0 | H102: 0 | I102: 4 | J102: 0 | K102: 130003^3|130004^1
A103: 20202 | B103: ='11'!AD71 -> 70321^70324^70323^70321^70322^70325^70322^70324^70321^70323^70321^70322^70324^70321^70322^70323^70321^70322^70324^70325^70322^70323 | C103: ='11'!AD98 -> 0^0^0^0^0^100^0^0^0^0^0^0^0^0^0^0^0^0^0^100^0^0 | D103: ='11'!AD111 -> 18^6^4^12^4^8^3^2^13^3^12^3^2^13^3^2^14^4^2^6^2^13 | E103: 11 | F103: 3 | G103: 0 | H103: 0 | I103: 4 | J103: 0 | K103: 130003^2|130004^2
A104: 20203 | B104: ='11'!AR71 -> 70325^70325^70325^70325^70325^70324^70321^70322^70322^70322^70321^70324^70322^70321^70321^70321^70321^70321^70322^70322^70321^70323^70323^70323^70321^70322^70324^70321^70322^70321^70322^70321^70322^70321^70324^70322^70321^70323^70323^70323^70321^70322^70325^70325^70325^70325^70325^70324^70322^70322^70321^70323^70321^70322^70322^70324 | C104: ='11'!AR98 -> 101^102^103^104^105^6^4^2^1^3^5^7^8^4^2^1^3^5^9^8^4^2^1^3^5^9^8^6^4^2^1^3^5^7^9^6^4^2^1^3^5^7^101^102^103^104^105^8^6^4^2^1^3^5^7^9 | D104: ='11'!AR111 -> 4^4^4^4^4^10^10^10^10^10^10^10^17^17^17^17^17^17^17^25^25^25^25^25^25^25^35^35^35^35^35^35^35^35^35^45^45^45^45^45^45^45^50^50^50^50^50^60^60^60^60^60^60^60^60^60 | E104: 0 | F104: 1 | G104: 0 | H104: 0 | I104: 3 | J104: 0 | K104: 130005^1|130003^1
A105: 20204 | B105: ='11'!BF71 -> 70323^70323^70323^70322^70322^70322^70324^70324^70321^70321^70321^70321^70325^70325^70325^70325^70324^70322^70323^70323^70322^70324^70322^70321^70321^70324^70321^70321^70322^70322^70324^70322^70323^70323^70322^70324^70322 | C105: ='11'!BF98 -> 4^1^5^6^1^7^2^3^4^2^3^5^101^102^104^105^8^6^2^3^7^9^6^4^2^1^3^5^7^8^6^4^2^3^5^7^9 | D105: ='11'!BF111 -> 3^3^3^5^5^5^8^8^12^12^12^12^18^18^18^18^25^25^25^25^25^25^35^35^35^35^35^35^35^45^45^45^45^45^45^45^45 | E105: 0 | F105: 1 | G105: 0 | H105: 0 | I105: 0 | J105: 1 | K105: 130003^3|130004^1
A106: 20301 | B106: ='11'!P127 -> 70334^70331^70331^70331^70334^70331^70332^70332^70331^70332^70332^70331^70332^70331^70333^70333^70333^70331^70332^70335^70335^70335^70335^70335^70334^70332^70332^70331^70331^70331^70331^70332^70334^70334^70332^70333^70332^70333^70332^70334^70332^70331^70331^70331^70332^70331^70331^70331^70332^70334^70332^70333^70332^70333^70332^70334^70335^70335^70335^70335^70335^70332^70332^70331^70333^70334^70333^70331^70332^70332 | C106: ='11'!P154 -> 6^2^1^3^7^6^4^2^1^3^5^7^8^6^2^1^3^7^9^101^102^103^104^105^8^6^4^2^1^3^5^7^9^8^4^2^1^3^5^9^8^6^4^2^1^3^5^7^9^6^4^2^1^3^5^7^101^102^103^104^105^8^6^4^2^1^3^5^7^9 | D106: ='11'!P168 -> 5^5^5^5^5^10^10^10^10^10^10^10^16^16^16^16^16^16^16^20^20^20^20^20^27^27^27^27^27^27^27^27^27^35^35^35^35^35^35^35^45^45^45^45^45^45^45^45^45^55^55^55^55^55^55^55^60^60^60^60^60^70^70^70^70^70^70^70^70^70 | E106: 0 | F106: 1 | G106: 0 | H106: 0 | I106: 4 | J106: 0 | K106: 130003^3|130004^1
A107: 20302 | B107: ='11'!AD127 -> 70335^70335^70335^70335^70332^70332^70332^70332^70334^70333^70333^70334^70334^70332^70331^70331^70331^70332^70334^70332^70332^70333^70334^70333^70332^70332^70332^70331^70333^70334^70333^70331^70332^70335^70335^70335^70335^70335^70334^70332^70336^70332^70334 | C107: ='11'!AD154 -> 101^102^104^105^6^1^3^7^6^2^3^7^8^4^2^1^3^5^9^6^4^2^1^3^5^7^8^4^2^1^3^5^9^101^102^103^104^105^6^4^1^5^7 | D107: ='11'!AD167 -> 5^5^5^5^10^10^10^10^15^15^15^15^22^22^22^22^22^22^22^30^30^30^30^30^30^30^40^40^40^40^40^40^40^45^45^45^45^45^55^55^55^55^55 | E107: 0 | F107: 1 | G107: 0 | H107: 0 | I107: 4 | J107: 0 | K107: 130003^2|130004^2
A108: 20303 | B108: ='11'!AR127 -> 70331^70332^70334^70331^70333^70335^70332^70331^70332^70333^70334^70331^70332^70335^70331^70334^70331^70333^70332^70334^70331^70333^70332 | C108: ='11'!AR154 -> 0^0^0^0^0^100^0^0^0^0^0^0^0^100^0^0^0^0^0^0^0^0^0 | D108: ='11'!AR167 -> 18^5^3^12^3^9^4^10^3^2^2^14^4^7^10^2^14^2^3^2^15^2^3 | E108: 9 | F108: 3 | G108: 0 | H108: 0 | I108: 3 | J108: 0 | K108: 130005^1|130003^1
A109: 20304 | B109: ='11'!BF127 -> 70334^70333^70333^70334^70332^70332^70332^70335^70335^70335^70335^70331^70331^70331^70331^70331^70334^70332^70333^70333^70332^70334^70332^70331^70331^70334^70331^70331^70332^70332^70331^70331^70333^70331^70331^70332^70334^70332^70331^70333^70333^70331^70332^70334 | C109: ='11'!BF154 -> 4^2^3^5^6^1^7^101^102^104^105^6^4^1^5^7^6^4^2^3^5^7^8^4^2^1^3^5^9^6^4^2^1^3^5^7^8^6^4^2^3^5^7^9 | D109: ='11'!BF167 -> 3^3^3^3^5^5^5^8^8^8^8^12^12^12^12^12^17^17^17^17^17^17^23^23^23^23^23^23^23^30^30^30^30^30^30^30^40^40^40^40^40^40^40^40 | E109: 0 | F109: 1 | G109: 0 | H109: 0 | I109: 0 | J109: 1 | K109: 130003^3|130004^1
A110: 21101 | B110: ='12'!P15 -> 70344^70342^70342^70342^70344^70341^70341^70342^70341^70342^70341^70341^70344^70342^70343^70343^70343^70342^70344^70345^70345^70345^70345^70345^70342^70341^70341^70342^70341^70341^70342^70344^70342^70341^70343^70343^70341^70342^70344^70342^70342^70341^70341^70341^70342^70342^70345^70345^70345^70345^70345^70342^70341^70341^70344^70341^70341^70342^70344^70342^70341^70343^70342^70343^70341^70342^70344 | C110: ='12'!P42 -> 4^2^1^3^5^6^4^2^1^3^5^7^6^4^2^1^3^5^7^101^102^103^104^105^6^4^2^1^3^5^7^8^6^4^2^3^5^7^9^6^4^2^1^3^5^7^101^102^103^104^105^6^4^2^1^3^5^7^8^6^4^2^1^3^5^7^9 | D110: ='12'!P56 -> 5^5^5^5^5^15^15^15^15^15^15^15^26^26^26^26^26^26^26^30^30^30^30^30^42^42^42^42^42^42^42^55^55^55^55^55^55^55^55^70^70^70^70^70^70^70^75^75^75^75^75^85^85^85^85^85^85^85^100^100^100^100^100^100^100^100^100 | E110: 0 | F110: 1 | G110: 0 | H110: 0 | I110: 4 | J110: 0 | K110: 130003^3|130004^1
A111: 21102 | B111: ='12'!AD15 -> 70345^70343^70344|70341^70342|70341^70342^70343|70341^70342^70344|70341^70343|70341^70342^70343^70344|70341^70342^70344|70345^70342^70343 | C111: ='12'!AD42 -> 100^0^0|0^0|0^0^0|0^0^0|0^0|0^0^0^0|0^0^0|100^0^0 | D111: ='12'!AD55 -> 12^6^6|10^4|11^3^2|12^3^2|15^3|12^3^2^2|14^4^2|15^3^3 | E111: 10 | F111: 3 | G111: 0 | H111: 0 | I111: 4 | J111: 0 | K111: 130003^2|130004^2
A112: 21103 | B112: ='12'!AR15 -> 70341^70343^70341^70343^70341^70343^70341^70344^70342^70341^70342^70341^70342^70344^70341^70341^70343^70342^70343^70341^70341^70345^70345^70345^70345^70345^70344^70342^70341^70342^70341^70342^70344^70343^70342^70343^70344^70343^70342^70343^70342^70342^70341^70341^70341^70342^70342^70344^70342^70341^70343^70342^70343^70341^70342^70344 | C112: ='12'!AR42 -> 6^4^2^1^3^5^7^8^6^2^1^3^7^9^6^4^2^1^3^5^7^101^102^103^104^105^6^4^2^1^3^5^7^6^4^2^1^3^5^7^6^4^2^1^3^5^7^8^6^4^2^1^3^5^7^9 | D112: ='12'!AR55 -> 4^4^4^4^4^4^4^6^6^6^6^6^6^6^10^10^10^10^10^10^10^15^15^15^15^15^25^25^25^25^25^25^25^35^35^35^35^35^35^35^45^45^45^45^45^45^45^55^55^55^55^55^55^55^55^55 | E112: 0 | F112: 1 | G112: 0 | H112: 0 | I112: 3 | J112: 0 | K112: 130005^1|130003^1
A113: 21104 | B113: ='12'!BF15 -> 70341^70341^70341^70341^70342^70342^70342^70344^70344^70345^70345^70345^70345^70343^70343^70343^70344^70341^70341^70341^70341^70344^70342^70342^70342^70342^70342^70342^70342^70341^70343^70343^70341^70342^70342 | C113: ='12'!BF42 -> 4^2^3^5^4^1^5^2^3^101^102^104^105^4^1^5^6^4^2^3^5^7^6^4^1^5^7^8^6^4^2^3^5^7^9 | D113: ='12'!BF55 -> 2^2^2^2^4^4^4^6^6^8^8^8^8^10^10^10^15^15^15^15^15^15^25^25^25^25^25^35^35^35^35^35^35^35^35 | E113: 0 | F113: 1 | G113: 0 | H113: 0 | I113: 0 | J113: 1 | K113: 130003^3|130004^1
A114: 21201 | B114: ='12'!P71 -> 70354^70352^70352^70352^70354^70351^70352^70351^70351^70351^70352^70351^70354^70352^70353^70353^70353^70352^70354^70352^70352^70351^70351^70352^70351^70351^70351^70352^70355^70355^70355^70355^70355^70354^70351^70351^70352^70352^70352^70351^70351^70354^70351^70351^70352^70353^70352^70353^70352^70351^70351^70354^70352^70351^70352^70351^70352^70354^70355^70355^70355^70355^70355^70352^70351^70353^70354^70353^70351^70352 | C114: ='12'!P98 -> 6^2^1^3^7^6^4^2^1^3^5^7^6^4^2^1^3^5^7^8^6^4^2^1^3^5^7^9^101^102^103^104^105^8^6^4^2^1^3^5^7^9^8^6^4^2^1^3^5^7^9^8^6^4^1^5^7^9^101^102^103^104^105^6^4^2^1^3^5^7 | D114: ='12'!P112 -> 5^5^5^5^5^10^10^10^10^10^10^10^17^17^17^17^17^17^17^25^25^25^25^25^25^25^25^25^30^30^30^30^30^40^40^40^40^40^40^40^40^40^50^50^50^50^50^50^50^50^50^60^60^60^60^60^60^60^65^65^65^65^65^75^75^75^75^75^75^75 | E114: 0 | F114: 1 | G114: 0 | H114: 0 | I114: 4 | J114: 0 | K114: 130003^3|130004^1
A115: 21202 | B115: ='12'!AD71 -> 70351^70354^70352^70351^70352^70355^70352^70351^70353^70351^70352^70354^70351^70352^70353^70351^70352^70354^70355^70353^70354 | C115: ='12'!AD98 -> 0^0^0^0^0^100^0^0^0^0^0^0^0^0^0^0^0^0^100^0^0 | D115: ='12'!AD111 -> 18^6^4^13^3^8^4^14^3^14^3^2^14^3^3^15^4^2^9^3^2 | E115: 10 | F115: 3 | G115: 0 | H115: 0 | I115: 4 | J115: 0 | K115: 130003^2|130004^2
A116: 21203 | B116: ='12'!AR71 -> 70355^70355^70355^70355^70354^70352^70352^70354^70351^70351^70351^70351^70351^70352^70351^70353^70352^70353^70351^70352^70354^70351^70352^70351^70352^70351^70352^70351^70354^70352^70351^70353^70352^70353^70351^70352^70355^70355^70355^70355^70355^70354^70352^70352^70351^70353^70351^70352^70352^70354 | C116: ='12'!AR98 -> 101^102^104^105^6^2^3^7^4^2^1^3^5^8^4^2^1^3^5^9^8^6^4^2^1^3^5^7^9^6^4^2^1^3^5^7^101^102^103^104^105^8^6^4^2^1^3^5^7^9 | D116: ='12'!AR111 -> 3^3^3^3^6^6^6^6^10^10^10^10^10^16^16^16^16^16^16^16^25^25^25^25^25^25^25^25^25^35^35^35^35^35^35^35^40^40^40^40^40^50^50^50^50^50^50^50^50^50 | E116: 0 | F116: 1 | G116: 0 | H116: 0 | I116: 3 | J116: 0 | K116: 130005^1|130003^1
A117: 21204 | B117: ='12'!BF71 -> 70353^70353^70353^70352^70352^70352^70354^70354^70351^70351^70351^70351^70355^70355^70355^70355^70354^70352^70353^70353^70352^70354^70352^70351^70351^70354^70351^70351^70352^70352^70354^70352^70353^70353^70352^70354^70352 | C117: ='12'!BF98 -> 4^1^5^6^1^7^2^3^4^2^3^5^101^102^104^105^8^6^2^3^7^9^6^4^2^1^3^5^7^8^6^4^2^3^5^7^9 | D117: ='12'!BF111 -> 3^3^3^5^5^5^8^8^12^12^12^12^18^18^18^18^25^25^25^25^25^25^35^35^35^35^35^35^35^45^45^45^45^45^45^45^45 | E117: 0 | F117: 1 | G117: 0 | H117: 0 | I117: 0 | J117: 1 | K117: 130003^3|130004^1
A118: 21301 | B118: ='12'!P127 -> 70361^70364^70361^70362^70361^70362^70363^70365^70363^70364^70361^70362^70361^70362^70363^70364^70361^70362^70361^70363^70364^70365^70362^70361^70362^70363^70364 | C118: ='12'!P154 -> 0^0^0^0^0^0^0^100^0^0^0^0^0^0^0^0^0^0^0^0^0^100^0^0^0^0^0 | D118: ='12'!P168 -> 11^3^11^4^12^3^2^9^3^2^14^4^12^3^2^2^16^4^16^3^2^9^5^14^3^3^2 | E118: 10 | F118: 3 | G118: 0 | H118: 0 | I118: 4 | J118: 0 | K118: 130003^3|130004^1
A119: 21302 | B119: ='12'!AD127 -> 70365^70365^70365^70365^70362^70362^70362^70362^70364^70363^70363^70364^70364^70362^70361^70361^70361^70362^70364^70362^70362^70363^70364^70363^70362^70362^70362^70361^70363^70363^70363^70361^70362^70365^70365^70365^70365^70365^70364^70362^70366^70362^70364 | C119: ='12'!AD154 -> 101^102^104^105^6^1^3^7^6^2^3^7^8^4^2^1^3^5^9^6^4^2^1^3^5^7^8^4^2^1^3^5^9^101^102^103^104^105^6^4^1^5^7 | D119: ='12'!AD167 -> 5^5^5^5^10^10^10^10^15^15^15^15^22^22^22^22^22^22^22^30^30^30^30^30^30^30^40^40^40^40^40^40^40^45^45^45^45^45^55^55^55^55^55 | E119: 0 | F119: 1 | G119: 0 | H119: 0 | I119: 4 | J119: 0 | K119: 130003^2|130004^2
A120: 21303 | B120: ='12'!AR127 -> 70361^70362^70364^70361^70363^70365^70362^70361^70361^70363^70362^70364^70361^70362^70365^70363^70364^70361^70362^70363^70364^70361^70362 | C120: ='12'!AR154 -> 0^0^0^0^0^100^0^0^0^0^0^0^0^0^100^0^0^0^0^0^0^0^0 | D120: ='12'!AR167 -> 17^6^3^13^3^7^3^7^12^2^3^2^15^4^9^3^2^13^3^2^2^18^4 | E120: 8 | F120: 3 | G120: 0 | H120: 0 | I120: 3 | J120: 0 | K120: 130005^1|130003^1
A121: 21304 | B121: ='12'!BF127 -> 70364^70363^70363^70364^70362^70362^70362^70365^70365^70365^70365^70361^70361^70361^70361^70361^70364^70362^70363^70363^70362^70364^70362^70361^70361^70364^70361^70361^70362^70362^70361^70361^70363^70361^70361^70362^70364^70362^70361^70363^70363^70361^70362^70364 | C121: ='12'!BF154 -> 4^2^3^5^6^1^7^101^102^104^105^6^4^1^5^7^6^4^2^3^5^7^8^4^2^1^3^5^9^6^4^2^1^3^5^7^8^6^4^2^3^5^7^9 | D121: ='12'!BF167 -> 3^3^3^3^5^5^5^8^8^8^8^12^12^12^12^12^18^18^18^18^18^18^25^25^25^25^25^25^25^35^35^35^35^35^35^35^45^45^45^45^45^45^45^45 | E121: 0 | F121: 1 | G121: 0 | H121: 0 | I121: 0 | J121: 1 | K121: 130003^3|130004^1
A122: 22101 | B122: ='13'!P15 -> 70371^70374^70371^70372^70371^70372^70373^70374^70375^70373^70371^70372^70374^70371^70372^70373^70371^70372^70375^70372^70374^70371^70372^70373^70371^70372^70373^70374 | C122: ='13'!P42 -> 0^0^0^0^0^0^0^0^100^0^0^0^0^0^0^0^0^0^100^0^0^0^0^0^0^0^0^0 | D122: ='13'!P56 -> 12^3^12^4^10^3^2^2^9^3^13^3^2^14^3^2^15^4^9^3^2^15^3^2^15^3^2^2 | E122: 10 | F122: 3 | G122: 0 | H122: 0 | I122: 4 | J122: 0 | K122: 130003^3|130004^1
A123: 22102 | B123: ='13'!AD15 -> 70375^70375^70375^70375^70375^70372^70372^70372^70372^70373^70373^70373^70374^70371^70371^70371^70374^70372^70371^70371^70373^70371^70371^70372^70374^70372^70371^70373^70372^70373^70371^70372^70374^70372^70371^70372^70374^70372^70371^70372^70375^70375^70375^70375^70375 | C123: ='13'!AD42 -> 101^102^103^104^105^6^4^5^7^6^1^7^4^2^1^3^5^6^4^2^1^3^5^7^8^6^4^2^1^3^5^7^9^6^4^2^1^3^5^7^101^102^103^104^105 | D123: ='13'!AD55 -> 2^2^2^2^2^5^5^5^5^10^10^10^17^17^17^17^17^25^25^25^25^25^25^25^35^35^35^35^35^35^35^35^35^45^45^45^45^45^45^45^50^50^50^50^50 | E123: 0 | F123: 1 | G123: 0 | H123: 0 | I123: 4 | J123: 0 | K123: 130003^2|130004^2
A124: 22103 | B124: ='13'!AR15 -> 70371^70373^70371^70372^70374^70371^70372^70375^70373^70371^70372^70374^70371^70373^70374^70371^70372^70371^70372^70373^70374 | C124: ='13'!AR42 -> 0^0^0^0^0^0^0^100^0^0^0^0^0^0^0^0^0^0^0^0^0 | D124: ='13'!AR55 -> 18^6^11^4^2^13^4^9^3^14^3^2^15^3^2^16^4^14^3^2^2 | E124: 9 | F124: 3 | G124: 0 | H124: 0 | I124: 3 | J124: 0 | K124: 130005^1|130003^1
A125: 22104 | B125: ='13'!BF15 -> 70371^70371^70371^70371^70372^70372^70372^70374^70374^70375^70375^70375^70375^70373^70373^70373^70374^70371^70371^70371^70371^70374^70372^70372^70372^70372^70372^70372^70372^70371^70373^70373^70371^70372^70372 | C125: ='13'!BF42 -> 4^2^3^5^4^1^5^2^3^101^102^104^105^4^1^5^6^4^2^3^5^7^6^4^1^5^7^8^6^4^2^3^5^7^9 | D125: ='13'!BF55 -> 2^2^2^2^4^4^4^6^6^8^8^8^8^10^10^10^15^15^15^15^15^15^22^22^22^22^22^30^30^30^30^30^30^30^30 | E125: 0 | F125: 1 | G125: 0 | H125: 0 | I125: 0 | J125: 1 | K125: 130003^3|130004^1
A126: 22201 | B126: ='13'!P71 -> 70381^70381^70381^70381^70381^70384^70382^70382^70382^70384^70382^70381^70383^70384^70383^70381^70382^70382^70381^70381^70384^70381^70381^70382^70384^70382^70383^70383^70383^70382^70384^70385^70385^70385^70385^70385^70381^70381^70382^70382^70382^70381^70381^70384^70382^70381^70383^70383^70383^70381^70382^70384^70382^70381^70383^70382^70383^70381^70382^70385^70385^70385^70385^70385 | C126: ='13'!P98 -> 4^2^1^3^5^6^2^1^3^7^8^4^2^1^3^5^9^6^4^2^1^3^5^7^8^6^2^1^3^7^9^101^102^103^104^105^8^6^4^1^5^7^9^8^6^4^2^1^3^5^7^9^6^4^2^1^3^5^7^101^102^103^104^105 | D126: ='13'!P112 -> 5^5^5^5^5^10^10^10^10^10^17^17^17^17^17^17^17^25^25^25^25^25^25^25^35^35^35^35^35^35^35^40^40^40^40^40^50^50^50^50^50^50^50^60^60^60^60^60^60^60^60^60^70^70^70^70^70^70^70^75^75^75^75^75 | E126: 0 | F126: 1 | G126: 0 | H126: 0 | I126: 4 | J126: 0 | K126: 130003^3|130004^1
A127: 22202 | B127: ='13'!AD71 -> 70381^70382^70384^70381^70382^70381^70383^70385^70382^70381^70382^70384^70381^70382^70383^70384^70381^70382^70385^70381^70384 | C127: ='13'!AD98 -> 0^0^0^0^0^0^0^100^0^0^0^0^0^0^0^0^0^0^100^0^0 | D127: ='13'!AD111 -> 17^5^5^11^4^13^3^9^4^12^3^2^12^3^2^2^16^4^6^14^2 | E127: 10 | F127: 3 | G127: 0 | H127: 0 | I127: 4 | J127: 0 | K127: 130003^2|130004^2
A128: 22203 | B128: ='13'!AR71 -> 70383^70383^70383^70384^70382^70382^70384^70385^70385^70385^70385^70385^70382^70381^70383^70384^70383^70381^70382^70384^70382^70381^70381^70381^70382^70384^70381^70381^70382^70381^70382^70381^70382^70381^70381^70382^70381^70383^70384^70383^70381^70382^70385^70385^70385^70385^70385 | C128: ='13'!AR98 -> 4^1^5^6^2^3^7^101^102^103^104^105^6^4^2^1^3^5^7^8^6^2^1^3^7^9^8^6^4^2^1^3^5^7^9^6^4^2^1^3^5^7^101^102^103^104^105 | D128: ='13'!AR111 -> 3^3^3^6^6^6^6^10^10^10^10^10^15^15^15^15^15^15^15^25^25^25^25^25^25^25^35^35^35^35^35^35^35^35^35^45^45^45^45^45^45^45^50^50^50^50^50 | E128: 0 | F128: 1 | G128: 0 | H128: 0 | I128: 3 | J128: 0 | K128: 130005^1|130003^1
A129: 22204 | B129: ='13'!BF71 -> 70385^70385^70385^70382^70382^70382^70384^70383^70384^70381^70381^70381^70381^70382^70381^70383^70383^70381^70382^70384^70381^70382^70382^70382^70381^70384^70382^70381^70383^70384^70383^70381^70382^70382^70382^70381^70383^70381^70382^70382 | C129: ='13'!BF98 -> 101^103^105^2^1^3^6^1^7^4^2^3^5^6^4^2^3^5^7^8^4^2^1^3^5^9^6^4^2^1^3^5^7^8^4^2^1^3^5^9 | D129: ='13'!BF111 -> 3^3^3^5^5^5^8^8^8^12^12^12^12^18^18^18^18^18^18^25^25^25^25^25^25^25^35^35^35^35^35^35^35^45^45^45^45^45^45^45 | E129: 0 | F129: 1 | G129: 0 | H129: 0 | I129: 0 | J129: 1 | K129: 130003^3|130004^1
A130: 22301 | B130: ='13'!P127 -> 70394^70391^70391^70391^70394^70391^70392^70392^70391^70392^70392^70391^70392^70391^70393^70394^70393^70391^70392^70395^70395^70395^70395^70395^70394^70392^70392^70391^70391^70391^70392^70392^70394^70394^70392^70393^70392^70393^70392^70394^70392^70391^70391^70391^70392^70391^70391^70391^70392^70394^70392^70393^70392^70393^70392^70394^70395^70395^70395^70395^70395^70392^70392^70391^70393^70394^70393^70391^70392^70392 | C130: ='13'!P154 -> 6^2^1^3^7^6^4^2^1^3^5^7^8^6^2^1^3^7^9^101^102^103^104^105^8^6^4^2^1^3^5^7^9^8^4^2^1^3^5^9^8^6^4^2^1^3^5^7^9^6^4^2^1^3^5^7^101^102^103^104^105^8^6^4^2^1^3^5^7^9 | D130: ='13'!P168 -> 5^5^5^5^5^10^10^10^10^10^10^10^16^16^16^16^16^16^16^20^20^20^20^20^27^27^27^27^27^27^27^27^27^35^35^35^35^35^35^35^45^45^45^45^45^45^45^45^45^55^55^55^55^55^55^55^60^60^60^60^60^70^70^70^70^70^70^70^70^70 | E130: 0 | F130: 1 | G130: 0 | H130: 0 | I130: 4 | J130: 0 | K130: 130003^3|130004^1
A131: 22302 | B131: ='13'!AD127 -> 70395^70395^70395^70395^70392^70392^70392^70392^70394^70393^70393^70393^70394^70394^70392^70391^70392^70391^70392^70394^70392^70392^70393^70394^70393^70392^70392^70392^70391^70393^70394^70393^70391^70392^70395^70395^70395^70395^70395^70394^70392^70392^70396^70392^70392^70394 | C131: ='13'!AD154 -> 101^102^104^105^6^1^3^7^6^2^1^3^7^8^4^2^1^3^5^9^6^4^2^1^3^5^7^8^4^2^1^3^5^9^101^102^103^104^105^6^4^2^1^3^5^7 | D131: ='13'!AD167 -> 5^5^5^5^10^10^10^10^15^15^15^15^15^22^22^22^22^22^22^22^30^30^30^30^30^30^30^40^40^40^40^40^40^40^45^45^45^45^45^55^55^55^55^55^55^55 | E131: 0 | F131: 1 | G131: 0 | H131: 0 | I131: 4 | J131: 0 | K131: 130003^2|130004^2
A132: 22303 | B132: ='13'!AR127 -> 70391^70392^70394^70391^70393^70395^70392^70391^70392^70393^70394^70391^70392^70395^70393^70394^70391^70392^70391^70392^70393^70394 | C132: ='13'!AR154 -> 0^0^0^0^0^100^0^0^0^0^0^0^0^100^0^0^0^0^0^0^0^0 | D132: ='13'!AR167 -> 18^5^5^12^3^9^4^10^3^2^2^15^3^9^3^2^16^4^14^3^2^2 | E132: 8 | F132: 3 | G132: 0 | H132: 0 | I132: 3 | J132: 0 | K132: 130005^1|130003^1
A133: 22304 | B133: ='13'!BF127 -> 70394^70393^70393^70394^70392^70392^70392^70392^70395^70395^70395^70395^70391^70391^70391^70391^70391^70394^70392^70393^70393^70392^70394^70392^70391^70391^70394^70391^70391^70392^70392^70391^70391^70393^70391^70391^70392^70394^70392^70391^70393^70393^70391^70392^70394 | C133: ='13'!BF154 -> 4^2^3^5^6^4^5^7^101^102^104^105^6^4^1^5^7^6^4^2^3^5^7^8^4^2^1^3^5^9^6^4^2^1^3^5^7^8^6^4^2^3^5^7^9 | D133: ='13'!BF167 -> 3^3^3^3^5^5^5^5^8^8^8^8^12^12^12^12^12^18^18^18^18^18^18^0^25^25^25^25^25^25^35^35^35^35^35^35^35^45^45^45^45^45^45^45^45 | E133: 0 | F133: 1 | G133: 0 | H133: 0 | I133: 0 | J133: 1 | K133: 130003^3|130004^1
A134: 23101 | B134: ='14'!P15 -> 70404^70402^70402^70402^70404^70401^70401^70402^70401^70402^70401^70401^70404^70402^70403^70402^70403^70402^70404^70405^70405^70405^70405^70405^70402^70401^70401^70402^70401^70401^70402^70404^70402^70401^70403^70403^70403^70401^70402^70404^70402^70402^70401^70401^70401^70402^70402^70405^70405^70405^70405^70405^70402^70401^70401^70404^70401^70401^70402^70404^70402^70401^70403^70402^70403^70401^70402^70404 | C134: ='14'!P42 -> 4^2^1^3^5^6^4^2^1^3^5^7^6^4^2^1^3^5^7^101^102^103^104^105^6^4^2^1^3^5^7^8^6^4^2^1^3^5^7^9^6^4^2^1^3^5^7^101^102^103^104^105^6^4^2^1^3^5^7^8^6^4^2^1^3^5^7^9 | D134: ='14'!P56 -> 5^5^5^5^5^10^10^10^10^10^10^10^16^16^16^16^16^16^16^20^20^20^20^20^27^27^27^27^27^27^27^35^35^35^35^35^35^35^35^35^45^45^45^45^45^45^45^50^50^50^50^50^60^60^60^60^60^60^60^70^70^70^70^70^70^70^70^70 | E134: 0 | F134: 1 | G134: 0 | H134: 0 | I134: 4 | J134: 0 | K134: 130003^3|130004^1
A135: 23102 | B135: ='14'!AD15 -> 70405^70402^70404^70401^70402^70401^70403^70401^70402^70404^70401^70402^70403^70401^70402^70403^70404^70401^70402^70405^70402^70403^70404 | C135: ='14'!AD42 -> 100^0^0^0^0^0^0^0^0^0^0^0^0^0^0^0^0^0^0^100^0^0^0 | D135: ='14'!AD55 -> 12^6^6^11^4^14^3^12^3^2^13^3^2^12^3^2^2^16^4^14^3^2^2 | E135: 9 | F135: 3 | G135: 0 | H135: 0 | I135: 4 | J135: 0 | K135: 130003^2|130004^2
A136: 23103 | B136: ='14'!AR15 -> 70401^70403^70401^70402^70404^70405^70402^70401^70403^70404^70401^70402^70404^70401^70402^70403^70401^70402^70401^70402^70403^70404 | C136: ='14'!AR42 -> 0^0^0^0^0^100^0^0^0^0^0^0^0^0^0^0^0^0^0^0^0^0 | D136: ='14'!AR55 -> 17^6^11^3^2^9^4^12^3^2^13^3^2^14^3^2^16^4^15^3^2^2 | E136: 7 | F136: 3 | G136: 0 | H136: 0 | I136: 3 | J136: 0 | K136: 130005^1|130003^1
A137: 23104 | B137: ='14'!BF15 -> 70401^70401^70401^70401^70402^70402^70402^70404^70404^70405^70405^70405^70405^70403^70403^70403^70404^70401^70401^70401^70401^70404^70402^70402^70402^70402^70402^70402^70402^70401^70403^70403^70401^70402^70402 | C137: ='14'!BF42 -> 4^2^3^5^4^1^5^2^3^101^102^104^105^4^1^5^6^4^2^3^5^7^6^4^1^5^7^8^6^4^2^3^5^7^9 | D137: ='14'!BF55 -> 2^2^2^2^4^4^4^6^6^8^8^8^8^10^10^10^15^15^15^15^15^15^25^25^25^25^25^35^35^35^35^35^35^35^35 | E137: 0 | F137: 1 | G137: 0 | H137: 0 | I137: 0 | J137: 1 | K137: 130003^3|130004^1
A138: 23201 | B138: ='14'!P71 -> 70411^70412^70411^70412^70414^70411^70412^70413^70414^70411^70413^70411^70412^70414^70415^70412^70413^70411^70412^70411^70413^70414^70411^70412^70413^70415^70412^70414 | C138: ='14'!P98 -> 0^0^0^0^0^0^0^0^0^0^0^0^0^0^100^0^0^0^0^0^0^0^0^0^0^100^0^0 | D138: ='14'!P112 -> 11^4^10^3^2^10^3^2^2^15^3^14^3^2^15^3^2^16^4^16^3^2^17^3^2^9^4^2 | E138: 9 | F138: 3 | G138: 0 | H138: 0 | I138: 4 | J138: 0 | K138: 130003^3|130004^1
A139: 23202 | B139: ='14'!AD71 -> 70414^70412^70412^70412^70414^70411^70411^70411^70411^70411^70413^70413^70413^70415^70415^70415^70415^70415^70414^70412^70411^70413^70411^70412^70414^70412^70411^70413^70414^70413^70411^70412^70414^70411^70411^70412^70412^70412^70411^70411^70414^70415^70415^70415^70415^70415 | C139: ='14'!AD98 -> 6^2^1^3^7^4^2^1^3^5^4^1^5^101^102^103^104^105^6^4^2^1^3^5^7^6^4^2^1^3^5^7^8^6^4^2^1^3^5^7^9^101^102^103^104^105 | D139: ='14'!AD111 -> 5^5^5^5^5^10^10^10^10^10^15^15^15^20^20^20^20^20^27^27^27^27^27^27^27^35^35^35^35^35^35^35^45^45^45^45^45^45^45^45^45^50^50^50^50^50 | E139: 0 | F139: 1 | G139: 0 | H139: 0 | I139: 4 | J139: 0 | K139: 130003^2|130004^2
A140: 23203 | B140: ='14'!AR71 -> 70411^70413^70411^70412^70414^70415^70412^70411^70412^70413^70414^70411^70412^70414^70411^70412^70411^70412^70413^70414^70415^70413^70414 | C140: ='14'!AR98 -> 0^0^0^0^0^100^0^0^0^0^0^0^0^0^0^0^0^0^0^0^100^0^0 | D140: ='14'!AR111 -> 18^6^12^3^2^9^4^12^3^2^2^14^4^2^16^4^13^3^3^2^9^4^3 | E140: 7 | F140: 3 | G140: 0 | H140: 0 | I140: 3 | J140: 0 | K140: 130005^1|130003^1
A141: 23204 | B141: ='14'!BF71 -> 70415^70415^70415^70412^70412^70412^70414^70413^70414^70411^70411^70411^70411^70412^70411^70413^70413^70411^70412^70414^70411^70412^70412^70412^70411^70414^70412^70411^70413^70414^70413^70411^70412^70412^70412^70411^70413^70411^70412^70412 | C141: ='14'!BF98 -> 101^103^105^2^1^3^6^1^7^4^2^3^5^6^4^2^3^5^7^8^4^2^1^3^5^9^6^4^2^1^3^5^7^8^4^2^1^3^5^9 | D141: ='14'!BF111 -> 3^3^3^5^5^5^8^8^8^12^12^12^12^18^18^18^18^18^18^25^25^25^25^25^25^25^35^35^35^35^35^35^35^45^45^45^45^45^45^45 | E141: 0 | F141: 1 | G141: 0 | H141: 0 | I141: 0 | J141: 1 | K141: 130003^3|130004^1
A142: 23301 | B142: ='14'!P127 -> 70424^70421^70421^70421^70424^70422^70422^70423^70422^70422^70422^70421^70423^70424^70423^70421^70422^70425^70425^70425^70425^70425^70424^70422^70421^70421^70421^70422^70424^70424^70421^70422^70423^70422^70423^70422^70421^70424^70422^70421^70421^70421^70422^70421^70421^70421^70422^70424^70422^70423^70422^70423^70422^70424^70425^70425^70425^70425^70425^70422^70422^70421^70423^70424^70423^70421^70422^70422 | C142: ='14'!P154 -> 6^2^1^3^7^4^2^1^3^5^8^6^2^1^3^7^9^101^102^103^104^105^8^6^2^1^3^7^9^8^6^4^2^1^3^5^7^9^8^6^4^2^1^3^5^7^9^6^4^2^1^3^5^7^101^102^103^104^105^8^6^4^2^1^3^5^7^9 | D142: ='14'!P168 -> 5^5^5^5^5^10^10^10^10^10^16^16^16^16^16^16^16^20^20^20^20^20^27^27^27^27^27^27^27^35^35^35^35^35^35^35^35^35^45^45^45^45^45^45^45^45^45^55^55^55^55^55^55^55^60^60^60^60^60^70^70^70^70^70^70^70^70^70 | E142: 0 | F142: 1 | G142: 0 | H142: 0 | I142: 4 | J142: 0 | K142: 130003^3|130004^1
A143: 23302 | B143: ='14'!AD127 -> 70425^70425^70425^70425^70422^70421^70422^70421^70422^70424^70423^70423^70423^70424^70424^70422^70421^70422^70421^70422^70424^70422^70422^70423^70424^70423^70422^70422^70422^70422^70421^70423^70424^70423^70421^70422^70422^70425^70425^70425^70425^70425^70424^70422^70422^70426^70422^70422^70424 | C143: ='14'!AD154 -> 101^102^104^105^6^2^1^3^7^6^2^1^3^7^8^4^2^1^3^5^9^6^4^2^1^3^5^7^8^6^4^2^1^3^5^7^9^101^102^103^104^105^6^4^2^1^3^5^7 | D143: ='14'!AD167 -> 5^5^5^5^10^10^10^10^10^15^15^15^15^15^22^22^22^22^22^22^22^30^30^30^30^30^30^30^40^40^40^40^40^40^40^40^40^45^45^45^45^45^55^55^55^55^55^55^55 | E143: 0 | F143: 1 | G143: 0 | H143: 0 | I143: 4 | J143: 0 | K143: 130003^2|130004^2
A144: 23303 | B144: ='14'!AR127 -> 70421^70422^70424^70421^70423^70425^70422^70421^70422^70423^70424^70421^70422^70425^70423^70424^70421^70422^70423^70421^70422^70424 | C144: ='14'!AR154 -> 0^0^0^0^0^100^0^0^0^0^0^0^0^100^0^0^0^0^0^0^0^0 | D144: ='14'!AR167 -> 20^6^6^13^3^9^4^11^3^2^2^15^4^15^3^2^16^3^3^18^3^2 | E144: 7 | F144: 3 | G144: 0 | H144: 0 | I144: 3 | J144: 0 | K144: 130005^1|130003^1
A145: 23304 | B145: ='14'!BF127 -> 70424^70423^70423^70424^70422^70422^70422^70422^70425^70425^70425^70425^70421^70421^70421^70421^70421^70424^70422^70423^70423^70422^70424^70422^70421^70421^70424^70421^70421^70422^70422^70421^70421^70423^70421^70421^70422^70424^70422^70421^70423^70423^70421^70422^70424 | C145: ='14'!BF154 -> 4^2^3^5^6^4^5^7^101^102^104^105^6^4^1^5^7^6^4^2^3^5^7^8^4^2^1^3^5^9^6^4^2^1^3^5^7^8^6^4^2^3^5^7^9 | D145: ='14'!BF167 -> 3^3^3^3^5^5^5^5^8^8^8^8^12^12^12^12^12^18^18^18^18^18^18^0^25^25^25^25^25^25^35^35^35^35^35^35^35^45^45^45^45^45^45^45^45 | E145: 0 | F145: 1 | G145: 0 | H145: 0 | I145: 0 | J145: 1 | K145: 130003^3|130004^1
A146: 24101 | B146: ='15'!P15 -> 70434^70432^70432^70432^70434^70431^70431^70432^70431^70432^70431^70431^70434^70432^70433^70432^70433^70432^70434^70435^70435^70435^70435^70435^70432^70431^70431^70432^70431^70431^70432^70434^70432^70431^70433^70433^70433^70431^70432^70434^70432^70432^70431^70431^70431^70432^70432^70435^70435^70435^70435^70435^70432^70431^70431^70434^70431^70431^70432^70434^70432^70431^70433^70433^70433^70431^70432^70434 | C146: ='15'!P42 -> 4^2^1^3^5^6^4^2^1^3^5^7^6^4^2^1^3^5^7^101^102^103^104^105^6^4^2^1^3^5^7^8^6^4^2^1^3^5^7^9^6^4^2^1^3^5^7^101^102^103^104^105^6^4^2^1^3^5^7^8^6^4^2^1^3^5^7^9 | D146: ='15'!P56 -> 5^5^5^5^5^10^10^10^10^10^10^10^16^16^16^16^16^16^16^20^20^20^20^20^27^27^27^27^27^27^27^35^35^35^35^35^35^35^35^35^45^45^45^45^45^45^45^50^50^50^50^50^60^60^60^60^60^60^60^70^70^70^70^70^70^70^70^70 | E146: 0 | F146: 1 | G146: 0 | H146: 0 | I146: 4 | J146: 0 | K146: 130003^3|130004^1
A147: 24102 | B147: ='15'!AD15 -> 70435^70432^70433^70431^70432^70431^70433^70431^70432^70434^70431^70432^70433^70431^70432^70433^70434^70431^70432^70434^70435^70432^70433 | C147: ='15'!AD42 -> 100^0^0^0^0^0^0^0^0^0^0^0^0^0^0^0^0^0^0^0^100^0^0 | D147: ='15'!AD55 -> 12^8^4^12^3^14^3^13^3^2^14^3^2^14^3^2^2^16^3^2^9^3^3 | E147: 8 | F147: 3 | G147: 0 | H147: 0 | I147: 4 | J147: 0 | K147: 130003^2|130004^2
A148: 24103 | B148: ='15'!AR15 -> 70431^70433^70431^70432^70434^70431^70432^70435^70432^70433^70431^70432^70434^70431^70433^70434^70431^70432^70431^70432^70433^70434 | C148: ='15'!AR42 -> 0^0^0^0^0^0^0^100^0^0^0^0^0^0^0^0^0^0^0^0^0^0 | D148: ='15'!AR55 -> 20^7^11^3^2^13^4^14^3^2^15^3^2^15^3^3^17^4^15^3^3^2 | E148: 8 | F148: 3 | G148: 0 | H148: 0 | I148: 3 | J148: 0 | K148: 130005^1|130003^1
A149: 24104 | B149: ='15'!BF15 -> 70431^70431^70431^70431^70432^70432^70432^70434^70434^70435^70435^70435^70435^70433^70433^70433^70434^70431^70431^70431^70431^70434^70432^70432^70432^70432^70432^70432^70432^70431^70433^70433^70431^70432^70432 | C149: ='15'!BF42 -> 4^2^3^5^4^1^5^2^3^101^102^104^105^4^1^5^6^4^2^3^5^7^6^4^1^5^7^8^6^4^2^3^5^7^9 | D149: ='15'!BF55 -> 2^2^2^2^4^4^4^6^6^8^8^8^8^10^10^10^17^17^17^17^17^17^25^25^25^25^25^35^35^35^35^35^35^35^35 | E149: 0 | F149: 1 | G149: 0 | H149: 0 | I149: 0 | J149: 1 | K149: 130003^3|130004^1
A150: 24201 | B150: ='15'!P71 -> 70441^70441^70441^70441^70441^70444^70441^70442^70442^70442^70441^70444^70442^70441^70443^70444^70443^70441^70442^70442^70441^70441^70444^70441^70441^70442^70444^70442^70441^70443^70441^70443^70441^70442^70444^70445^70445^70445^70445^70445^70441^70441^70442^70443^70442^70443^70442^70441^70441^70444^70442^70441^70443^70443^70443^70441^70442^70444^70442^70441^70443^70442^70443^70441^70442^70445^70445^70445^70445^70445 | C150: ='15'!P98 -> 4^2^1^3^5^6^4^2^1^3^5^7^8^4^2^1^3^5^9^6^4^2^1^3^5^7^8^6^4^2^1^3^5^7^9^101^102^103^104^105^8^6^4^2^1^3^5^7^9^8^6^4^2^1^3^5^7^9^6^4^2^1^3^5^7^101^102^103^104^105 | D150: ='15'!P112 -> 5^5^5^5^5^10^10^10^10^10^10^10^17^17^17^17^17^17^17^25^25^25^25^25^25^25^35^35^35^35^35^35^35^35^35^40^40^40^40^40^50^50^50^50^50^50^50^50^50^60^60^60^60^60^60^60^60^60^70^70^70^70^70^70^70^75^75^75^75^75 | E150: 0 | F150: 1 | G150: 0 | H150: 0 | I150: 4 | J150: 0 | K150: 130003^3|130004^1
A151: 24202 | B151: ='15'!AD71 -> 70441^70442^70444^70441^70443^70441^70442^70445^70443^70444^70441^70442^70443^70441^70442^70443^70444^70441^70442^70445^70442^70444 | C151: ='15'!AD98 -> 0^0^0^0^0^0^0^100^0^0^0^0^0^0^0^0^0^0^0^100^0^0 | D151: ='15'!AD111 -> 17^7^7^12^4^13^4^9^3^3^14^3^3^14^3^3^2^17^4^9^4^3 | E151: 8 | F151: 3 | G151: 0 | H151: 0 | I151: 4 | J151: 0 | K151: 130003^2|130004^2
A152: 24203 | B152: ='15'!AR71 -> 70443^70443^70443^70444^70442^70442^70444^70445^70445^70445^70445^70445^70442^70441^70443^70444^70443^70441^70442^70444^70442^70442^70441^70441^70441^70441^70442^70444^70441^70441^70442^70443^70442^70443^70442^70441^70441^70442^70441^70443^70444^70443^70441^70442^70445^70445^70445^70445^70445 | C152: ='15'!AR98 -> 4^1^5^6^2^3^7^101^102^103^104^105^6^4^2^1^3^5^7^8^6^4^2^1^3^5^7^9^8^6^4^2^1^3^5^7^9^6^4^2^1^3^5^7^101^102^103^104^105 | D152: ='15'!AR111 -> 3^3^3^6^6^6^6^10^10^10^10^10^17^17^17^17^17^17^17^25^25^25^25^25^25^25^25^25^35^35^35^35^35^35^35^35^35^45^45^45^45^45^45^45^50^50^50^50^50 | E152: 0 | F152: 1 | G152: 0 | H152: 0 | I152: 3 | J152: 0 | K152: 130005^1|130003^1
A153: 24204 | B153: ='15'!BF71 -> 70445^70445^70445^70442^70442^70442^70444^70443^70444^70441^70441^70441^70441^70442^70441^70443^70443^70441^70442^70444^70441^70442^70442^70442^70441^70444^70442^70441^70443^70444^70443^70441^70442^70442^70442^70441^70443^70441^70442^70442 | C153: ='15'!BF98 -> 101^103^105^2^1^3^6^1^7^4^2^3^5^6^4^2^3^5^7^8^4^2^1^3^5^9^6^4^2^1^3^5^7^8^4^2^1^3^5^9 | D153: ='15'!BF111 -> 3^3^3^5^5^5^8^8^8^12^12^12^12^18^18^18^18^18^18^25^25^25^25^25^25^25^35^35^35^35^35^35^35^45^45^45^45^45^45^45 | E153: 0 | F153: 1 | G153: 0 | H153: 0 | I153: 0 | J153: 1 | K153: 130003^3|130004^1
A154: 24301 | B154: ='15'!P127 -> 70451^70452^70454^70451^70452^70453^70451^70453^70454^70455^70452^70451^70452^70454^70451^70452^70453^70451^70452^70453^70454^70451^70452^70455^70452^70454^70451^70452^70453 | C154: ='15'!P154 -> 0^0^0^0^0^0^0^0^0^100^0^0^0^0^0^0^0^0^0^0^0^0^0^100^0^0^0^0^0 | D154: ='15'!P168 -> 10^3^3^12^3^2^13^3^3^10^4^15^3^2^15^3^3^15^3^2^2^18^4^10^4^3^15^4^3 | E154: 7 | F154: 3 | G154: 0 | H154: 0 | I154: 4 | J154: 0 | K154: 130003^3|130004^1
A155: 24302 | B155: ='15'!AD127 -> 70455^70455^70455^70455^70452^70452^70452^70452^70454^70451^70453^70453^70453^70451^70454^70454^70452^70451^70452^70451^70452^70454^70452^70452^70453^70454^70453^70452^70452^70452^70452^70451^70453^70454^70453^70451^70452^70452^70455^70455^70455^70455^70455^70454^70452^70452^70456^70452^70452^70454 | C155: ='15'!AD154 -> 101^102^104^105^6^1^3^7^6^4^2^1^3^5^7^8^4^2^1^3^5^9^6^4^2^1^3^5^7^8^6^4^2^1^3^5^7^9^101^102^103^104^105^6^4^2^1^3^5^7 | D155: ='15'!AD167 -> 5^5^5^5^10^10^10^10^15^15^15^15^15^15^15^22^22^22^22^22^22^22^30^30^30^30^30^30^30^40^40^40^40^40^40^40^40^40^45^45^45^45^45^55^55^55^55^55^55^55 | E155: 0 | F155: 1 | G155: 0 | H155: 0 | I155: 4 | J155: 0 | K155: 130003^2|130004^2
A156: 24303 | B156: ='15'!AR127 -> 70454^70452^70452^70452^70454^70453^70453^70453^70455^70455^70455^70455^70455^70454^70452^70453^70453^70453^70452^70454^70452^70451^70451^70452^70451^70451^70452^70455^70455^70455^70455^70455^70454^70451^70452^70453^70452^70453^70452^70451^70454^70452^70452^70453^70451^70453^70451^70453^70452^70452 | C156: ='15'!AR154 -> 4^2^1^3^5^4^1^5^101^102^103^104^105^6^4^2^1^3^5^7^6^4^2^1^3^5^7^101^102^103^104^105^8^6^4^2^1^3^5^7^9^8^6^4^2^1^3^5^7^9 | D156: ='15'!AR167 -> 3^3^3^3^3^6^6^6^10^10^10^10^10^17^17^17^17^17^17^17^25^25^25^25^25^25^25^35^35^35^35^35^45^45^45^45^45^45^45^45^45^55^55^55^55^55^55^55^55^55 | E156: 0 | F156: 1 | G156: 0 | H156: 0 | I156: 3 | J156: 0 | K156: 130005^1|130003^1
A157: 24304 | B157: ='15'!BF127 -> 70454^70453^70453^70454^70452^70452^70452^70452^70455^70455^70455^70455^70451^70451^70451^70451^70451^70454^70452^70453^70453^70452^70454^70452^70451^70451^70454^70451^70451^70452^70452^70451^70451^70453^70451^70451^70452^70454^70452^70451^70453^70453^70451^70452^70454 | C157: ='15'!BF154 -> 4^2^3^5^6^4^5^7^101^102^104^105^6^4^1^5^7^6^4^2^3^5^7^8^4^2^1^3^5^9^6^4^2^1^3^5^7^8^6^4^2^3^5^7^9 | D157: ='15'!BF167 -> 3^3^3^3^5^5^5^5^8^8^8^8^12^12^12^12^12^18^18^18^18^18^18^0^25^25^25^25^25^25^33^33^33^33^33^33^33^40^40^40^40^40^40^40^40 | E157: 0 | F157: 1 | G157: 0 | H157: 0 | I157: 0 | J157: 1 | K157: 130003^3|130004^1

Sheet 1
A3: 3 | B3: 森林-1 | C3: 波1·怪物 | D3: 6 | E3: 18 | F3: 35 | G3: 50 | H3: 65 | I3: 82 | J3: 100 | K3: 120 | L3: 140 | M3: 160 | N3: 180 | R3: 波2·怪物
B4: 3.3m | C4: 8 | P4: =_xlfn.TEXTJOIN("^",,D4:D13) -> 70011 | R4: 8 | AD4: =_xlfn.TEXTJOIN("^",,S4:S13) -> 70011
C5: 6 | P5: =_xlfn.TEXTJOIN("^",,E4:E13) -> 70011^70012 | R5: 6 | AD5: =_xlfn.TEXTJOIN("^",,T4:T13) -> 70011^70012
C6: 4 | P6: =_xlfn.TEXTJOIN("^",,F4:F13) -> 70011^70012 | R6: 4 | AD6: =_xlfn.TEXTJOIN("^",,U4:U13) -> 70011^70013
C7: 2 | P7: =_xlfn.TEXTJOIN("^",,G4:G13) -> 70011^70013 | R7: 2 | AD7: =_xlfn.TEXTJOIN("^",,V4:V13) -> 70014^70012
C8: 1 | D8: 70011 | E8: 70011 | F8: 70011 | G8: 70011 | H8: 70011 | I8: 70014 | J8: 70014 | K8: 70012 | L8: 70014 | M8: 70011 | N8: 70013 | P8: =_xlfn.TEXTJOIN("^",,H4:H13) -> 70011^70012^70013 | R8: 1 | S8: 70011 | T8: 70011 | U8: 70011 | V8: 70014 | W8: 70011 | X8: 70013 | Y8: 70014 | Z8: 70012 | AA8: 70013 | AD8: =_xlfn.TEXTJOIN("^",,W4:W13) -> 70011
C9: 3 | E9: 70012 | F9: 70012 | G9: 70013 | H9: 70012 | J9: 70012 | K9: 70013 | L9: 70011 | N9: 70012 | P9: =_xlfn.TEXTJOIN("^",,I4:I13) -> 70014 | R9: 3 | T9: 70012 | U9: 70013 | V9: 70012 | X9: 70012 | Y9: 70011 | AA9: 70012 | AD9: =_xlfn.TEXTJOIN("^",,X4:X13) -> 70013^70012
C10: 5 | H10: 70013 | P10: =_xlfn.TEXTJOIN("^",,J4:J13) -> 70014^70012 | R10: 5 | AD10: =_xlfn.TEXTJOIN("^",,Y4:Y13) -> 70014^70011
C11: 7 | P11: =_xlfn.TEXTJOIN("^",,K4:K13) -> 70012^70013 | R11: 7 | AD11: =_xlfn.TEXTJOIN("^",,Z4:Z13) -> 70012
C12: 9 | P12: =_xlfn.TEXTJOIN("^",,L4:L13) -> 70014^70011 | R12: 9 | AD12: =_xlfn.TEXTJOIN("^",,AA4:AA13) -> 70013^70012
P13: =_xlfn.TEXTJOIN("^",,M4:M13) -> 70011 | AD13: =_xlfn.TEXTJOIN("^",,AB4:AB13) -> 
P14: =_xlfn.TEXTJOIN("^",,N4:N13) -> 70013^70012 | AD14: =_xlfn.TEXTJOIN("^",,AC4:AC13) -> 
O15: 最终 | P15: =_xlfn.TEXTJOIN("|",,P4:P14) -> 70011|70011^70012|70011^70012|70011^70013|70011^70012^70013|70014|70014^70012|70012^70013|70014^70011|70011|70013^70012 | AC15: 最终 | AD15: =_xlfn.TEXTJOIN("|",,AD4:AD14) -> 70011|70011^70012|70011^70013|70014^70012|70011|70013^70012|70014^70011|70012|70013^70012
C16: 8 | R16: 8
C17: 6 | R17: 6
C18: 4 | R18: 4
C19: 2 | R19: 2
C20: 1 | D20: 树精 | E20: 树精 | F20: 树精 | G20: 树精 | H20: 树精 | I20: 血树精 | J20: 血树精 | K20: 毒蜘蛛 | L20: 血树精 | M20: 树精 | N20: 哥布林 | R20: 1 | S20: 树精 | T20: 树精 | U20: 树精 | V20: 血树精 | W20: 树精 | X20: 哥布林 | Y20: 血树精 | Z20: 毒蜘蛛 | AA20: 哥布林
C21: 3 | E21: 毒蜘蛛 | F21: 毒蜘蛛 | G21: 哥布林 | H21: 毒蜘蛛 | J21: 毒蜘蛛 | K21: 哥布林 | L21: 树精 | N21: 毒蜘蛛 | R21: 3 | T21: 毒蜘蛛 | U21: 哥布林 | V21: 毒蜘蛛 | X21: 毒蜘蛛 | Y21: 树精 | AA21: 毒蜘蛛
C22: 5 | H22: 哥布林 | R22: 5
C23: 7 | R23: 7
C24: 9 | R24: 9
C26: 位置 | D26: 6 | E26: 18 | F26: 35 | G26: 50 | H26: 65 | I26: 82 | J26: 100 | K26: 120 | L26: 140 | M26: 160 | N26: 180 | R26: 位置 | AD26: =_xlfn.TEXTJOIN("^",,S27:S35) -> 0
C27: 8 | P27: =_xlfn.TEXTJOIN("^",,D27:D36) -> 0 | R27: 8 | AD27: =_xlfn.TEXTJOIN("^",,T27:T35) -> 0^0
C28: 6 | P28: =_xlfn.TEXTJOIN("^",,E27:E36) -> 0^0 | R28: 6 | AD28: =_xlfn.TEXTJOIN("^",,U27:U35) -> 0^0
C29: 4 | P29: =_xlfn.TEXTJOIN("^",,F27:F36) -> 0^0 | R29: 4 | AD29: =_xlfn.TEXTJOIN("^",,V27:V35) -> 0^0
C30: 2 | P30: =_xlfn.TEXTJOIN("^",,G27:G36) -> 0^0 | R30: 2 | AD30: =_xlfn.TEXTJOIN("^",,W27:W35) -> 0
C31: 1 | D31: 0 | E31: 0 | F31: 0 | G31: 0 | H31: 0 | I31: 0 | J31: 0 | K31: 0 | L31: 0 | M31: 0 | N31: 0 | P31: =_xlfn.TEXTJOIN("^",,H27:H36) -> 0^0^0 | R31: 1 | S31: 0 | T31: 0 | U31: 0 | V31: 0 | W31: 0 | X31: 0 | Y31: 0 | Z31: 0 | AA31: 0 | AD31: =_xlfn.TEXTJOIN("^",,X27:X35) -> 0^0
C32: 3 | E32: 0 | F32: 0 | G32: 0 | H32: 0 | J32: 0 | K32: 0 | L32: 0 | N32: 0 | P32: =_xlfn.TEXTJOIN("^",,I27:I36) -> 0 | R32: 3 | T32: 0 | U32: 0 | V32: 0 | X32: 0 | Y32: 0 | AA32: 0 | AD32: =_xlfn.TEXTJOIN("^",,Y26:Y35) -> 0^0
C33: 5 | H33: 0 | P33: =_xlfn.TEXTJOIN("^",,J27:J36) -> 0^0 | R33: 5 | AD33: =_xlfn.TEXTJOIN("^",,Z26:Z35) -> 0
C34: 7 | P34: =_xlfn.TEXTJOIN("^",,K27:K36) -> 0^0 | R34: 7 | AD34: =_xlfn.TEXTJOIN("^",,AA26:AA35) -> 0^0
C35: 9 | P35: =_xlfn.TEXTJOIN("^",,L27:L36) -> 0^0 | R35: 9 | AD35: =_xlfn.TEXTJOIN("^",,AB26:AB35) -> 
P36: =_xlfn.TEXTJOIN("^",,M27:M36) -> 0 | AD36: =_xlfn.TEXTJOIN("^",,AC26:AC35) -> 
P37: =_xlfn.TEXTJOIN("^",,N27:N36) -> 0^0 | AC37: 最终 | AD37: =_xlfn.TEXTJOIN("|",,AD26:AD36) -> 0|0^0|0^0|0^0|0|0^0|0^0|0|0^0
O38: 最终 | P38: =_xlfn.TEXTJOIN("|",,P27:P37) -> 0|0^0|0^0|0^0|0^0^0|0|0^0|0^0|0^0|0|0^0
C40: 时间 | D40: 6 | E40: 18 | F40: 35 | G40: 50 | H40: 65 | I40: 82 | J40: 100 | K40: 120 | L40: 140 | M40: 160 | N40: 180 | R40: 时间 | AD40: =_xlfn.TEXTJOIN("^",,S41:S49) -> 8
C41: 8 | P41: =_xlfn.TEXTJOIN("^",,D41:D50) -> 4 | R41: 8 | AD41: =_xlfn.TEXTJOIN("^",,T41:T49) -> 8^3
C42: 6 | P42: =_xlfn.TEXTJOIN("^",,E41:E50) -> 3^2 | R42: 6 | AD42: =_xlfn.TEXTJOIN("^",,U41:U49) -> 8^4
C43: 4 | P43: =_xlfn.TEXTJOIN("^",,F41:F50) -> 4^2 | R43: 4 | AD43: =_xlfn.TEXTJOIN("^",,V41:V49) -> 5^4
C44: 2 | P44: =_xlfn.TEXTJOIN("^",,G41:G50) -> 4^2 | R44: 2 | AD44: =_xlfn.TEXTJOIN("^",,W41:W49) -> 10
C45: 1 | D45: 4 | E45: 3 | F45: 4 | G45: 4 | H45: 3 | I45: 4 | J45: 2 | K45: 3 | L45: 3 | M45: 8 | N45: 2 | P45: =_xlfn.TEXTJOIN("^",,H41:H50) -> 3^2^2 | R45: 1 | S45: 8 | T45: 8 | U45: 8 | V45: 5 | W45: 10 | X45: 4 | Y45: 4 | Z45: 6 | AA45: 5 | AD45: =_xlfn.TEXTJOIN("^",,X41:X49) -> 4^4
C46: 3 | E46: 2 | F46: 2 | G46: 2 | H46: 2 | J46: 4 | K46: 3 | L46: 5 | N46: 4 | P46: =_xlfn.TEXTJOIN("^",,I41:I50) -> 4 | R46: 3 | T46: 3 | U46: 4 | V46: 4 | X46: 4 | Y46: 8 | AA46: 4 | AD46: =_xlfn.TEXTJOIN("^",,Y40:Y49) -> 4^8
C47: 5 | H47: 2 | P47: =_xlfn.TEXTJOIN("^",,J41:J50) -> 2^4 | R47: 5 | AD47: =_xlfn.TEXTJOIN("^",,Z40:Z49) -> 6
C48: 7 | P48: =_xlfn.TEXTJOIN("^",,K41:K50) -> 3^3 | R48: 7 | AD48: =_xlfn.TEXTJOIN("^",,AA40:AA49) -> 5^4
C49: 9 | P49: =_xlfn.TEXTJOIN("^",,L41:L50) -> 3^5 | R49: 9 | AD49: =_xlfn.TEXTJOIN("^",,AB40:AB49) -> 
P50: =_xlfn.TEXTJOIN("^",,M41:M50) -> 8 | AD50: =_xlfn.TEXTJOIN("^",,AC40:AC49) -> 
P51: =_xlfn.TEXTJOIN("^",,N41:N50) -> 2^4 | AC51: 最终 | AD51: =_xlfn.TEXTJOIN("|",,AD40:AD50) -> 8|8^3|8^4|5^4|10|4^4|4^8|6|5^4
O52: 最终 | P52: =_xlfn.TEXTJOIN("|",,P41:P51) -> 4|3^2|4^2|4^2|3^2^2|4|2^4|3^3|3^5|8|2^4
P53: =SUM(D41:N50) -> 66 | AC53: =SUM(S41:AA50) -> 85 | AD53: =P53+AC53 -> 151
E55: =E56-D56 -> 12 | F55: =F56-E56 -> 18 | G55: =G56-F56 -> 15 | H55: 15 | I55: 16 | J55: 18 | K55: 20 | L55: 20 | M55: 20 | N55: 20 | T55: =T56-S56 -> 0 | U55: =U56-T56 -> 0 | V55: 0 | W55: 0 | X55: 0
A56: 3 | B56: 森林-2 | C56: 波1·怪物 | D56: 6 | E56: 18 | F56: 36 | G56: 51 | H56: 66 | I56: 82 | J56: 100 | K56: 120 | L56: 140 | M56: 160 | N56: 180 | R56: 波2·怪物
B57: 3.3m | C57: 8 | P57: =_xlfn.TEXTJOIN("^",,D57:D66) -> 70021 | R57: 8 | AD57: =_xlfn.TEXTJOIN("^",,S57:S66) -> 70024
C58: 6 | P58: =_xlfn.TEXTJOIN("^",,E57:E66) -> 70021^70022 | R58: 6 | AD58: =_xlfn.TEXTJOIN("^",,T57:T66) -> 70021^70022
C59: 4 | P59: =_xlfn.TEXTJOIN("^",,F57:F66) -> 70023^70021 | R59: 4 | AD59: =_xlfn.TEXTJOIN("^",,U57:U66) -> 70023^70021
C60: 2 | P60: =_xlfn.TEXTJOIN("^",,G57:G66) -> 70024^70022 | R60: 2 | AD60: =_xlfn.TEXTJOIN("^",,V57:V66) -> 70022
C61: 1 | D61: 70021 | E61: 70021 | F61: 70023 | G61: 70024 | H61: 70022 | I61: 70021 | J61: 70023 | K61: 70021 | L61: 70021 | M61: 70023 | N61: 70024 | P61: =_xlfn.TEXTJOIN("^",,H57:H66) -> 70022 | R61: 1 | S61: 70024 | T61: 70021 | U61: 70023 | V61: 70022 | W61: 70023 | X61: 70024 | Y61: 70021 | Z61: 70023 | AA61: 70021 | AB61: 70023 | AD61: =_xlfn.TEXTJOIN("^",,W57:W66) -> 70023^70022
C62: 3 | E62: 70022 | F62: 70021 | G62: 70022 | J62: 70022 | K62: 70022 | L62: 70024 | M62: 70022 | N62: 70022 | P62: =_xlfn.TEXTJOIN("^",,I57:I66) -> 70021 | R62: 3 | T62: 70022 | U62: 70021 | W62: 70022 | X62: 70022 | Z62: 70024 | AA62: 70022 | AB62: 70022 | AD62: =_xlfn.TEXTJOIN("^",,X57:X66) -> 70024^70022
C63: 5 | P63: =_xlfn.TEXTJOIN("^",,J57:J66) -> 70023^70022 | R63: 5 | AD63: =_xlfn.TEXTJOIN("^",,Y57:Y66) -> 70021
C64: 7 | P64: =_xlfn.TEXTJOIN("^",,K57:K66) -> 70021^70022 | R64: 7 | AD64: =_xlfn.TEXTJOIN("^",,Z57:Z66) -> 70023^70024
C65: 9 | P65: =_xlfn.TEXTJOIN("^",,L57:L66) -> 70021^70024 | R65: 9 | AD65: =_xlfn.TEXTJOIN("^",,AA57:AA66) -> 70021^70022
P66: =_xlfn.TEXTJOIN("^",,M57:M66) -> 70023^70022 | AD66: =_xlfn.TEXTJOIN("^",,AB57:AB66) -> 70023^70022
P67: =_xlfn.TEXTJOIN("^",,N57:N66) -> 70024^70022 | AD67: =_xlfn.TEXTJOIN("^",,AC57:AC66) -> 
O68: 最终 | P68: =_xlfn.TEXTJOIN("|",,P57:P67) -> 70021|70021^70022|70023^70021|70024^70022|70022|70021|70023^70022|70021^70022|70021^70024|70023^70022|70024^70022 | AC68: 最终 | AD68: =_xlfn.TEXTJOIN("|",,AD57:AD67) -> 70024|70021^70022|70023^70021|70022|70023^70022|70024^70022|70021|70023^70024|70021^70022|70023^70022
C69: 8 | R69: 8
C70: 6 | R70: 6
C71: 4 | R71: 4
C72: 2 | P72: 112 | R72: 2
C73: 1 | D73: 树精 | E73: 树精 | F73: 哥布林 | G73: 血树精 | H73: 毒蜘蛛 | I73: 树精 | J73: 哥布林 | K73: 树精 | L73: 树精 | M73: 哥布林 | N73: 血树精 | P73: =P72*5 -> 560 | Q73: 784 | R73: 1 | S73: 血树精 | T73: 树精 | U73: 哥布林 | V73: 毒蜘蛛 | W73: 哥布林 | X73: 血树精 | Y73: 树精 | Z73: 哥布林 | AA73: 树精 | AB73: 哥布林
C74: 3 | E74: 毒蜘蛛 | F74: 树精 | G74: 毒蜘蛛 | J74: 毒蜘蛛 | K74: 毒蜘蛛 | L74: 血树精 | M74: 毒蜘蛛 | N74: 毒蜘蛛 | R74: 3 | T74: 毒蜘蛛 | U74: 树精 | W74: 毒蜘蛛 | X74: 毒蜘蛛 | Z74: 血树精 | AA74: 毒蜘蛛 | AB74: 毒蜘蛛
C75: 5 | R75: 5
C76: 7 | R76: 7
C77: 9 | R77: 9
C79: 位置 | D79: 6 | E79: 18 | F79: 36 | G79: 51 | H79: 66 | I79: 82 | J79: 100 | K79: 120 | L79: 140 | M79: 160 | N79: 180 | R79: 位置 | AD79: =_xlfn.TEXTJOIN("^",,S80:S88) -> 0
C80: 8 | P80: =_xlfn.TEXTJOIN("^",,D80:D89) -> 0 | R80: 8 | AD80: =_xlfn.TEXTJOIN("^",,T80:T88) -> 0^0
C81: 6 | P81: =_xlfn.TEXTJOIN("^",,E80:E89) -> 0^0 | R81: 6 | AD81: =_xlfn.TEXTJOIN("^",,U80:U88) -> 0^0
C82: 4 | P82: =_xlfn.TEXTJOIN("^",,F80:F89) -> 0^0 | R82: 4 | AD82: =_xlfn.TEXTJOIN("^",,V80:V88) -> 0
C83: 2 | P83: =_xlfn.TEXTJOIN("^",,G80:G89) -> 0^0 | R83: 2 | AD83: =_xlfn.TEXTJOIN("^",,W80:W88) -> 0^0
C84: 1 | D84: 0 | E84: 0 | F84: 0 | G84: 0 | H84: 0 | I84: 0 | J84: =$D$84 -> 0 | K84: 0 | L84: 0 | M84: 0 | N84: 0 | P84: =_xlfn.TEXTJOIN("^",,H80:H89) -> 0 | R84: 1 | S84: 0 | T84: 0 | U84: 0 | V84: 0 | W84: 0 | X84: 0 | Y84: 0 | Z84: 0 | AA84: 0 | AB84: 0 | AD84: =_xlfn.TEXTJOIN("^",,X80:X88) -> 0^0
C85: 3 | E85: 0 | F85: 0 | G85: 0 | J85: 0 | K85: 0 | L85: 0 | M85: 0 | N85: 0 | P85: =_xlfn.TEXTJOIN("^",,I80:I89) -> 0 | R85: 3 | T85: 0 | U85: 0 | W85: 0 | X85: 0 | Z85: 0 | AA85: 0 | AB85: 0 | AD85: =_xlfn.TEXTJOIN("^",,Y79:Y88) -> 0
C86: 5 | P86: =_xlfn.TEXTJOIN("^",,J80:J89) -> 0^0 | R86: 5 | AD86: =_xlfn.TEXTJOIN("^",,Z79:Z88) -> 0^0
C87: 7 | P87: =_xlfn.TEXTJOIN("^",,K80:K89) -> 0^0 | R87: 7 | AD87: =_xlfn.TEXTJOIN("^",,AA79:AA88) -> 0^0
C88: 9 | P88: =_xlfn.TEXTJOIN("^",,L80:L89) -> 0^0 | R88: 9 | AD88: =_xlfn.TEXTJOIN("^",,AB79:AB88) -> 0^0
P89: =_xlfn.TEXTJOIN("^",,M80:M89) -> 0^0 | AD89: =_xlfn.TEXTJOIN("^",,AC79:AC88) -> 
P90: =_xlfn.TEXTJOIN("^",,N80:N89) -> 0^0 | AC90: 最终 | AD90: =_xlfn.TEXTJOIN("|",,AD79:AD89) -> 0|0^0|0^0|0|0^0|0^0|0|0^0|0^0|0^0
O91: 最终 | P91: =_xlfn.TEXTJOIN("|",,P80:P90) -> 0|0^0|0^0|0^0|0|0|0^0|0^0|0^0|0^0|0^0
C93: 时间 | D93: 6 | E93: 18 | F93: 36 | G93: 51 | H93: 66 | I93: 82 | J93: 100 | K93: 120 | L93: 140 | M93: 160 | N93: 180 | R93: 时间 | AD93: =_xlfn.TEXTJOIN("^",,S94:S102) -> 3
C94: 8 | P94: =_xlfn.TEXTJOIN("^",,D94:D103) -> 6 | R94: 8 | AD94: =_xlfn.TEXTJOIN("^",,T94:T102) -> 7^3
C95: 6 | P95: =_xlfn.TEXTJOIN("^",,E94:E103) -> 4^3 | R95: 6 | AD95: =_xlfn.TEXTJOIN("^",,U94:U102) -> 2^8
C96: 4 | P96: =_xlfn.TEXTJOIN("^",,F94:F103) -> 2^6 | R96: 4 | AD96: =_xlfn.TEXTJOIN("^",,V94:V102) -> 4
C97: 2 | P97: =_xlfn.TEXTJOIN("^",,G94:G103) -> 3^4 | R97: 2 | AD97: =_xlfn.TEXTJOIN("^",,W94:W102) -> 2^4
C98: 1 | D98: 6 | E98: 4 | F98: 2 | G98: 3 | H98: 4 | I98: 10 | J98: 3 | K98: 8 | L98: 8 | M98: 3 | N98: 3 | P98: =_xlfn.TEXTJOIN("^",,H94:H103) -> 4 | R98: 1 | S98: 3 | T98: 7 | U98: 2 | V98: 4 | W98: 2 | X98: 3 | Y98: 8 | Z98: 3 | AA98: 7 | AB98: 3 | AD98: =_xlfn.TEXTJOIN("^",,X94:X102) -> 3^4
C99: 3 | E99: 3 | F99: 6 | G99: 4 | J99: 4 | K99: 3 | L99: 2 | M99: 4 | N99: 4 | P99: =_xlfn.TEXTJOIN("^",,I94:I103) -> 10 | R99: 3 | T99: 3 | U99: 8 | W99: 4 | X99: 4 | Z99: 2 | AA99: 3 | AB99: 3 | AD99: =_xlfn.TEXTJOIN("^",,Y93:Y102) -> 8
C100: 5 | P100: =_xlfn.TEXTJOIN("^",,J94:J103) -> 3^4 | R100: 5 | AD100: =_xlfn.TEXTJOIN("^",,Z93:Z102) -> 3^2
C101: 7 | P101: =_xlfn.TEXTJOIN("^",,K94:K103) -> 8^3 | R101: 7 | AD101: =_xlfn.TEXTJOIN("^",,AA93:AA102) -> 7^3
C102: 9 | P102: =_xlfn.TEXTJOIN("^",,L94:L103) -> 8^2 | R102: 9 | AD102: =_xlfn.TEXTJOIN("^",,AB93:AB102) -> 3^3
P103: =_xlfn.TEXTJOIN("^",,M94:M103) -> 3^4 | AD103: =_xlfn.TEXTJOIN("^",,AC93:AC102) -> 
P104: =_xlfn.TEXTJOIN("^",,N94:N103) -> 3^4 | AC104: 最终 | AD104: =_xlfn.TEXTJOIN("|",,AD93:AD103) -> 3|7^3|2^8|4|2^4|3^4|8|3^2|7^3|3^3
O105: 最终 | P105: =_xlfn.TEXTJOIN("|",,P94:P104) -> 6|4^3|2^6|3^4|4|10|3^4|8^3|8^2|3^4|3^4
P106: =SUM(D94:N103) -> 84 | AC106: =SUM(S94:AB103) -> 69 | AD106: =P106+AC106 -> 153
E108: =E109-D109 -> 10 | F108: =F109-E109 -> 15 | G108: =G109-F109 -> 15 | H108: 17 | I108: 18 | J108: 20 | K108: 20 | L108: 20 | M108: 20 | N108: 20 | T108: =T109-S109 -> 2 | U108: 3 | V108: 4 | W108: 5 | X108: 5 | Y108: 5
A109: 3 | B109: 森林-3 | C109: 波1·怪物 | D109: 5 | E109: 15 | F109: 30 | G109: 45 | H109: 62 | I109: 80 | J109: 100 | K109: 120 | L109: 140 | M109: 160 | N109: 180 | Q109: 1 | R109: 波2·怪物 | S109: 1 | T109: 3 | U109: 6 | V109: 10 | W109: 15 | X109: 20 | Y109: 25
B110: 3.5m | C110: 8 | P110: =_xlfn.TEXTJOIN("^",,D110:D119) -> 70032 | R110: 8 | AD110: =_xlfn.TEXTJOIN("^",,S110:S119) -> 70031^70031^70031^70031
C111: 6 | P111: =_xlfn.TEXTJOIN("^",,E110:E119) -> 70031^70033 | R111: 6 | AD111: =_xlfn.TEXTJOIN("^",,T110:T119) -> 70032^70032
C112: 4 | P112: =_xlfn.TEXTJOIN("^",,F110:F119) -> 70031^70032 | R112: 4 | U112: 70031 | V112: 70031 | W112: 70032 | X112: 70033 | AD112: =_xlfn.TEXTJOIN("^",,U110:U119) -> 70031^70033^70032
C113: 2 | P113: =_xlfn.TEXTJOIN("^",,G110:G119) -> 70033^70032 | R113: 2 | S113: 70031 | T113: 70032 | V113: 70031 | W113: 70034 | X113: 70033 | Y113: 70032 | AD113: =_xlfn.TEXTJOIN("^",,V110:V119) -> 70031^70031^70031^70031
C114: 1 | D114: 70032 | E114: 70031 | F114: 70031 | G114: 70033 | H114: 70031 | I114: 70034 | J114: 70031 | K114: 70033 | L114: 70031 | M114: 70034 | N114: 70033 | P114: =_xlfn.TEXTJOIN("^",,H110:H119) -> 70031 | R114: 1 | S114: 70031 | U114: 70033 | X114: 70033 | Y114: 70032 | AD114: =_xlfn.TEXTJOIN("^",,W110:W119) -> 70032^70034^70034^70032
C115: 3 | E115: 70033 | F115: 70032 | G115: 70032 | I115: 70032 | J115: 70032 | K115: 70032 | L115: 70034 | M115: 70032 | N115: 70032 | P115: =_xlfn.TEXTJOIN("^",,I110:I119) -> 70034^70032 | R115: 3 | S115: 70031 | V115: 70031 | W115: 70034 | X115: 70033 | AD115: =_xlfn.TEXTJOIN("^",,X110:X119) -> 70033^70033^70033^70033
C116: 5 | N116: 70031 | P116: =_xlfn.TEXTJOIN("^",,J110:J119) -> 70031^70032 | R116: 5 | S116: 70031 | T116: 70032 | U116: 70032 | V116: 70031 | W116: 70032 | AD116: =_xlfn.TEXTJOIN("^",,Y110:Y119) -> 70032^70032
C117: 7 | P117: =_xlfn.TEXTJOIN("^",,K110:K119) -> 70033^70032 | R117: 7 | AD117: =_xlfn.TEXTJOIN("^",,Z110:Z119) -> 
C118: 9 | P118: =_xlfn.TEXTJOIN("^",,L110:L119) -> 70031^70034 | R118: 9 | AD118: =_xlfn.TEXTJOIN("^",,AA110:AA119) -> 
P119: =_xlfn.TEXTJOIN("^",,M110:M119) -> 70034^70032 | AD119: =_xlfn.TEXTJOIN("^",,AB110:AB119) -> 
P120: =_xlfn.TEXTJOIN("^",,N110:N119) -> 70033^70032^70031 | AD120: =_xlfn.TEXTJOIN("^",,AC110:AC119) -> 
E121: 平均时间刷+时间轴刷 | O121: 最终 | P121: =_xlfn.TEXTJOIN("|",,P110:P120) -> 70032|70031^70033|70031^70032|70033^70032|70031|70034^70032|70031^70032|70033^70032|70031^70034|70034^70032|70033^70032^70031 | AC121: 最终 | AD121: =_xlfn.TEXTJOIN("^",,AD110:AD120) -> 70031^70031^70031^70031^70032^70032^70031^70033^70032^70031^70031^70031^70031^70032^70034^70034^70032^70033^70033^70033^70033^70032^70032
C122: 8 | R122: 8
C123: 6 | R123: 6
C124: 4 | R124: 4 | U124: 树精 | V124: 树精 | W124: 毒蜘蛛 | X124: 哥布林
C125: 2 | P125: 112 | R125: 2 | S125: 树精 | T125: 毒蜘蛛 | V125: 树精 | W125: 血树精 | X125: 哥布林 | Y125: 毒蜘蛛
C126: 1 | D126: 毒蜘蛛 | E126: 树精 | F126: 树精 | G126: 哥布林 | H126: 树精 | I126: 血树精 | J126: 树精 | K126: 哥布林 | L126: 树精 | M126: 树精 | N126: 哥布林 | P126: =P125*6 -> 672 | Q126: 784 | R126: 1 | S126: 树精 | U126: 哥布林 | X126: 哥布林 | Y126: 毒蜘蛛
C127: 3 | E127: 哥布林 | F127: 毒蜘蛛 | G127: 毒蜘蛛 | I127: 毒蜘蛛 | J127: 毒蜘蛛 | K127: 毒蜘蛛 | L127: 血树精 | M127: 毒蜘蛛 | N127: 毒蜘蛛 | R127: 3 | S127: 树精 | V127: 树精 | W127: 血树精 | X127: 哥布林
C128: 5 | N128: 树精 | R128: 5 | S128: 树精 | T128: 毒蜘蛛 | U128: 毒蜘蛛 | V128: 树精 | W128: 毒蜘蛛
C129: 7 | R129: 7
C130: 9 | R130: 9
C132: 位置 | D132: 5 | E132: 15 | F132: 30 | G132: 45 | H132: 62 | I132: 80 | J132: 100 | K132: 120 | L132: 140 | M132: 160 | N132: 180 | R132: 位置 | S132: 1 | T132: 3 | U132: 6 | V132: 10 | W132: 15 | X132: 20 | Y132: 25 | AD132: =_xlfn.TEXTJOIN("^",,S133:S141) -> 2^1^3^5
C133: 8 | P133: =_xlfn.TEXTJOIN("^",,D133:D142) -> 0 | R133: 8 | AD133: =_xlfn.TEXTJOIN("^",,T133:T141) -> 2^5
C134: 6 | P134: =_xlfn.TEXTJOIN("^",,E133:E142) -> 0^0 | R134: 6 | AD134: =_xlfn.TEXTJOIN("^",,U133:U141) -> 4^1^5
C135: 4 | P135: =_xlfn.TEXTJOIN("^",,F133:F142) -> 0^0 | R135: 4 | U135: =$C135 -> 4 | V135: 4 | W135: 4 | X135: 4 | AD135: =_xlfn.TEXTJOIN("^",,V133:V141) -> 4^2^3^5
C136: 2 | P136: =_xlfn.TEXTJOIN("^",,G133:G142) -> 0^0 | R136: 2 | S136: =$C136 -> 2 | T136: 2 | V136: 2 | W136: 2 | X136: 2 | Y136: 2 | AD136: =_xlfn.TEXTJOIN("^",,W133:W141) -> 4^2^3^5
C137: 1 | D137: 0 | E137: 0 | F137: 0 | G137: 0 | H137: 0 | I137: 0 | J137: 0 | K137: 0 | L137: 0 | M137: 0 | N137: 0 | P137: =_xlfn.TEXTJOIN("^",,H133:H142) -> 0 | R137: 1 | S137: 1 | U137: =$C137 -> 1 | X137: 1 | Y137: 1 | AD137: =_xlfn.TEXTJOIN("^",,X133:X141) -> 4^2^1^3
C138: 3 | E138: 0 | F138: 0 | G138: 0 | I138: 0 | J138: 0 | K138: 0 | L138: 0 | M138: 0 | N138: 0 | P138: =_xlfn.TEXTJOIN("^",,I133:I142) -> 0^0 | R138: 3 | S138: 3 | V138: 3 | W138: 3 | X138: 3 | AD138: =_xlfn.TEXTJOIN("^",,Y133:Y141) -> 2^1
C139: 5 | N139: 0 | P139: =_xlfn.TEXTJOIN("^",,J133:J142) -> 0^0 | R139: 5 | S139: 5 | T139: 5 | U139: 5 | V139: 5 | W139: 5 | AD139: =_xlfn.TEXTJOIN("^",,Z132:Z141) -> 
C140: 7 | P140: =_xlfn.TEXTJOIN("^",,K133:K142) -> 0^0 | R140: 7 | AD140: =_xlfn.TEXTJOIN("^",,AA132:AA141) -> 
C141: 9 | P141: =_xlfn.TEXTJOIN("^",,L133:L142) -> 0^0 | R141: 9 | AD141: =_xlfn.TEXTJOIN("^",,AB132:AB141) -> 
P142: =_xlfn.TEXTJOIN("^",,M133:M142) -> 0^0 | AD142: =_xlfn.TEXTJOIN("^",,AC132:AC141) -> 
P143: =_xlfn.TEXTJOIN("^",,N133:N142) -> 0^0^0 | AC143: 最终 | AD143: =_xlfn.TEXTJOIN("^",,AD132:AD142) -> 2^1^3^5^2^5^4^1^5^4^2^3^5^4^2^3^5^4^2^1^3^2^1
O144: 最终 | P144: =_xlfn.TEXTJOIN("|",,P133:P143) -> 0|0^0|0^0|0^0|0|0^0|0^0|0^0|0^0|0^0|0^0^0
C146: 时间 | D146: 5 | E146: 15 | F146: 30 | G146: 45 | H146: 62 | I146: 80 | J146: 100 | K146: 120 | L146: 140 | M146: 160 | N146: 180 | R146: 时间 | S146: 1 | T146: 3 | U146: 6 | V146: 10 | W146: 15 | X146: 20 | Y146: 25 | AD146: =_xlfn.TEXTJOIN("^",,S147:S155) -> 1^1^1^1
C147: 8 | P147: =_xlfn.TEXTJOIN("^",,D147:D156) -> 4 | R147: 8 | AD147: =_xlfn.TEXTJOIN("^",,T147:T155) -> 3^3
C148: 6 | P148: =_xlfn.TEXTJOIN("^",,E147:E156) -> 5^2 | R148: 6 | AD148: =_xlfn.TEXTJOIN("^",,U147:U155) -> 6^6^6
C149: 4 | P149: =_xlfn.TEXTJOIN("^",,F147:F156) -> 7^2 | R149: 4 | U149: =U$146 -> 6 | V149: =V$146 -> 10 | W149: =W$146 -> 15 | X149: =X$146 -> 20 | AD149: =_xlfn.TEXTJOIN("^",,V147:V155) -> 10^10^10^10
C150: 2 | P150: =_xlfn.TEXTJOIN("^",,G147:G156) -> 3^4 | R150: 2 | S150: =S$146 -> 1 | T150: =T$146 -> 3 | V150: =V$146 -> 10 | W150: =W$146 -> 15 | X150: 20 | Y150: =Y$146 -> 25 | AD150: =_xlfn.TEXTJOIN("^",,W147:W155) -> 15^15^15^15
C151: 1 | D151: 4 | E151: 5 | F151: 7 | G151: 3 | H151: 8 | I151: 4 | J151: 8 | K151: 2 | L151: 8 | M151: 8 | N151: 2 | P151: =_xlfn.TEXTJOIN("^",,H147:H156) -> 8 | R151: 1 | S151: =S$146 -> 1 | U151: =U$146 -> 6 | X151: 20 | Y151: =Y$146 -> 25 | AD151: =_xlfn.TEXTJOIN("^",,X147:X155) -> 20^20^20^20
C152: 3 | E152: 2 | F152: 2 | G152: 4 | I152: 3 | J152: 2 | K152: 4 | L152: 2 | M152: 3 | N152: 2 | P152: =_xlfn.TEXTJOIN("^",,I147:I156) -> 4^3 | R152: 3 | S152: =S$146 -> 1 | V152: =V$146 -> 10 | W152: =W$146 -> 15 | X152: 20 | AD152: =_xlfn.TEXTJOIN("^",,Y147:Y155) -> 25^25
C153: 5 | N153: 6 | P153: =_xlfn.TEXTJOIN("^",,J147:J156) -> 8^2 | R153: 5 | S153: =S$146 -> 1 | T153: =T$146 -> 3 | U153: =U$146 -> 6 | V153: =V$146 -> 10 | W153: =W$146 -> 15 | AD153: =_xlfn.TEXTJOIN("^",,Z146:Z155) -> 
C154: 7 | P154: =_xlfn.TEXTJOIN("^",,K147:K156) -> 2^4 | R154: 7 | AD154: =_xlfn.TEXTJOIN("^",,AA146:AA155) -> 
C155: 9 | P155: =_xlfn.TEXTJOIN("^",,L147:L156) -> 8^2 | R155: 9 | AD155: =_xlfn.TEXTJOIN("^",,AB146:AB155) -> 
P156: =_xlfn.TEXTJOIN("^",,M147:M156) -> 8^3 | AD156: =_xlfn.TEXTJOIN("^",,AC146:AC155) -> 
P157: =_xlfn.TEXTJOIN("^",,N147:N156) -> 2^2^6 | AC157: 最终 | AD157: =_xlfn.TEXTJOIN("^",,AD146:AD156) -> 1^1^1^1^3^3^6^6^6^10^10^10^10^15^15^15^15^20^20^20^20^25^25
O158: 最终 | P158: =_xlfn.TEXTJOIN("|",,P147:P157) -> 4|5^2|7^2|3^4|8|4^3|8^2|2^4|8^2|8^3|2^2^6
P159: =SUM(D147:N156) -> 89 | AC159: =COUNT(S147:AA155) -> 23 | AD159: =P159+AC159 -> 112

Sheet 2
E2: =E3-D3 -> 13 | F2: =F3-E3 -> 15 | G2: 17 | H2: 15 | I2: 15 | J2: 20 | K2: 20 | L2: 20 | M2: 20 | N2: 20 | T2: =T3-S3 -> 2 | U2: 3 | V2: 4 | W2: 5 | X2: 5 | Y2: 10 | Z2: 15
A3: 3 | B3: 密林-1 | C3: 波1·怪物 | D3: 5 | E3: 18 | F3: 33 | G3: 50 | H3: 65 | I3: 80 | J3: 100 | K3: 120 | L3: 140 | M3: 160 | N3: 180 | R3: 波2·怪物 | S3: 1 | T3: 3 | U3: 6 | V3: 10 | W3: 15 | X3: 20 | Y3: 30 | Z3: 45
B4: 3.75m | C4: 8 | P4: =_xlfn.TEXTJOIN("^",,D4:D13) -> 70041 | R4: 8 | AD4: =_xlfn.TEXTJOIN("^",,S4:S13) -> 70041^70044
C5: 6 | P5: =_xlfn.TEXTJOIN("^",,E4:E13) -> 70041^70042 | R5: 6 | AD5: =_xlfn.TEXTJOIN("^",,T4:T13) -> 70042
C6: 4 | P6: =_xlfn.TEXTJOIN("^",,F4:F13) -> 70042^70041 | R6: 4 | AD6: =_xlfn.TEXTJOIN("^",,U4:U13) -> 70041^70042
C7: 2 | P7: =_xlfn.TEXTJOIN("^",,G4:G13) -> 70044^70043^70041 | R7: 2 | AD7: =_xlfn.TEXTJOIN("^",,V4:V13) -> 70043^70041^70042
C8: 1 | D8: 70041 | E8: 70041 | F8: 70042 | G8: 70044 | H8: 70043 | I8: 70041 | J8: 70041 | K8: 70044 | L8: 70043 | M8: 70041 | N8: 70044 | P8: =_xlfn.TEXTJOIN("^",,H4:H13) -> 70043^70042^70041 | R8: 1 | S8: 70041 | T8: 70042 | U8: 70041 | V8: 70043 | W8: 70042 | X8: 70043 | Y8: 70041 | Z8: 70041 | AA8: 70043 | AD8: =_xlfn.TEXTJOIN("^",,W4:W13) -> 70042^70044
C9: 3 | E9: 70042 | F9: 70041 | G9: 70043 | H9: 70042 | I9: 70044 | J9: 70042 | K9: 70043 | L9: 70041 | M9: 70043 | N9: 70042 | P9: =_xlfn.TEXTJOIN("^",,I4:I13) -> 70041^70044 | R9: 3 | S9: 70044 | U9: 70042 | V9: 70041 | W9: 70044 | X9: 70042 | Y9: 70044 | Z9: 70042 | AA9: 70042 | AD9: =_xlfn.TEXTJOIN("^",,X4:X13) -> 70043^70042
C10: 5 | G10: 70041 | H10: 70041 | K10: 70042 | L10: 70042 | N10: 70043 | P10: =_xlfn.TEXTJOIN("^",,J4:J13) -> 70041^70042 | R10: 5 | V10: 70042 | AA10: 70041 | AD10: =_xlfn.TEXTJOIN("^",,Y4:Y13) -> 70041^70044
C11: 7 | P11: =_xlfn.TEXTJOIN("^",,K4:K13) -> 70044^70043^70042 | R11: 7 | AD11: =_xlfn.TEXTJOIN("^",,Z4:Z13) -> 70041^70042
C12: 9 | P12: =_xlfn.TEXTJOIN("^",,L4:L13) -> 70043^70041^70042 | R12: 9 | AD12: =_xlfn.TEXTJOIN("^",,AA4:AA13) -> 70043^70042^70041
P13: =_xlfn.TEXTJOIN("^",,M4:M13) -> 70041^70043 | AD13: =_xlfn.TEXTJOIN("^",,AB4:AB13) -> 
P14: =_xlfn.TEXTJOIN("^",,N4:N13) -> 70044^70042^70043 | AD14: =_xlfn.TEXTJOIN("^",,AC4:AC13) -> 
O15: 最终 | P15: =_xlfn.TEXTJOIN("|",,P4:P14) -> 70041|70041^70042|70042^70041|70044^70043^70041|70043^70042^70041|70041^70044|70041^70042|70044^70043^70042|70043^70041^70042|70041^70043|70044^70042^70043 | AC15: 最终 | AD15: =_xlfn.TEXTJOIN("|",,AD4:AD14) -> 70041^70044|70042|70041^70042|70043^70041^70042|70042^70044|70043^70042|70041^70044|70041^70042|70043^70042^70041
C16: 8 | R16: 8
C17: 6 | R17: 6
C18: 4 | R18: 4
C19: 2 | R19: 2
C20: 1 | D20: 树精 | E20: 树精 | F20: 毒蜘蛛 | G20: 木精灵 | H20: 哥布林 | I20: 树精 | J20: 树精 | K20: 木精灵 | L20: 哥布林 | M20: 树精 | N20: 木精灵 | R20: 1 | S20: 树精 | T20: 毒蜘蛛 | U20: 树精 | V20: 哥布林 | W20: 毒蜘蛛 | X20: 哥布林 | Y20: 树精 | Z20: 树精 | AA20: 哥布林
C21: 3 | E21: 毒蜘蛛 | F21: 树精 | G21: 哥布林 | H21: 毒蜘蛛 | I21: 木精灵 | J21: 毒蜘蛛 | K21: 哥布林 | L21: 树精 | M21: 哥布林 | N21: 毒蜘蛛 | R21: 3 | S21: 木精灵 | U21: 毒蜘蛛 | V21: 树精 | W21: 木精灵 | X21: 毒蜘蛛 | Y21: 木精灵 | Z21: 毒蜘蛛 | AA21: 毒蜘蛛
C22: 5 | G22: 树精 | H22: 树精 | K22: 毒蜘蛛 | L22: 毒蜘蛛 | N22: 哥布林 | R22: 5 | V22: 毒蜘蛛 | AA22: 树精
C23: 7 | R23: 7
C24: 9 | R24: 9
C26: 位置 | D26: 5 | E26: 18 | F26: 33 | G26: 50 | H26: 65 | I26: 80 | J26: 100 | K26: 120 | L26: 140 | M26: 160 | N26: 180 | R26: 位置 | S26: 1 | T26: 3 | U26: 6 | V26: 10 | W26: 15 | X26: 20 | Y26: 30 | Z26: 45 | AD26: =_xlfn.TEXTJOIN("^",,S27:S35) -> 0^0
C27: 8 | P27: =_xlfn.TEXTJOIN("^",,D27:D36) -> 0 | R27: 8 | AD27: =_xlfn.TEXTJOIN("^",,T27:T35) -> 0
C28: 6 | P28: =_xlfn.TEXTJOIN("^",,E27:E36) -> 0^0 | R28: 6 | AD28: =_xlfn.TEXTJOIN("^",,U27:U35) -> 0^0
C29: 4 | P29: =_xlfn.TEXTJOIN("^",,F27:F36) -> 0^0 | R29: 4 | AD29: =_xlfn.TEXTJOIN("^",,V27:V35) -> 0^0^0
C30: 2 | P30: =_xlfn.TEXTJOIN("^",,G27:G36) -> 0^0^0 | R30: 2 | AD30: =_xlfn.TEXTJOIN("^",,W27:W35) -> 0^0
C31: 1 | D31: 0 | E31: 0 | F31: 0 | G31: 0 | H31: 0 | I31: 0 | J31: 0 | K31: 0 | L31: 0 | M31: 0 | N31: 0 | P31: =_xlfn.TEXTJOIN("^",,H27:H36) -> 0^0^0 | R31: 1 | S31: 0 | T31: 0 | U31: 0 | V31: 0 | W31: 0 | X31: 0 | Y31: 0 | Z31: 0 | AA31: 0 | AD31: =_xlfn.TEXTJOIN("^",,X27:X35) -> 0^0
C32: 3 | E32: 0 | F32: 0 | G32: 0 | H32: 0 | I32: 0 | J32: 0 | K32: 0 | L32: 0 | M32: 0 | N32: 0 | P32: =_xlfn.TEXTJOIN("^",,I27:I36) -> 0^0 | R32: 3 | S32: 0 | U32: 0 | V32: 0 | W32: 0 | X32: 0 | Y32: 0 | Z32: 0 | AA32: 0 | AD32: =_xlfn.TEXTJOIN("^",,Y27:Y35) -> 0^0
C33: 5 | G33: 0 | H33: 0 | K33: 0 | L33: 0 | N33: 0 | P33: =_xlfn.TEXTJOIN("^",,J27:J36) -> 0^0 | R33: 5 | V33: 0 | AA33: 0 | AD33: =_xlfn.TEXTJOIN("^",,Z27:Z35) -> 0^0
C34: 7 | P34: =_xlfn.TEXTJOIN("^",,K27:K36) -> 0^0^0 | R34: 7 | AD34: =_xlfn.TEXTJOIN("^",,AA27:AA35) -> 0^0^0
C35: 9 | P35: =_xlfn.TEXTJOIN("^",,L27:L36) -> 0^0^0 | R35: 9 | AD35: =_xlfn.TEXTJOIN("^",,AB27:AB35) -> 
P36: =_xlfn.TEXTJOIN("^",,M27:M36) -> 0^0 | AD36: =_xlfn.TEXTJOIN("^",,AC27:AC35) -> 
P37: =_xlfn.TEXTJOIN("^",,N27:N36) -> 0^0^0 | AC37: 最终 | AD37: =_xlfn.TEXTJOIN("|",,AD26:AD36) -> 0^0|0|0^0|0^0^0|0^0|0^0|0^0|0^0|0^0^0
O38: 最终 | P38: =_xlfn.TEXTJOIN("|",,P27:P37) -> 0|0^0|0^0|0^0^0|0^0^0|0^0|0^0|0^0^0|0^0^0|0^0|0^0^0
C40: 时间 | D40: 5 | E40: 18 | F40: 33 | G40: 50 | H40: 65 | I40: 80 | J40: 100 | K40: 120 | L40: 140 | M40: 160 | N40: 180 | R40: 时间 | S40: 1 | T40: 3 | U40: 6 | V40: 10 | W40: 15 | X40: 20 | Y40: 30 | Z40: 45 | AD40: =_xlfn.TEXTJOIN("^",,S41:S49) -> 16^4
C41: 8 | P41: =_xlfn.TEXTJOIN("^",,D41:D50) -> 5 | R41: 8 | AD41: =_xlfn.TEXTJOIN("^",,T41:T49) -> 8
C42: 6 | P42: =_xlfn.TEXTJOIN("^",,E41:E50) -> 5^3 | R42: 6 | AD42: =_xlfn.TEXTJOIN("^",,U41:U49) -> 10^2
C43: 4 | P43: =_xlfn.TEXTJOIN("^",,F41:F50) -> 4^7 | R43: 4 | AD43: =_xlfn.TEXTJOIN("^",,V41:V49) -> 2^10^2
C44: 2 | P44: =_xlfn.TEXTJOIN("^",,G41:G50) -> 2^2^7 | R44: 2 | AD44: =_xlfn.TEXTJOIN("^",,W41:W49) -> 5^5
C45: 1 | D45: 5 | E45: 5 | F45: 4 | G45: 2 | H45: 2 | I45: 8 | J45: 8 | K45: 2 | L45: 2 | M45: 9 | N45: 2 | P45: =_xlfn.TEXTJOIN("^",,H41:H50) -> 2^4^6 | R45: 1 | S45: 16 | T45: 8 | U45: 10 | V45: 2 | W45: 5 | X45: 5 | Y45: 12 | Z45: 12 | AA45: 8 | AD45: =_xlfn.TEXTJOIN("^",,X41:X49) -> 5^5
C46: 3 | E46: 3 | F46: 7 | G46: 2 | H46: 4 | I46: 2 | J46: 3 | K46: 3 | L46: 7 | M46: 2 | N46: 4 | P46: =_xlfn.TEXTJOIN("^",,I41:I50) -> 8^2 | R46: 3 | S46: 4 | U46: 2 | V46: 10 | W46: 5 | X46: 5 | Y46: 2 | Z46: 5 | AA46: 5 | AD46: =_xlfn.TEXTJOIN("^",,Y41:Y49) -> 12^2
C47: 5 | G47: 7 | H47: 6 | K47: 4 | L47: 2 | N47: 3 | P47: =_xlfn.TEXTJOIN("^",,J41:J50) -> 8^3 | R47: 5 | V47: 2 | AA47: 15 | AD47: =_xlfn.TEXTJOIN("^",,Z41:Z49) -> 12^5
C48: 7 | P48: =_xlfn.TEXTJOIN("^",,K41:K50) -> 2^3^4 | R48: 7 | AD48: =_xlfn.TEXTJOIN("^",,AA41:AA49) -> 8^5^15
C49: 9 | P49: =_xlfn.TEXTJOIN("^",,L41:L50) -> 2^7^2 | R49: 9 | AD49: =_xlfn.TEXTJOIN("^",,AB41:AB49) -> 
P50: =_xlfn.TEXTJOIN("^",,M41:M50) -> 9^2 | AD50: =_xlfn.TEXTJOIN("^",,AC41:AC49) -> 
P51: =_xlfn.TEXTJOIN("^",,N41:N50) -> 2^4^3 | AC51: 最终 | AD51: =_xlfn.TEXTJOIN("|",,AD40:AD50) -> 16^4|8|10^2|2^10^2|5^5|5^5|12^2|12^5|8^5^15
O52: 最终 | P52: =_xlfn.TEXTJOIN("|",,P41:P51) -> 5|5^3|4^7|2^2^7|2^4^6|8^2|8^3|2^3^4|2^7^2|9^2|2^4^3
P53: =SUM(D41:N50) -> 108 | AC53: =SUM(S41:AA50) -> 133 | AD53: =P53+AC53 -> 241
E55: =E56-D56 -> 5 | F55: =F56-E56 -> 5 | G55: =G56-F56 -> 6 | H55: 9 | I55: 5 | J55: 10 | K55: 5 | L55: 10 | M55: 15 | N55: 10 | T55: =T56-S56 -> 2 | U55: =U56-T56 -> 3 | V55: 4 | W55: 5 | X55: 5 | Y55: 6 | Z55: 9
A56: 1 | B56: 密林-2 | C56: 波1·怪物 | D56: 5 | E56: 10 | F56: 15 | G56: 21 | H56: 30 | I56: 35 | J56: 45 | K56: 50 | L56: 60 | M56: 75 | N56: 85 | Q56: 1 | R56: 波2·怪物 | S56: 1 | T56: 3 | U56: 6 | V56: 10 | W56: 15 | X56: 20 | Y56: 26 | Z56: 35
B57: 3.5m | C57: 8 | H57: 70051 | J57: 70052 | L57: 70051 | M57: 70051 | P57: =_xlfn.TEXTJOIN("^",,D57:D66) -> 70051^70052^70051 | R57: 8 | AD57: =_xlfn.TEXTJOIN("^",,S57:S66) -> 70051^70054^70051
C58: 6 | F58: 70054 | H58: 70051 | J58: 70052 | L58: 70051 | M58: 70051 | N58: 70054 | P58: =_xlfn.TEXTJOIN("^",,E57:E66) -> 70051^70052^70052^70051 | R58: 6 | X58: 70051 | AD58: =_xlfn.TEXTJOIN("^",,T57:T66) -> 70052^70052^70053^70052^70052
C59: 4 | E59: 70051 | G59: 70051 | I59: 70052 | J59: 70053 | K59: 70053 | L59: 70051 | N59: 70051 | P59: =_xlfn.TEXTJOIN("^",,F57:F66) -> 70054^70051^70051^70051^70052 | R59: 4 | T59: 70052 | U59: 70051 | V59: 70052 | W59: 70052 | X59: 70053 | Y59: 70052 | Z59: 70054 | AD59: =_xlfn.TEXTJOIN("^",,U57:U66) -> 70051^70051^70053^70051^70051
C60: 2 | D60: 70051 | E60: 70052 | F60: 70051 | G60: 70053 | H60: 70052 | I60: 70051 | J60: 70051 | K60: 70052 | M60: 70052 | N60: 70053 | P60: =_xlfn.TEXTJOIN("^",,G57:G66) -> 70051^70053^70052^70053^70051 | R60: 2 | S60: 70051 | T60: 70052 | U60: 70051 | V60: 70051 | W60: 70053 | Y60: 70052 | Z60: 70053 | AD60: =_xlfn.TEXTJOIN("^",,V57:V66) -> 70052^70051^70054^70051^70052
C61: 1 | D61: 70052 | F61: 70051 | G61: 70052 | H61: 70054 | I61: 70051 | J61: 70053 | K61: 70052 | L61: 70054 | M61: 70052 | N61: 70053 | P61: =_xlfn.TEXTJOIN("^",,H57:H66) -> 70051^70051^70052^70054^70052^70051^70051 | R61: 1 | S61: 70054 | T61: 70053 | U61: 70053 | V61: 70054 | W61: 70053 | X61: 70054 | Y61: 70052 | Z61: 70053 | AD61: =_xlfn.TEXTJOIN("^",,W57:W66) -> 70052^70053^70053^70053^70052
C62: 3 | D62: 70051 | E62: 70052 | F62: 70051 | G62: 70053 | H62: 70052 | I62: 70051 | J62: 70051 | K62: 70052 | M62: 70052 | N62: 70053 | P62: =_xlfn.TEXTJOIN("^",,I57:I66) -> 70052^70051^70051^70051^70052 | R62: 3 | S62: 70051 | T62: 70052 | U62: 70051 | V62: 70051 | W62: 70053 | Y62: 70052 | Z62: 70053 | AD62: =_xlfn.TEXTJOIN("^",,X57:X66) -> 70051^70053^70054^70053^70051
C63: 5 | E63: 70051 | G63: 70051 | I63: 70052 | J63: 70053 | K63: 70053 | L63: 70051 | N63: 70051 | P63: =_xlfn.TEXTJOIN("^",,J57:J66) -> 70052^70052^70053^70051^70053^70051^70053^70054^70054 | R63: 5 | T63: 70052 | U63: 70051 | V63: 70052 | W63: 70052 | X63: 70053 | Y63: 70052 | Z63: 70054 | AD63: =_xlfn.TEXTJOIN("^",,Y57:Y66) -> 70052^70052^70052^70052^70052
C64: 7 | F64: 70052 | H64: 70051 | J64: 70054 | L64: 70051 | M64: 70051 | N64: 70054 | P64: =_xlfn.TEXTJOIN("^",,K57:K66) -> 70053^70052^70052^70052^70053 | R64: 7 | X64: 70051 | AD64: =_xlfn.TEXTJOIN("^",,Z57:Z66) -> 70054^70053^70053^70053^70054
C65: 9 | H65: 70051 | J65: 70054 | L65: 70051 | M65: 70051 | P65: =_xlfn.TEXTJOIN("^",,L57:L66) -> 70051^70051^70051^70054^70051^70051^70051 | R65: 9 | AD65: =_xlfn.TEXTJOIN("^",,AA57:AA66) -> 
P66: =_xlfn.TEXTJOIN("^",,M57:M66) -> 70051^70051^70052^70052^70052^70051^70051 | AD66: =_xlfn.TEXTJOIN("^",,AB57:AB66) -> 
P67: =_xlfn.TEXTJOIN("^",,N57:N66) -> 70054^70051^70053^70053^70053^70051^70054 | AD67: =_xlfn.TEXTJOIN("^",,AC57:AC66) -> 
O68: 最终 | P68: =_xlfn.TEXTJOIN("^",,P57:P67) -> 70051^70052^70051^70051^70052^70052^70051^70054^70051^70051^70051^70052^70051^70053^70052^70053^70051^70051^70051^70052^70054^70052^70051^70051^70052^70051^70051^70051^70052^70052^70052^70053^70051^70053^70051^70053^70054^70054^70053^70052^70052^70052^70053^70051^70051^70051^70054^70051^70051^70051^70051^70051^70052^70052^70052^70051^70051^70054^70051^70053^70053^70053^70051^70054 | AC68: 最终 | AD68: =_xlfn.TEXTJOIN("^",,AD57:AD67) -> 70051^70054^70051^70052^70052^70053^70052^70052^70051^70051^70053^70051^70051^70052^70051^70054^70051^70052^70052^70053^70053^70053^70052^70051^70053^70054^70053^70051^70052^70052^70052^70052^70052^70054^70053^70053^70053^70054
C69: 8 | H69: 树精 | J69: 毒蜘蛛 | L69: 树精 | M69: 树精 | R69: 8
C70: 6 | F70: 木精灵 | H70: 树精 | J70: 毒蜘蛛 | L70: 树精 | M70: 树精 | N70: 木精灵 | R70: 6 | X70: 树精
C71: 4 | E71: 树精 | G71: 树精 | I71: 毒蜘蛛 | J71: 哥布林 | K71: 哥布林 | L71: 树精 | N71: 树精 | R71: 4 | T71: 毒蜘蛛 | U71: 树精 | V71: 毒蜘蛛 | W71: 毒蜘蛛 | X71: 哥布林 | Y71: 毒蜘蛛 | Z71: 木精灵
C72: 2 | D72: 树精 | E72: 毒蜘蛛 | F72: 树精 | G72: 哥布林 | H72: 毒蜘蛛 | I72: 树精 | J72: 树精 | K72: 毒蜘蛛 | M72: 毒蜘蛛 | N72: 哥布林 | R72: 2 | S72: 树精 | T72: 毒蜘蛛 | U72: 树精 | V72: 树精 | W72: 哥布林 | Y72: 毒蜘蛛 | Z72: 哥布林
C73: 1 | D73: 毒蜘蛛 | F73: 树精 | G73: 毒蜘蛛 | H73: 木精灵 | I73: 树精 | J73: 哥布林 | K73: 毒蜘蛛 | L73: 木精灵 | M73: 毒蜘蛛 | N73: 哥布林 | R73: 1 | S73: 木精灵 | T73: 哥布林 | U73: 哥布林 | V73: 木精灵 | W73: 哥布林 | X73: 木精灵 | Y73: 毒蜘蛛 | Z73: 哥布林
C74: 3 | D74: 树精 | E74: 毒蜘蛛 | F74: 树精 | G74: 哥布林 | H74: 毒蜘蛛 | I74: 树精 | J74: 树精 | K74: 毒蜘蛛 | M74: 毒蜘蛛 | N74: 哥布林 | R74: 3 | S74: 树精 | T74: 毒蜘蛛 | U74: 树精 | V74: 树精 | W74: 哥布林 | Y74: 毒蜘蛛 | Z74: 哥布林
C75: 5 | E75: 树精 | G75: 树精 | I75: 毒蜘蛛 | J75: 哥布林 | K75: 哥布林 | L75: 树精 | N75: 树精 | R75: 5 | T75: 毒蜘蛛 | U75: 树精 | V75: 毒蜘蛛 | W75: 毒蜘蛛 | X75: 哥布林 | Y75: 毒蜘蛛 | Z75: 木精灵
C76: 7 | F76: 毒蜘蛛 | H76: 树精 | J76: 木精灵 | L76: 树精 | M76: 树精 | N76: 木精灵 | R76: 7 | X76: 树精
C77: 9 | H77: 树精 | J77: 木精灵 | L77: 树精 | M77: 树精 | R77: 9
C79: 位置 | D79: 5 | E79: 10 | F79: 15 | G79: 21 | H79: 30 | I79: 35 | J79: 45 | K79: 50 | L79: 60 | M79: 75 | N79: 85 | R79: 位置 | S79: 1 | T79: 3 | U79: 6 | V79: 10 | W79: 15 | X79: 20 | Y79: 26 | Z79: 35 | AD79: =_xlfn.TEXTJOIN("^",,S80:S88) -> 2^1^3
C80: 8 | H80: =$C80 -> 8 | J80: =$C80 -> 8 | L80: =$C80 -> 8 | M80: =$C80 -> 8 | P80: =_xlfn.TEXTJOIN("^",,D80:D89) -> 2^1^3 | R80: 8 | AD80: =_xlfn.TEXTJOIN("^",,T80:T88) -> 4^2^1^3^5
C81: 6 | F81: =$C81 -> 6 | H81: =$C81 -> 6 | J81: =$C81 -> 6 | L81: 6 | M81: =$C81 -> 6 | N81: =$C81 -> 6 | P81: =_xlfn.TEXTJOIN("^",,E80:E89) -> 4^2^3^5 | R81: 6 | X81: =$C81 -> 6 | AD81: =_xlfn.TEXTJOIN("^",,U80:U88) -> 4^2^1^3^5
C82: 4 | E82: =$C82 -> 4 | G82: =$C82 -> 4 | I82: =$C82 -> 4 | J82: 4 | K82: =$C82 -> 4 | L82: 4 | N82: 4 | P82: =_xlfn.TEXTJOIN("^",,F80:F89) -> 6^2^1^3^7 | R82: 4 | T82: =$C82 -> 4 | U82: =$C82 -> 4 | V82: 4 | W82: 4 | X82: =$C82 -> 4 | Y82: =$C82 -> 4 | Z82: =$C82 -> 4 | AD82: =_xlfn.TEXTJOIN("^",,V80:V88) -> 4^2^1^3^5
C83: 2 | D83: =$C83 -> 2 | E83: =$C83 -> 2 | F83: =$C83 -> 2 | G83: 2 | H83: 2 | I83: 2 | J83: 2 | K83: 2 | M83: =$C83 -> 2 | N83: 2 | P83: =_xlfn.TEXTJOIN("^",,G80:G89) -> 4^2^1^3^5 | R83: 2 | S83: =$C83 -> 2 | T83: 2 | U83: 2 | V83: 2 | W83: 2 | Y83: 2 | Z83: 2 | AD83: =_xlfn.TEXTJOIN("^",,W80:W88) -> 4^2^1^3^5
C84: 1 | D84: 1 | F84: =$C84 -> 1 | G84: 1 | H84: 1 | I84: 1 | J84: 1 | K84: 1 | L84: =$C84 -> 1 | M84: 1 | N84: 1 | P84: =_xlfn.TEXTJOIN("^",,H80:H89) -> 8^6^2^1^3^7^9 | R84: 1 | S84: 1 | T84: 1 | U84: =$C84 -> 1 | V84: 1 | W84: 1 | X84: =$C84 -> 1 | Y84: 1 | Z84: =$C84 -> 1 | AD84: =_xlfn.TEXTJOIN("^",,X80:X88) -> 6^4^1^5^7
C85: 3 | D85: 3 | E85: =$C85 -> 3 | F85: =$C85 -> 3 | G85: 3 | H85: 3 | I85: 3 | J85: 3 | K85: 3 | M85: 3 | N85: 3 | P85: =_xlfn.TEXTJOIN("^",,I80:I89) -> 4^2^1^3^5 | R85: 3 | S85: 3 | T85: 3 | U85: 3 | V85: 3 | W85: 3 | Y85: =$C85 -> 3 | Z85: 3 | AD85: =_xlfn.TEXTJOIN("^",,Y80:Y88) -> 4^2^1^3^5
C86: 5 | E86: =$C86 -> 5 | G86: 5 | I86: 5 | J86: 5 | K86: 5 | L86: 5 | N86: 5 | P86: =_xlfn.TEXTJOIN("^",,J80:J89) -> 8^6^4^2^1^3^5^7^9 | R86: 5 | T86: =$C86 -> 5 | U86: =$C86 -> 5 | V86: 5 | W86: 5 | X86: =$C86 -> 5 | Y86: 5 | Z86: =$C86 -> 5 | AD86: =_xlfn.TEXTJOIN("^",,Z80:Z88) -> 4^2^1^3^5
C87: 7 | F87: =$C87 -> 7 | H87: =$C87 -> 7 | J87: =$C87 -> 7 | L87: 7 | M87: =$C87 -> 7 | N87: 7 | P87: =_xlfn.TEXTJOIN("^",,K80:K89) -> 4^2^1^3^5 | R87: 7 | X87: 7 | AD87: =_xlfn.TEXTJOIN("^",,AA80:AA88) -> 
C88: 9 | H88: =$C88 -> 9 | J88: =$C88 -> 9 | L88: 9 | M88: =$C88 -> 9 | P88: =_xlfn.TEXTJOIN("^",,L80:L89) -> 8^6^4^1^5^7^9 | R88: 9 | AD88: =_xlfn.TEXTJOIN("^",,AB80:AB88) -> 
P89: =_xlfn.TEXTJOIN("^",,M80:M89) -> 8^6^2^1^3^7^9 | AD89: =_xlfn.TEXTJOIN("^",,AC80:AC88) -> 
P90: =_xlfn.TEXTJOIN("^",,N80:N89) -> 6^4^2^1^3^5^7 | AC90: 最终 | AD90: =_xlfn.TEXTJOIN("^",,AD79:AD89) -> 2^1^3^4^2^1^3^5^4^2^1^3^5^4^2^1^3^5^4^2^1^3^5^6^4^1^5^7^4^2^1^3^5^4^2^1^3^5
O91: 最终 | P91: =_xlfn.TEXTJOIN("^",,P80:P90) -> 2^1^3^4^2^3^5^6^2^1^3^7^4^2^1^3^5^8^6^2^1^3^7^9^4^2^1^3^5^8^6^4^2^1^3^5^7^9^4^2^1^3^5^8^6^4^1^5^7^9^8^6^2^1^3^7^9^6^4^2^1^3^5^7
C93: 时间 | D93: 5 | E93: 10 | F93: 15 | G93: 21 | H93: 30 | I93: 35 | J93: 45 | K93: 50 | L93: 60 | M93: 75 | N93: 85 | R93: 时间 | S93: 1 | T93: 3 | U93: 6 | V93: 10 | W93: 15 | X93: 20 | Y93: 26 | Z93: 35 | AD93: =_xlfn.TEXTJOIN("^",,S94:S102) -> 1^1^1
C94: 8 | H94: =H$93 -> 30 | J94: =J$93 -> 45 | L94: =L$93 -> 60 | M94: =M$93 -> 75 | P94: =_xlfn.TEXTJOIN("^",,D94:D103) -> 5^5^5 | R94: 8 | AD94: =_xlfn.TEXTJOIN("^",,T94:T102) -> 3^3^3^3^3
C95: 6 | F95: =F$93 -> 15 | H95: =H$93 -> 30 | J95: =J$93 -> 45 | L95: 60 | M95: =M$93 -> 75 | N95: =N$93 -> 85 | P95: =_xlfn.TEXTJOIN("^",,E94:E103) -> 10^10^10^10 | R95: 6 | X95: =X$93 -> 20 | AD95: =_xlfn.TEXTJOIN("^",,U94:U102) -> 6^6^6^6^6
C96: 4 | E96: =E$93 -> 10 | G96: 21 | I96: =I$93 -> 35 | J96: =J$93 -> 45 | K96: =K$93 -> 50 | L96: 60 | N96: 85 | P96: =_xlfn.TEXTJOIN("^",,F94:F103) -> 15^15^15^15^15 | R96: 4 | T96: =T$93 -> 3 | U96: =U$93 -> 6 | V96: =V$93 -> 10 | W96: 15 | X96: =X$93 -> 20 | Y96: =Y$93 -> 26 | Z96: =Z$93 -> 35 | AD96: =_xlfn.TEXTJOIN("^",,V94:V102) -> 10^10^10^10^10
C97: 2 | D97: =D$93 -> 5 | E97: =E$93 -> 10 | F97: =F$93 -> 15 | G97: 21 | H97: 30 | I97: 35 | J97: 45 | K97: 50 | M97: =M$93 -> 75 | N97: 85 | P97: =_xlfn.TEXTJOIN("^",,G94:G103) -> 21^21^21^21^21 | R97: 2 | S97: =S$93 -> 1 | T97: 3 | U97: 6 | V97: 10 | W97: 15 | Y97: 26 | Z97: 25 | AD97: =_xlfn.TEXTJOIN("^",,W94:W102) -> 15^15^15^15^15
C98: 1 | D98: =D$93 -> 5 | F98: =F$93 -> 15 | G98: 21 | H98: 30 | I98: 35 | J98: 45 | K98: 50 | L98: =L$93 -> 60 | M98: 75 | N98: 85 | P98: =_xlfn.TEXTJOIN("^",,H94:H103) -> 30^30^30^30^30^30^30 | R98: 1 | S98: 1 | T98: 3 | U98: 6 | V98: 10 | W98: 15 | X98: =X$93 -> 20 | Y98: 26 | Z98: =Z$93 -> 35 | AD98: =_xlfn.TEXTJOIN("^",,X94:X102) -> 20^20^20^20^20
C99: 3 | D99: =D$93 -> 5 | E99: =E$93 -> 10 | F99: =F$93 -> 15 | G99: 21 | H99: 30 | I99: 35 | J99: 45 | K99: 50 | M99: 75 | N99: 85 | P99: =_xlfn.TEXTJOIN("^",,I94:I103) -> 35^35^35^35^35 | R99: 3 | S99: 1 | T99: 3 | U99: 6 | V99: 10 | W99: 15 | Y99: =Y$93 -> 26 | Z99: 25 | AD99: =_xlfn.TEXTJOIN("^",,Y94:Y102) -> 26^26^26^26^26
C100: 5 | E100: =E$93 -> 10 | G100: 21 | I100: 35 | J100: =J$93 -> 45 | K100: 50 | L100: 60 | N100: 85 | P100: =_xlfn.TEXTJOIN("^",,J94:J103) -> 45^45^45^45^45^45^45^45^45 | R100: 5 | T100: 3 | U100: 6 | V100: 10 | W100: 15 | X100: =X$93 -> 20 | Y100: 26 | Z100: =Z$93 -> 35 | AD100: =_xlfn.TEXTJOIN("^",,Z94:Z102) -> 35^25^35^25^35
C101: 7 | F101: =F$93 -> 15 | H101: =H$93 -> 30 | J101: =J$93 -> 45 | L101: 60 | M101: =M$93 -> 75 | N101: 85 | P101: =_xlfn.TEXTJOIN("^",,K94:K103) -> 50^50^50^50^50 | R101: 7 | X101: =X$93 -> 20 | AD101: =_xlfn.TEXTJOIN("^",,AA94:AA102) -> 
C102: 9 | H102: 30 | J102: =J$93 -> 45 | L102: 60 | M102: =M$93 -> 75 | P102: =_xlfn.TEXTJOIN("^",,L94:L103) -> 60^60^60^60^60^60^60 | R102: 9 | AD102: =_xlfn.TEXTJOIN("^",,AB94:AB102) -> 
P103: =_xlfn.TEXTJOIN("^",,M94:M103) -> 75^75^75^75^75^75^75 | AD103: =_xlfn.TEXTJOIN("^",,AC94:AC102) -> 
P104: =_xlfn.TEXTJOIN("^",,N94:N103) -> 85^85^85^85^85^85^85 | AC104: 最终 | AD104: =_xlfn.TEXTJOIN("^",,AD93:AD103) -> 1^1^1^3^3^3^3^3^6^6^6^6^6^10^10^10^10^10^15^15^15^15^15^20^20^20^20^20^26^26^26^26^26^35^25^35^25^35
O105: 最终 | P105: =_xlfn.TEXTJOIN("^",,P94:P104) -> 5^5^5^10^10^10^10^15^15^15^15^15^21^21^21^21^21^30^30^30^30^30^30^30^35^35^35^35^35^45^45^45^45^45^45^45^45^45^50^50^50^50^50^60^60^60^60^60^60^60^75^75^75^75^75^75^75^85^85^85^85^85^85^85
P106: =COUNT(D94:N103) -> 64 | AC106: =COUNT(S94:AA103) -> 38 | AD106: =P106+AC106 -> 102
E108: =E109-D109 -> 3 | F108: =F109-E109 -> 4 | G108: =G109-F109 -> 6 | H108: 8 | I108: 10 | J108: 10 | K108: 10 | L108: 10 | M108: 5 | N108: 10 | T108: =T109-S109 -> 2 | U108: 3 | V108: 4 | W108: 5 | X108: 6 | Y108: 7 | Z108: 7 | AA108: 5
A109: 1 | B109: 密林-3 | C109: 波1·怪物 | D109: 4 | E109: 7 | F109: 11 | G109: 17 | H109: 25 | I109: 35 | J109: 45 | K109: 55 | L109: 65 | M109: 70 | N109: 80 | Q109: 3 | R109: 波2·怪物 | S109: 1 | T109: 3 | U109: 6 | V109: 10 | W109: 15 | X109: 21 | Y109: 28 | Z109: 35 | AA109: 40
B110: 4m | C110: 8 | N110: 70064 | P110: =_xlfn.TEXTJOIN("^",,D110:D119) -> 70061^70062^70062^70061 | R110: 8 | AD110: =_xlfn.TEXTJOIN("^",,S110:S119) -> 70061^70062
C111: 6 | E111: 70062 | H111: 70064 | J111: 70064 | L111: 70062 | P111: =_xlfn.TEXTJOIN("^",,E110:E119) -> 70062^70061^70064^70061^70062 | R111: 6 | AD111: =_xlfn.TEXTJOIN("^",,T110:T119) -> 70062^70064
C112: 4 | D112: 70061 | E112: 70061 | F112: 70061 | G112: 70061 | I112: 70061 | J112: 70062 | K112: 70062 | L112: 70063 | M112: 70062 | P112: =_xlfn.TEXTJOIN("^",,F110:F119) -> 70061^70062^70062^70062^70061 | R112: 4 | AD112: =_xlfn.TEXTJOIN("^",,U110:U119) -> 70061^70062^70063
C113: 2 | D113: 70062 | F113: 70062 | G113: 70063 | H113: 70062 | I113: 70061 | J113: 70063 | K113: 70061 | L113: 70061 | M113: 70062 | N113: 70063 | P113: =_xlfn.TEXTJOIN("^",,G110:G119) -> 70061^70063^70063^70061 | R113: 2 | AD113: =_xlfn.TEXTJOIN("^",,V110:V119) -> 70061^70063
C114: 1 | E114: 70064 | F114: 70062 | H114: 70063 | I114: 70061 | K114: 70062 | L114: 70064 | N114: 70065 | P114: =_xlfn.TEXTJOIN("^",,H110:H119) -> 70064^70062^70063^70062^70064 | R114: 1 | S114: 70061 | T114: 70062 | U114: 70061 | V114: 70061 | W114: 70062 | X114: 70061 | Y114: 70062 | Z114: 70061 | AA114: 70061 | AD114: =_xlfn.TEXTJOIN("^",,W110:W119) -> 70062^70064
C115: 3 | D115: 70062 | F115: 70062 | G115: 70063 | H115: 70062 | I115: 70061 | J115: 70063 | K115: 70061 | L115: 70061 | M115: 70062 | N115: 70063 | P115: =_xlfn.TEXTJOIN("^",,I110:I119) -> 70061^70061^70061^70061^70061 | R115: 3 | S115: 70062 | T115: 70064 | U115: 70062 | V115: 70063 | W115: 70064 | X115: 70063 | Y115: 70064 | Z115: 70062 | AA115: 70062 | AD115: =_xlfn.TEXTJOIN("^",,X110:X119) -> 70061^70063
C116: 5 | D116: 70061 | E116: 70061 | F116: 70061 | G116: 70061 | I116: 70061 | J116: 70062 | K116: 70062 | L116: 70063 | M116: 70062 | P116: =_xlfn.TEXTJOIN("^",,J110:J119) -> 70064^70062^70063^70063^70062^70064 | R116: 5 | U116: 70063 | AA116: 70063 | AD116: =_xlfn.TEXTJOIN("^",,Y110:Y119) -> 70062^70064
C117: 7 | E117: 70062 | H117: 70064 | J117: 70064 | L117: 70062 | P117: =_xlfn.TEXTJOIN("^",,K110:K119) -> 70062^70061^70062^70061^70062 | R117: 7 | AD117: =_xlfn.TEXTJOIN("^",,Z110:Z119) -> 70061^70062
C118: 9 | N118: 70064 | P118: =_xlfn.TEXTJOIN("^",,L110:L119) -> 70062^70063^70061^70064^70061^70063^70062 | R118: 9 | AD118: =_xlfn.TEXTJOIN("^",,AA110:AA119) -> 70061^70062^70063
P119: =_xlfn.TEXTJOIN("^",,M110:M119) -> 70062^70062^70062^70062 | AD119: =_xlfn.TEXTJOIN("^",,AB110:AB119) -> 
P120: =_xlfn.TEXTJOIN("^",,N110:N119) -> 70064^70063^70065^70063^70064 | AD120: =_xlfn.TEXTJOIN("^",,AC110:AC119) -> 
O121: 最终 | P121: =_xlfn.TEXTJOIN("^",,P110:P120) -> 70061^70062^70062^70061^70062^70061^70064^70061^70062^70061^70062^70062^70062^70061^70061^70063^70063^70061^70064^70062^70063^70062^70064^70061^70061^70061^70061^70061^70064^70062^70063^70063^70062^70064^70062^70061^70062^70061^70062^70062^70063^70061^70064^70061^70063^70062^70062^70062^70062^70062^70064^70063^70065^70063^70064 | AC121: 最终 | AD121: =_xlfn.TEXTJOIN("|",,AD110:AD120) -> 70061^70062|70062^70064|70061^70062^70063|70061^70063|70062^70064|70061^70063|70062^70064|70061^70062|70061^70062^70063
C122: 8 | N122: 木精灵 | R122: 8
C123: 6 | E123: 毒蜘蛛 | H123: 木精灵 | J123: 木精灵 | L123: 毒蜘蛛 | R123: 6
C124: 4 | D124: 树精 | E124: 树精 | F124: 树精 | G124: 树精 | I124: 树精 | J124: 毒蜘蛛 | K124: 毒蜘蛛 | L124: 哥布林 | M124: 毒蜘蛛 | R124: 4
C125: 2 | D125: 毒蜘蛛 | F125: 毒蜘蛛 | G125: 哥布林 | H125: 毒蜘蛛 | I125: 树精 | J125: 哥布林 | K125: 树精 | L125: 树精 | M125: 毒蜘蛛 | N125: 哥布林 | P125: 112 | R125: 2
C126: 1 | E126: 木精灵 | F126: 毒蜘蛛 | H126: 哥布林 | I126: 树精 | K126: 毒蜘蛛 | L126: 木精灵 | N126: 森林巨兽 | P126: =P125*6 -> 672 | Q126: 784 | R126: 1 | S126: 树精 | T126: 毒蜘蛛 | U126: 树精 | V126: 树精 | W126: 毒蜘蛛 | X126: 树精 | Y126: 毒蜘蛛 | Z126: 树精 | AA126: 树精
C127: 3 | D127: 毒蜘蛛 | F127: 毒蜘蛛 | G127: 哥布林 | H127: 毒蜘蛛 | I127: 树精 | J127: 哥布林 | K127: 树精 | L127: 树精 | M127: 毒蜘蛛 | N127: 哥布林 | R127: 3 | S127: 毒蜘蛛 | T127: 木精灵 | U127: 毒蜘蛛 | V127: 哥布林 | W127: 木精灵 | X127: 哥布林 | Y127: 木精灵 | Z127: 毒蜘蛛 | AA127: 毒蜘蛛
C128: 5 | D128: 树精 | E128: 树精 | F128: 树精 | G128: 树精 | I128: 树精 | J128: 毒蜘蛛 | K128: 毒蜘蛛 | L128: 哥布林 | M128: 毒蜘蛛 | R128: 5 | U128: 哥布林 | AA128: 哥布林
C129: 7 | E129: 毒蜘蛛 | H129: 木精灵 | J129: 木精灵 | L129: 毒蜘蛛 | R129: 7
C130: 9 | N130: 木精灵 | R130: 9
C132: 位置 | D132: 4 | E132: 7 | F132: 11 | G132: 17 | H132: 25 | I132: 35 | J132: 45 | K132: 55 | L132: 65 | M132: 70 | N132: 80 | R132: 位置 | S132: 1 | T132: 3 | U132: 6 | V132: 10 | W132: 15 | X132: 20 | Y132: 30 | Z132: 45 | AA132: 65 | AD132: =_xlfn.TEXTJOIN("^",,S133:S141) -> 0^0
C133: 8 | N133: =$C133 -> 8 | P133: =_xlfn.TEXTJOIN("^",,D133:D142) -> 4^2^3^5 | R133: 8 | AD133: =_xlfn.TEXTJOIN("^",,T133:T141) -> 0^0
C134: 6 | E134: =$C134 -> 6 | H134: =$C134 -> 6 | J134: =$C134 -> 6 | L134: =$C134 -> 6 | P134: =_xlfn.TEXTJOIN("^",,E133:E142) -> 6^4^1^5^7 | R134: 6 | AD134: =_xlfn.TEXTJOIN("^",,U133:U141) -> 0^0^0
C135: 4 | D135: =$C135 -> 4 | E135: 4 | F135: 4 | G135: 4 | I135: =$C135 -> 4 | J135: 4 | K135: 4 | L135: 4 | M135: =$C135 -> 4 | P135: =_xlfn.TEXTJOIN("^",,F133:F142) -> 4^2^1^3^5 | R135: 4 | AD135: =_xlfn.TEXTJOIN("^",,V133:V141) -> 0^0
C136: 2 | D136: 2 | F136: 2 | G136: 2 | H136: 2 | I136: 2 | J136: 2 | K136: 2 | L136: 2 | M136: 2 | N136: 2 | P136: =_xlfn.TEXTJOIN("^",,G133:G142) -> 4^2^3^5 | R136: 2 | AD136: =_xlfn.TEXTJOIN("^",,W133:W141) -> 0^0
C137: 1 | E137: =$C137 -> 1 | F137: 1 | H137: 1 | I137: 1 | K137: 1 | L137: 1 | N137: 1 | P137: =_xlfn.TEXTJOIN("^",,H133:H142) -> 6^2^1^3^7 | R137: 1 | S137: 0 | T137: 0 | U137: 0 | V137: 0 | W137: 0 | X137: 0 | Y137: 0 | Z137: 0 | AA137: 0 | AD137: =_xlfn.TEXTJOIN("^",,X133:X141) -> 0^0
C138: 3 | D138: =$C138 -> 3 | F138: =$C138 -> 3 | G138: 3 | H138: 3 | I138: 3 | J138: 3 | K138: 3 | L138: 3 | M138: 3 | N138: 3 | P138: =_xlfn.TEXTJOIN("^",,I133:I142) -> 4^2^1^3^5 | R138: 3 | S138: 0 | T138: 0 | U138: 0 | V138: 0 | W138: 0 | X138: 0 | Y138: 0 | Z138: 0 | AA138: 0 | AD138: =_xlfn.TEXTJOIN("^",,Y133:Y141) -> 0^0
C139: 5 | D139: 5 | E139: =$C139 -> 5 | F139: 5 | G139: 5 | I139: 5 | J139: 5 | K139: 5 | L139: 5 | M139: 5 | P139: =_xlfn.TEXTJOIN("^",,J133:J142) -> 6^4^2^3^5^7 | R139: 5 | U139: 0 | AA139: 0 | AD139: =_xlfn.TEXTJOIN("^",,Z133:Z141) -> 0^0
C140: 7 | E140: 7 | H140: =$C140 -> 7 | J140: =$C140 -> 7 | L140: =$C140 -> 7 | P140: =_xlfn.TEXTJOIN("^",,K133:K142) -> 4^2^1^3^5 | R140: 7 | AD140: =_xlfn.TEXTJOIN("^",,AA133:AA141) -> 0^0^0
C141: 9 | N141: 9 | P141: =_xlfn.TEXTJOIN("^",,L133:L142) -> 6^4^2^1^3^5^7 | R141: 9 | AD141: =_xlfn.TEXTJOIN("^",,AB133:AB141) -> 
P142: =_xlfn.TEXTJOIN("^",,M133:M142) -> 4^2^3^5 | AD142: =_xlfn.TEXTJOIN("^",,AC133:AC141) -> 
P143: =_xlfn.TEXTJOIN("^",,N133:N142) -> 8^2^1^3^9 | AC143: 最终 | AD143: =_xlfn.TEXTJOIN("|",,AD132:AD142) -> 0^0|0^0|0^0^0|0^0|0^0|0^0|0^0|0^0|0^0^0
O144: 最终 | P144: =_xlfn.TEXTJOIN("^",,P133:P143) -> 4^2^3^5^6^4^1^5^7^4^2^1^3^5^4^2^3^5^6^2^1^3^7^4^2^1^3^5^6^4^2^3^5^7^4^2^1^3^5^6^4^2^1^3^5^7^4^2^3^5^8^2^1^3^9
C146: 时间 | D146: 4 | E146: 7 | F146: 11 | G146: 17 | H146: 25 | I146: 35 | J146: 45 | K146: 55 | L146: 65 | M146: 70 | N146: 80 | R146: 时间 | S146: 1 | T146: 3 | U146: 6 | V146: 10 | W146: 15 | X146: 20 | Y146: 30 | Z146: 45 | AA146: 65 | AD146: =_xlfn.TEXTJOIN("^",,S147:S155) -> 15^4
C147: 8 | N147: =N$146 -> 80 | P147: =_xlfn.TEXTJOIN("^",,D147:D156) -> 4^4^4^4 | R147: 8 | AD147: =_xlfn.TEXTJOIN("^",,T147:T155) -> 7^3
C148: 6 | E148: =E$146 -> 7 | H148: =H$146 -> 25 | J148: =J$146 -> 45 | L148: =L$146 -> 65 | P148: =_xlfn.TEXTJOIN("^",,E147:E156) -> 7^7^7^7^7 | R148: 6 | AD148: =_xlfn.TEXTJOIN("^",,U147:U155) -> 6^4^3
C149: 4 | D149: =D$146 -> 4 | E149: =E$146 -> 7 | F149: =F$146 -> 11 | G149: 17 | I149: =I$146 -> 35 | J149: 45 | K149: =K$146 -> 55 | L149: 65 | M149: =M$146 -> 70 | P149: =_xlfn.TEXTJOIN("^",,F147:F156) -> 11^11^11^11^11 | R149: 4 | AD149: =_xlfn.TEXTJOIN("^",,V147:V155) -> 8^3
C150: 2 | D150: =D$146 -> 4 | F150: 11 | G150: 17 | H150: 25 | I150: 35 | J150: 45 | K150: 55 | L150: 65 | M150: 70 | N150: 80 | P150: =_xlfn.TEXTJOIN("^",,G147:G156) -> 17^17^17^17 | R150: 2 | AD150: =_xlfn.TEXTJOIN("^",,W147:W155) -> 7^3
C151: 1 | E151: =E$146 -> 7 | F151: 11 | H151: 25 | I151: 35 | K151: 55 | L151: 65 | N151: 80 | P151: =_xlfn.TEXTJOIN("^",,H147:H156) -> 25^25^25^25^25 | R151: 1 | S151: 15 | T151: 7 | U151: 6 | V151: 8 | W151: 7 | X151: 10 | Y151: 6 | Z151: 12 | AA151: 10 | AD151: =_xlfn.TEXTJOIN("^",,X147:X155) -> 10^3
C152: 3 | D152: =D$146 -> 4 | F152: =F$146 -> 11 | G152: 17 | H152: 25 | I152: 35 | J152: 45 | K152: 55 | L152: 65 | M152: 70 | N152: 80 | P152: =_xlfn.TEXTJOIN("^",,I147:I156) -> 35^35^35^35^35 | R152: 3 | S152: 4 | T152: 3 | U152: 4 | V152: 3 | W152: 3 | X152: 3 | Y152: 2 | Z152: 2 | AA152: 3 | AD152: =_xlfn.TEXTJOIN("^",,Y147:Y155) -> 6^2
C153: 5 | D153: =D$146 -> 4 | E153: =E$146 -> 7 | F153: 11 | G153: 17 | I153: 35 | J153: 45 | K153: 55 | L153: 65 | M153: 70 | P153: =_xlfn.TEXTJOIN("^",,J147:J156) -> 45^45^45^45^45^45 | R153: 5 | U153: 3 | AA153: 3 | AD153: =_xlfn.TEXTJOIN("^",,Z147:Z155) -> 12^2
C154: 7 | E154: =E$146 -> 7 | H154: =H$146 -> 25 | J154: =J$146 -> 45 | L154: =L$146 -> 65 | P154: =_xlfn.TEXTJOIN("^",,K147:K156) -> 55^55^55^55^55 | R154: 7 | AD154: =_xlfn.TEXTJOIN("^",,AA147:AA155) -> 10^3^3
C155: 9 | N155: =N$146 -> 80 | P155: =_xlfn.TEXTJOIN("^",,L147:L156) -> 65^65^65^65^65^65^65 | R155: 9 | AD155: =_xlfn.TEXTJOIN("^",,AB147:AB155) -> 
P156: =_xlfn.TEXTJOIN("^",,M147:M156) -> 70^70^70^70 | AD156: =_xlfn.TEXTJOIN("^",,AC147:AC155) -> 
P157: =_xlfn.TEXTJOIN("^",,N147:N156) -> 80^80^80^80^80 | AC157: 最终 | AD157: =_xlfn.TEXTJOIN("|",,AD146:AD156) -> 15^4|7^3|6^4^3|8^3|7^3|10^3|6^2|12^2|10^3^3
O158: 最终 | P158: =_xlfn.TEXTJOIN("^",,P147:P157) -> 4^4^4^4^7^7^7^7^7^11^11^11^11^11^17^17^17^17^25^25^25^25^25^35^35^35^35^35^45^45^45^45^45^45^55^55^55^55^55^65^65^65^65^65^65^65^70^70^70^70^80^80^80^80^80
P159: =COUNT(D147:N156) -> 55 | AC159: =SUM(S147:AA156) -> 114 | AD159: =P159+AC159 -> 169

Sheet 3
E2: =E3-D3 -> 12 | F2: =F3-E3 -> 14 | G2: 15 | H2: 16 | I2: 17 | J2: 17 | K2: 18 | L2: 18 | M2: 19 | N2: 18 | T2: =T3-S3 -> 2 | U2: 4 | V2: 5 | W2: 6 | X2: 10 | Y2: 10 | Z2: 15 | AA2: 15 | AB2: 20
A3: 3 | B3: 雪原-1 | C3: 波1·怪物 | D3: 6 | E3: 18 | F3: 32 | G3: 47 | H3: 63 | I3: 80 | J3: 97 | K3: 115 | L3: 133 | M3: 152 | N3: 170 | Q3: 3 | R3: 波2·怪物 | S3: 3 | T3: 5 | U3: 9 | V3: 14 | W3: 20 | X3: 30 | Y3: 40 | Z3: 55 | AA3: 70 | AB3: 90
B4: 4.5m | C4: 8 | P4: =_xlfn.TEXTJOIN("^",,D4:D13) -> 70071 | R4: 8 | AD4: =_xlfn.TEXTJOIN("^",,S4:S13) -> 70071^70074
C5: 6 | P5: =_xlfn.TEXTJOIN("^",,E4:E13) -> 70074^70072 | R5: 6 | AD5: =_xlfn.TEXTJOIN("^",,T4:T13) -> 70072^70071
C6: 4 | P6: =_xlfn.TEXTJOIN("^",,F4:F13) -> 70071^70072 | R6: 4 | AD6: =_xlfn.TEXTJOIN("^",,U4:U13) -> 70073^70072
C7: 2 | P7: =_xlfn.TEXTJOIN("^",,G4:G13) -> 70073^70071^70074 | R7: 2 | AD7: =_xlfn.TEXTJOIN("^",,V4:V13) -> 70071^70072
C8: 1 | D8: 70071 | E8: 70074 | F8: 70071 | G8: 70073 | H8: 70071 | I8: 70074 | J8: 70071 | K8: 70073 | L8: 70072 | M8: 70071 | N8: 70074 | P8: =_xlfn.TEXTJOIN("^",,H4:H13) -> 70071^70072 | R8: 1 | S8: 70071 | T8: 70072 | U8: 70073 | V8: 70071 | W8: 70073 | X8: 70074 | Y8: 70072 | Z8: 70071 | AA8: 70072 | AB8: 70072 | AD8: =_xlfn.TEXTJOIN("^",,W4:W13) -> 70073^70074^70071
C9: 3 | E9: 70072 | F9: 70072 | G9: 70071 | H9: 70072 | I9: 70073 | J9: 70072 | K9: 70071 | L9: 70071 | M9: 70072 | N9: 70073 | P9: =_xlfn.TEXTJOIN("^",,I4:I13) -> 70074^70073^70072 | R9: 3 | S9: 70074 | T9: 70071 | U9: 70072 | V9: 70072 | W9: 70074 | X9: 70071 | Y9: 70071 | Z9: 70074 | AA9: 70073 | AB9: 70071 | AD9: =_xlfn.TEXTJOIN("^",,X4:X13) -> 70074^70071^70072
C10: 5 | G10: 70074 | I10: 70072 | K10: 70072 | L10: 70074 | N10: 70072 | P10: =_xlfn.TEXTJOIN("^",,J4:J13) -> 70071^70072 | R10: 5 | W10: 70071 | X10: 70072 | Z10: 70072 | AB10: 70074 | AD10: =_xlfn.TEXTJOIN("^",,Y4:Y13) -> 70072^70071
C11: 7 | P11: =_xlfn.TEXTJOIN("^",,K4:K13) -> 70073^70071^70072 | R11: 7 | AD11: =_xlfn.TEXTJOIN("^",,Z4:Z13) -> 70071^70074^70072
C12: 9 | P12: =_xlfn.TEXTJOIN("^",,L4:L13) -> 70072^70071^70074 | R12: 9 | AD12: =_xlfn.TEXTJOIN("^",,AA4:AA13) -> 70072^70073
P13: =_xlfn.TEXTJOIN("^",,M4:M13) -> 70071^70072 | AD13: =_xlfn.TEXTJOIN("^",,AB4:AB13) -> 70072^70071^70074
P14: =_xlfn.TEXTJOIN("^",,N4:N13) -> 70074^70073^70072 | AD14: =_xlfn.TEXTJOIN("^",,AC4:AC13) -> 
O15: 最终 | P15: =_xlfn.TEXTJOIN("|",,P4:P14) -> 70071|70074^70072|70071^70072|70073^70071^70074|70071^70072|70074^70073^70072|70071^70072|70073^70071^70072|70072^70071^70074|70071^70072|70074^70073^70072 | AC15: 最终 | AD15: =_xlfn.TEXTJOIN("|",,AD4:AD14) -> 70071^70074|70072^70071|70073^70072|70071^70072|70073^70074^70071|70074^70071^70072|70072^70071|70071^70074^70072|70072^70073|70072^70071^70074
C16: 8 | R16: 8
C17: 6 | R17: 6
C18: 4 | R18: 4
C19: 2 | R19: 2
C20: 1 | D20: 雪怪 | E20: 木精灵 | F20: 雪怪 | G20: 雪原熊 | H20: 雪怪 | I20: 木精灵 | J20: 雪怪 | K20: 雪原熊 | L20: 独角兽 | M20: 雪怪 | N20: 木精灵 | R20: 1 | S20: 雪怪 | T20: 独角兽 | U20: 雪原熊 | V20: 雪怪 | W20: 雪原熊 | X20: 木精灵 | Y20: 独角兽 | Z20: 雪怪 | AA20: 独角兽 | AB20: 独角兽
C21: 3 | E21: 独角兽 | F21: 独角兽 | G21: 雪怪 | H21: 独角兽 | I21: 雪原熊 | J21: 独角兽 | K21: 雪怪 | L21: 雪怪 | M21: 独角兽 | N21: 雪原熊 | R21: 3 | S21: 木精灵 | T21: 雪怪 | U21: 独角兽 | V21: 独角兽 | W21: 木精灵 | X21: 雪怪 | Y21: 雪怪 | Z21: 木精灵 | AA21: 雪原熊 | AB21: 雪怪
C22: 5 | G22: 木精灵 | I22: 独角兽 | K22: 独角兽 | L22: 木精灵 | N22: 独角兽 | R22: 5 | W22: 雪怪 | X22: 独角兽 | Z22: 独角兽 | AB22: 木精灵
C23: 7 | R23: 7
C24: 9 | R24: 9
C26: 位置 | D26: 6 | E26: 18 | F26: 32 | G26: 47 | H26: 63 | I26: 80 | J26: 97 | K26: 115 | L26: 133 | M26: 152 | N26: 170 | R26: 位置 | S26: 3 | T26: 5 | U26: 9 | V26: 14 | W26: 20 | X26: 30 | Y26: 40 | Z26: 55 | AA26: 70 | AB26: 90 | AD26: =_xlfn.TEXTJOIN("^",,S27:S35) -> 0^0
C27: 8 | P27: =_xlfn.TEXTJOIN("^",,D27:D36) -> 0 | R27: 8 | AD27: =_xlfn.TEXTJOIN("^",,T27:T35) -> 0^0
C28: 6 | P28: =_xlfn.TEXTJOIN("^",,E27:E36) -> 0^0 | R28: 6 | AD28: =_xlfn.TEXTJOIN("^",,U27:U35) -> 0^0
C29: 4 | P29: =_xlfn.TEXTJOIN("^",,F27:F36) -> 0^0 | R29: 4 | AD29: =_xlfn.TEXTJOIN("^",,V27:V35) -> 0^0
C30: 2 | P30: =_xlfn.TEXTJOIN("^",,G27:G36) -> 0^0^0 | R30: 2 | AD30: =_xlfn.TEXTJOIN("^",,W27:W35) -> 0^0^0
C31: 1 | D31: 0 | E31: 0 | F31: 0 | G31: 0 | H31: 0 | I31: 0 | J31: 0 | K31: 0 | L31: 0 | M31: 0 | N31: 0 | P31: =_xlfn.TEXTJOIN("^",,H27:H36) -> 0^0 | R31: 1 | S31: 0 | T31: 0 | U31: 0 | V31: 0 | W31: 0 | X31: 0 | Y31: 0 | Z31: 0 | AA31: 0 | AB31: 0 | AD31: =_xlfn.TEXTJOIN("^",,X27:X35) -> 0^0^0
C32: 3 | E32: 0 | F32: 0 | G32: 0 | H32: 0 | I32: 0 | J32: 0 | K32: 0 | L32: 0 | M32: 0 | N32: 0 | P32: =_xlfn.TEXTJOIN("^",,I27:I36) -> 0^0^0 | R32: 3 | S32: 0 | T32: 0 | U32: 0 | V32: 0 | W32: 0 | X32: 0 | Y32: 0 | Z32: 0 | AA32: 0 | AB32: 0 | AD32: =_xlfn.TEXTJOIN("^",,Y27:Y35) -> 0^0
C33: 5 | G33: 0 | I33: 0 | K33: 0 | L33: 0 | N33: 0 | P33: =_xlfn.TEXTJOIN("^",,J27:J36) -> 0^0 | R33: 5 | W33: 0 | X33: 0 | Z33: 0 | AB33: 0 | AD33: =_xlfn.TEXTJOIN("^",,Z27:Z35) -> 0^0^0
C34: 7 | P34: =_xlfn.TEXTJOIN("^",,K27:K36) -> 0^0^0 | R34: 7 | AD34: =_xlfn.TEXTJOIN("^",,AA27:AA35) -> 0^0
C35: 9 | P35: =_xlfn.TEXTJOIN("^",,L27:L36) -> 0^0^0 | R35: 9 | AD35: =_xlfn.TEXTJOIN("^",,AB27:AB35) -> 0^0^0
P36: =_xlfn.TEXTJOIN("^",,M27:M36) -> 0^0 | AD36: =_xlfn.TEXTJOIN("^",,AC27:AC35) -> 
P37: =_xlfn.TEXTJOIN("^",,N27:N36) -> 0^0^0 | AC37: 最终 | AD37: =_xlfn.TEXTJOIN("|",,AD26:AD36) -> 0^0|0^0|0^0|0^0|0^0^0|0^0^0|0^0|0^0^0|0^0|0^0^0
O38: 最终 | P38: =_xlfn.TEXTJOIN("|",,P27:P37) -> 0|0^0|0^0|0^0^0|0^0|0^0^0|0^0|0^0^0|0^0^0|0^0|0^0^0
C40: 时间 | D40: 6 | E40: 18 | F40: 32 | G40: 47 | H40: 63 | I40: 80 | J40: 97 | K40: 115 | L40: 133 | M40: 152 | N40: 170 | R40: 时间 | S40: 3 | T40: 5 | U40: 9 | V40: 14 | W40: 20 | X40: 30 | Y40: 40 | Z40: 55 | AA40: 70 | AB40: 90 | AD40: =_xlfn.TEXTJOIN("^",,S41:S49) -> 20^4
C41: 8 | P41: =_xlfn.TEXTJOIN("^",,D41:D50) -> 6 | R41: 8 | AD41: =_xlfn.TEXTJOIN("^",,T41:T49) -> 6^6
C42: 6 | P42: =_xlfn.TEXTJOIN("^",,E41:E50) -> 3^4 | R42: 6 | AD42: =_xlfn.TEXTJOIN("^",,U41:U49) -> 4^6
C43: 4 | P43: =_xlfn.TEXTJOIN("^",,F41:F50) -> 7^3 | R43: 4 | AD43: =_xlfn.TEXTJOIN("^",,V41:V49) -> 8^3
C44: 2 | P44: =_xlfn.TEXTJOIN("^",,G41:G50) -> 2^8^2 | R44: 2 | AD44: =_xlfn.TEXTJOIN("^",,W41:W49) -> 4^2^7
C45: 1 | D45: 6 | E45: 3 | F45: 7 | G45: 2 | H45: 8 | I45: 2 | J45: 8 | K45: 2 | L45: 3 | M45: 7 | N45: 2 | P45: =_xlfn.TEXTJOIN("^",,H41:H50) -> 8^3 | R45: 1 | S45: 20 | T45: 6 | U45: 4 | V45: 8 | W45: 4 | X45: 2 | Y45: 4 | Z45: 8 | AA45: 6 | AB45: 4 | AD45: =_xlfn.TEXTJOIN("^",,X41:X49) -> 2^7^4
C46: 3 | E46: 4 | F46: 3 | G46: 8 | H46: 3 | I46: 3 | J46: 3 | K46: 7 | L46: 7 | M46: 4 | N46: 3 | P46: =_xlfn.TEXTJOIN("^",,I41:I50) -> 2^3^4 | R46: 3 | S46: 4 | T46: 6 | U46: 6 | V46: 3 | W46: 2 | X46: 7 | Y46: 9 | Z46: 2 | AA46: 4 | AB46: 7 | AD46: =_xlfn.TEXTJOIN("^",,Y41:Y49) -> 4^9
C47: 5 | G47: 2 | I47: 4 | K47: 3 | L47: 2 | N47: 4 | P47: =_xlfn.TEXTJOIN("^",,J41:J50) -> 8^3 | R47: 5 | W47: 7 | X47: 4 | Z47: 4 | AB47: 2 | AD47: =_xlfn.TEXTJOIN("^",,Z41:Z49) -> 8^2^4
C48: 7 | P48: =_xlfn.TEXTJOIN("^",,K41:K50) -> 2^7^3 | R48: 7 | AD48: =_xlfn.TEXTJOIN("^",,AA41:AA49) -> 6^4
C49: 9 | P49: =_xlfn.TEXTJOIN("^",,L41:L50) -> 3^7^2 | R49: 9 | AD49: =_xlfn.TEXTJOIN("^",,AB41:AB49) -> 4^7^2
P50: =_xlfn.TEXTJOIN("^",,M41:M50) -> 7^4 | AD50: =_xlfn.TEXTJOIN("^",,AC41:AC49) -> 
P51: =_xlfn.TEXTJOIN("^",,N41:N50) -> 2^3^4 | AC51: 最终 | AD51: =_xlfn.TEXTJOIN("|",,AD40:AD50) -> 20^4|6^6|4^6|8^3|4^2^7|2^7^4|4^9|8^2^4|6^4|4^7^2
O52: 最终 | P52: =_xlfn.TEXTJOIN("|",,P41:P51) -> 6|3^4|7^3|2^8^2|8^3|2^3^4|8^3|2^7^3|3^7^2|7^4|2^3^4
O53: =SUM(D41:N50) -> 110 | AC53: =SUM(S41:AB50) -> 133 | AD53: =O53+AC53 -> 243
E55: =E56-D56 -> 12 | F55: =F56-E56 -> 15 | G55: 15 | H55: 3 | I55: 15 | J55: 15 | K55: 18 | L55: 7 | M55: 11 | N55: 19 | T55: =T56-S56 -> 3 | U55: 5 | V55: 10 | W55: 15 | X55: 15 | Y55: 17 | Z55: 18 | AA55: 20 | AB55: 15
A56: 3 | B56: 雪原-2 | C56: 波1·怪物 | D56: 5 | E56: 17 | F56: 32 | G56: 47 | H56: 50 | I56: 65 | J56: 80 | K56: 98 | L56: 105 | M56: 116 | N56: 135 | Q56: 3 | R56: 波2·怪物 | S56: 2 | T56: 5 | U56: 10 | V56: 20 | W56: 35 | X56: 50 | Y56: 67 | Z56: 85 | AA56: 105 | AB56: 120
B57: 4.5m | C57: 8 | P57: =_xlfn.TEXTJOIN("^",,D57:D66) -> 70084^70081 | R57: 8 | AD57: =_xlfn.TEXTJOIN("^",,S57:S66) -> 70081^70082
C58: 6 | P58: =_xlfn.TEXTJOIN("^",,E57:E66) -> 70081^70082 | R58: 6 | AD58: =_xlfn.TEXTJOIN("^",,T57:T66) -> 70085^70082^70086
C59: 4 | P59: =_xlfn.TEXTJOIN("^",,F57:F66) -> 70083^70081^70082 | R59: 4 | AD59: =_xlfn.TEXTJOIN("^",,U57:U66) -> 70083^70081
C60: 2 | P60: =_xlfn.TEXTJOIN("^",,G57:G66) -> 70083^70082 | R60: 2 | AD60: =_xlfn.TEXTJOIN("^",,V57:V66) -> 70081^70082
C61: 1 | D61: 70084 | E61: 70081 | F61: 70083 | G61: 70083 | H61: 70085 | I61: 70082 | J61: 70082 | K61: 70083 | L61: 70085 | M61: 70081 | N61: 70083 | P61: =_xlfn.TEXTJOIN("^",,H57:H66) -> 70085 | R61: 1 | S61: 70081 | T61: 70085 | U61: 70083 | V61: 70081 | W61: 70083 | X61: 70082 | Y61: 70083 | Z61: 70081 | AA61: 70082 | AB61: 70084 | AD61: =_xlfn.TEXTJOIN("^",,W57:W66) -> 70083^70084^70081
C62: 3 | D62: 70081 | E62: 70082 | F62: 70081 | G62: 70082 | I62: 70081 | J62: 70081 | K62: 70084 | M62: 70082 | N62: 70082 | P62: =_xlfn.TEXTJOIN("^",,I57:I66) -> 70082^70081^70084 | R62: 3 | S62: 70082 | T62: 70082 | U62: 70081 | V62: 70082 | W62: 70084 | X62: 70081 | Y62: 70082 | Z62: 70084 | AA62: 70081 | AB62: 70081 | AD62: =_xlfn.TEXTJOIN("^",,X57:X66) -> 70082^70081
C63: 5 | F63: 70082 | I63: 70084 | K63: 70082 | N63: 70084 | P63: =_xlfn.TEXTJOIN("^",,J57:J66) -> 70082^70081 | R63: 5 | T63: 70086 | W63: 70081 | AB63: 70083 | AD63: =_xlfn.TEXTJOIN("^",,Y57:Y66) -> 70083^70082
C64: 7 | P64: =_xlfn.TEXTJOIN("^",,K57:K66) -> 70083^70084^70082 | R64: 7 | AB64: 70082 | AD64: =_xlfn.TEXTJOIN("^",,Z57:Z66) -> 70081^70084
C65: 9 | P65: =_xlfn.TEXTJOIN("^",,L57:L66) -> 70085 | R65: 9 | AD65: =_xlfn.TEXTJOIN("^",,AA57:AA66) -> 70082^70081
P66: =_xlfn.TEXTJOIN("^",,M57:M66) -> 70081^70082 | AD66: =_xlfn.TEXTJOIN("^",,AB57:AB66) -> 70084^70081^70083^70082
P67: =_xlfn.TEXTJOIN("^",,N57:N66) -> 70083^70082^70084 | AD67: =_xlfn.TEXTJOIN("^",,AC57:AC66) -> 
O68: 最终 | P68: =_xlfn.TEXTJOIN("|",,P57:P67) -> 70084^70081|70081^70082|70083^70081^70082|70083^70082|70085|70082^70081^70084|70082^70081|70083^70084^70082|70085|70081^70082|70083^70082^70084 | AC68: 最终 | AD68: =_xlfn.TEXTJOIN("|",,AD57:AD67) -> 70081^70082|70085^70082^70086|70083^70081|70081^70082|70083^70084^70081|70082^70081|70083^70082|70081^70084|70082^70081|70084^70081^70083^70082
C69: 8 | R69: 8
C70: 6 | R70: 6
C71: 4 | R71: 4
C72: 2 | R72: 2
C73: 1 | D73: 木精灵 | E73: 雪怪 | F73: 雪原熊 | G73: 雪原熊 | H73: 雪山蜘蛛 | I73: 独角兽 | J73: 独角兽 | K73: 雪原熊 | L73: 雪山蜘蛛 | M73: 雪怪 | N73: 雪原熊 | R73: 1 | S73: 雪怪 | T73: 雪山蜘蛛 | U73: 雪原熊 | V73: 雪怪 | W73: 雪原熊 | X73: 独角兽 | Y73: 雪原熊 | Z73: 雪怪 | AA73: 独角兽 | AB73: 木精灵
C74: 3 | D74: 雪怪 | E74: 独角兽 | F74: 雪怪 | G74: 独角兽 | I74: 雪怪 | J74: 雪怪 | K74: 木精灵 | M74: 独角兽 | N74: 独角兽 | R74: 3 | S74: 独角兽 | T74: 独角兽 | U74: 雪怪 | V74: 独角兽 | W74: 木精灵 | X74: 雪怪 | Y74: 独角兽 | Z74: 木精灵 | AA74: 雪怪 | AB74: 雪怪
C75: 5 | F75: 独角兽 | I75: 木精灵 | K75: 独角兽 | N75: 木精灵 | R75: 5 | T75: 森林祭祀 | W75: 雪怪 | AB75: 雪原熊
C76: 7 | R76: 7 | AB76: 独角兽
C77: 9 | R77: 9
C79: 位置 | D79: 5 | E79: 17 | F79: 32 | G79: 47 | H79: 50 | I79: 65 | J79: 80 | K79: 98 | L79: 105 | M79: 116 | N79: 135 | R79: 位置 | S79: 2 | T79: 5 | U79: 10 | V79: 20 | W79: 35 | X79: 50 | Y79: 67 | Z79: 85 | AA79: 105 | AB79: 120 | AD79: =_xlfn.TEXTJOIN("^",,S80:S94) -> 0^0
C80: 8 | P80: =_xlfn.TEXTJOIN("^",,D80:D94) -> 0^0 | R80: 8 | AD80: =_xlfn.TEXTJOIN("^",,T80:T94) -> 100^0^0
C81: 6 | P81: =_xlfn.TEXTJOIN("^",,E80:E94) -> 0^0 | R81: 6 | AD81: =_xlfn.TEXTJOIN("^",,U80:U94) -> 0^0
C82: 4 | P82: =_xlfn.TEXTJOIN("^",,F80:F94) -> 0^0^0 | R82: 4 | AD82: =_xlfn.TEXTJOIN("^",,V80:V94) -> 0^0
C83: 2 | P83: =_xlfn.TEXTJOIN("^",,G80:G94) -> 0^0 | R83: 2 | AD83: =_xlfn.TEXTJOIN("^",,W80:W94) -> 0^0^0
C84: 1 | D84: 0 | E84: 0 | F84: 0 | G84: 0 | H84: 100 | I84: 0 | J84: 0 | K84: 0 | L84: 100 | M84: 0 | N84: 0 | P84: =_xlfn.TEXTJOIN("^",,H80:H94) -> 100 | R84: 1 | S84: 0 | T84: 100 | U84: 0 | V84: 0 | W84: 0 | X84: 0 | Y84: 0 | Z84: 0 | AA84: 0 | AB84: 0 | AD84: =_xlfn.TEXTJOIN("^",,X80:X94) -> 0^0
C85: 3 | D85: 0 | E85: 0 | F85: 0 | G85: 0 | I85: 0 | J85: 0 | K85: 0 | M85: 0 | N85: 0 | P85: =_xlfn.TEXTJOIN("^",,I80:I94) -> 0^0^0 | R85: 3 | S85: 0 | T85: 0 | U85: 0 | V85: 0 | W85: 0 | X85: 0 | Y85: 0 | Z85: 0 | AA85: 0 | AB85: 0 | AD85: =_xlfn.TEXTJOIN("^",,Y80:Y94) -> 0^0
C86: 5 | F86: 0 | I86: 0 | K86: 0 | N86: 0 | P86: =_xlfn.TEXTJOIN("^",,J80:J94) -> 0^0 | R86: 5 | T86: 0 | W86: 0 | AB86: 0 | AD86: =_xlfn.TEXTJOIN("^",,Z80:Z94) -> 0^0
C87: 7 | P87: =_xlfn.TEXTJOIN("^",,K80:K94) -> 0^0^0 | R87: 7 | AB87: 0 | AD87: =_xlfn.TEXTJOIN("^",,AA80:AA94) -> 0^0
C88: 9 | P88: =_xlfn.TEXTJOIN("^",,L80:L94) -> 100 | R88: 9 | AD88: =_xlfn.TEXTJOIN("^",,AB80:AB94) -> 0^0^0^0
C89: 空降 | P89: =_xlfn.TEXTJOIN("^",,M80:M94) -> 0^0 | R89: 空降 | AD89: =_xlfn.TEXTJOIN("^",,AC80:AC88) -> 
C90: 101 | P90: =_xlfn.TEXTJOIN("^",,N80:N94) -> 0^0^0 | R90: 101 | AC90: 最终 | AD90: =_xlfn.TEXTJOIN("|",,AD79:AD89) -> 0^0|100^0^0|0^0|0^0|0^0^0|0^0|0^0|0^0|0^0|0^0^0^0
C91: 102 | R91: 102
C92: 103 | R92: 103
C93: 104 | R93: 104
C94: 105 | R94: 105
O95: 最终 | P95: =_xlfn.TEXTJOIN("|",,P80:P94) -> 0^0|0^0|0^0^0|0^0|100|0^0^0|0^0|0^0^0|100|0^0|0^0^0
C97: 时间 | D97: 5 | E97: 17 | F97: 32 | G97: 47 | H97: 50 | I97: 65 | J97: 80 | K97: 98 | L97: 105 | M97: 116 | N97: 135 | R97: 时间 | S97: 2 | T97: 5 | U97: 10 | V97: 20 | W97: 35 | X97: 50 | Y97: 67 | Z97: 85 | AA97: 105 | AB97: 120 | AD97: =_xlfn.TEXTJOIN("^",,S98:S106) -> 18^6
C98: 8 | P98: =_xlfn.TEXTJOIN("^",,D98:D107) -> 2^5 | R98: 8 | AD98: =_xlfn.TEXTJOIN("^",,T98:T106) -> 6^6^1
C99: 6 | P99: =_xlfn.TEXTJOIN("^",,E98:E107) -> 6^3 | R99: 6 | AD99: =_xlfn.TEXTJOIN("^",,U98:U106) -> 3^8
C100: 4 | P100: =_xlfn.TEXTJOIN("^",,F98:F107) -> 2^4^4 | R100: 4 | AD100: =_xlfn.TEXTJOIN("^",,V98:V106) -> 7^6
C101: 2 | P101: =_xlfn.TEXTJOIN("^",,G98:G107) -> 3^4 | R101: 2 | AD101: =_xlfn.TEXTJOIN("^",,W98:W106) -> 3^2^6
C102: 1 | D102: 2 | E102: 6 | F102: 2 | G102: 3 | H102: 5 | I102: 3 | J102: 4 | K102: 3 | L102: 6 | M102: 8 | N102: 4 | P102: =_xlfn.TEXTJOIN("^",,H98:H107) -> 5 | R102: 1 | S102: 18 | T102: 6 | U102: 3 | V102: 7 | W102: 3 | X102: 4 | Y102: 3 | Z102: 9 | AA102: 3 | AB102: 2 | AD102: =_xlfn.TEXTJOIN("^",,X98:X106) -> 4^7
C103: 3 | D103: 5 | E103: 3 | F103: 4 | G103: 4 | I103: 7 | J103: 7 | K103: 2 | M103: 6 | N103: 4 | P103: =_xlfn.TEXTJOIN("^",,I98:I107) -> 3^7^2 | R103: 3 | S103: 6 | T103: 6 | U103: 8 | V103: 6 | W103: 2 | X103: 7 | Y103: 4 | Z103: 2 | AA103: 8 | AB103: 6 | AD103: =_xlfn.TEXTJOIN("^",,Y98:Y106) -> 3^4
C104: 5 | F104: 4 | I104: 2 | K104: 4 | N104: 4 | P104: =_xlfn.TEXTJOIN("^",,J98:J107) -> 4^7 | R104: 5 | T104: 1 | W104: 6 | AB104: 2 | AD104: =_xlfn.TEXTJOIN("^",,Z98:Z106) -> 9^2
C105: 7 | P105: =_xlfn.TEXTJOIN("^",,K98:K107) -> 3^2^4 | R105: 7 | AB105: 3 | AD105: =_xlfn.TEXTJOIN("^",,AA98:AA106) -> 3^8
C106: 9 | P106: =_xlfn.TEXTJOIN("^",,L98:L107) -> 6 | R106: 9 | AD106: =_xlfn.TEXTJOIN("^",,AB98:AB106) -> 2^6^2^3
P107: =_xlfn.TEXTJOIN("^",,M98:M107) -> 8^6 | AD107: =_xlfn.TEXTJOIN("^",,AC98:AC106) -> 
P108: =_xlfn.TEXTJOIN("^",,N98:N107) -> 4^4^4 | AC108: 最终 | AD108: =_xlfn.TEXTJOIN("|",,AD97:AD107) -> 18^6|6^6^1|3^8|7^6|3^2^6|4^7|3^4|9^2|3^8|2^6^2^3
O109: 最终 | P109: =_xlfn.TEXTJOIN("|",,P98:P108) -> 2^5|6^3|2^4^4|3^4|5|3^7^2|4^7|3^2^4|6|8^6|4^4^4
P110: =SUM(D98:N107) -> 102 | AC110: =SUM(S98:AB107) -> 125 | AD110: =P110+AC110 -> 227
E112: =E113-D113 -> 6 | F112: =F113-E113 -> 7 | G112: 8 | H112: 5 | I112: 8 | J112: 9 | K112: 10 | L112: 3 | M112: 10 | N112: 10 | T112: =T113-S113 -> 3 | U112: 5 | V112: 10 | W112: 10 | X112: 5 | Y112: 10 | Z112: 10 | AA112: 10 | AB112: 10
A113: 1 | B113: 雪原-3 | C113: 波1·怪物 | D113: 4 | E113: 10 | F113: 17 | G113: 25 | H113: 30 | I113: 38 | J113: 47 | K113: 57 | L113: 60 | M113: 70 | N113: 80 | R113: 波2·怪物 | S113: 2 | T113: 5 | U113: 10 | V113: 20 | W113: 30 | X113: 35 | Y113: 45 | Z113: 55 | AA113: 65 | AB113: 75
B114: 4.5m | C114: 8 | G114: 70092 | I114: 70091 | L114: 70095 | P114: =_xlfn.TEXTJOIN("^",,D114:D123) -> 70091^70092^70091 | R114: 8 | S114: 70091 | U114: 70091 | W114: 70094 | AB114: 70092 | AD114: =_xlfn.TEXTJOIN("^",,S114:S123) -> 70091^70091^70092^70094^70092^70094^70092^70091^70091
C115: 6 | F115: 70092 | I115: 70094 | J115: 70091 | K115: 70092 | M115: 70091 | N115: 70094 | P115: =_xlfn.TEXTJOIN("^",,E114:E123) -> 70092^70094^70092 | R115: 6 | S115: 70091 | U115: 70092 | V115: 70092 | Y115: 70092 | Z115: 70091 | AA115: 70091 | AD115: =_xlfn.TEXTJOIN("^",,T114:T123) -> 70095^70095^70095^70095^70095
C116: 4 | D116: 70091 | F116: 70094 | G116: 70091 | H116: 70095 | J116: 70091 | K116: 70094 | M116: 70091 | N116: 70092 | P116: =_xlfn.TEXTJOIN("^",,F114:F123) -> 70092^70094^70093^70093^70094^70092 | R116: 4 | S116: 70092 | T116: 70095 | U116: 70092 | V116: 70091 | W116: 70091 | X116: 70095 | Y116: 70093 | Z116: 70091 | AA116: 70092 | AB116: 70093 | AD116: =_xlfn.TEXTJOIN("^",,U114:U123) -> 70091^70092^70092^70093^70093^70093^70092^70092^70091
C117: 2 | E117: 70092 | F117: 70093 | G117: 70091 | H117: 70095 | I117: 70091 | J117: 70092 | K117: 70093 | L117: 70095 | M117: 70092 | N117: 70093 | P117: =_xlfn.TEXTJOIN("^",,G114:G123) -> 70092^70091^70091^70092^70091^70091^70092 | R117: 2 | S117: 70094 | T117: 70095 | U117: 70093 | V117: 70091 | W117: 70093 | X117: 70095 | Y117: 70092 | Z117: 70091 | AA117: 70092 | AB117: 70091 | AD117: =_xlfn.TEXTJOIN("^",,V114:V123) -> 70092^70091^70091^70092^70091^70091^70092
C118: 1 | D118: 70092 | E118: 70094 | G118: 70092 | H118: 70095 | I118: 70093 | J118: 70092 | K118: 70093 | L118: 70095 | M118: 70092 | N118: 70096 | P118: =_xlfn.TEXTJOIN("^",,H114:H123) -> 70095^70095^70095^70095 | R118: 1 | S118: 70092 | T118: 70095 | U118: 70093 | V118: 70092 | W118: 70093 | X118: 70095 | Y118: 70094 | Z118: 70094 | AA118: 70091 | AB118: 70096 | AD118: =_xlfn.TEXTJOIN("^",,W114:W123) -> 70094^70091^70093^70093^70093^70091^70092
C119: 3 | E119: 70092 | F119: 70093 | G119: 70091 | H119: 70095 | I119: 70091 | J119: 70092 | K119: 70093 | L119: 70095 | M119: 70092 | N119: 70093 | P119: =_xlfn.TEXTJOIN("^",,I114:I123) -> 70091^70094^70091^70093^70091^70094^70091 | R119: 3 | S119: 70094 | T119: 70095 | U119: 70093 | V119: 70091 | W119: 70093 | X119: 70095 | Y119: 70092 | Z119: 70091 | AA119: 70092 | AB119: 70091 | AD119: =_xlfn.TEXTJOIN("^",,X114:X123) -> 70095^70095^70095^70095^70095
C120: 5 | D120: 70091 | F120: 70094 | G120: 70091 | J120: 70091 | K120: 70094 | M120: 70091 | N120: 70092 | P120: =_xlfn.TEXTJOIN("^",,J114:J123) -> 70091^70091^70092^70092^70092^70091^70091 | R120: 5 | S120: 70092 | T120: 70095 | U120: 70092 | V120: 70091 | W120: 70091 | X120: 70095 | Y120: 70093 | Z120: 70091 | AA120: 70092 | AB120: 70093 | AD120: =_xlfn.TEXTJOIN("^",,Y114:Y123) -> 70092^70093^70092^70094^70092^70093^70092
C121: 7 | F121: 70092 | I121: 70094 | J121: 70091 | K121: 70092 | M121: 70091 | N121: 70094 | P121: =_xlfn.TEXTJOIN("^",,K114:K123) -> 70092^70094^70093^70093^70093^70094^70092 | R121: 7 | S121: 70091 | U121: 70092 | V121: 70092 | Y121: 70092 | Z121: 70091 | AA121: 70091 | AD121: =_xlfn.TEXTJOIN("^",,Z114:Z123) -> 70091^70091^70091^70094^70091^70091^70091
C122: 9 | G122: 70092 | I122: 70091 | L122: 70095 | P122: =_xlfn.TEXTJOIN("^",,L114:L123) -> 70095^70095^70095^70095^70095 | R122: 9 | S122: 70091 | U122: 70091 | W122: 70092 | AB122: 70092 | AD122: =_xlfn.TEXTJOIN("^",,AA114:AA123) -> 70091^70092^70092^70091^70092^70092^70091
P123: =_xlfn.TEXTJOIN("^",,M114:M123) -> 70091^70091^70092^70092^70092^70091^70091 | AD123: =_xlfn.TEXTJOIN("^",,AB114:AB123) -> 70092^70093^70091^70096^70091^70093^70092
P124: =_xlfn.TEXTJOIN("^",,N114:N123) -> 70094^70092^70093^70096^70093^70092^70094 | AD124: =_xlfn.TEXTJOIN("^",,AC114:AC123) -> 
O125: 最终 | P125: =_xlfn.TEXTJOIN("^",,P114:P124) -> 70091^70092^70091^70092^70094^70092^70092^70094^70093^70093^70094^70092^70092^70091^70091^70092^70091^70091^70092^70095^70095^70095^70095^70091^70094^70091^70093^70091^70094^70091^70091^70091^70092^70092^70092^70091^70091^70092^70094^70093^70093^70093^70094^70092^70095^70095^70095^70095^70095^70091^70091^70092^70092^70092^70091^70091^70094^70092^70093^70096^70093^70092^70094 | AC125: 最终 | AD125: =_xlfn.TEXTJOIN("^",,AD114:AD124) -> 70091^70091^70092^70094^70092^70094^70092^70091^70091^70095^70095^70095^70095^70095^70091^70092^70092^70093^70093^70093^70092^70092^70091^70092^70091^70091^70092^70091^70091^70092^70094^70091^70093^70093^70093^70091^70092^70095^70095^70095^70095^70095^70092^70093^70092^70094^70092^70093^70092^70091^70091^70091^70094^70091^70091^70091^70091^70092^70092^70091^70092^70092^70091^70092^70093^70091^70096^70091^70093^70092
C126: 8 | G126: 独角兽 | I126: 雪怪 | L126: 雪山蜘蛛 | R126: 8 | S126: 雪怪 | U126: 雪怪 | W126: 木精灵 | AB126: 独角兽
C127: 6 | F127: 独角兽 | I127: 木精灵 | J127: 雪怪 | K127: 独角兽 | M127: 雪怪 | N127: 木精灵 | R127: 6 | S127: 雪怪 | U127: 独角兽 | V127: 独角兽 | Y127: 独角兽 | Z127: 雪怪 | AA127: 雪怪
C128: 4 | D128: 雪怪 | F128: 木精灵 | G128: 雪怪 | H128: 雪山蜘蛛 | J128: 雪怪 | K128: 木精灵 | M128: 雪怪 | N128: 独角兽 | R128: 4 | S128: 独角兽 | T128: 雪山蜘蛛 | U128: 独角兽 | V128: 雪怪 | W128: 雪怪 | X128: 雪山蜘蛛 | Y128: 雪原熊 | Z128: 雪怪 | AA128: 独角兽 | AB128: 雪原熊
C129: 2 | E129: 独角兽 | F129: 雪原熊 | G129: 雪怪 | H129: 雪山蜘蛛 | I129: 雪怪 | J129: 独角兽 | K129: 雪原熊 | L129: 雪山蜘蛛 | M129: 独角兽 | N129: 雪原熊 | R129: 2 | S129: 木精灵 | T129: 雪山蜘蛛 | U129: 雪原熊 | V129: 雪怪 | W129: 雪原熊 | X129: 雪山蜘蛛 | Y129: 独角兽 | Z129: 雪怪 | AA129: 独角兽 | AB129: 雪怪
C130: 1 | D130: 独角兽 | E130: 木精灵 | G130: 独角兽 | H130: 雪山蜘蛛 | I130: 雪原熊 | J130: 独角兽 | K130: 雪原熊 | L130: 雪山蜘蛛 | M130: 独角兽 | N130: 野蛮战士 | R130: 1 | S130: 独角兽 | T130: 雪山蜘蛛 | U130: 雪原熊 | V130: 独角兽 | W130: 雪原熊 | X130: 雪山蜘蛛 | Y130: 木精灵 | Z130: 木精灵 | AA130: 雪怪 | AB130: 野蛮战士
C131: 3 | E131: 独角兽 | F131: 雪原熊 | G131: 雪怪 | H131: 雪山蜘蛛 | I131: 雪怪 | J131: 独角兽 | K131: 雪原熊 | L131: 雪山蜘蛛 | M131: 独角兽 | N131: 雪原熊 | R131: 3 | S131: 木精灵 | T131: 雪山蜘蛛 | U131: 雪原熊 | V131: 雪怪 | W131: 雪原熊 | X131: 雪山蜘蛛 | Y131: 独角兽 | Z131: 雪怪 | AA131: 独角兽 | AB131: 雪怪
C132: 5 | D132: 雪怪 | F132: 木精灵 | G132: 雪怪 | J132: 雪怪 | K132: 木精灵 | M132: 雪怪 | N132: 独角兽 | R132: 5 | S132: 独角兽 | T132: 雪山蜘蛛 | U132: 独角兽 | V132: 雪怪 | W132: 雪怪 | X132: 雪山蜘蛛 | Y132: 雪原熊 | Z132: 雪怪 | AA132: 独角兽 | AB132: 雪原熊
C133: 7 | F133: 独角兽 | I133: 木精灵 | J133: 雪怪 | K133: 独角兽 | M133: 雪怪 | N133: 木精灵 | R133: 7 | S133: 雪怪 | U133: 独角兽 | V133: 独角兽 | Y133: 独角兽 | Z133: 雪怪 | AA133: 雪怪
C134: 9 | G134: 独角兽 | I134: 雪怪 | L134: 雪山蜘蛛 | R134: 9 | S134: 雪怪 | U134: 雪怪 | W134: 独角兽 | AB134: 独角兽
C136: 位置 | D136: 4 | E136: 10 | F136: 17 | G136: 25 | H136: 30 | I136: 38 | J136: 47 | K136: 57 | L136: 60 | M136: 70 | N136: 80 | R136: 位置 | S136: 2 | T136: 5 | U136: 10 | V136: 20 | W136: 30 | X136: 35 | Y136: 45 | Z136: 55 | AA136: 65 | AB136: 75 | AD136: =_xlfn.TEXTJOIN("^",,S137:S151) -> 8^6^4^2^1^3^5^7^9
C137: 8 | G137: =$C137 -> 8 | I137: =$C137 -> 8 | P137: =_xlfn.TEXTJOIN("^",,D137:D151) -> 4^1^5 | R137: 8 | S137: =$C137 -> 8 | U137: =$C137 -> 8 | W137: =$C137 -> 8 | AB137: =$C137 -> 8 | AD137: =_xlfn.TEXTJOIN("^",,T137:T151) -> 101^102^103^104^105
C138: 6 | F138: =$C138 -> 6 | I138: =$C138 -> 6 | J138: =$C138 -> 6 | K138: =$C138 -> 6 | M138: =$C138 -> 6 | N138: =$C138 -> 6 | P138: =_xlfn.TEXTJOIN("^",,E137:E151) -> 2^1^3 | R138: 6 | S138: 6 | U138: 6 | V138: =$C138 -> 6 | Y138: =$C138 -> 6 | Z138: 6 | AA138: 6 | AD138: =_xlfn.TEXTJOIN("^",,U137:U151) -> 8^6^4^2^1^3^5^7^9
C139: 4 | D139: =$C139 -> 4 | F139: =$C139 -> 4 | G139: 4 | J139: =$C139 -> 4 | K139: 4 | M139: =$C139 -> 4 | N139: =$C139 -> 4 | P139: =_xlfn.TEXTJOIN("^",,F137:F151) -> 6^4^2^3^5^7 | R139: 4 | S139: 4 | U139: 4 | V139: =$C139 -> 4 | W139: =$C139 -> 4 | Y139: 4 | Z139: 4 | AA139: 4 | AB139: 4 | AD139: =_xlfn.TEXTJOIN("^",,V137:V151) -> 6^4^2^1^3^5^7
C140: 2 | E140: =$C140 -> 2 | F140: 2 | G140: 2 | I140: 2 | J140: 2 | K140: 2 | M140: 2 | N140: 2 | P140: =_xlfn.TEXTJOIN("^",,G137:G151) -> 8^4^2^1^3^5^9 | R140: 2 | S140: 2 | U140: 2 | V140: 2 | W140: 2 | Y140: 2 | Z140: 2 | AA140: 2 | AB140: 2 | AD140: =_xlfn.TEXTJOIN("^",,W137:W151) -> 8^4^2^1^3^5^9
C141: 1 | D141: =$C141 -> 1 | E141: =$C141 -> 1 | G141: 1 | I141: 1 | J141: 1 | K141: 1 | M141: 1 | N141: 1 | P141: =_xlfn.TEXTJOIN("^",,H137:H151) -> 101^102^103^104 | R141: 1 | S141: 1 | U141: 1 | V141: 1 | W141: 1 | Y141: =$C141 -> 1 | Z141: 1 | AA141: 1 | AB141: 1 | AD141: =_xlfn.TEXTJOIN("^",,X137:X151) -> 101^102^103^104^105
C142: 3 | E142: =$C142 -> 3 | F142: 3 | G142: 3 | I142: 3 | J142: 3 | K142: 3 | M142: 3 | N142: 3 | P142: =_xlfn.TEXTJOIN("^",,I137:I151) -> 8^6^2^1^3^7^9 | R142: 3 | S142: 3 | U142: 3 | V142: 3 | W142: 3 | Y142: 3 | Z142: 3 | AA142: 3 | AB142: 3 | AD142: =_xlfn.TEXTJOIN("^",,Y137:Y151) -> 6^4^2^1^3^5^7
C143: 5 | D143: =$C143 -> 5 | F143: 5 | G143: 5 | J143: 5 | K143: 5 | M143: =$C143 -> 5 | N143: 5 | P143: =_xlfn.TEXTJOIN("^",,J137:J151) -> 6^4^2^1^3^5^7 | R143: 5 | S143: 5 | U143: 5 | V143: 5 | W143: 5 | Y143: =$C143 -> 5 | Z143: 5 | AA143: 5 | AB143: 5 | AD143: =_xlfn.TEXTJOIN("^",,Z137:Z151) -> 6^4^2^1^3^5^7
C144: 7 | F144: =$C144 -> 7 | I144: =$C144 -> 7 | J144: =$C144 -> 7 | K144: 7 | M144: =$C144 -> 7 | N144: =$C144 -> 7 | P144: =_xlfn.TEXTJOIN("^",,K137:K151) -> 6^4^2^1^3^5^7 | R144: 7 | S144: 7 | U144: 7 | V144: =$C144 -> 7 | Y144: 7 | Z144: 7 | AA144: 7 | AD144: =_xlfn.TEXTJOIN("^",,AA137:AA151) -> 6^4^2^1^3^5^7
C145: 9 | G145: =$C145 -> 9 | I145: =$C145 -> 9 | P145: =_xlfn.TEXTJOIN("^",,L137:L151) -> 101^102^103^104^105 | R145: 9 | S145: 9 | U145: 9 | W145: =$C145 -> 9 | AB145: =$C145 -> 9 | AD145: =_xlfn.TEXTJOIN("^",,AB137:AB151) -> 8^4^2^1^3^5^9
C146: 空降 | P146: =_xlfn.TEXTJOIN("^",,M137:M151) -> 6^4^2^1^3^5^7 | R146: 空降 | AD146: =_xlfn.TEXTJOIN("^",,AC137:AC145) -> 
C147: 101 | H147: =$C147 -> 101 | L147: =$C147 -> 101 | P147: =_xlfn.TEXTJOIN("^",,N137:N151) -> 6^4^2^1^3^5^7 | T147: =$C147 -> 101 | X147: =$C147 -> 101 | AC147: 最终 | AD147: =_xlfn.TEXTJOIN("^",,AD136:AD146) -> 8^6^4^2^1^3^5^7^9^101^102^103^104^105^8^6^4^2^1^3^5^7^9^6^4^2^1^3^5^7^8^4^2^1^3^5^9^101^102^103^104^105^6^4^2^1^3^5^7^6^4^2^1^3^5^7^6^4^2^1^3^5^7^8^4^2^1^3^5^9
C148: 102 | H148: 102 | L148: =$C148 -> 102 | T148: 102 | X148: 102
C149: 103 | H149: 103 | L149: =$C149 -> 103 | T149: 103 | X149: 103
C150: 104 | H150: 104 | L150: =$C150 -> 104 | T150: 104 | X150: 104
C151: 105 | L151: =$C151 -> 105 | T151: 105 | X151: 105
O152: 最终 | P152: =_xlfn.TEXTJOIN("^",,P137:P151) -> 4^1^5^2^1^3^6^4^2^3^5^7^8^4^2^1^3^5^9^101^102^103^104^8^6^2^1^3^7^9^6^4^2^1^3^5^7^6^4^2^1^3^5^7^101^102^103^104^105^6^4^2^1^3^5^7^6^4^2^1^3^5^7
C154: 时间 | D154: 4 | E154: 10 | F154: 17 | G154: 25 | H154: 30 | I154: 38 | J154: 47 | K154: 57 | L154: 60 | M154: 70 | N154: 80 | R154: 时间 | S154: 2 | T154: 5 | U154: 10 | V154: 20 | W154: 30 | X154: 35 | Y154: 45 | Z154: 55 | AA154: 65 | AB154: 75 | AD154: =_xlfn.TEXTJOIN("^",,S155:S163) -> 2^2^2^2^2^2^2^2^2
C155: 8 | G155: =G$154 -> 25 | I155: =I$154 -> 38 | P155: =_xlfn.TEXTJOIN("^",,D155:D164) -> 4^4^4 | R155: 8 | S155: =S$154 -> 2 | U155: =U$154 -> 10 | W155: =W$154 -> 30 | AB155: =AB$154 -> 75 | AD155: =_xlfn.TEXTJOIN("^",,T155:T163) -> 5^5^5^5^5
C156: 6 | F156: =F$154 -> 17 | H156: =H$154 -> 30 | I156: =I$154 -> 38 | J156: =J$154 -> 47 | K156: =K$154 -> 57 | M156: =M$154 -> 70 | N156: =N$154 -> 80 | P156: =_xlfn.TEXTJOIN("^",,E155:E164) -> 10^10^10 | R156: 6 | S156: 2 | U156: 10 | V156: =V$154 -> 20 | Y156: =Y$154 -> 45 | Z156: 55 | AA156: 65 | AD156: =_xlfn.TEXTJOIN("^",,U155:U163) -> 10^10^10^10^10^10^10^10^10
C157: 4 | D157: =D$154 -> 4 | F157: =F$154 -> 17 | G157: 25 | H157: =H$154 -> 30 | J157: =J$154 -> 47 | K157: 57 | L157: =L$154 -> 60 | M157: =M$154 -> 70 | N157: 80 | P157: =_xlfn.TEXTJOIN("^",,F155:F164) -> 17^17^17^17^17^17 | R157: 4 | S157: 2 | T157: =T$154 -> 5 | U157: 10 | V157: =V$154 -> 20 | W157: =W$154 -> 30 | X157: =X$154 -> 35 | Y157: 45 | Z157: 55 | AA157: 65 | AB157: 75 | AD157: =_xlfn.TEXTJOIN("^",,V155:V163) -> 20^20^20^20^20^20^20
C158: 2 | E158: 10 | F158: 17 | G158: 25 | I158: 38 | J158: 47 | K158: 57 | L158: =L$154 -> 60 | M158: 70 | N158: 80 | P158: =_xlfn.TEXTJOIN("^",,G155:G164) -> 25^25^25^25^25^25^25 | R158: 2 | S158: 2 | T158: =T$154 -> 5 | U158: 10 | V158: 20 | W158: 30 | X158: =X$154 -> 35 | Y158: 45 | Z158: 55 | AA158: 65 | AB158: 75 | AD158: =_xlfn.TEXTJOIN("^",,W155:W163) -> 30^30^30^30^30^30^30
C159: 1 | D159: =D$154 -> 4 | E159: 10 | G159: 25 | H159: =H$154 -> 30 | I159: 38 | J159: 47 | K159: 57 | L159: =L$154 -> 60 | M159: 70 | N159: 80 | P159: =_xlfn.TEXTJOIN("^",,H155:H164) -> 30^30^30^30 | R159: 1 | S159: 2 | T159: =T$154 -> 5 | U159: 10 | V159: 20 | W159: 30 | X159: =X$154 -> 35 | Y159: 45 | Z159: 55 | AA159: 65 | AB159: 75 | AD159: =_xlfn.TEXTJOIN("^",,X155:X163) -> 35^35^35^35^35
C160: 3 | E160: 10 | F160: 17 | G160: 25 | I160: 38 | J160: 47 | K160: 57 | L160: =L$154 -> 60 | M160: 70 | N160: 80 | P160: =_xlfn.TEXTJOIN("^",,I155:I164) -> 38^38^38^38^38^38^38 | R160: 3 | S160: 2 | T160: =T$154 -> 5 | U160: 10 | V160: 20 | W160: 30 | X160: =X$154 -> 35 | Y160: 45 | Z160: 55 | AA160: 65 | AB160: 75 | AD160: =_xlfn.TEXTJOIN("^",,Y155:Y163) -> 45^45^45^45^45^45^45
C161: 5 | D161: =D$154 -> 4 | F161: 17 | G161: 25 | H161: =H$154 -> 30 | J161: 47 | K161: 57 | M161: 70 | N161: 80 | P161: =_xlfn.TEXTJOIN("^",,J155:J164) -> 47^47^47^47^47^47^47 | R161: 5 | S161: 2 | T161: =T$154 -> 5 | U161: 10 | V161: 20 | W161: 30 | X161: =X$154 -> 35 | Y161: =Y$154 -> 45 | Z161: 55 | AA161: 65 | AB161: 75 | AD161: =_xlfn.TEXTJOIN("^",,Z155:Z163) -> 55^55^55^55^55^55^55
C162: 7 | F162: =F$154 -> 17 | I162: =I$154 -> 38 | J162: =J$154 -> 47 | K162: 57 | L162: =L$154 -> 60 | M162: =M$154 -> 70 | N162: =N$154 -> 80 | P162: =_xlfn.TEXTJOIN("^",,K155:K164) -> 57^57^57^57^57^57^57 | R162: 7 | S162: 2 | U162: 10 | V162: =V$154 -> 20 | Y162: 45 | Z162: 55 | AA162: 65 | AD162: =_xlfn.TEXTJOIN("^",,AA155:AA163) -> 65^65^65^65^65^65^65
C163: 9 | G163: =G$154 -> 25 | I163: =I$154 -> 38 | P163: =_xlfn.TEXTJOIN("^",,L155:L164) -> 60^60^60^60^60 | R163: 9 | S163: 2 | U163: 10 | W163: =W$154 -> 30 | AB163: =AB$154 -> 75 | AD163: =_xlfn.TEXTJOIN("^",,AB155:AB163) -> 75^75^75^75^75^75^75
P164: =_xlfn.TEXTJOIN("^",,M155:M164) -> 70^70^70^70^70^70^70 | AD164: =_xlfn.TEXTJOIN("^",,AC155:AC163) -> 
P165: =_xlfn.TEXTJOIN("^",,N155:N164) -> 80^80^80^80^80^80^80 | AC165: 最终 | AD165: =_xlfn.TEXTJOIN("^",,AD154:AD164) -> 2^2^2^2^2^2^2^2^2^5^5^5^5^5^10^10^10^10^10^10^10^10^10^20^20^20^20^20^20^20^30^30^30^30^30^30^30^35^35^35^35^35^45^45^45^45^45^45^45^55^55^55^55^55^55^55^65^65^65^65^65^65^65^75^75^75^75^75^75^75
O166: 最终 | P166: =_xlfn.TEXTJOIN("^",,P155:P165) -> 4^4^4^10^10^10^17^17^17^17^17^17^25^25^25^25^25^25^25^30^30^30^30^38^38^38^38^38^38^38^47^47^47^47^47^47^47^57^57^57^57^57^57^57^60^60^60^60^60^70^70^70^70^70^70^70^80^80^80^80^80^80^80
P167: =COUNT(D155:N164) -> 63 | AC167: =COUNT(S155:AB164) -> 70 | AD167: =P167+AC167 -> 133

Sheet 4
E2: =E3-D3 -> 9 | F2: =F3-E3 -> 15 | G2: 15 | H2: 5 | I2: 16 | J2: 17 | K2: 17 | L2: 5 | M2: 15 | T2: =T3-S3 -> 11 | U2: 15 | V2: 16 | W2: 4 | X2: 15 | Y2: 20 | AH2: =AH3-AG3 -> 2 | AI2: 4 | AJ2: 6 | AK2: 10 | AL2: 15 | AM2: 15
A3: 3 | B3: 雪山-1 | C3: 波1·怪物 | D3: 6 | E3: 15 | F3: 30 | G3: 45 | H3: 50 | I3: 66 | J3: 83 | K3: 100 | L3: 105 | M3: 120 | Q3: 3 | R3: 波2·怪物 | S3: 4 | T3: 15 | U3: 30 | V3: 46 | W3: 50 | X3: 65 | Y3: 85 | AE3: 1 | AF3: 波3·怪物 | AG3: 3 | AH3: 5 | AI3: 9 | AJ3: 15 | AK3: 25 | AL3: 40 | AM3: 55
B4: 5m | C4: 8 | P4: =_xlfn.TEXTJOIN("^",,D4:D13) -> 70101^70102^70104 | R4: 8 | AD4: =_xlfn.TEXTJOIN("^",,S4:S13) -> 70101^70104 | AF4: 8 | AR4: =_xlfn.TEXTJOIN("^",,AG4:AG13) -> 70104^70102^70102^70104
C5: 6 | P5: =_xlfn.TEXTJOIN("^",,E4:E13) -> 70102^70101 | R5: 6 | AD5: =_xlfn.TEXTJOIN("^",,T4:T13) -> 70102^70101 | AF5: 6 | AK5: 70102 | AL5: 70102 | AM5: 70104 | AR5: =_xlfn.TEXTJOIN("^",,AH4:AH13) -> 70101^70101^70101
C6: 4 | P6: =_xlfn.TEXTJOIN("^",,F4:F13) -> 70104^70103^70102 | R6: 4 | AD6: =_xlfn.TEXTJOIN("^",,U4:U13) -> 70104^70102^70103 | AF6: 4 | AG6: 70104 | AH6: 70101 | AJ6: 70101 | AK6: 70104 | AL6: 70101 | AM6: 70102 | AR6: =_xlfn.TEXTJOIN("^",,AI4:AI13) -> 70105^70105
C7: 2 | P7: =_xlfn.TEXTJOIN("^",,G4:G13) -> 70101^70102^70104 | R7: 2 | AD7: =_xlfn.TEXTJOIN("^",,V4:V13) -> 70101^70102 | AF7: 2 | AG7: 70102 | AI7: 70105 | AJ7: 70103 | AK7: 70103 | AL7: 70101 | AR7: =_xlfn.TEXTJOIN("^",,AJ4:AJ13) -> 70101^70103^70104^70103^70101
C8: 1 | D8: 70101 | E8: 70102 | F8: 70104 | G8: 70101 | H8: 70105 | I8: 70103 | J8: 70102 | K8: 70104 | L8: 70105 | M8: 70103 | P8: =_xlfn.TEXTJOIN("^",,H4:H13) -> 70105 | R8: 1 | S8: 70101 | T8: 70102 | U8: 70104 | V8: 70101 | W8: 70105 | X8: 70102 | Y8: 70103 | AD8: =_xlfn.TEXTJOIN("^",,W4:W13) -> 70105 | AF8: 1 | AH8: 70101 | AJ8: 70104 | AM8: 70103 | AR8: =_xlfn.TEXTJOIN("^",,AK4:AK13) -> 70102^70104^70103^70103^70104^70102
C9: 3 | D9: 70102 | E9: 70101 | F9: 70103 | G9: 70102 | I9: 70104 | J9: 70101 | K9: 70103 | L9: 70106 | M9: 70102 | P9: =_xlfn.TEXTJOIN("^",,I4:I13) -> 70103^70104^70102 | R9: 3 | S9: 70104 | T9: 70101 | U9: 70102 | V9: 70102 | X9: 70101 | Y9: 70101 | AD9: =_xlfn.TEXTJOIN("^",,X4:X13) -> 70102^70101^70104 | AF9: 3 | AG9: 70102 | AI9: 70105 | AJ9: 70103 | AK9: 70103 | AL9: 70101 | AR9: =_xlfn.TEXTJOIN("^",,AL4:AL13) -> 70102^70101^70101^70101^70101^70102
C10: 5 | D10: 70104 | F10: 70102 | G10: 70104 | I10: 70102 | K10: 70101 | M10: 70104 | P10: =_xlfn.TEXTJOIN("^",,J4:J13) -> 70102^70101 | R10: 5 | U10: 70103 | X10: 70104 | Y10: 70102 | AD10: =_xlfn.TEXTJOIN("^",,Y4:Y13) -> 70103^70101^70102 | AF10: 5 | AG10: 70104 | AH10: 70101 | AJ10: 70101 | AK10: 70104 | AL10: 70101 | AM10: 70102 | AR10: =_xlfn.TEXTJOIN("^",,AM4:AM13) -> 70104^70102^70103^70102^70104
C11: 7 | P11: =_xlfn.TEXTJOIN("^",,K4:K13) -> 70104^70103^70101 | R11: 7 | AD11: =_xlfn.TEXTJOIN("^",,Z4:Z13) ->  | AF11: 7 | AK11: 70102 | AL11: 70102 | AM11: 70104 | AR11: =_xlfn.TEXTJOIN("^",,AN4:AN13) -> 
C12: 9 | P12: =_xlfn.TEXTJOIN("^",,L4:L13) -> 70105^70106 | R12: 9 | AD12: =_xlfn.TEXTJOIN("^",,AA4:AA13) ->  | AF12: 9 | AR12: =_xlfn.TEXTJOIN("^",,AO4:AO13) -> 
P13: =_xlfn.TEXTJOIN("^",,M4:M13) -> 70103^70102^70104 | AD13: =_xlfn.TEXTJOIN("^",,AB4:AB13) ->  | AR13: =_xlfn.TEXTJOIN("^",,AP4:AP13) -> 
P14: =_xlfn.TEXTJOIN("^",,N4:N13) ->  | AD14: =_xlfn.TEXTJOIN("^",,AC4:AC13) ->  | AR14: =_xlfn.TEXTJOIN("^",,AQ4:AQ13) -> 
O15: 最终 | P15: =_xlfn.TEXTJOIN("|",,P4:P14) -> 70101^70102^70104|70102^70101|70104^70103^70102|70101^70102^70104|70105|70103^70104^70102|70102^70101|70104^70103^70101|70105^70106|70103^70102^70104 | AC15: 最终 | AD15: =_xlfn.TEXTJOIN("|",,AD4:AD14) -> 70101^70104|70102^70101|70104^70102^70103|70101^70102|70105|70102^70101^70104|70103^70101^70102 | AQ15: 最终 | AR15: =_xlfn.TEXTJOIN("^",,AR4:AR14) -> 70104^70102^70102^70104^70101^70101^70101^70105^70105^70101^70103^70104^70103^70101^70102^70104^70103^70103^70104^70102^70102^70101^70101^70101^70101^70102^70104^70102^70103^70102^70104
C16: 8 | R16: 8 | AF16: 8
C17: 6 | R17: 6 | AF17: 6 | AK17: 独角兽 | AL17: 独角兽 | AM17: 木精灵
C18: 4 | R18: 4 | AF18: 4 | AG18: 木精灵 | AH18: 雪怪 | AJ18: 雪怪 | AK18: 木精灵 | AL18: 雪怪 | AM18: 独角兽
C19: 2 | R19: 2 | AF19: 2 | AG19: 独角兽 | AI19: 雪山蜘蛛 | AJ19: 雪原熊 | AK19: 雪原熊 | AL19: 雪怪
C20: 1 | D20: 雪怪 | E20: 独角兽 | F20: 木精灵 | G20: 雪怪 | H20: 雪山蜘蛛 | I20: 雪原熊 | J20: 独角兽 | K20: 木精灵 | L20: 雪山蜘蛛 | M20: 雪原熊 | R20: 1 | S20: 雪怪 | T20: 独角兽 | U20: 木精灵 | V20: 雪怪 | W20: 雪山蜘蛛 | X20: 独角兽 | Y20: 雪原熊 | AF20: 1 | AH20: 雪怪 | AJ20: 木精灵 | AM20: 雪原熊
C21: 3 | D21: 独角兽 | E21: 雪怪 | F21: 雪原熊 | G21: 独角兽 | I21: 木精灵 | J21: 雪怪 | K21: 雪原熊 | L21: 森林祭祀 | M21: 独角兽 | R21: 3 | S21: 木精灵 | T21: 雪怪 | U21: 独角兽 | V21: 独角兽 | X21: 雪怪 | Y21: 雪怪 | AF21: 3 | AG21: 独角兽 | AI21: 雪山蜘蛛 | AJ21: 雪原熊 | AK21: 雪原熊 | AL21: 雪怪
C22: 5 | D22: 木精灵 | F22: 独角兽 | G22: 木精灵 | I22: 独角兽 | K22: 雪怪 | M22: 木精灵 | R22: 5 | U22: 雪原熊 | X22: 木精灵 | Y22: 独角兽 | AF22: 5 | AG22: 木精灵 | AH22: 雪怪 | AJ22: 雪怪 | AK22: 木精灵 | AL22: 雪怪 | AM22: 独角兽
C23: 7 | R23: 7 | AF23: 7 | AK23: 独角兽 | AL23: 独角兽 | AM23: 木精灵
C24: 9 | R24: 9 | AF24: 9
C26: 位置 | D26: 6 | E26: 15 | F26: 30 | G26: 45 | H26: 50 | I26: 66 | J26: 83 | K26: 100 | L26: 105 | M26: 120 | R26: 位置 | S26: 4 | T26: 15 | U26: 30 | V26: 46 | W26: 50 | X26: 65 | Y26: 85 | AF26: 位置 | AG26: 3 | AH26: 5 | AI26: 9 | AJ26: 15 | AK26: 25 | AL26: 40 | AM26: 55 | AR26: =_xlfn.TEXTJOIN("^",,AG27:AG41) -> 4^2^3^5
C27: 8 | P27: =_xlfn.TEXTJOIN("^",,D27:D41) -> 0^0^0 | R27: 8 | AF27: 8 | AR27: =_xlfn.TEXTJOIN("^",,AH27:AH41) -> 4^1^5
C28: 6 | P28: =_xlfn.TEXTJOIN("^",,E27:E41) -> 0^0 | R28: 6 | AD28: =_xlfn.TEXTJOIN("^",,S27:S41) -> 0^0 | AF28: 6 | AK28: =$C28 -> 6 | AL28: 6 | AM28: 6 | AR28: =_xlfn.TEXTJOIN("^",,AI27:AI41) -> 102^104
C29: 4 | P29: =_xlfn.TEXTJOIN("^",,F27:F41) -> 0^0^0 | R29: 4 | AD29: =_xlfn.TEXTJOIN("^",,T27:T41) -> 0^0 | AF29: 4 | AG29: =$C29 -> 4 | AH29: =$C29 -> 4 | AJ29: =$C29 -> 4 | AK29: 4 | AL29: 4 | AM29: 4 | AR29: =_xlfn.TEXTJOIN("^",,AJ27:AJ41) -> 4^2^1^3^5
C30: 2 | P30: =_xlfn.TEXTJOIN("^",,G27:G41) -> 0^0^0 | R30: 2 | AD30: =_xlfn.TEXTJOIN("^",,U27:U41) -> 0^0^0 | AF30: 2 | AG30: 2 | AJ30: 2 | AK30: 2 | AL30: 2 | AR30: =_xlfn.TEXTJOIN("^",,AK27:AK41) -> 6^4^2^3^5^7
C31: 1 | D31: 0 | E31: 0 | F31: 0 | G31: 0 | H31: 100 | I31: 0 | J31: 0 | K31: 0 | L31: 100 | M31: 0 | P31: =_xlfn.TEXTJOIN("^",,H27:H41) -> 100 | R31: 1 | S31: 0 | T31: 0 | U31: 0 | V31: 0 | W31: 100 | X31: 0 | Y31: 0 | AD31: =_xlfn.TEXTJOIN("^",,V27:V41) -> 0^0 | AF31: 1 | AH31: =$C31 -> 1 | AJ31: 1 | AM31: =$C31 -> 1 | AR31: =_xlfn.TEXTJOIN("^",,AL27:AL41) -> 6^4^2^3^5^7
C32: 3 | D32: 0 | E32: 0 | F32: 0 | G32: 0 | I32: 0 | J32: 0 | K32: 0 | L32: 0 | M32: 0 | P32: =_xlfn.TEXTJOIN("^",,I27:I41) -> 0^0^0 | R32: 3 | S32: 0 | T32: 0 | U32: 0 | V32: 0 | X32: 0 | Y32: 0 | AD32: =_xlfn.TEXTJOIN("^",,W27:W41) -> 100 | AF32: 3 | AG32: =$C32 -> 3 | AJ32: 3 | AK32: 3 | AL32: 3 | AR32: =_xlfn.TEXTJOIN("^",,AM27:AM41) -> 6^4^1^5^7
C33: 5 | D33: 0 | F33: 0 | G33: 0 | I33: 0 | K33: 0 | M33: 0 | P33: =_xlfn.TEXTJOIN("^",,J27:J41) -> 0^0 | R33: 5 | U33: 0 | X33: 0 | Y33: 0 | AD33: =_xlfn.TEXTJOIN("^",,X27:X41) -> 0^0^0 | AF33: 5 | AG33: 5 | AH33: =$C33 -> 5 | AJ33: 5 | AK33: 5 | AL33: 5 | AM33: 5 | AR33: =_xlfn.TEXTJOIN("^",,AN27:AN41) -> 
C34: 7 | P34: =_xlfn.TEXTJOIN("^",,K27:K41) -> 0^0^0 | R34: 7 | AD34: =_xlfn.TEXTJOIN("^",,Y27:Y41) -> 0^0^0 | AF34: 7 | AK34: 7 | AL34: 7 | AM34: 7 | AR34: =_xlfn.TEXTJOIN("^",,AO27:AO41) -> 
C35: 9 | P35: =_xlfn.TEXTJOIN("^",,L27:L41) -> 100^0 | R35: 9 | AF35: 9 | AR35: =_xlfn.TEXTJOIN("^",,AP27:AP41) -> 
C36: 空降 | P36: =_xlfn.TEXTJOIN("^",,M27:M41) -> 0^0^0 | R36: 空降 | AF36: 空降 | AR36: =_xlfn.TEXTJOIN("^",,AQ27:AQ35) -> 
C37: 101 | P37: =_xlfn.TEXTJOIN("^",,N27:N41) ->  | R37: 101 | AD37: =_xlfn.TEXTJOIN("^",,Z27:Z41) ->  | AF37: 101
C38: 102 | R38: 102 | AD38: =_xlfn.TEXTJOIN("^",,AA27:AA41) ->  | AF38: 102 | AI38: =$C38 -> 102
C39: 103 | R39: 103 | AD39: =_xlfn.TEXTJOIN("^",,AB27:AB41) ->  | AF39: 103
C40: 104 | R40: 104 | AF40: 104 | AI40: =$C40 -> 104
C41: 105 | R41: 105 | AF41: 105
O42: 最终 | P42: =_xlfn.TEXTJOIN("|",,P27:P41) -> 0^0^0|0^0|0^0^0|0^0^0|100|0^0^0|0^0|0^0^0|100^0|0^0^0 | AC42: 最终 | AD42: =_xlfn.TEXTJOIN("|",,AD27:AD41) -> 0^0|0^0|0^0^0|0^0|100|0^0^0|0^0^0 | AQ42: 最终 | AR42: =_xlfn.TEXTJOIN("^",,AR26:AR41) -> 4^2^3^5^4^1^5^102^104^4^2^1^3^5^6^4^2^3^5^7^6^4^2^3^5^7^6^4^1^5^7
C44: 时间 | D44: 6 | E44: 15 | F44: 30 | G44: 45 | H44: 50 | I44: 66 | J44: 83 | K44: 100 | L44: 105 | M44: 120 | R44: 时间 | S44: 4 | T44: 15 | U44: 30 | V44: 46 | W44: 50 | X44: 65 | Y44: 85 | AD44: =_xlfn.TEXTJOIN("^",,S45:S53) -> 20^3 | AF44: 时间 | AG44: 3 | AH44: 5 | AI44: 9 | AJ44: 15 | AK44: 22 | AL44: 35 | AM44: 45 | AR44: =_xlfn.TEXTJOIN("^",,AG45:AG53) -> 3^3^3^3
C45: 8 | P45: =_xlfn.TEXTJOIN("^",,D45:D54) -> 4^2^1 | R45: 8 | AD45: =_xlfn.TEXTJOIN("^",,T45:T53) -> 4^8 | AF45: 8 | AR45: =_xlfn.TEXTJOIN("^",,AH45:AH53) -> 5^5^5
C46: 6 | P46: =_xlfn.TEXTJOIN("^",,E45:E54) -> 3^6 | R46: 6 | AD46: =_xlfn.TEXTJOIN("^",,U45:U53) -> 3^4^3 | AF46: 6 | AK46: =AK$44 -> 22 | AL46: 35 | AM46: =AM$44 -> 45 | AR46: =_xlfn.TEXTJOIN("^",,AI45:AI53) -> 9^9
C47: 4 | P47: =_xlfn.TEXTJOIN("^",,F45:F54) -> 2^3^4 | R47: 4 | AD47: =_xlfn.TEXTJOIN("^",,V45:V53) -> 7^5 | AF47: 4 | AG47: =AG$44 -> 3 | AH47: =AH$44 -> 5 | AJ47: =AJ$44 -> 15 | AK47: 22 | AL47: 35 | AM47: =AM$44 -> 45 | AR47: =_xlfn.TEXTJOIN("^",,AJ45:AJ53) -> 15^15^15^15^15
C48: 2 | P48: =_xlfn.TEXTJOIN("^",,G45:G54) -> 7^3^2 | R48: 2 | AD48: =_xlfn.TEXTJOIN("^",,W45:W53) -> 7 | AF48: 2 | AG48: 3 | AI48: =AI$44 -> 9 | AJ48: 15 | AK48: 22 | AL48: 35 | AR48: =_xlfn.TEXTJOIN("^",,AK45:AK53) -> 22^22^22^22^22^22
C49: 1 | D49: 4 | E49: 3 | F49: 2 | G49: 7 | H49: 7 | I49: 3 | J49: 3 | K49: 2 | L49: 8 | M49: 3 | P49: =_xlfn.TEXTJOIN("^",,H45:H54) -> 7 | R49: 1 | S49: 20 | T49: 4 | U49: 3 | V49: 7 | W49: 7 | X49: 3 | Y49: 2 | AD49: =_xlfn.TEXTJOIN("^",,X45:X53) -> 3^8^2 | AF49: 1 | AH49: =AH$44 -> 5 | AJ49: 15 | AM49: =AM$44 -> 45 | AR49: =_xlfn.TEXTJOIN("^",,AL45:AL53) -> 35^35^35^35^35^35
C50: 3 | D50: 2 | E50: 6 | F50: 3 | G50: 3 | I50: 2 | J50: 9 | K50: 3 | L50: 1 | M50: 5 | P50: =_xlfn.TEXTJOIN("^",,I45:I54) -> 3^2^5 | R50: 3 | S50: 3 | T50: 8 | U50: 4 | V50: 5 | X50: 8 | Y50: 7 | AD50: =_xlfn.TEXTJOIN("^",,Y45:Y53) -> 2^7^3 | AF50: 3 | AG50: =AG$44 -> 3 | AI50: =AI$44 -> 9 | AJ50: 15 | AK50: 22 | AL50: 35 | AR50: =_xlfn.TEXTJOIN("^",,AM45:AM53) -> 45^45^45^45^45
C51: 5 | D51: 1 | F51: 4 | G51: 2 | I51: 5 | K51: 8 | M51: 3 | P51: =_xlfn.TEXTJOIN("^",,J45:J54) -> 3^9 | R51: 5 | U51: 3 | X51: 2 | Y51: 3 | AD51: =_xlfn.TEXTJOIN("^",,Z45:Z53) ->  | AF51: 5 | AG51: 3 | AH51: =AH$44 -> 5 | AJ51: 15 | AK51: 22 | AL51: 35 | AM51: 45 | AR51: =_xlfn.TEXTJOIN("^",,AN45:AN53) -> 
C52: 7 | P52: =_xlfn.TEXTJOIN("^",,K45:K54) -> 2^3^8 | R52: 7 | AD52: =_xlfn.TEXTJOIN("^",,AA45:AA53) ->  | AF52: 7 | AK52: 22 | AL52: 35 | AM52: 45 | AR52: =_xlfn.TEXTJOIN("^",,AO45:AO53) -> 
C53: 9 | P53: =_xlfn.TEXTJOIN("^",,L45:L54) -> 8^1 | R53: 9 | AD53: =_xlfn.TEXTJOIN("^",,AB45:AB53) ->  | AF53: 9 | AR53: =_xlfn.TEXTJOIN("^",,AP45:AP53) -> 
P54: =_xlfn.TEXTJOIN("^",,M45:M54) -> 3^5^3 | AD54: =_xlfn.TEXTJOIN("^",,AC45:AC53) ->  | AR54: =_xlfn.TEXTJOIN("^",,AQ45:AQ53) -> 
P55: =_xlfn.TEXTJOIN("^",,N45:N54) ->  | AC55: 最终 | AD55: =_xlfn.TEXTJOIN("|",,AD44:AD54) -> 20^3|4^8|3^4^3|7^5|7|3^8^2|2^7^3 | AQ55: 最终 | AR55: =_xlfn.TEXTJOIN("^",,AR44:AR54) -> 3^3^3^3^5^5^5^9^9^15^15^15^15^15^22^22^22^22^22^22^35^35^35^35^35^35^45^45^45^45^45
O56: 最终 | P56: =_xlfn.TEXTJOIN("|",,P45:P55) -> 4^2^1|3^6|2^3^4|7^3^2|7|3^2^5|3^9|2^3^8|8^1|3^5^3
O57: =SUM(D45:N54) -> 99 | AC57: =SUM(S45:AB54) -> 89 | AQ57: =COUNT(AG45:AP54) -> 31 | AR57: =AC57+AQ57+O57 -> 219
E58: =E59-D59 -> 10 | F58: =F59-E59 -> 15 | G58: 15 | H58: 15 | I58: 5 | J58: 18 | K58: 17 | L58: 5 | M58: 15 | T58: =T59-S59 -> 12 | U58: 15 | V58: 16 | W58: 4 | X58: 15 | Y58: 20 | AH58: =AH59-AG59 -> 2 | AI58: 4 | AJ58: 6 | AK58: 8 | AL58: 10 | AM58: 12
A59: 3 | B59: 雪山-2 | C59: 波1·怪物 | D59: 5 | E59: 15 | F59: 30 | G59: 45 | H59: 60 | I59: 65 | J59: 83 | K59: 100 | L59: 105 | M59: 120 | Q59: 3 | R59: 波2·怪物 | S59: 3 | T59: 15 | U59: 30 | V59: 46 | W59: 50 | X59: 65 | Y59: 85 | AE59: 1 | AF59: 波3·怪物 | AG59: 3 | AH59: 5 | AI59: 9 | AJ59: 15 | AK59: 23 | AL59: 33 | AM59: 45
B60: 5m | C60: 8 | P60: =_xlfn.TEXTJOIN("^",,D60:D69) -> 70112^70114 | R60: 8 | AD60: =_xlfn.TEXTJOIN("^",,S60:S69) -> 70113^70112^70111 | AF60: 8 | AR60: =_xlfn.TEXTJOIN("^",,AG60:AG69) -> 70114^70112^70116^70112^70114
C61: 6 | P61: =_xlfn.TEXTJOIN("^",,E60:E69) -> 70111^70112 | R61: 6 | AD61: =_xlfn.TEXTJOIN("^",,T60:T69) -> 70111 | AF61: 6 | AK61: 70112 | AL61: 70112 | AM61: 70114 | AR61: =_xlfn.TEXTJOIN("^",,AH60:AH69) -> 70111^70111^70111
C62: 4 | P62: =_xlfn.TEXTJOIN("^",,F60:F69) -> 70112^70113^70111 | R62: 4 | AD62: =_xlfn.TEXTJOIN("^",,U60:U69) -> 70113^70113^70112 | AF62: 4 | AG62: 70114 | AH62: 70111 | AJ62: 70111 | AK62: 70114 | AL62: 70111 | AM62: 70112 | AR62: =_xlfn.TEXTJOIN("^",,AI60:AI69) -> 70115^70115^70115
C63: 2 | P63: =_xlfn.TEXTJOIN("^",,G60:G69) -> 70111^70112^70114 | R63: 2 | AD63: =_xlfn.TEXTJOIN("^",,V60:V69) -> 70112^70111^70113 | AF63: 2 | AG63: 70112 | AI63: 70115 | AJ63: 70113 | AK63: 70113 | AL63: 70111 | AR63: =_xlfn.TEXTJOIN("^",,AJ60:AJ69) -> 70111^70113^70114^70113^70111
C64: 1 | D64: 70112 | E64: 70111 | F64: 70112 | G64: 70111 | H64: 70113 | I64: 70115 | J64: 70112 | K64: 70112 | L64: 70115 | M64: 70113 | P64: =_xlfn.TEXTJOIN("^",,H60:H69) -> 70113^70112^70114 | R64: 1 | S64: 70113 | T64: 70111 | U64: 70113 | V64: 70112 | W64: 70115 | X64: 70112 | Y64: 70113 | AD64: =_xlfn.TEXTJOIN("^",,W60:W69) -> 70115^70116 | AF64: 1 | AG64: 70116 | AH64: 70111 | AI64: 70115 | AJ64: 70114 | AM64: 70113 | AR64: =_xlfn.TEXTJOIN("^",,AK60:AK69) -> 70112^70114^70113^70113^70114^70112
C65: 3 | D65: 70114 | E65: 70112 | F65: 70113 | G65: 70112 | H65: 70112 | J65: 70114 | K65: 70111 | M65: 70112 | P65: =_xlfn.TEXTJOIN("^",,I60:I69) -> 70115 | R65: 3 | S65: 70112 | U65: 70113 | V65: 70111 | W65: 70116 | X65: 70111 | Y65: 70111 | AD65: =_xlfn.TEXTJOIN("^",,X60:X69) -> 70112^70111^70113 | AF65: 3 | AG65: 70112 | AI65: 70115 | AJ65: 70113 | AK65: 70113 | AL65: 70111 | AR65: =_xlfn.TEXTJOIN("^",,AL60:AL69) -> 70112^70111^70111^70111^70111^70112
C66: 5 | F66: 70111 | G66: 70114 | H66: 70114 | K66: 70113 | M66: 70114 | P66: =_xlfn.TEXTJOIN("^",,J60:J69) -> 70112^70114 | R66: 5 | S66: 70111 | U66: 70112 | V66: 70113 | X66: 70113 | Y66: 70112 | AD66: =_xlfn.TEXTJOIN("^",,Y60:Y69) -> 70113^70111^70112 | AF66: 5 | AG66: 70114 | AH66: 70111 | AJ66: 70111 | AK66: 70114 | AL66: 70111 | AM66: 70112 | AR66: =_xlfn.TEXTJOIN("^",,AM60:AM69) -> 70114^70112^70113^70112^70114
C67: 7 | P67: =_xlfn.TEXTJOIN("^",,K60:K69) -> 70112^70111^70113 | R67: 7 | AD67: =_xlfn.TEXTJOIN("^",,Z60:Z69) ->  | AF67: 7 | AK67: 70112 | AL67: 70112 | AM67: 70114 | AR67: =_xlfn.TEXTJOIN("^",,AN60:AN69) -> 
C68: 9 | P68: =_xlfn.TEXTJOIN("^",,L60:L69) -> 70115 | R68: 9 | AD68: =_xlfn.TEXTJOIN("^",,AA60:AA69) ->  | AF68: 9 | AR68: =_xlfn.TEXTJOIN("^",,AO60:AO69) -> 
P69: =_xlfn.TEXTJOIN("^",,M60:M69) -> 70113^70112^70114 | AD69: =_xlfn.TEXTJOIN("^",,AB60:AB69) ->  | AR69: =_xlfn.TEXTJOIN("^",,AP60:AP69) -> 
P70: =_xlfn.TEXTJOIN("^",,N60:N69) ->  | AD70: =_xlfn.TEXTJOIN("^",,AC60:AC69) ->  | AR70: =_xlfn.TEXTJOIN("^",,AQ60:AQ69) -> 
O71: 最终 | P71: =_xlfn.TEXTJOIN("|",,P60:P70) -> 70112^70114|70111^70112|70112^70113^70111|70111^70112^70114|70113^70112^70114|70115|70112^70114|70112^70111^70113|70115|70113^70112^70114 | AC71: 最终 | AD71: =_xlfn.TEXTJOIN("|",,AD60:AD70) -> 70113^70112^70111|70111|70113^70113^70112|70112^70111^70113|70115^70116|70112^70111^70113|70113^70111^70112 | AQ71: 最终 | AR71: =_xlfn.TEXTJOIN("^",,AR60:AR70) -> 70114^70112^70116^70112^70114^70111^70111^70111^70115^70115^70115^70111^70113^70114^70113^70111^70112^70114^70113^70113^70114^70112^70112^70111^70111^70111^70111^70112^70114^70112^70113^70112^70114
C72: 8 | R72: 8 | AF72: 8
C73: 6 | R73: 6 | AF73: 6 | AK73: 独角兽 | AL73: 独角兽 | AM73: 木精灵
C74: 4 | R74: 4 | AF74: 4 | AG74: 木精灵 | AH74: 雪怪 | AJ74: 雪怪 | AK74: 木精灵 | AL74: 雪怪 | AM74: 独角兽
C75: 2 | R75: 2 | AF75: 2 | AG75: 独角兽 | AI75: 雪山蜘蛛 | AJ75: 雪原熊 | AK75: 雪原熊 | AL75: 雪怪
C76: 1 | D76: 独角兽 | E76: 雪怪 | F76: 独角兽 | G76: 雪怪 | H76: 雪原熊 | I76: 雪山蜘蛛 | J76: 独角兽 | K76: 独角兽 | L76: 雪山蜘蛛 | M76: 雪原熊 | R76: 1 | S76: 木精灵 | T76: 雪怪 | U76: 木精灵 | V76: 独角兽 | W76: 雪山蜘蛛 | X76: 独角兽 | Y76: 雪原熊 | AF76: 1 | AG76: 祭祀精英 | AH76: 雪怪 | AI76: 雪山蜘蛛 | AJ76: 木精灵 | AM76: 雪原熊
C77: 3 | D77: 木精灵 | E77: 独角兽 | F77: 雪原熊 | G77: 独角兽 | H77: 独角兽 | J77: 木精灵 | K77: 雪怪 | M77: 独角兽 | R77: 3 | S77: 独角兽 | U77: 雪原熊 | V77: 雪怪 | W77: 祭祀精英 | X77: 雪怪 | Y77: 雪怪 | AF77: 3 | AG77: 独角兽 | AI77: 雪山蜘蛛 | AJ77: 雪原熊 | AK77: 雪原熊 | AL77: 雪怪
C78: 5 | F78: 雪怪 | G78: 木精灵 | H78: 木精灵 | K78: 雪原熊 | M78: 木精灵 | R78: 5 | S78: 雪怪 | U78: 独角兽 | V78: 雪原熊 | X78: 木精灵 | Y78: 独角兽 | AF78: 5 | AG78: 木精灵 | AH78: 雪怪 | AJ78: 雪怪 | AK78: 木精灵 | AL78: 雪怪 | AM78: 独角兽
C79: 7 | R79: 7 | AF79: 7 | AK79: 独角兽 | AL79: 独角兽 | AM79: 木精灵
C80: 9 | R80: 9 | AF80: 9
C82: 位置 | D82: 5 | E82: 15 | F82: 30 | G82: 45 | H82: 60 | I82: 65 | J82: 83 | K82: 100 | L82: 105 | M82: 120 | R82: 位置 | S82: 3 | T82: 15 | U82: 30 | V82: 46 | W82: 50 | X82: 65 | Y82: 85 | AF82: 位置 | AG82: 3 | AH82: 5 | AI82: 9 | AJ82: 15 | AK82: 23 | AL82: 33 | AM82: 45 | AR82: =_xlfn.TEXTJOIN("^",,AG83:AG97) -> 4^2^1^3^5
C83: 8 | P83: =_xlfn.TEXTJOIN("^",,D83:D97) -> 0^0 | R83: 8 | AF83: 8 | AR83: =_xlfn.TEXTJOIN("^",,AH83:AH97) -> 4^1^5
C84: 6 | P84: =_xlfn.TEXTJOIN("^",,E83:E97) -> 0^0 | R84: 6 | AD84: =_xlfn.TEXTJOIN("^",,S83:S97) -> 0^0^0 | AF84: 6 | AK84: =$C84 -> 6 | AL84: 6 | AM84: 6 | AR84: =_xlfn.TEXTJOIN("^",,AI83:AI97) -> 102^103^104
C85: 4 | P85: =_xlfn.TEXTJOIN("^",,F83:F97) -> 0^0^0 | R85: 4 | AD85: =_xlfn.TEXTJOIN("^",,T83:T97) -> 0 | AF85: 4 | AG85: =$C85 -> 4 | AH85: 4 | AJ85: =$C85 -> 4 | AK85: 4 | AL85: 4 | AM85: 4 | AR85: =_xlfn.TEXTJOIN("^",,AJ83:AJ97) -> 4^2^1^3^5
C86: 2 | P86: =_xlfn.TEXTJOIN("^",,G83:G97) -> 0^0^0 | R86: 2 | AD86: =_xlfn.TEXTJOIN("^",,U83:U97) -> 0^0^0 | AF86: 2 | AG86: 2 | AJ86: 2 | AK86: 2 | AL86: 2 | AR86: =_xlfn.TEXTJOIN("^",,AK83:AK97) -> 6^4^2^3^5^7
C87: 1 | D87: 0 | E87: 0 | F87: 0 | G87: 0 | H87: 0 | I87: 100 | J87: 0 | K87: 0 | L87: 100 | M87: 0 | P87: =_xlfn.TEXTJOIN("^",,H83:H97) -> 0^0^0 | R87: 1 | S87: 0 | T87: 0 | U87: 0 | V87: 0 | W87: 100 | X87: 0 | Y87: 0 | AD87: =_xlfn.TEXTJOIN("^",,V83:V97) -> 0^0^0 | AF87: 1 | AG87: 1 | AH87: =$C87 -> 1 | AJ87: 1 | AM87: =$C87 -> 1 | AR87: =_xlfn.TEXTJOIN("^",,AL83:AL97) -> 6^4^2^3^5^7
C88: 3 | D88: 0 | E88: 0 | F88: 0 | G88: 0 | H88: 0 | J88: 0 | K88: 0 | M88: 0 | P88: =_xlfn.TEXTJOIN("^",,I83:I97) -> 100 | R88: 3 | S88: 0 | U88: 0 | V88: 0 | W88: 0 | X88: 0 | Y88: 0 | AD88: =_xlfn.TEXTJOIN("^",,W83:W97) -> 100^0 | AF88: 3 | AG88: =$C88 -> 3 | AJ88: 3 | AK88: 3 | AL88: 3 | AR88: =_xlfn.TEXTJOIN("^",,AM83:AM97) -> 6^4^1^5^7
C89: 5 | F89: 0 | G89: 0 | H89: 0 | K89: 0 | M89: 0 | P89: =_xlfn.TEXTJOIN("^",,J83:J97) -> 0^0 | R89: 5 | S89: 0 | U89: 0 | V89: 0 | X89: 0 | Y89: 0 | AD89: =_xlfn.TEXTJOIN("^",,X83:X97) -> 0^0^0 | AF89: 5 | AG89: 5 | AH89: 5 | AJ89: 5 | AK89: 5 | AL89: 5 | AM89: 5 | AR89: =_xlfn.TEXTJOIN("^",,AN83:AN97) -> 
C90: 7 | P90: =_xlfn.TEXTJOIN("^",,K83:K97) -> 0^0^0 | R90: 7 | AD90: =_xlfn.TEXTJOIN("^",,Y83:Y97) -> 0^0^0 | AF90: 7 | AK90: 7 | AL90: 7 | AM90: 7 | AR90: =_xlfn.TEXTJOIN("^",,AO83:AO97) -> 
C91: 9 | P91: =_xlfn.TEXTJOIN("^",,L83:L97) -> 100 | R91: 9 | AF91: 9 | AR91: =_xlfn.TEXTJOIN("^",,AP83:AP97) -> 
C92: 空降 | P92: =_xlfn.TEXTJOIN("^",,M83:M97) -> 0^0^0 | R92: 空降 | AF92: 空降 | AR92: =_xlfn.TEXTJOIN("^",,AQ83:AQ91) -> 
C93: 101 | P93: =_xlfn.TEXTJOIN("^",,N83:N97) ->  | R93: 101 | AD93: =_xlfn.TEXTJOIN("^",,Z83:Z97) ->  | AF93: 101
C94: 102 | R94: 102 | AD94: =_xlfn.TEXTJOIN("^",,AA83:AA97) ->  | AF94: 102 | AI94: =$C94 -> 102
C95: 103 | R95: 103 | AD95: =_xlfn.TEXTJOIN("^",,AB83:AB97) ->  | AF95: 103 | AI95: 103
C96: 104 | R96: 104 | AF96: 104 | AI96: =$C96 -> 104
C97: 105 | R97: 105 | AF97: 105
O98: 最终 | P98: =_xlfn.TEXTJOIN("|",,P83:P97) -> 0^0|0^0|0^0^0|0^0^0|0^0^0|100|0^0|0^0^0|100|0^0^0 | AC98: 最终 | AD98: =_xlfn.TEXTJOIN("|",,AD83:AD97) -> 0^0^0|0|0^0^0|0^0^0|100^0|0^0^0|0^0^0 | AQ98: 最终 | AR98: =_xlfn.TEXTJOIN("^",,AR82:AR97) -> 4^2^1^3^5^4^1^5^102^103^104^4^2^1^3^5^6^4^2^3^5^7^6^4^2^3^5^7^6^4^1^5^7
C100: 时间 | D100: 5 | E100: 15 | F100: 30 | G100: 45 | H100: 60 | I100: 65 | J100: 83 | K100: 100 | L100: 105 | M100: 120 | R100: 时间 | S100: 3 | T100: 15 | U100: 30 | V100: 46 | W100: 50 | X100: 65 | Y100: 85 | AD100: =_xlfn.TEXTJOIN("^",,S101:S109) -> 4^6^12 | AF100: 时间 | AG100: 3 | AH100: 5 | AI100: 9 | AJ100: 15 | AK100: 23 | AL100: 33 | AM100: 45 | AR100: =_xlfn.TEXTJOIN("^",,AG101:AG109) -> 3^3^3^3^3
C101: 8 | P101: =_xlfn.TEXTJOIN("^",,D101:D110) -> 4^2 | R101: 8 | AD101: =_xlfn.TEXTJOIN("^",,T101:T109) -> 12 | AF101: 8 | AR101: =_xlfn.TEXTJOIN("^",,AH101:AH109) -> 5^5^5
C102: 6 | P102: =_xlfn.TEXTJOIN("^",,E101:E110) -> 7^3 | R102: 6 | AD102: =_xlfn.TEXTJOIN("^",,U101:U109) -> 3^4^4 | AF102: 6 | AK102: =AK$100 -> 23 | AL102: 33 | AM102: =AM$100 -> 45 | AR102: =_xlfn.TEXTJOIN("^",,AI101:AI109) -> 9^9^9
C103: 4 | P103: =_xlfn.TEXTJOIN("^",,F101:F110) -> 3^3^5 | R103: 4 | AD103: =_xlfn.TEXTJOIN("^",,V101:V109) -> 3^8^2 | AF103: 4 | AG103: =AG$100 -> 3 | AH103: =AH$100 -> 5 | AJ103: =AJ$100 -> 15 | AK103: 23 | AL103: 33 | AM103: =AM$100 -> 45 | AR103: =_xlfn.TEXTJOIN("^",,AJ101:AJ109) -> 15^15^15^15^15
C104: 2 | P104: =_xlfn.TEXTJOIN("^",,G101:G110) -> 7^3^2 | R104: 2 | AD104: =_xlfn.TEXTJOIN("^",,W101:W109) -> 8^1 | AF104: 2 | AG104: 3 | AI104: =AI$100 -> 9 | AJ104: 15 | AK104: 23 | AL104: 33 | AR104: =_xlfn.TEXTJOIN("^",,AK101:AK109) -> 23^23^23^23^23^23
C105: 1 | D105: 4 | E105: 7 | F105: 3 | G105: 7 | H105: 4 | I105: 7 | J105: 6 | K105: 3 | L105: 8 | M105: 3 | P105: =_xlfn.TEXTJOIN("^",,H101:H110) -> 4^4^2 | R105: 1 | S105: 4 | T105: 12 | U105: 3 | V105: 3 | W105: 8 | X105: 3 | Y105: 3 | AD105: =_xlfn.TEXTJOIN("^",,X101:X109) -> 3^9^2 | AF105: 1 | AG105: 3 | AH105: =AH$100 -> 5 | AI105: =AI$100 -> 9 | AJ105: 15 | AM105: =AM$100 -> 45 | AR105: =_xlfn.TEXTJOIN("^",,AL101:AL109) -> 33^33^33^33^33^33
C106: 3 | D106: 2 | E106: 3 | F106: 3 | G106: 3 | H106: 4 | J106: 3 | K106: 7 | M106: 6 | P106: =_xlfn.TEXTJOIN("^",,I101:I110) -> 7 | R106: 3 | S106: 6 | U106: 4 | V106: 8 | W106: 1 | X106: 9 | Y106: 7 | AD106: =_xlfn.TEXTJOIN("^",,Y101:Y109) -> 3^7^4 | AF106: 3 | AG106: =AG$100 -> 3 | AI106: =AI$100 -> 9 | AJ106: 15 | AK106: 23 | AL106: 33 | AR106: =_xlfn.TEXTJOIN("^",,AM101:AM109) -> 45^45^45^45^45
C107: 5 | F107: 5 | G107: 2 | H107: 2 | K107: 3 | M107: 2 | P107: =_xlfn.TEXTJOIN("^",,J101:J110) -> 6^3 | R107: 5 | S107: 12 | U107: 4 | V107: 2 | X107: 2 | Y107: 4 | AD107: =_xlfn.TEXTJOIN("^",,Z101:Z109) ->  | AF107: 5 | AG107: 3 | AH107: =AH$100 -> 5 | AJ107: 15 | AK107: 23 | AL107: 33 | AM107: 45 | AR107: =_xlfn.TEXTJOIN("^",,AN101:AN109) -> 
C108: 7 | P108: =_xlfn.TEXTJOIN("^",,K101:K110) -> 3^7^3 | R108: 7 | AD108: =_xlfn.TEXTJOIN("^",,AA101:AA109) ->  | AF108: 7 | AK108: 23 | AL108: 33 | AM108: 45 | AR108: =_xlfn.TEXTJOIN("^",,AO101:AO109) -> 
C109: 9 | P109: =_xlfn.TEXTJOIN("^",,L101:L110) -> 8 | R109: 9 | AD109: =_xlfn.TEXTJOIN("^",,AB101:AB109) ->  | AF109: 9 | AR109: =_xlfn.TEXTJOIN("^",,AP101:AP109) -> 
P110: =_xlfn.TEXTJOIN("^",,M101:M110) -> 3^6^2 | AD110: =_xlfn.TEXTJOIN("^",,AC101:AC109) ->  | AR110: =_xlfn.TEXTJOIN("^",,AQ101:AQ109) -> 
P111: =_xlfn.TEXTJOIN("^",,N101:N110) ->  | AC111: 最终 | AD111: =_xlfn.TEXTJOIN("|",,AD100:AD110) -> 4^6^12|12|3^4^4|3^8^2|8^1|3^9^2|3^7^4 | AQ111: 最终 | AR111: =_xlfn.TEXTJOIN("^",,AR100:AR110) -> 3^3^3^3^3^5^5^5^9^9^9^15^15^15^15^15^23^23^23^23^23^23^33^33^33^33^33^33^45^45^45^45^45
O112: 最终 | P112: =_xlfn.TEXTJOIN("|",,P101:P111) -> 4^2|7^3|3^3^5|7^3^2|4^4^2|7|6^3|3^7^3|8|3^6^2
O113: =SUM(D101:N110) -> 97 | AC113: =SUM(S101:AB110) -> 95 | AQ113: =COUNT(AG101:AP110) -> 33 | AR113: =AC113+AQ113+O113 -> 225
E114: =E115-D115 -> 6 | F114: =F115-E115 -> 7 | G114: 8 | H114: 5 | I114: 10 | J114: 10 | K114: 10 | L114: 5 | M114: 10 | T114: =T115-S115 -> 12 | U114: 15 | V114: 16 | W114: 4 | X114: 15 | Y114: 20 | AH114: =AH115-AG115 -> 3 | AI114: 4 | AJ114: 5 | AK114: 6 | AL114: 7 | AM114: 8
A115: 1 | B115: 雪山-3 | C115: 波1·怪物 | D115: 4 | E115: 10 | F115: 17 | G115: 25 | H115: 30 | I115: 40 | J115: 50 | K115: 60 | L115: 65 | M115: 75 | Q115: 3 | R115: 波2·怪物 | S115: 3 | T115: 15 | U115: 30 | V115: 46 | W115: 50 | X115: 65 | Y115: 85 | AE115: 1 | AF115: 波3·怪物 | AG115: 2 | AH115: 5 | AI115: 9 | AJ115: 14 | AK115: 20 | AL115: 27 | AM115: 35
B116: 5m | C116: 8 | G116: 70122 | J116: 70122 | K116: 70121 | M116: 70124 | P116: =_xlfn.TEXTJOIN("^",,D116:D125) -> 70122^70121^70121^70122 | R116: 8 | AD116: =_xlfn.TEXTJOIN("^",,S116:S125) -> 70122^70121^70124 | AF116: 8 | AK116: 70124 | AR116: =_xlfn.TEXTJOIN("^",,AG116:AG125) -> 70121^70122^70122^70121
C117: 6 | E117: 70124 | F117: 70122 | I117: 70124 | K117: 70121 | P117: =_xlfn.TEXTJOIN("^",,E116:E125) -> 70124^70122^70122^70122^70124 | R117: 6 | AD117: =_xlfn.TEXTJOIN("^",,T116:T125) -> 70122^70121 | AF117: 6 | AJ117: 70122 | AL117: 70122 | AM117: 70124 | AR117: =_xlfn.TEXTJOIN("^",,AH116:AH125) -> 70124^70124^70124
C118: 4 | D118: 70122 | E118: 70122 | G118: 70124 | H118: 70125 | I118: 70122 | J118: 70121 | K118: 70123 | L118: 70125 | M118: 70122 | P118: =_xlfn.TEXTJOIN("^",,F116:F125) -> 70122^70123^70124^70123^70122 | R118: 4 | AD118: =_xlfn.TEXTJOIN("^",,U116:U125) -> 70123^70122^70124 | AF118: 4 | AG118: 70121 | AH118: 70124 | AJ118: 70121 | AK118: 70121 | AL118: 70121 | AM118: 70122 | AR118: =_xlfn.TEXTJOIN("^",,AI116:AI125) -> 70125^70125^70125
C119: 2 | D119: 70121 | F119: 70123 | G119: 70121 | H119: 70125 | I119: 70123 | J119: 70121 | L119: 70125 | M119: 70121 | P119: =_xlfn.TEXTJOIN("^",,G116:G125) -> 70122^70124^70121^70122^70121^70124^70122 | R119: 2 | AD119: =_xlfn.TEXTJOIN("^",,V116:V125) -> 70122^70121 | AF119: 2 | AG119: 70122 | AI119: 70125 | AJ119: 70123 | AK119: 70123 | AL119: 70121 | AM119: 70123 | AR119: =_xlfn.TEXTJOIN("^",,AJ116:AJ125) -> 70122^70121^70123^70123^70121^70122
C120: 1 | E120: 70122 | F120: 70124 | G120: 70122 | H120: 70125 | I120: 70122 | J120: 70122 | K120: 70124 | L120: 70125 | M120: 70126 | P120: =_xlfn.TEXTJOIN("^",,H116:H125) -> 70125^70125^70125^70125^70125 | R120: 1 | S120: 70122 | T120: 70122 | U120: 70123 | V120: 70122 | W120: 70125 | X120: 70122 | Y120: 70123 | AD120: =_xlfn.TEXTJOIN("^",,W116:W125) -> 70125^70127 | AF120: 1 | AH120: 70124 | AI120: 70125 | AR120: =_xlfn.TEXTJOIN("^",,AK116:AK125) -> 70124^70121^70123^70123^70121^70124
C121: 3 | D121: 70121 | F121: 70123 | G121: 70121 | H121: 70125 | I121: 70123 | J121: 70121 | L121: 70125 | M121: 70127 | P121: =_xlfn.TEXTJOIN("^",,I116:I125) -> 70124^70122^70123^70122^70123^70122^70124 | R121: 3 | S121: 70121 | T121: 70121 | U121: 70122 | V121: 70121 | W121: 70127 | X121: 70121 | Y121: 70121 | AD121: =_xlfn.TEXTJOIN("^",,X116:X125) -> 70122^70121^70124 | AF121: 3 | AG121: 70122 | AI121: 70125 | AJ121: 70123 | AK121: 70123 | AL121: 70121 | AM121: 70123 | AR121: =_xlfn.TEXTJOIN("^",,AL116:AL125) -> 70122^70121^70121^70121^70121^70122
C122: 5 | D122: 70122 | E122: 70122 | G122: 70124 | H122: 70125 | I122: 70122 | J122: 70121 | K122: 70123 | L122: 70125 | M122: 70122 | P122: =_xlfn.TEXTJOIN("^",,J116:J125) -> 70122^70121^70121^70122^70121^70121^70122 | R122: 5 | S122: 70124 | U122: 70124 | X122: 70124 | Y122: 70122 | AD122: =_xlfn.TEXTJOIN("^",,Y116:Y125) -> 70123^70121^70122 | AF122: 5 | AG122: 70121 | AH122: 70124 | AJ122: 70121 | AL122: 70121 | AM122: 70122 | AR122: =_xlfn.TEXTJOIN("^",,AM116:AM125) -> 70124^70122^70123^70123^70122^70124
C123: 7 | E123: 70124 | F123: 70122 | I123: 70124 | K123: 70121 | P123: =_xlfn.TEXTJOIN("^",,K116:K125) -> 70121^70121^70123^70124^70123^70121^70121 | R123: 7 | AD123: =_xlfn.TEXTJOIN("^",,Z116:Z125) ->  | AF123: 7 | AJ123: 70122 | AK123: 70121 | AL123: 70122 | AM123: 70124 | AR123: =_xlfn.TEXTJOIN("^",,AN116:AN125) -> 
C124: 9 | G124: 70122 | J124: 70122 | K124: 70121 | M124: 70124 | P124: =_xlfn.TEXTJOIN("^",,L116:L125) -> 70125^70125^70125^70125^70125 | R124: 9 | AD124: =_xlfn.TEXTJOIN("^",,AA116:AA125) ->  | AF124: 9 | AK124: 70124 | AR124: =_xlfn.TEXTJOIN("^",,AO116:AO125) -> 
P125: =_xlfn.TEXTJOIN("^",,M116:M125) -> 70124^70122^70121^70126^70127^70122^70124 | AD125: =_xlfn.TEXTJOIN("^",,AB116:AB125) ->  | AR125: =_xlfn.TEXTJOIN("^",,AP116:AP125) -> 
P126: =_xlfn.TEXTJOIN("^",,N116:N125) ->  | AD126: =_xlfn.TEXTJOIN("^",,AC116:AC125) ->  | AR126: =_xlfn.TEXTJOIN("^",,AQ116:AQ125) -> 
O127: 最终 | P127: =_xlfn.TEXTJOIN("^",,P116:P126) -> 70122^70121^70121^70122^70124^70122^70122^70122^70124^70122^70123^70124^70123^70122^70122^70124^70121^70122^70121^70124^70122^70125^70125^70125^70125^70125^70124^70122^70123^70122^70123^70122^70124^70122^70121^70121^70122^70121^70121^70122^70121^70121^70123^70124^70123^70121^70121^70125^70125^70125^70125^70125^70124^70122^70121^70126^70127^70122^70124 | AC127: 最终 | AD127: =_xlfn.TEXTJOIN("|",,AD116:AD126) -> 70122^70121^70124|70122^70121|70123^70122^70124|70122^70121|70125^70127|70122^70121^70124|70123^70121^70122 | AQ127: 最终 | AR127: =_xlfn.TEXTJOIN("^",,AR116:AR126) -> 70121^70122^70122^70121^70124^70124^70124^70125^70125^70125^70122^70121^70123^70123^70121^70122^70124^70121^70123^70123^70121^70124^70122^70121^70121^70121^70121^70122^70124^70122^70123^70123^70122^70124
C128: 8 | G128: 独角兽 | J128: 独角兽 | K128: 雪怪 | M128: 木精灵 | R128: 8 | AF128: 8 | AK128: 木精灵
C129: 6 | E129: 木精灵 | F129: 独角兽 | I129: 木精灵 | K129: 雪怪 | R129: 6 | AF129: 6 | AJ129: 独角兽 | AL129: 独角兽 | AM129: 木精灵
C130: 4 | D130: 独角兽 | E130: 独角兽 | G130: 木精灵 | H130: 雪山蜘蛛 | I130: 独角兽 | J130: 雪怪 | K130: 雪原熊 | L130: 雪山蜘蛛 | M130: 独角兽 | R130: 4 | AF130: 4 | AG130: 雪怪 | AH130: 木精灵 | AJ130: 雪怪 | AK130: 雪怪 | AL130: 雪怪 | AM130: 独角兽
C131: 2 | D131: 雪怪 | F131: 雪原熊 | G131: 雪怪 | H131: 雪山蜘蛛 | I131: 雪原熊 | J131: 雪怪 | L131: 雪山蜘蛛 | M131: 雪怪 | R131: 2 | AF131: 2 | AG131: 独角兽 | AI131: 雪山蜘蛛 | AJ131: 雪原熊 | AK131: 雪原熊 | AL131: 雪怪 | AM131: 雪原熊
C132: 1 | E132: 独角兽 | F132: 木精灵 | G132: 独角兽 | H132: 雪山蜘蛛 | I132: 独角兽 | J132: 独角兽 | K132: 木精灵 | L132: 雪山蜘蛛 | M132: 冰霜巨人 | R132: 1 | S132: 独角兽 | T132: 独角兽 | U132: 雪原熊 | V132: 独角兽 | W132: 雪山蜘蛛 | X132: 独角兽 | Y132: 雪原熊 | AF132: 1 | AH132: 木精灵 | AI132: 雪山蜘蛛
C133: 3 | D133: 雪怪 | F133: 雪原熊 | G133: 雪怪 | H133: 雪山蜘蛛 | I133: 雪原熊 | J133: 雪怪 | L133: 雪山蜘蛛 | M133: 祭祀精英 | R133: 3 | S133: 雪怪 | T133: 雪怪 | U133: 独角兽 | V133: 雪怪 | W133: 祭祀精英 | X133: 雪怪 | Y133: 雪怪 | AF133: 3 | AG133: 独角兽 | AI133: 雪山蜘蛛 | AJ133: 雪原熊 | AK133: 雪原熊 | AL133: 雪怪 | AM133: 雪原熊
C134: 5 | D134: 独角兽 | E134: 独角兽 | G134: 木精灵 | H134: 雪山蜘蛛 | I134: 独角兽 | J134: 雪怪 | K134: 雪原熊 | L134: 雪山蜘蛛 | M134: 独角兽 | R134: 5 | S134: 木精灵 | U134: 木精灵 | X134: 木精灵 | Y134: 独角兽 | AF134: 5 | AG134: 雪怪 | AH134: 木精灵 | AJ134: 雪怪 | AL134: 雪怪 | AM134: 独角兽
C135: 7 | E135: 木精灵 | F135: 独角兽 | I135: 木精灵 | K135: 雪怪 | R135: 7 | AF135: 7 | AJ135: 独角兽 | AK135: 雪怪 | AL135: 独角兽 | AM135: 木精灵
C136: 9 | G136: 独角兽 | J136: 独角兽 | K136: 雪怪 | M136: 木精灵 | R136: 9 | AF136: 9 | AK136: 木精灵
C138: 位置 | D138: 4 | E138: 10 | F138: 17 | G138: 25 | H138: 30 | I138: 40 | J138: 50 | K138: 60 | L138: 65 | M138: 75 | R138: 位置 | S138: 3 | T138: 15 | U138: 30 | V138: 46 | W138: 50 | X138: 65 | Y138: 85 | AF138: 位置 | AG138: 2 | AH138: 5 | AI138: 9 | AJ138: 14 | AK138: 20 | AL138: 27 | AM138: 35 | AR138: =_xlfn.TEXTJOIN("^",,AG139:AG153) -> 4^2^3^5
C139: 8 | G139: =$C139 -> 8 | J139: =$C139 -> 8 | K139: =$C139 -> 8 | M139: =$C139 -> 8 | P139: =_xlfn.TEXTJOIN("^",,D139:D153) -> 4^2^3^5 | R139: 8 | AF139: 8 | AK139: =$C139 -> 8 | AR139: =_xlfn.TEXTJOIN("^",,AH139:AH153) -> 4^1^5
C140: 6 | E140: =$C140 -> 6 | F140: =$C140 -> 6 | I140: =$C140 -> 6 | K140: =$C140 -> 6 | P140: =_xlfn.TEXTJOIN("^",,E139:E153) -> 6^4^1^5^7 | R140: 6 | AD140: =_xlfn.TEXTJOIN("^",,S139:S153) -> 0^0^0 | AF140: 6 | AJ140: =$C140 -> 6 | AL140: =$C140 -> 6 | AM140: 6 | AR140: =_xlfn.TEXTJOIN("^",,AI139:AI153) -> 102^103^104
C141: 4 | D141: =$C141 -> 4 | E141: =$C141 -> 4 | G141: =$C141 -> 4 | I141: 4 | J141: 4 | K141: 4 | M141: =$C141 -> 4 | P141: =_xlfn.TEXTJOIN("^",,F139:F153) -> 6^2^1^3^7 | R141: 4 | AD141: =_xlfn.TEXTJOIN("^",,T139:T153) -> 0^0 | AF141: 4 | AG141: =$C141 -> 4 | AH141: =$C141 -> 4 | AJ141: 4 | AK141: 4 | AL141: 4 | AM141: 4 | AR141: =_xlfn.TEXTJOIN("^",,AJ139:AJ153) -> 6^4^2^3^5^7
C142: 2 | D142: =$C142 -> 2 | F142: =$C142 -> 2 | G142: 2 | I142: 2 | J142: 2 | M142: =$C142 -> 2 | P142: =_xlfn.TEXTJOIN("^",,G139:G153) -> 8^4^2^1^3^5^9 | R142: 2 | AD142: =_xlfn.TEXTJOIN("^",,U139:U153) -> 0^0^0 | AF142: 2 | AG142: 2 | AJ142: 2 | AK142: 2 | AL142: 2 | AM142: 2 | AR142: =_xlfn.TEXTJOIN("^",,AK139:AK153) -> 8^4^2^3^7^9
C143: 1 | E143: =$C143 -> 1 | F143: 1 | G143: 1 | I143: 1 | J143: 1 | K143: =$C143 -> 1 | M143: =$C143 -> 1 | P143: =_xlfn.TEXTJOIN("^",,H139:H153) -> 101^102^103^104^105 | R143: 1 | S143: 0 | T143: 0 | U143: 0 | V143: 0 | W143: 100 | X143: 0 | Y143: 0 | AD143: =_xlfn.TEXTJOIN("^",,V139:V153) -> 0^0 | AF143: 1 | AH143: =$C143 -> 1 | AR143: =_xlfn.TEXTJOIN("^",,AL139:AL153) -> 6^4^2^3^5^7
C144: 3 | D144: =$C144 -> 3 | F144: 3 | G144: 3 | I144: 3 | J144: 3 | M144: =$C144 -> 3 | P144: =_xlfn.TEXTJOIN("^",,I139:I153) -> 6^4^2^1^3^5^7 | R144: 3 | S144: 0 | T144: 0 | U144: 0 | V144: 0 | W144: 0 | X144: 0 | Y144: 0 | AD144: =_xlfn.TEXTJOIN("^",,W139:W153) -> 100^0 | AF144: 3 | AG144: =$C144 -> 3 | AJ144: =$C144 -> 3 | AK144: =$C144 -> 3 | AL144: =$C144 -> 3 | AM144: 3 | AR144: =_xlfn.TEXTJOIN("^",,AM139:AM153) -> 6^4^2^3^5^7
C145: 5 | D145: =$C145 -> 5 | E145: =$C145 -> 5 | G145: 5 | I145: 5 | J145: 5 | K145: 5 | M145: =$C145 -> 5 | P145: =_xlfn.TEXTJOIN("^",,J139:J153) -> 8^4^2^1^3^5^9 | R145: 5 | S145: 0 | U145: 0 | X145: 0 | Y145: 0 | AD145: =_xlfn.TEXTJOIN("^",,X139:X153) -> 0^0^0 | AF145: 5 | AG145: 5 | AH145: =$C145 -> 5 | AJ145: 5 | AL145: 5 | AM145: 5 | AR145: =_xlfn.TEXTJOIN("^",,AN139:AN153) -> 
C146: 7 | E146: =$C146 -> 7 | F146: =$C146 -> 7 | I146: 7 | K146: 7 | P146: =_xlfn.TEXTJOIN("^",,K139:K153) -> 8^6^4^1^5^7^9 | R146: 7 | AD146: =_xlfn.TEXTJOIN("^",,Y139:Y153) -> 0^0^0 | AF146: 7 | AJ146: 7 | AK146: 7 | AL146: 7 | AM146: 7 | AR146: =_xlfn.TEXTJOIN("^",,AO139:AO153) -> 
C147: 9 | G147: =$C147 -> 9 | J147: =$C147 -> 9 | K147: =$C147 -> 9 | M147: =$C147 -> 9 | P147: =_xlfn.TEXTJOIN("^",,L139:L153) -> 101^102^103^104^105 | R147: 9 | AF147: 9 | AK147: 9 | AR147: =_xlfn.TEXTJOIN("^",,AP139:AP153) -> 
C148: 空降 | P148: =_xlfn.TEXTJOIN("^",,M139:M153) -> 8^4^2^1^3^5^9 | R148: 空降 | AF148: 空降 | AR148: =_xlfn.TEXTJOIN("^",,AQ139:AQ147) -> 
C149: 101 | H149: =$C149 -> 101 | L149: =$C149 -> 101 | P149: =_xlfn.TEXTJOIN("^",,N139:N153) ->  | R149: 101 | AD149: =_xlfn.TEXTJOIN("^",,Z139:Z153) ->  | AF149: 101
C150: 102 | H150: =$C150 -> 102 | L150: =$C150 -> 102 | R150: 102 | AD150: =_xlfn.TEXTJOIN("^",,AA139:AA153) ->  | AF150: 102 | AI150: =$C150 -> 102
C151: 103 | H151: =$C151 -> 103 | L151: =$C151 -> 103 | R151: 103 | AD151: =_xlfn.TEXTJOIN("^",,AB139:AB153) ->  | AF151: 103 | AI151: =$C151 -> 103
C152: 104 | H152: =$C152 -> 104 | L152: =$C152 -> 104 | R152: 104 | AF152: 104 | AI152: =$C152 -> 104
C153: 105 | H153: =$C153 -> 105 | L153: =$C153 -> 105 | R153: 105 | AF153: 105
O154: 最终 | P154: =_xlfn.TEXTJOIN("^",,P139:P153) -> 4^2^3^5^6^4^1^5^7^6^2^1^3^7^8^4^2^1^3^5^9^101^102^103^104^105^6^4^2^1^3^5^7^8^4^2^1^3^5^9^8^6^4^1^5^7^9^101^102^103^104^105^8^4^2^1^3^5^9 | AC154: 最终 | AD154: =_xlfn.TEXTJOIN("|",,AD139:AD153) -> 0^0^0|0^0|0^0^0|0^0|100^0|0^0^0|0^0^0 | AQ154: 最终 | AR154: =_xlfn.TEXTJOIN("^",,AR138:AR153) -> 4^2^3^5^4^1^5^102^103^104^6^4^2^3^5^7^8^4^2^3^7^9^6^4^2^3^5^7^6^4^2^3^5^7
C156: 时间 | D156: 4 | E156: 10 | F156: 17 | G156: 25 | H156: 30 | I156: 40 | J156: 50 | K156: 60 | L156: 65 | M156: 75 | R156: 时间 | S156: 3 | T156: 15 | U156: 30 | V156: 46 | W156: 50 | X156: 65 | Y156: 85 | AD156: =_xlfn.TEXTJOIN("^",,S157:S165) -> 5^16^3 | AF156: 时间 | AG156: 2 | AH156: 5 | AI156: 9 | AJ156: 14 | AK156: 20 | AL156: 27 | AM156: 35 | AR156: =_xlfn.TEXTJOIN("^",,AG157:AG165) -> 2^2^2^2
C157: 8 | G157: =G$156 -> 25 | J157: =J$156 -> 50 | K157: =K$156 -> 60 | M157: =M$156 -> 75 | P157: =_xlfn.TEXTJOIN("^",,D157:D166) -> 4^4^4^4 | R157: 8 | AD157: =_xlfn.TEXTJOIN("^",,T157:T165) -> 3^8 | AF157: 8 | AK157: =AK$156 -> 20 | AR157: =_xlfn.TEXTJOIN("^",,AH157:AH165) -> 5^5^5
C158: 6 | E158: =E$156 -> 10 | F158: =F$156 -> 17 | I158: =I$156 -> 40 | K158: 60 | P158: =_xlfn.TEXTJOIN("^",,E157:E166) -> 10^10^10^10^10 | R158: 6 | AD158: =_xlfn.TEXTJOIN("^",,U157:U165) -> 3^5^3 | AF158: 6 | AJ158: =AJ$156 -> 14 | AL158: =AL$156 -> 27 | AM158: =AM$156 -> 35 | AR158: =_xlfn.TEXTJOIN("^",,AI157:AI165) -> 9^9^9
C159: 4 | D159: =D$156 -> 4 | E159: =E$156 -> 10 | G159: =G$156 -> 25 | H159: =H$156 -> 30 | I159: 40 | J159: 50 | K159: 60 | L159: =L$156 -> 65 | M159: 75 | P159: =_xlfn.TEXTJOIN("^",,F157:F166) -> 17^17^17^17^17 | R159: 4 | AD159: =_xlfn.TEXTJOIN("^",,V157:V165) -> 4^8 | AF159: 4 | AG159: =AG$156 -> 2 | AH159: =AH$156 -> 5 | AJ159: 14 | AK159: 20 | AL159: 27 | AM159: 35 | AR159: =_xlfn.TEXTJOIN("^",,AJ157:AJ165) -> 14^14^14^14^14^14
C160: 2 | D160: 4 | F160: =F$156 -> 17 | G160: 25 | H160: =H$156 -> 30 | I160: 40 | J160: 50 | L160: 65 | M160: 75 | P160: =_xlfn.TEXTJOIN("^",,G157:G166) -> 25^25^25^25^25^25^25 | R160: 2 | AD160: =_xlfn.TEXTJOIN("^",,W157:W165) -> 8^1 | AF160: 2 | AG160: 2 | AI160: =AI$156 -> 9 | AJ160: 14 | AK160: 20 | AL160: 27 | AM160: 35 | AR160: =_xlfn.TEXTJOIN("^",,AK157:AK165) -> 20^20^20^20^20^20
C161: 1 | E161: =E$156 -> 10 | F161: 17 | G161: 25 | H161: =H$156 -> 30 | I161: 40 | J161: 50 | K161: =K$156 -> 60 | L161: 65 | M161: 75 | P161: =_xlfn.TEXTJOIN("^",,H157:H166) -> 30^30^30^30^30 | R161: 1 | S161: 5 | T161: 3 | U161: 3 | V161: 4 | W161: 8 | X161: 4 | Y161: 4 | AD161: =_xlfn.TEXTJOIN("^",,X157:X165) -> 4^10^2 | AF161: 1 | AH161: =AH$156 -> 5 | AI161: =AI$156 -> 9 | AR161: =_xlfn.TEXTJOIN("^",,AL157:AL165) -> 27^27^27^27^27^27
C162: 3 | D162: =D$156 -> 4 | F162: 17 | G162: 25 | H162: =H$156 -> 30 | I162: 40 | J162: 50 | L162: 65 | M162: 75 | P162: =_xlfn.TEXTJOIN("^",,I157:I166) -> 40^40^40^40^40^40^40 | R162: 3 | S162: 16 | T162: 8 | U162: 5 | V162: 8 | W162: 1 | X162: 10 | Y162: 12 | AD162: =_xlfn.TEXTJOIN("^",,Y157:Y165) -> 4^12^3 | AF162: 3 | AG162: =AG$156 -> 2 | AI162: =AI$156 -> 9 | AJ162: =AJ$156 -> 14 | AK162: =AK$156 -> 20 | AL162: =AL$156 -> 27 | AM162: 35 | AR162: =_xlfn.TEXTJOIN("^",,AM157:AM165) -> 35^35^35^35^35^35
C163: 5 | D163: =D$156 -> 4 | E163: =E$156 -> 10 | G163: 25 | H163: =H$156 -> 30 | I163: 40 | J163: 50 | K163: 60 | L163: 65 | M163: 75 | P163: =_xlfn.TEXTJOIN("^",,J157:J166) -> 50^50^50^50^50^50^50 | R163: 5 | S163: 3 | U163: 3 | X163: 2 | Y163: 3 | AD163: =_xlfn.TEXTJOIN("^",,Z157:Z165) ->  | AF163: 5 | AG163: 2 | AH163: =AH$156 -> 5 | AJ163: 14 | AL163: 27 | AM163: 35 | AR163: =_xlfn.TEXTJOIN("^",,AN157:AN165) -> 
C164: 7 | E164: =E$156 -> 10 | F164: =F$156 -> 17 | I164: 40 | K164: 60 | P164: =_xlfn.TEXTJOIN("^",,K157:K166) -> 60^60^60^60^60^60^60 | R164: 7 | AD164: =_xlfn.TEXTJOIN("^",,AA157:AA165) ->  | AF164: 7 | AJ164: 14 | AK164: 20 | AL164: 27 | AM164: 35 | AR164: =_xlfn.TEXTJOIN("^",,AO157:AO165) -> 
C165: 9 | G165: =G$156 -> 25 | J165: =J$156 -> 50 | K165: 60 | M165: =M$156 -> 75 | P165: =_xlfn.TEXTJOIN("^",,L157:L166) -> 65^65^65^65^65 | R165: 9 | AD165: =_xlfn.TEXTJOIN("^",,AB157:AB165) ->  | AF165: 9 | AK165: 20 | AR165: =_xlfn.TEXTJOIN("^",,AP157:AP165) -> 
P166: =_xlfn.TEXTJOIN("^",,M157:M166) -> 75^75^75^75^75^75^75 | AD166: =_xlfn.TEXTJOIN("^",,AC157:AC165) ->  | AR166: =_xlfn.TEXTJOIN("^",,AQ157:AQ165) -> 
P167: =_xlfn.TEXTJOIN("^",,N157:N166) ->  | AC167: 最终 | AD167: =_xlfn.TEXTJOIN("|",,AD156:AD166) -> 5^16^3|3^8|3^5^3|4^8|8^1|4^10^2|4^12^3 | AQ167: 最终 | AR167: =_xlfn.TEXTJOIN("^",,AR156:AR166) -> 2^2^2^2^5^5^5^9^9^9^14^14^14^14^14^14^20^20^20^20^20^20^27^27^27^27^27^27^35^35^35^35^35^35
O168: 最终 | P168: =_xlfn.TEXTJOIN("^",,P157:P167) -> 4^4^4^4^10^10^10^10^10^17^17^17^17^17^25^25^25^25^25^25^25^30^30^30^30^30^40^40^40^40^40^40^40^50^50^50^50^50^50^50^60^60^60^60^60^60^60^65^65^65^65^65^75^75^75^75^75^75^75
O169: =COUNT(D157:N166) -> 59 | AC169: =SUM(S157:AB166) -> 102 | AQ169: =COUNT(AG157:AP166) -> 34 | AR169: =AC169+AQ169+O169 -> 195

Sheet 5
E2: =E3-D3 -> 10 | F2: =F3-E3 -> 15 | G2: 16 | H2: 14 | I2: 15 | J2: 16 | K2: 17 | L2: 18 | M2: 4 | T2: =T3-S3 -> 6 | U2: 10 | V2: 15 | W2: 5 | X2: 15 | Y2: 17 | Z2: 18 | AH2: =AH3-AG3 -> 2 | AI2: 4 | AJ2: 7 | AK2: 7 | AL2: 8 | AM2: 10
A3: 3 | B3: 火山-1 | C3: 波1·怪物 | D3: 5 | E3: 15 | F3: 30 | G3: 46 | H3: 60 | I3: 75 | J3: 91 | K3: 108 | L3: 126 | M3: 130 | Q3: 3 | R3: 波2·怪物 | S3: 4 | T3: 10 | U3: 20 | V3: 35 | W3: 40 | X3: 55 | Y3: 72 | Z3: 90 | AE3: 1 | AF3: 波3·怪物 | AG3: 2 | AH3: 4 | AI3: 8 | AJ3: 15 | AK3: 22 | AL3: 30 | AM3: 40
B4: 5m | C4: 8 | P4: =_xlfn.TEXTJOIN("^",,D4:D13) -> 70131^70132 | R4: 8 | AD4: =_xlfn.TEXTJOIN("^",,S4:S13) -> 70131^70132 | AF4: 8 | AK4: 70134 | AR4: =_xlfn.TEXTJOIN("^",,AG4:AG13) -> 70131^70131^70131^70131^70131
C5: 6 | P5: =_xlfn.TEXTJOIN("^",,E4:E13) -> 70132^70134 | R5: 6 | AD5: =_xlfn.TEXTJOIN("^",,T4:T13) -> 70132^70134^70133 | AF5: 6 | AK5: 70132 | AL5: 70132 | AM5: 70134 | AR5: =_xlfn.TEXTJOIN("^",,AH4:AH13) -> 70132^70134^70132
C6: 4 | P6: =_xlfn.TEXTJOIN("^",,F4:F13) -> 70131^70133^70132 | R6: 4 | AD6: =_xlfn.TEXTJOIN("^",,U4:U13) -> 70133^70131^70134 | AF6: 4 | AG6: 70131 | AH6: 70132 | AI6: 70135 | AJ6: 70132 | AL6: 70131 | AM6: 70132 | AR6: =_xlfn.TEXTJOIN("^",,AI4:AI13) -> 70135^70135^70135
C7: 2 | P7: =_xlfn.TEXTJOIN("^",,G4:G13) -> 70131^70132^70134 | R7: 2 | AD7: =_xlfn.TEXTJOIN("^",,V4:V13) -> 70132^70131 | AF7: 2 | AG7: 70131 | AJ7: 70133 | AK7: 70131 | AL7: 70133 | AR7: =_xlfn.TEXTJOIN("^",,AJ4:AJ13) -> 70132^70133^70134^70133^70132
C8: 1 | D8: 70131 | E8: 70132 | F8: 70131 | G8: 70131 | H8: 70135 | I8: 70133 | J8: 70133 | K8: 70132 | L8: 70133 | M8: 70135 | P8: =_xlfn.TEXTJOIN("^",,H4:H13) -> 70135 | R8: 1 | S8: 70131 | T8: 70132 | U8: 70133 | V8: 70132 | W8: 70135 | X8: 70133 | Y8: 70133 | Z8: 70133 | AD8: =_xlfn.TEXTJOIN("^",,W4:W13) -> 70135^70136 | AF8: 1 | AG8: 70131 | AH8: 70134 | AI8: 70135 | AJ8: 70134 | AK8: 70131 | AL8: 70133 | AM8: 70132 | AR8: =_xlfn.TEXTJOIN("^",,AK4:AK13) -> 70134^70132^70131^70131^70131^70132^70134
C9: 3 | D9: 70132 | E9: 70134 | F9: 70133 | G9: 70132 | I9: 70132 | J9: 70132 | K9: 70131 | L9: 70132 | M9: 70136 | P9: =_xlfn.TEXTJOIN("^",,I4:I13) -> 70133^70132^70134 | R9: 3 | S9: 70132 | T9: 70134 | U9: 70131 | V9: 70131 | W9: 70136 | X9: 70131 | Y9: 70131 | Z9: 70131 | AD9: =_xlfn.TEXTJOIN("^",,X4:X13) -> 70133^70131^70134 | AF9: 3 | AG9: 70131 | AJ9: 70133 | AK9: 70131 | AL9: 70133 | AR9: =_xlfn.TEXTJOIN("^",,AL4:AL13) -> 70132^70131^70133^70133^70133^70131^70132
C10: 5 | F10: 70132 | G10: 70134 | I10: 70134 | J10: 70131 | L10: 70134 | P10: =_xlfn.TEXTJOIN("^",,J4:J13) -> 70133^70132^70131 | R10: 5 | T10: 70133 | U10: 70134 | X10: 70134 | Y10: 70132 | Z10: 70132 | AD10: =_xlfn.TEXTJOIN("^",,Y4:Y13) -> 70133^70131^70132 | AF10: 5 | AG10: 70131 | AH10: 70132 | AI10: 70135 | AJ10: 70132 | AL10: 70131 | AM10: 70132 | AR10: =_xlfn.TEXTJOIN("^",,AM4:AM13) -> 70134^70132^70132^70132^70134
C11: 7 | P11: =_xlfn.TEXTJOIN("^",,K4:K13) -> 70132^70131 | R11: 7 | AD11: =_xlfn.TEXTJOIN("^",,Z4:Z13) -> 70133^70131^70132 | AF11: 7 | AK11: 70132 | AL11: 70132 | AM11: 70134 | AR11: =_xlfn.TEXTJOIN("^",,AN4:AN13) -> 
C12: 9 | P12: =_xlfn.TEXTJOIN("^",,L4:L13) -> 70133^70132^70134 | R12: 9 | AD12: =_xlfn.TEXTJOIN("^",,AA4:AA13) ->  | AF12: 9 | AK12: 70134 | AR12: =_xlfn.TEXTJOIN("^",,AO4:AO13) -> 
P13: =_xlfn.TEXTJOIN("^",,M4:M13) -> 70135^70136 | AD13: =_xlfn.TEXTJOIN("^",,AB4:AB13) ->  | AR13: =_xlfn.TEXTJOIN("^",,AP4:AP13) -> 
P14: =_xlfn.TEXTJOIN("^",,N4:N13) ->  | AD14: =_xlfn.TEXTJOIN("^",,AC4:AC13) ->  | AR14: =_xlfn.TEXTJOIN("^",,AQ4:AQ13) -> 
O15: 最终 | P15: =_xlfn.TEXTJOIN("|",,P4:P14) -> 70131^70132|70132^70134|70131^70133^70132|70131^70132^70134|70135|70133^70132^70134|70133^70132^70131|70132^70131|70133^70132^70134|70135^70136 | AC15: 最终 | AD15: =_xlfn.TEXTJOIN("|",,AD4:AD14) -> 70131^70132|70132^70134^70133|70133^70131^70134|70132^70131|70135^70136|70133^70131^70134|70133^70131^70132|70133^70131^70132 | AQ15: 最终 | AR15: =_xlfn.TEXTJOIN("^",,AR4:AR14) -> 70131^70131^70131^70131^70131^70132^70134^70132^70135^70135^70135^70132^70133^70134^70133^70132^70134^70132^70131^70131^70131^70132^70134^70132^70131^70133^70133^70133^70131^70132^70134^70132^70132^70132^70134
C16: 8 | R16: 8 | AF16: 8 | AK16: 火精灵
C17: 6 | R17: 6 | AF17: 6 | AK17: 岩浆人 | AL17: 岩浆人 | AM17: 火精灵
C18: 4 | R18: 4 | AF18: 4 | AG18: 岩浆蝎 | AH18: 岩浆人 | AI18: 火山蜘蛛 | AJ18: 岩浆人 | AL18: 岩浆蝎 | AM18: 岩浆人
C19: 2 | R19: 2 | AF19: 2 | AG19: 岩浆蝎 | AJ19: 岩浆战士 | AK19: 岩浆蝎 | AL19: 岩浆战士
C20: 1 | D20: 岩浆蝎 | E20: 岩浆人 | F20: 岩浆蝎 | G20: 岩浆蝎 | H20: 火山蜘蛛 | I20: 岩浆战士 | J20: 岩浆战士 | K20: 岩浆人 | L20: 岩浆战士 | M20: 火山蜘蛛 | R20: 1 | S20: 岩浆蝎 | T20: 岩浆人 | U20: 岩浆战士 | V20: 岩浆人 | W20: 火山蜘蛛 | X20: 岩浆战士 | Y20: 岩浆战士 | Z20: 岩浆战士 | AF20: 1 | AG20: 岩浆蝎 | AH20: 火精灵 | AI20: 火山蜘蛛 | AJ20: 火精灵 | AK20: 岩浆蝎 | AL20: 岩浆战士 | AM20: 岩浆人
C21: 3 | D21: 岩浆人 | E21: 火精灵 | F21: 岩浆战士 | G21: 岩浆人 | I21: 岩浆人 | J21: 岩浆人 | K21: 岩浆蝎 | L21: 岩浆人 | M21: 野蛮战士 | R21: 3 | S21: 岩浆人 | T21: 火精灵 | U21: 岩浆蝎 | V21: 岩浆蝎 | W21: 野蛮战士 | X21: 岩浆蝎 | Y21: 岩浆蝎 | Z21: 岩浆蝎 | AF21: 3 | AG21: 岩浆蝎 | AJ21: 岩浆战士 | AK21: 岩浆蝎 | AL21: 岩浆战士
C22: 5 | F22: 岩浆人 | G22: 火精灵 | I22: 火精灵 | J22: 岩浆蝎 | L22: 火精灵 | R22: 5 | T22: 岩浆战士 | U22: 火精灵 | X22: 火精灵 | Y22: 岩浆人 | Z22: 岩浆人 | AF22: 5 | AG22: 岩浆蝎 | AH22: 岩浆人 | AI22: 火山蜘蛛 | AJ22: 岩浆人 | AL22: 岩浆蝎 | AM22: 岩浆人
C23: 7 | R23: 7 | AF23: 7 | AK23: 岩浆人 | AL23: 岩浆人 | AM23: 火精灵
C24: 9 | R24: 9 | AF24: 9 | AK24: 火精灵
C26: 位置 | D26: 5 | E26: 15 | F26: 30 | G26: 46 | H26: 60 | I26: 75 | J26: 91 | K26: 108 | L26: 126 | M26: 130 | R26: 位置 | S26: 4 | T26: 10 | U26: 20 | V26: 35 | W26: 40 | X26: 55 | Y26: 72 | Z26: 90 | AF26: 位置 | AG26: 2 | AH26: 4 | AI26: 8 | AJ26: 15 | AK26: 22 | AL26: 30 | AM26: 40 | AR26: =_xlfn.TEXTJOIN("^",,AG27:AG41) -> 4^2^1^3^5
C27: 8 | P27: =_xlfn.TEXTJOIN("^",,D27:D41) -> 0^0 | R27: 8 | AF27: 8 | AK27: =$C27 -> 8 | AR27: =_xlfn.TEXTJOIN("^",,AH27:AH41) -> 4^1^5
C28: 6 | P28: =_xlfn.TEXTJOIN("^",,E27:E41) -> 0^0 | R28: 6 | AD28: =_xlfn.TEXTJOIN("^",,S27:S41) -> 0^0 | AF28: 6 | AK28: 6 | AL28: 6 | AM28: 6 | AR28: =_xlfn.TEXTJOIN("^",,AI27:AI41) -> 101^103^105
C29: 4 | P29: =_xlfn.TEXTJOIN("^",,F27:F41) -> 0^0^0 | R29: 4 | AD29: =_xlfn.TEXTJOIN("^",,T27:T41) -> 0^0^0 | AF29: 4 | AG29: =$C29 -> 4 | AH29: 4 | AJ29: =$C29 -> 4 | AL29: 4 | AM29: 4 | AR29: =_xlfn.TEXTJOIN("^",,AJ27:AJ41) -> 4^2^1^3^5
C30: 2 | P30: =_xlfn.TEXTJOIN("^",,G27:G41) -> 0^0^0 | R30: 2 | AD30: =_xlfn.TEXTJOIN("^",,U27:U41) -> 0^0^0 | AF30: 2 | AG30: 2 | AJ30: 2 | AK30: 2 | AL30: 2 | AR30: =_xlfn.TEXTJOIN("^",,AK27:AK41) -> 8^6^2^1^3^7^9
C31: 1 | D31: 0 | E31: 0 | F31: 0 | G31: 0 | H31: 100 | I31: 0 | J31: 0 | K31: 0 | L31: 0 | M31: 100 | P31: =_xlfn.TEXTJOIN("^",,H27:H41) -> 100 | R31: 1 | S31: 0 | T31: 0 | U31: 0 | V31: 0 | W31: 100 | X31: 0 | Y31: 0 | Z31: 0 | AD31: =_xlfn.TEXTJOIN("^",,V27:V41) -> 0^0 | AF31: 1 | AG31: 1 | AH31: =$C31 -> 1 | AJ31: 1 | AK31: 1 | AL31: 1 | AM31: =$C31 -> 1 | AR31: =_xlfn.TEXTJOIN("^",,AL27:AL41) -> 6^4^2^1^3^5^7
C32: 3 | D32: 0 | E32: 0 | F32: 0 | G32: 0 | I32: 0 | J32: 0 | K32: 0 | L32: 0 | M32: 0 | P32: =_xlfn.TEXTJOIN("^",,I27:I41) -> 0^0^0 | R32: 3 | S32: 0 | T32: 0 | U32: 0 | V32: 0 | W32: 0 | X32: 0 | Y32: 0 | Z32: 0 | AD32: =_xlfn.TEXTJOIN("^",,W27:W41) -> 100^0 | AF32: 3 | AG32: =$C32 -> 3 | AJ32: 3 | AK32: 3 | AL32: 3 | AR32: =_xlfn.TEXTJOIN("^",,AM27:AM41) -> 6^4^1^5^7
C33: 5 | F33: 0 | G33: 0 | I33: 0 | J33: 0 | L33: 0 | P33: =_xlfn.TEXTJOIN("^",,J27:J41) -> 0^0^0 | R33: 5 | T33: 0 | U33: 0 | X33: 0 | Y33: 0 | Z33: 0 | AD33: =_xlfn.TEXTJOIN("^",,X27:X41) -> 0^0^0 | AF33: 5 | AG33: 5 | AH33: 5 | AJ33: 5 | AL33: 5 | AM33: 5 | AR33: =_xlfn.TEXTJOIN("^",,AN27:AN41) -> 
C34: 7 | P34: =_xlfn.TEXTJOIN("^",,K27:K41) -> 0^0 | R34: 7 | AD34: =_xlfn.TEXTJOIN("^",,Y27:Y41) -> 0^0^0 | AF34: 7 | AK34: =$C34 -> 7 | AL34: 7 | AM34: 7 | AR34: =_xlfn.TEXTJOIN("^",,AO27:AO41) -> 
C35: 9 | P35: =_xlfn.TEXTJOIN("^",,L27:L41) -> 0^0^0 | R35: 9 | AF35: 9 | AK35: 9 | AR35: =_xlfn.TEXTJOIN("^",,AP27:AP41) -> 
C36: 空降 | P36: =_xlfn.TEXTJOIN("^",,M27:M41) -> 100^0 | R36: 空降 | AF36: 空降 | AR36: =_xlfn.TEXTJOIN("^",,AQ27:AQ35) -> 
C37: 101 | P37: =_xlfn.TEXTJOIN("^",,N27:N41) ->  | R37: 101 | AD37: =_xlfn.TEXTJOIN("^",,Z27:Z41) -> 0^0^0 | AF37: 101 | AI37: =$C37 -> 101
C38: 102 | R38: 102 | AD38: =_xlfn.TEXTJOIN("^",,AA27:AA41) ->  | AF38: 102
C39: 103 | R39: 103 | AD39: =_xlfn.TEXTJOIN("^",,AB27:AB41) ->  | AF39: 103 | AI39: =$C39 -> 103
C40: 104 | R40: 104 | AF40: 104
C41: 105 | R41: 105 | AF41: 105 | AI41: =$C41 -> 105
O42: 最终 | P42: =_xlfn.TEXTJOIN("|",,P27:P41) -> 0^0|0^0|0^0^0|0^0^0|100|0^0^0|0^0^0|0^0|0^0^0|100^0 | AC42: 最终 | AD42: =_xlfn.TEXTJOIN("|",,AD27:AD41) -> 0^0|0^0^0|0^0^0|0^0|100^0|0^0^0|0^0^0|0^0^0 | AQ42: 最终 | AR42: =_xlfn.TEXTJOIN("^",,AR26:AR41) -> 4^2^1^3^5^4^1^5^101^103^105^4^2^1^3^5^8^6^2^1^3^7^9^6^4^2^1^3^5^7^6^4^1^5^7
C44: 时间 | D44: 5 | E44: 15 | F44: 30 | G44: 46 | H44: 60 | I44: 75 | J44: 91 | K44: 108 | L44: 126 | M44: 130 | R44: 时间 | S44: 4 | T44: 10 | U44: 20 | V44: 35 | W44: 40 | X44: 55 | Y44: 72 | Z44: 90 | AD44: =_xlfn.TEXTJOIN("^",,S45:S53) -> 16^6 | AF44: 时间 | AG44: 2 | AH44: 4 | AI44: 8 | AJ44: 15 | AK44: 22 | AL44: 30 | AM44: 40 | AR44: =_xlfn.TEXTJOIN("^",,AG45:AG53) -> 2^2^2^2^2
C45: 8 | P45: =_xlfn.TEXTJOIN("^",,D45:D54) -> 6^2 | R45: 8 | AD45: =_xlfn.TEXTJOIN("^",,T45:T53) -> 5^3^2 | AF45: 8 | AK45: =AK$44 -> 22 | AR45: =_xlfn.TEXTJOIN("^",,AH45:AH53) -> 4^4^4
C46: 6 | P46: =_xlfn.TEXTJOIN("^",,E45:E54) -> 4^3 | R46: 6 | AD46: =_xlfn.TEXTJOIN("^",,U45:U53) -> 2^8^2 | AF46: 6 | AK46: 22 | AL46: 30 | AM46: =AM$44 -> 40 | AR46: =_xlfn.TEXTJOIN("^",,AI45:AI53) -> 8^8^8
C47: 4 | P47: =_xlfn.TEXTJOIN("^",,F45:F54) -> 6^2^3 | R47: 4 | AD47: =_xlfn.TEXTJOIN("^",,V45:V53) -> 4^8 | AF47: 4 | AG47: =AG$44 -> 2 | AH47: =AH$44 -> 4 | AI47: =AI$44 -> 8 | AJ47: =AJ$44 -> 15 | AL47: 30 | AM47: =AM$44 -> 40 | AR47: =_xlfn.TEXTJOIN("^",,AJ45:AJ53) -> 15^15^15^15^15
C48: 2 | P48: =_xlfn.TEXTJOIN("^",,G45:G54) -> 7^3^2 | R48: 2 | AD48: =_xlfn.TEXTJOIN("^",,W45:W53) -> 8^1 | AF48: 2 | AG48: 2 | AJ48: 15 | AK48: =AK$44 -> 22 | AL48: 30 | AR48: =_xlfn.TEXTJOIN("^",,AK45:AK53) -> 22^22^22^22^22^22^22
C49: 1 | D49: 6 | E49: 4 | F49: 6 | G49: 7 | H49: 8 | I49: 3 | J49: 2 | K49: 4 | L49: 3 | M49: 8 | P49: =_xlfn.TEXTJOIN("^",,H45:H54) -> 8 | R49: 1 | S49: 16 | T49: 5 | U49: 2 | V49: 4 | W49: 8 | X49: 2 | Y49: 2 | Z49: 3 | AD49: =_xlfn.TEXTJOIN("^",,X45:X53) -> 2^9^2 | AF49: 1 | AG49: 2 | AH49: =AH$44 -> 4 | AI49: =AI$44 -> 8 | AJ49: 15 | AK49: =AK$44 -> 22 | AL49: 30 | AM49: =AM$44 -> 40 | AR49: =_xlfn.TEXTJOIN("^",,AL45:AL53) -> 30^30^30^30^30^30^30
C50: 3 | D50: 2 | E50: 3 | F50: 2 | G50: 3 | I50: 4 | J50: 3 | K50: 8 | L50: 4 | M50: 1 | P50: =_xlfn.TEXTJOIN("^",,I45:I54) -> 3^4^3 | R50: 3 | S50: 6 | T50: 3 | U50: 8 | V50: 8 | W50: 1 | X50: 9 | Y50: 9 | Z50: 8 | AD50: =_xlfn.TEXTJOIN("^",,Y45:Y53) -> 2^9^3 | AF50: 3 | AG50: =AG$44 -> 2 | AJ50: 15 | AK50: =AK$44 -> 22 | AL50: =AL$44 -> 30 | AR50: =_xlfn.TEXTJOIN("^",,AM45:AM53) -> 40^40^40^40^40
C51: 5 | F51: 3 | G51: 2 | I51: 3 | J51: 8 | L51: 2 | P51: =_xlfn.TEXTJOIN("^",,J45:J54) -> 2^3^8 | R51: 5 | T51: 2 | U51: 2 | X51: 2 | Y51: 3 | Z51: 4 | AD51: =_xlfn.TEXTJOIN("^",,Z45:Z53) -> 3^8^4 | AF51: 5 | AG51: 2 | AH51: =AH$44 -> 4 | AI51: =AI$44 -> 8 | AJ51: 15 | AL51: 30 | AM51: 40 | AR51: =_xlfn.TEXTJOIN("^",,AN45:AN53) -> 
C52: 7 | P52: =_xlfn.TEXTJOIN("^",,K45:K54) -> 4^8 | R52: 7 | AD52: =_xlfn.TEXTJOIN("^",,AA45:AA53) ->  | AF52: 7 | AK52: =AK$44 -> 22 | AL52: 30 | AM52: 40 | AR52: =_xlfn.TEXTJOIN("^",,AO45:AO53) -> 
C53: 9 | P53: =_xlfn.TEXTJOIN("^",,L45:L54) -> 3^4^2 | R53: 9 | AD53: =_xlfn.TEXTJOIN("^",,AB45:AB53) ->  | AF53: 9 | AK53: 22 | AR53: =_xlfn.TEXTJOIN("^",,AP45:AP53) -> 
P54: =_xlfn.TEXTJOIN("^",,M45:M54) -> 8^1 | AD54: =_xlfn.TEXTJOIN("^",,AC45:AC53) ->  | AR54: =_xlfn.TEXTJOIN("^",,AQ45:AQ53) -> 
P55: =_xlfn.TEXTJOIN("^",,N45:N54) ->  | AC55: 最终 | AD55: =_xlfn.TEXTJOIN("|",,AD44:AD54) -> 16^6|5^3^2|2^8^2|4^8|8^1|2^9^2|2^9^3|3^8^4 | AQ55: 最终 | AR55: =_xlfn.TEXTJOIN("^",,AR44:AR54) -> 2^2^2^2^2^4^4^4^8^8^8^15^15^15^15^15^22^22^22^22^22^22^22^30^30^30^30^30^30^30^40^40^40^40^40
O56: 最终 | P56: =_xlfn.TEXTJOIN("|",,P45:P55) -> 6^2|4^3|6^2^3|7^3^2|8|3^4^3|2^3^8|4^8|3^4^2|8^1
O57: =SUM(D45:N54) -> 99 | AC57: =SUM(S45:AB54) -> 107 | AQ57: =COUNT(AG45:AP54) -> 35 | AR57: =AC57+AQ57+O57 -> 241
E58: =E59-D59 -> 9 | F58: =F59-E59 -> 15 | G58: 16 | H58: 4 | I58: 15 | J58: 5 | K58: 15 | L58: 5 | M58: 15 | T58: =T59-S59 -> 6 | U58: 15 | V58: 16 | W58: 4 | X58: 15 | Y58: 17 | Z58: 3 | AA58: 15 | AH58: =AH59-AG59 -> 2 | AI58: 3 | AJ58: 4 | AK58: 5 | AL58: 8 | AM58: =AM59-AL59 -> 10 | AN58: =AN59-AM59 -> 10
A59: 3 | B59: 火山-2 | C59: 波1·怪物 | D59: 6 | E59: 15 | F59: 30 | G59: 46 | H59: 50 | I59: 65 | J59: 70 | K59: 85 | L59: 90 | M59: 105 | Q59: 3 | R59: 波2·怪物 | S59: 4 | T59: 10 | U59: 25 | V59: 41 | W59: 45 | X59: 60 | Y59: 77 | Z59: 80 | AA59: 95 | AE59: 1 | AF59: 波3·怪物 | AG59: 3 | AH59: 5 | AI59: 8 | AJ59: 12 | AK59: 17 | AL59: 25 | AM59: 35 | AN59: 45
B60: 5m | C60: 8 | P60: =_xlfn.TEXTJOIN("^",,D60:D69) -> 70142^70144 | R60: 8 | AD60: =_xlfn.TEXTJOIN("^",,S60:S69) -> 70141^70142 | AF60: 8 | AK60: 70144 | AM60: 70144 | AR60: =_xlfn.TEXTJOIN("^",,AG60:AG69) -> 70144^70141^70141^70144
C61: 6 | P61: =_xlfn.TEXTJOIN("^",,E60:E69) -> 70141^70142 | R61: 6 | AD61: =_xlfn.TEXTJOIN("^",,T60:T69) -> 70143^70142 | AF61: 6 | AJ61: 70142 | AK61: 70142 | AL61: 70142 | AM61: 70142 | AR61: =_xlfn.TEXTJOIN("^",,AH60:AH69) -> 70142^70142^70142
C62: 4 | P62: =_xlfn.TEXTJOIN("^",,F60:F69) -> 70144^70143^70142 | R62: 4 | AD62: =_xlfn.TEXTJOIN("^",,U60:U69) -> 70143^70141^70142 | AF62: 4 | AG62: 70144 | AH62: 70142 | AI62: 70145 | AJ62: 70141 | AK62: 70141 | AL62: 70141 | AM62: 70141 | AN62: 70142 | AR62: =_xlfn.TEXTJOIN("^",,AI60:AI69) -> 70145^70145^70145
C63: 2 | D63: 70142 | E63: 70141 | F63: 70144 | G63: 70141 | H63: 70145 | I63: 70143 | J63: 70145 | K63: 70142 | L63: 70145 | M63: 70143 | P63: =_xlfn.TEXTJOIN("^",,G60:G69) -> 70141^70142^70144 | R63: 2 | AD63: =_xlfn.TEXTJOIN("^",,V60:V69) -> 70143^70142^70141 | AF63: 2 | AG63: 70141 | AJ63: 70143 | AL63: 70143 | AN63: 70142 | AR63: =_xlfn.TEXTJOIN("^",,AJ60:AJ69) -> 70142^70141^70143^70146^70143^70141^70142
C64: 1 | D64: 70144 | E64: 70142 | F64: 70143 | G64: 70142 | I64: 70142 | K64: 70144 | L64: 70146 | M64: 70142 | P64: =_xlfn.TEXTJOIN("^",,H60:H69) -> 70145 | R64: 1 | S64: 70141 | T64: 70143 | U64: 70143 | V64: 70143 | W64: 70145 | X64: 70142 | Y64: 70142 | Z64: 70145 | AA64: 70143 | AD64: =_xlfn.TEXTJOIN("^",,W60:W69) -> 70145 | AF64: 1 | AH64: 70142 | AI64: 70145 | AJ64: 70146 | AK64: 70142 | AN64: 70144 | AR64: =_xlfn.TEXTJOIN("^",,AK60:AK69) -> 70144^70142^70141^70142^70141^70142^70144
C65: 3 | F65: 70142 | G65: 70144 | I65: 70144 | K65: 70141 | M65: 70144 | P65: =_xlfn.TEXTJOIN("^",,I60:I69) -> 70143^70142^70144 | R65: 3 | S65: 70142 | T65: 70142 | U65: 70141 | V65: 70142 | X65: 70143 | Y65: 70141 | AA65: 70141 | AD65: =_xlfn.TEXTJOIN("^",,X60:X69) -> 70142^70143^70143^70141 | AF65: 3 | AG65: 70141 | AJ65: 70143 | AL65: 70143 | AN65: 70142 | AR65: =_xlfn.TEXTJOIN("^",,AL60:AL69) -> 70142^70141^70143^70143^70141^70142
C66: 5 | P66: =_xlfn.TEXTJOIN("^",,J60:J69) -> 70145 | R66: 5 | U66: 70142 | V66: 70141 | X66: 70143 | AA66: 70142 | AD66: =_xlfn.TEXTJOIN("^",,Y60:Y69) -> 70142^70141 | AF66: 5 | AG66: 70144 | AH66: 70142 | AI66: 70145 | AJ66: 70141 | AK66: 70141 | AL66: 70141 | AM66: 70141 | AN66: 70142 | AR66: =_xlfn.TEXTJOIN("^",,AM60:AM69) -> 70144^70142^70141^70141^70142^70144
C67: 7 | P67: =_xlfn.TEXTJOIN("^",,K60:K69) -> 70142^70144^70141 | R67: 7 | X67: 70141 | AD67: =_xlfn.TEXTJOIN("^",,Z60:Z69) -> 70145 | AF67: 7 | AJ67: 70142 | AK67: 70142 | AL67: 70142 | AM67: 70142 | AR67: =_xlfn.TEXTJOIN("^",,AN60:AN69) -> 70142^70142^70144^70142^70142
C68: 9 | P68: =_xlfn.TEXTJOIN("^",,L60:L69) -> 70145^70146 | R68: 9 | AD68: =_xlfn.TEXTJOIN("^",,AA60:AA69) -> 70143^70141^70142 | AF68: 9 | AK68: 70144 | AM68: 70144 | AR68: =_xlfn.TEXTJOIN("^",,AO60:AO69) -> 
P69: =_xlfn.TEXTJOIN("^",,M60:M69) -> 70143^70142^70144 | AD69: =_xlfn.TEXTJOIN("^",,AB60:AB69) ->  | AR69: =_xlfn.TEXTJOIN("^",,AP60:AP69) -> 
P70: =_xlfn.TEXTJOIN("^",,N60:N69) ->  | AD70: =_xlfn.TEXTJOIN("^",,AC60:AC69) ->  | AR70: =_xlfn.TEXTJOIN("^",,AQ60:AQ69) -> 
O71: 最终 | P71: =_xlfn.TEXTJOIN("|",,P60:P70) -> 70142^70144|70141^70142|70144^70143^70142|70141^70142^70144|70145|70143^70142^70144|70145|70142^70144^70141|70145^70146|70143^70142^70144 | AC71: 最终 | AD71: =_xlfn.TEXTJOIN("|",,AD60:AD70) -> 70141^70142|70143^70142|70143^70141^70142|70143^70142^70141|70145|70142^70143^70143^70141|70142^70141|70145|70143^70141^70142 | AQ71: 最终 | AR71: =_xlfn.TEXTJOIN("^",,AR60:AR70) -> 70144^70141^70141^70144^70142^70142^70142^70145^70145^70145^70142^70141^70143^70146^70143^70141^70142^70144^70142^70141^70142^70141^70142^70144^70142^70141^70143^70143^70141^70142^70144^70142^70141^70141^70142^70144^70142^70142^70144^70142^70142
C72: 8 | R72: 8 | AF72: 8 | AK72: 火精灵 | AM72: 火精灵
C73: 6 | R73: 6 | AF73: 6 | AJ73: 岩浆人 | AK73: 岩浆人 | AL73: 岩浆人 | AM73: 岩浆人
C74: 4 | R74: 4 | AF74: 4 | AG74: 火精灵 | AH74: 岩浆人 | AI74: 火山蜘蛛 | AJ74: 岩浆蝎 | AK74: 岩浆蝎 | AL74: 岩浆蝎 | AM74: 岩浆蝎 | AN74: 岩浆人
C75: 2 | D75: 岩浆人 | E75: 岩浆蝎 | F75: 火精灵 | G75: 岩浆蝎 | H75: 火山蜘蛛 | I75: 岩浆战士 | J75: 火山蜘蛛 | K75: 岩浆人 | L75: 火山蜘蛛 | M75: 岩浆战士 | R75: 2 | AF75: 2 | AG75: 岩浆蝎 | AJ75: 岩浆战士 | AL75: 岩浆战士 | AN75: 岩浆人
C76: 1 | D76: 火精灵 | E76: 岩浆人 | F76: 岩浆战士 | G76: 岩浆人 | I76: 岩浆人 | K76: 火精灵 | L76: 蘑菇王 | M76: 岩浆人 | R76: 1 | S76: 岩浆蝎 | T76: 火精灵 | U76: 岩浆战士 | V76: 火精灵 | W76: 火山蜘蛛 | X76: 岩浆人 | Y76: 岩浆人 | Z76: 火山蜘蛛 | AA76: 岩浆战士 | AF76: 1 | AH76: 岩浆人 | AI76: 火山蜘蛛 | AJ76: 蘑菇王 | AK76: 岩浆人 | AN76: 火精灵
C77: 3 | F77: 岩浆人 | G77: 火精灵 | I77: 火精灵 | K77: 岩浆蝎 | M77: 火精灵 | R77: 3 | S77: 岩浆人 | T77: 岩浆人 | U77: 岩浆蝎 | V77: 岩浆人 | X77: 岩浆战士 | Y77: 岩浆蝎 | AA77: 岩浆蝎 | AF77: 3 | AG77: 岩浆蝎 | AJ77: 岩浆战士 | AL77: 岩浆战士 | AN77: 岩浆人
C78: 5 | R78: 5 | U78: 岩浆人 | V78: 岩浆蝎 | X78: 火精灵 | AA78: 岩浆人 | AF78: 5 | AG78: 火精灵 | AH78: 岩浆人 | AI78: 火山蜘蛛 | AJ78: 岩浆蝎 | AK78: 岩浆蝎 | AL78: 岩浆蝎 | AM78: 岩浆蝎 | AN78: 岩浆人
C79: 7 | R79: 7 | X79: 岩浆蝎 | AF79: 7 | AJ79: 岩浆人 | AK79: 岩浆人 | AL79: 岩浆人 | AM79: 岩浆人
C80: 9 | R80: 9 | AF80: 9 | AK80: 火精灵 | AM80: 火精灵
C82: 位置 | D82: 6 | E82: 15 | F82: 30 | G82: 46 | H82: 50 | I82: 65 | J82: 70 | K82: 85 | L82: 90 | M82: 105 | R82: 位置 | S82: 4 | T82: 10 | U82: 25 | V82: 41 | W82: 45 | X82: 60 | Y82: 77 | Z82: 80 | AA82: 95 | AF82: 位置 | AG82: 3 | AH82: 5 | AI82: 8 | AJ82: 12 | AK82: 17 | AL82: 25 | AM82: 35 | AN82: 45 | AR82: =_xlfn.TEXTJOIN("^",,AG83:AG97) -> 4^2^3^5
C83: 8 | P83: =_xlfn.TEXTJOIN("^",,D83:D97) -> 0^0 | R83: 8 | AF83: 8 | AK83: =$C83 -> 8 | AM83: =$C83 -> 8 | AR83: =_xlfn.TEXTJOIN("^",,AH83:AH97) -> 4^1^5
C84: 6 | P84: =_xlfn.TEXTJOIN("^",,E83:E97) -> 0^0 | R84: 6 | AD84: =_xlfn.TEXTJOIN("^",,S83:S97) -> 0^0 | AF84: 6 | AJ84: =$C84 -> 6 | AK84: 6 | AL84: 6 | AM84: 6 | AR84: =_xlfn.TEXTJOIN("^",,AI83:AI97) -> 101^103^105
C85: 4 | P85: =_xlfn.TEXTJOIN("^",,F83:F97) -> 0^0^0 | R85: 4 | AD85: =_xlfn.TEXTJOIN("^",,T83:T97) -> 0^0 | AF85: 4 | AG85: =$C85 -> 4 | AH85: =$C85 -> 4 | AJ85: 4 | AK85: 4 | AL85: 4 | AM85: 4 | AN85: 4 | AR85: =_xlfn.TEXTJOIN("^",,AJ83:AJ97) -> 6^4^2^1^3^5^7
C86: 2 | D86: 0 | E86: 0 | F86: 0 | G86: 0 | H86: 100 | I86: 0 | J86: 100 | K86: 0 | L86: 100 | M86: 0 | P86: =_xlfn.TEXTJOIN("^",,G83:G97) -> 0^0^0 | R86: 2 | AD86: =_xlfn.TEXTJOIN("^",,U83:U97) -> 0^0^0 | AF86: 2 | AG86: 2 | AJ86: 2 | AL86: 2 | AN86: 2 | AR86: =_xlfn.TEXTJOIN("^",,AK83:AK97) -> 8^6^4^1^5^7^9
C87: 1 | D87: 0 | E87: 0 | F87: 0 | G87: 0 | I87: 0 | K87: 0 | L87: 0 | M87: 0 | P87: =_xlfn.TEXTJOIN("^",,H83:H97) -> 100 | R87: 1 | S87: 0 | T87: 0 | U87: 0 | V87: 0 | W87: 100 | X87: 0 | Y87: 0 | Z87: 100 | AA87: 0 | AD87: =_xlfn.TEXTJOIN("^",,V83:V97) -> 0^0^0 | AF87: 1 | AH87: =$C87 -> 1 | AJ87: 1 | AK87: =$C87 -> 1 | AN87: 1 | AR87: =_xlfn.TEXTJOIN("^",,AL83:AL97) -> 6^4^2^3^5^7
C88: 3 | F88: 0 | G88: 0 | I88: 0 | K88: 0 | M88: 0 | P88: =_xlfn.TEXTJOIN("^",,I83:I97) -> 0^0^0 | R88: 3 | S88: 0 | T88: 0 | U88: 0 | V88: 0 | X88: 0 | Y88: 0 | AA88: 0 | AD88: =_xlfn.TEXTJOIN("^",,W83:W97) -> 100 | AF88: 3 | AG88: =$C88 -> 3 | AJ88: =$C88 -> 3 | AL88: =$C88 -> 3 | AN88: 3 | AR88: =_xlfn.TEXTJOIN("^",,AM83:AM97) -> 8^6^4^5^7^9
C89: 5 | P89: =_xlfn.TEXTJOIN("^",,J83:J97) -> 100 | R89: 5 | U89: 0 | V89: 0 | X89: 0 | AA89: 0 | AD89: =_xlfn.TEXTJOIN("^",,X83:X97) -> 0^0^0^0 | AF89: 5 | AG89: 5 | AH89: =$C89 -> 5 | AJ89: 5 | AK89: 5 | AL89: 5 | AM89: 5 | AN89: 5 | AR89: =_xlfn.TEXTJOIN("^",,AN83:AN97) -> 4^2^1^3^5
C90: 7 | P90: =_xlfn.TEXTJOIN("^",,K83:K97) -> 0^0^0 | R90: 7 | X90: 0 | AD90: =_xlfn.TEXTJOIN("^",,Y83:Y97) -> 0^0 | AF90: 7 | AJ90: 7 | AK90: 7 | AL90: 7 | AM90: 7 | AR90: =_xlfn.TEXTJOIN("^",,AO83:AO97) -> 
C91: 9 | P91: =_xlfn.TEXTJOIN("^",,L83:L97) -> 100^0 | R91: 9 | AF91: 9 | AK91: 9 | AM91: 9 | AR91: =_xlfn.TEXTJOIN("^",,AP83:AP97) -> 
C92: 空降 | P92: =_xlfn.TEXTJOIN("^",,M83:M97) -> 0^0^0 | R92: 空降 | AF92: 空降 | AR92: =_xlfn.TEXTJOIN("^",,AQ83:AQ91) -> 
C93: 101 | P93: =_xlfn.TEXTJOIN("^",,N83:N97) ->  | R93: 101 | AD93: =_xlfn.TEXTJOIN("^",,Z83:Z97) -> 100 | AF93: 101 | AI93: =$C93 -> 101
C94: 102 | R94: 102 | AD94: =_xlfn.TEXTJOIN("^",,AA83:AA97) -> 0^0^0 | AF94: 102
C95: 103 | R95: 103 | AD95: =_xlfn.TEXTJOIN("^",,AB83:AB97) ->  | AF95: 103 | AI95: =$C95 -> 103
C96: 104 | R96: 104 | AF96: 104
C97: 105 | R97: 105 | AF97: 105 | AI97: =$C97 -> 105
O98: 最终 | P98: =_xlfn.TEXTJOIN("|",,P83:P97) -> 0^0|0^0|0^0^0|0^0^0|100|0^0^0|100|0^0^0|100^0|0^0^0 | AC98: 最终 | AD98: =_xlfn.TEXTJOIN("|",,AD83:AD97) -> 0^0|0^0|0^0^0|0^0^0|100|0^0^0^0|0^0|100|0^0^0 | AQ98: 最终 | AR98: =_xlfn.TEXTJOIN("^",,AR82:AR97) -> 4^2^3^5^4^1^5^101^103^105^6^4^2^1^3^5^7^8^6^4^1^5^7^9^6^4^2^3^5^7^8^6^4^5^7^9^4^2^1^3^5
C100: 时间 | D100: 6 | E100: 15 | F100: 30 | G100: 46 | H100: 50 | I100: 65 | J100: 70 | K100: 85 | L100: 90 | M100: 105 | R100: 时间 | S100: 4 | T100: 10 | U100: 25 | V100: 41 | W100: 45 | X100: 60 | Y100: 77 | Z100: 80 | AA100: 95 | AD100: =_xlfn.TEXTJOIN("^",,S101:S109) -> 17^6 | AF100: 时间 | AG100: 3 | AH100: 5 | AI100: 8 | AJ100: 12 | AK100: 17 | AL100: 25 | AM100: 35 | AN100: 45 | AR100: =_xlfn.TEXTJOIN("^",,AG101:AG109) -> 3^3^3^3
C101: 8 | P101: =_xlfn.TEXTJOIN("^",,D101:D110) -> 4^3 | R101: 8 | AD101: =_xlfn.TEXTJOIN("^",,T101:T109) -> 4^4 | AF101: 8 | AK101: =AK$100 -> 17 | AM101: =AM$100 -> 35 | AR101: =_xlfn.TEXTJOIN("^",,AH101:AH109) -> 5^5^5
C102: 6 | P102: =_xlfn.TEXTJOIN("^",,E101:E110) -> 8^3 | R102: 6 | AD102: =_xlfn.TEXTJOIN("^",,U101:U109) -> 2^8^3 | AF102: 6 | AJ102: =AJ$100 -> 12 | AK102: 17 | AL102: 25 | AM102: 35 | AR102: =_xlfn.TEXTJOIN("^",,AI101:AI109) -> 8^8^8
C103: 4 | P103: =_xlfn.TEXTJOIN("^",,F101:F110) -> 2^3^4 | R103: 4 | AD103: =_xlfn.TEXTJOIN("^",,V101:V109) -> 2^3^9 | AF103: 4 | AG103: =AG$100 -> 3 | AH103: =AH$100 -> 5 | AI103: =AI$100 -> 8 | AJ103: 12 | AK103: 17 | AL103: 25 | AM103: 35 | AN103: =AN$100 -> 45 | AR103: =_xlfn.TEXTJOIN("^",,AJ101:AJ109) -> 12^12^12^12^12^12^12
C104: 2 | D104: 4 | E104: 8 | F104: 2 | G104: 8 | H104: 8 | I104: 3 | J104: 8 | K104: 3 | L104: 9 | M104: 3 | P104: =_xlfn.TEXTJOIN("^",,G101:G110) -> 8^3^2 | R104: 2 | AD104: =_xlfn.TEXTJOIN("^",,W101:W109) -> 8 | AF104: 2 | AG104: 3 | AJ104: 12 | AL104: 25 | AN104: =AN$100 -> 45 | AR104: =_xlfn.TEXTJOIN("^",,AK101:AK109) -> 17^17^17^17^17^17^17
C105: 1 | D105: 3 | E105: 3 | F105: 3 | G105: 3 | I105: 4 | K105: 2 | L105: 1 | M105: 4 | P105: =_xlfn.TEXTJOIN("^",,H101:H110) -> 8 | R105: 1 | S105: 17 | T105: 4 | U105: 2 | V105: 2 | W105: 8 | X105: 3 | Y105: 3 | Z105: 9 | AA105: 2 | AD105: =_xlfn.TEXTJOIN("^",,X101:X109) -> 3^2^2^7 | AF105: 1 | AH105: =AH$100 -> 5 | AI105: =AI$100 -> 8 | AJ105: 12 | AK105: =AK$100 -> 17 | AN105: 45 | AR105: =_xlfn.TEXTJOIN("^",,AL101:AL109) -> 25^25^25^25^25^25
C106: 3 | F106: 4 | G106: 2 | I106: 3 | K106: 8 | M106: 2 | P106: =_xlfn.TEXTJOIN("^",,I101:I110) -> 3^4^3 | R106: 3 | S106: 6 | T106: 4 | U106: 8 | V106: 3 | X106: 2 | Y106: 9 | AA106: 8 | AD106: =_xlfn.TEXTJOIN("^",,Y101:Y109) -> 3^9 | AF106: 3 | AG106: =AG$100 -> 3 | AJ106: =AJ$100 -> 12 | AL106: =AL$100 -> 25 | AN106: 45 | AR106: =_xlfn.TEXTJOIN("^",,AM101:AM109) -> 35^35^35^35^35^35
C107: 5 | P107: =_xlfn.TEXTJOIN("^",,J101:J110) -> 8 | R107: 5 | U107: 3 | V107: 9 | X107: 2 | AA107: 3 | AD107: =_xlfn.TEXTJOIN("^",,Z101:Z109) -> 9 | AF107: 5 | AG107: 3 | AH107: =AH$100 -> 5 | AI107: =AI$100 -> 8 | AJ107: 12 | AK107: 17 | AL107: 25 | AM107: 35 | AN107: 45 | AR107: =_xlfn.TEXTJOIN("^",,AN101:AN109) -> 45^45^45^45^45
C108: 7 | P108: =_xlfn.TEXTJOIN("^",,K101:K110) -> 3^2^8 | R108: 7 | X108: 7 | AD108: =_xlfn.TEXTJOIN("^",,AA101:AA109) -> 2^8^3 | AF108: 7 | AJ108: 12 | AK108: 17 | AL108: 25 | AM108: 35 | AR108: =_xlfn.TEXTJOIN("^",,AO101:AO109) -> 
C109: 9 | P109: =_xlfn.TEXTJOIN("^",,L101:L110) -> 9^1 | R109: 9 | AD109: =_xlfn.TEXTJOIN("^",,AB101:AB109) ->  | AF109: 9 | AK109: 17 | AM109: 35 | AR109: =_xlfn.TEXTJOIN("^",,AP101:AP109) -> 
P110: =_xlfn.TEXTJOIN("^",,M101:M110) -> 3^4^2 | AD110: =_xlfn.TEXTJOIN("^",,AC101:AC109) ->  | AR110: =_xlfn.TEXTJOIN("^",,AQ101:AQ109) -> 
P111: =_xlfn.TEXTJOIN("^",,N101:N110) ->  | AC111: 最终 | AD111: =_xlfn.TEXTJOIN("|",,AD100:AD110) -> 17^6|4^4|2^8^3|2^3^9|8|3^2^2^7|3^9|9|2^8^3 | AQ111: 最终 | AR111: =_xlfn.TEXTJOIN("^",,AR100:AR110) -> 3^3^3^3^5^5^5^8^8^8^12^12^12^12^12^12^12^17^17^17^17^17^17^17^25^25^25^25^25^25^35^35^35^35^35^35^45^45^45^45^45
O112: 最终 | P112: =_xlfn.TEXTJOIN("|",,P101:P111) -> 4^3|8^3|2^3^4|8^3^2|8|3^4^3|8|3^2^8|9^1|3^4^2
O113: =SUM(D101:N110) -> 98 | AC113: =SUM(S101:AB110) -> 114 | AQ113: =COUNT(AG101:AP110) -> 41 | AR113: =AC113+AQ113+O113 -> 253
E114: =E115-D115 -> 5 | F114: =F115-E115 -> 6 | G114: 4 | H114: 7 | I114: 8 | J114: 5 | K114: 10 | L114: 10 | M114: 5 | T114: =T115-S115 -> 6 | U114: 15 | V114: 16 | W114: 4 | X114: 15 | Y114: 17 | Z114: 3 | AA114: 15 | AH114: =AH115-AG115 -> 2 | AI114: 3 | AJ114: 4 | AK114: 5 | AL114: 8 | AM114: 10 | AN114: 5
A115: 1 | B115: 火山-3 | C115: 波1·怪物 | D115: 5 | E115: 10 | F115: 16 | G115: 20 | H115: 27 | I115: 35 | J115: 40 | K115: 50 | L115: 60 | M115: 65 | Q115: 3 | R115: 波2·怪物 | S115: 4 | T115: 10 | U115: 25 | V115: 41 | W115: 45 | X115: 60 | Y115: 77 | Z115: 80 | AA115: 95 | AE115: 1 | AF115: 波3·怪物 | AG115: 3 | AH115: 5 | AI115: 8 | AJ115: 12 | AK115: 17 | AL115: 25 | AM115: 35 | AN115: 40
B116: 5m | C116: 8 | F116: 70152 | L116: 70154 | P116: =_xlfn.TEXTJOIN("^",,D116:D125) -> 70154^70151^70151^70151^70154 | R116: 8 | AD116: =_xlfn.TEXTJOIN("^",,S116:S125) -> 70153^70152^70151 | AF116: 8 | AL116: 70154 | AR116: =_xlfn.TEXTJOIN("^",,AG116:AG125) -> 70152^70151^70151^70151^70152
C117: 6 | E117: 70152 | H117: 70152 | I117: 70154 | K117: 70152 | L117: 70152 | P117: =_xlfn.TEXTJOIN("^",,E116:E125) -> 70152^70152^70152^70152 | R117: 6 | AD117: =_xlfn.TEXTJOIN("^",,T116:T125) -> 70152^70151 | AF117: 6 | AJ117: 70154 | AK117: 70152 | AL117: 70152 | AM117: 70151 | AR117: =_xlfn.TEXTJOIN("^",,AH116:AH125) -> 70154^70152^70154
C118: 4 | D118: 70154 | E118: 70152 | G118: 70155 | H118: 70151 | I118: 70152 | J118: 70155 | K118: 70154 | M118: 70155 | P118: =_xlfn.TEXTJOIN("^",,F116:F125) -> 70152^70153^70154^70153^70152 | R118: 4 | AD118: =_xlfn.TEXTJOIN("^",,U116:U125) -> 70153^70152^70153 | AF118: 4 | AG118: 70152 | AH118: 70154 | AI118: 70155 | AJ118: 70152 | AK118: 70151 | AM118: 70152 | AN118: 70155 | AR118: =_xlfn.TEXTJOIN("^",,AI116:AI125) -> 70155^70155^70155
C119: 2 | D119: 70151 | F119: 70153 | G119: 70155 | H119: 70152 | I119: 70153 | J119: 70155 | K119: 70151 | L119: 70153 | M119: 70155 | P119: =_xlfn.TEXTJOIN("^",,G116:G125) -> 70155^70155^70155^70155^70155 | R119: 2 | AD119: =_xlfn.TEXTJOIN("^",,V116:V125) -> 70152^70151 | AF119: 2 | AG119: 70151 | AJ119: 70153 | AK119: 70151 | AL119: 70153 | AN119: 70155 | AR119: =_xlfn.TEXTJOIN("^",,AJ116:AJ125) -> 70154^70152^70153^70153^70152^70154
C120: 1 | D120: 70151 | F120: 70154 | G120: 70155 | H120: 70154 | J120: 70155 | K120: 70151 | L120: 70156 | M120: 70155 | P120: =_xlfn.TEXTJOIN("^",,H116:H125) -> 70152^70151^70152^70154^70152^70151^70152 | R120: 1 | S120: 70153 | T120: 70152 | U120: 70153 | V120: 70152 | W120: 70155 | X120: 70153 | Y120: 70153 | Z120: 70155 | AA120: 70153 | AD120: =_xlfn.TEXTJOIN("^",,W116:W125) -> 70155^70156 | AF120: 1 | AG120: 70151 | AH120: 70152 | AI120: 70155 | AL120: 70153 | AM120: 70154 | AN120: 70155 | AR120: =_xlfn.TEXTJOIN("^",,AK116:AK125) -> 70152^70151^70151^70151^70151^70152
C121: 3 | D121: 70151 | F121: 70153 | G121: 70155 | H121: 70152 | I121: 70153 | J121: 70155 | K121: 70151 | L121: 70153 | M121: 70155 | P121: =_xlfn.TEXTJOIN("^",,I116:I125) -> 70154^70152^70153^70153^70152^70154 | R121: 3 | S121: 70152 | T121: 70151 | U121: 70152 | V121: 70151 | W121: 70156 | X121: 70153 | Y121: 70151 | AA121: 70151 | AD121: =_xlfn.TEXTJOIN("^",,X116:X125) -> 70153^70153^70152^70151 | AF121: 3 | AG121: 70151 | AJ121: 70153 | AK121: 70151 | AL121: 70153 | AN121: 70155 | AR121: =_xlfn.TEXTJOIN("^",,AL116:AL125) -> 70154^70152^70153^70153^70153^70152^70154
C122: 5 | D122: 70154 | E122: 70152 | G122: 70155 | H122: 70151 | I122: 70152 | J122: 70155 | K122: 70154 | M122: 70155 | P122: =_xlfn.TEXTJOIN("^",,J116:J125) -> 70155^70155^70155^70155^70155 | R122: 5 | S122: 70151 | U122: 70153 | X122: 70152 | Y122: 70152 | AA122: 70152 | AD122: =_xlfn.TEXTJOIN("^",,Y116:Y125) -> 70153^70151^70152 | AF122: 5 | AG122: 70152 | AH122: 70154 | AI122: 70155 | AJ122: 70152 | AK122: 70151 | AM122: 70152 | AN122: 70155 | AR122: =_xlfn.TEXTJOIN("^",,AM116:AM125) -> 70151^70152^70154^70152^70151
C123: 7 | E123: 70152 | H123: 70152 | I123: 70154 | K123: 70152 | L123: 70152 | P123: =_xlfn.TEXTJOIN("^",,K116:K125) -> 70152^70154^70151^70151^70151^70154^70152 | R123: 7 | X123: 70151 | AD123: =_xlfn.TEXTJOIN("^",,Z116:Z125) -> 70155 | AF123: 7 | AJ123: 70154 | AK123: 70152 | AL123: 70152 | AM123: 70151 | AR123: =_xlfn.TEXTJOIN("^",,AN116:AN125) -> 70155^70155^70155^70155^70155
C124: 9 | F124: 70152 | L124: 70154 | P124: =_xlfn.TEXTJOIN("^",,L116:L125) -> 70154^70152^70153^70156^70153^70152^70154 | R124: 9 | AD124: =_xlfn.TEXTJOIN("^",,AA116:AA125) -> 70153^70151^70152 | AF124: 9 | AL124: 70154 | AR124: =_xlfn.TEXTJOIN("^",,AO116:AO125) -> 
P125: =_xlfn.TEXTJOIN("^",,M116:M125) -> 70155^70155^70155^70155^70155 | AD125: =_xlfn.TEXTJOIN("^",,AB116:AB125) ->  | AR125: =_xlfn.TEXTJOIN("^",,AP116:AP125) -> 
P126: =_xlfn.TEXTJOIN("^",,N116:N125) ->  | AD126: =_xlfn.TEXTJOIN("^",,AC116:AC125) ->  | AR126: =_xlfn.TEXTJOIN("^",,AQ116:AQ125) -> 
O127: 最终 | P127: =_xlfn.TEXTJOIN("^",,P116:P126) -> 70154^70151^70151^70151^70154^70152^70152^70152^70152^70152^70153^70154^70153^70152^70155^70155^70155^70155^70155^70152^70151^70152^70154^70152^70151^70152^70154^70152^70153^70153^70152^70154^70155^70155^70155^70155^70155^70152^70154^70151^70151^70151^70154^70152^70154^70152^70153^70156^70153^70152^70154^70155^70155^70155^70155^70155 | AC127: 最终 | AD127: =_xlfn.TEXTJOIN("|",,AD116:AD126) -> 70153^70152^70151|70152^70151|70153^70152^70153|70152^70151|70155^70156|70153^70153^70152^70151|70153^70151^70152|70155|70153^70151^70152 | AQ127: 最终 | AR127: =_xlfn.TEXTJOIN("^",,AR116:AR126) -> 70152^70151^70151^70151^70152^70154^70152^70154^70155^70155^70155^70154^70152^70153^70153^70152^70154^70152^70151^70151^70151^70151^70152^70154^70152^70153^70153^70153^70152^70154^70151^70152^70154^70152^70151^70155^70155^70155^70155^70155
C128: 8 | F128: 岩浆人 | L128: 火精灵 | R128: 8 | AF128: 8 | AL128: 火精灵
C129: 6 | E129: 岩浆人 | H129: 岩浆人 | I129: 火精灵 | K129: 岩浆人 | L129: 岩浆人 | R129: 6 | AF129: 6 | AJ129: 火精灵 | AK129: 岩浆人 | AL129: 岩浆人 | AM129: 岩浆蝎
C130: 4 | D130: 火精灵 | E130: 岩浆人 | G130: 火山蜘蛛 | H130: 岩浆蝎 | I130: 岩浆人 | J130: 火山蜘蛛 | K130: 火精灵 | M130: 火山蜘蛛 | R130: 4 | AF130: 4 | AG130: 岩浆人 | AH130: 火精灵 | AI130: 火山蜘蛛 | AJ130: 岩浆人 | AK130: 岩浆蝎 | AM130: 岩浆人 | AN130: 火山蜘蛛
C131: 2 | D131: 岩浆蝎 | F131: 岩浆战士 | G131: 火山蜘蛛 | H131: 岩浆人 | I131: 岩浆战士 | J131: 火山蜘蛛 | K131: 岩浆蝎 | L131: 岩浆战士 | M131: 火山蜘蛛 | R131: 2 | AF131: 2 | AG131: 岩浆蝎 | AJ131: 岩浆战士 | AK131: 岩浆蝎 | AL131: 岩浆战士 | AN131: 火山蜘蛛
C132: 1 | D132: 岩浆蝎 | F132: 火精灵 | G132: 火山蜘蛛 | H132: 火精灵 | J132: 火山蜘蛛 | K132: 岩浆蝎 | L132: 蘑菇王 | M132: 火山蜘蛛 | R132: 1 | S132: 火精灵 | T132: 岩浆人 | U132: 岩浆战士 | V132: 岩浆人 | W132: 火山蜘蛛 | X132: 火精灵 | Y132: 火精灵 | Z132: 火山蜘蛛 | AA132: 岩浆战士 | AF132: 1 | AG132: 岩浆蝎 | AH132: 岩浆人 | AI132: 火山蜘蛛 | AL132: 岩浆战士 | AM132: 火精灵 | AN132: 火山蜘蛛
C133: 3 | D133: 岩浆蝎 | F133: 岩浆战士 | G133: 火山蜘蛛 | H133: 岩浆人 | I133: 岩浆战士 | J133: 火山蜘蛛 | K133: 岩浆蝎 | L133: 岩浆战士 | M133: 火山蜘蛛 | R133: 3 | S133: 岩浆人 | T133: 岩浆蝎 | U133: 岩浆人 | V133: 岩浆蝎 | W133: 蘑菇王 | X133: 岩浆战士 | Y133: 岩浆蝎 | AA133: 岩浆蝎 | AF133: 3 | AG133: 岩浆蝎 | AJ133: 岩浆战士 | AK133: 岩浆蝎 | AL133: 岩浆战士 | AN133: 火山蜘蛛
C134: 5 | D134: 火精灵 | E134: 岩浆人 | G134: 火山蜘蛛 | H134: 岩浆蝎 | I134: 岩浆人 | J134: 火山蜘蛛 | K134: 火精灵 | M134: 火山蜘蛛 | R134: 5 | S134: 岩浆蝎 | U134: 火精灵 | X134: 岩浆人 | Y134: 岩浆人 | AA134: 岩浆人 | AF134: 5 | AG134: 岩浆人 | AH134: 火精灵 | AI134: 火山蜘蛛 | AJ134: 岩浆人 | AK134: 岩浆蝎 | AM134: 岩浆人 | AN134: 火山蜘蛛
C135: 7 | E135: 岩浆人 | H135: 岩浆人 | I135: 火精灵 | K135: 岩浆人 | L135: 岩浆人 | R135: 7 | X135: 岩浆蝎 | AF135: 7 | AJ135: 火精灵 | AK135: 岩浆人 | AL135: 岩浆人 | AM135: 岩浆蝎
C136: 9 | F136: 岩浆人 | L136: 火精灵 | R136: 9 | AF136: 9 | AL136: 火精灵
C138: 位置 | D138: 5 | E138: 10 | F138: 16 | G138: 20 | H138: 27 | I138: 35 | J138: 40 | K138: 50 | L138: 60 | M138: 65 | R138: 位置 | S138: 4 | T138: 10 | U138: 25 | V138: 41 | W138: 45 | X138: 60 | Y138: 77 | Z138: 80 | AA138: 95 | AF138: 位置 | AG138: 3 | AH138: 5 | AI138: 8 | AJ138: 12 | AK138: 17 | AL138: 25 | AM138: 35 | AN138: 40 | AR138: =_xlfn.TEXTJOIN("^",,AG139:AG153) -> 4^2^1^3^5
C139: 8 | F139: =$AF139 -> 8 | L139: =$AF139 -> 8 | P139: =_xlfn.TEXTJOIN("^",,D139:D153) -> 4^2^1^3^5 | R139: 8 | AF139: 8 | AL139: =$AF139 -> 8 | AR139: =_xlfn.TEXTJOIN("^",,AH139:AH153) -> 4^1^5
C140: 6 | E140: =$AF140 -> 6 | H140: =$AF140 -> 6 | I140: 6 | K140: =$AF140 -> 6 | L140: 6 | P140: =_xlfn.TEXTJOIN("^",,E139:E153) -> 6^4^5^7 | R140: 6 | AD140: =_xlfn.TEXTJOIN("^",,S139:S153) -> 0^0^0 | AF140: 6 | AJ140: =$AF140 -> 6 | AK140: 6 | AL140: 6 | AM140: 6 | AR140: =_xlfn.TEXTJOIN("^",,AI139:AI153) -> 101^103^105
C141: 4 | D141: =$AF141 -> 4 | E141: 4 | H141: 4 | I141: 4 | K141: 4 | P141: =_xlfn.TEXTJOIN("^",,F139:F153) -> 8^2^1^3^9 | R141: 4 | AD141: =_xlfn.TEXTJOIN("^",,T139:T153) -> 0^0 | AF141: 4 | AG141: =$AF141 -> 4 | AH141: =$AF141 -> 4 | AJ141: 4 | AK141: 4 | AM141: 4 | AR141: =_xlfn.TEXTJOIN("^",,AJ139:AJ153) -> 6^4^2^3^5^7
C142: 2 | D142: 2 | F142: =$AF142 -> 2 | H142: 2 | I142: 2 | K142: 2 | L142: =$AF142 -> 2 | P142: =_xlfn.TEXTJOIN("^",,G139:G153) -> 101^102^103^104^105 | R142: 2 | AD142: =_xlfn.TEXTJOIN("^",,U139:U153) -> 0^0^0 | AF142: 2 | AG142: =$AF142 -> 2 | AJ142: 2 | AK142: 2 | AL142: =$AF142 -> 2 | AR142: =_xlfn.TEXTJOIN("^",,AK139:AK153) -> 6^4^2^3^5^7
C143: 1 | D143: 1 | F143: 1 | H143: 1 | K143: 1 | L143: =$AF143 -> 1 | P143: =_xlfn.TEXTJOIN("^",,H139:H153) -> 6^4^2^1^3^5^7 | R143: 1 | S143: 0 | T143: 0 | U143: 0 | V143: 0 | W143: 100 | X143: 0 | Y143: 0 | Z143: 100 | AA143: 0 | AD143: =_xlfn.TEXTJOIN("^",,V139:V153) -> 0^0 | AF143: 1 | AG143: =$AF143 -> 1 | AH143: =$AF143 -> 1 | AL143: =$AF143 -> 1 | AM143: =$AF143 -> 1 | AR143: =_xlfn.TEXTJOIN("^",,AL139:AL153) -> 8^6^2^1^3^7^9
C144: 3 | D144: =$AF144 -> 3 | F144: 3 | H144: 3 | I144: 3 | K144: 3 | L144: =$AF144 -> 3 | P144: =_xlfn.TEXTJOIN("^",,I139:I153) -> 6^4^2^3^5^7 | R144: 3 | S144: 0 | T144: 0 | U144: 0 | V144: 0 | W144: 0 | X144: 0 | Y144: 0 | AA144: 0 | AD144: =_xlfn.TEXTJOIN("^",,W139:W153) -> 100^0 | AF144: 3 | AG144: =$AF144 -> 3 | AJ144: =$AF144 -> 3 | AK144: 3 | AL144: =$AF144 -> 3 | AR144: =_xlfn.TEXTJOIN("^",,AM139:AM153) -> 6^4^1^5^7
C145: 5 | D145: 5 | E145: 5 | H145: 5 | I145: 5 | K145: 5 | P145: =_xlfn.TEXTJOIN("^",,J139:J153) -> 101^102^103^104^105 | R145: 5 | S145: 0 | U145: 0 | X145: 0 | Y145: 0 | AA145: 0 | AD145: =_xlfn.TEXTJOIN("^",,X139:X153) -> 0^0^0^0 | AF145: 5 | AG145: 5 | AH145: =$AF145 -> 5 | AJ145: 5 | AK145: 5 | AM145: =$AF145 -> 5 | AR145: =_xlfn.TEXTJOIN("^",,AN139:AN153) -> 101^102^103^104^105
C146: 7 | E146: 7 | H146: 7 | I146: 7 | K146: 7 | L146: 7 | P146: =_xlfn.TEXTJOIN("^",,K139:K153) -> 6^4^2^1^3^5^7 | R146: 7 | X146: 0 | AD146: =_xlfn.TEXTJOIN("^",,Y139:Y153) -> 0^0^0 | AF146: 7 | AJ146: 7 | AK146: 7 | AL146: 7 | AM146: 7 | AR146: =_xlfn.TEXTJOIN("^",,AO139:AO153) -> 
C147: 9 | F147: =$AF147 -> 9 | L147: 9 | P147: =_xlfn.TEXTJOIN("^",,L139:L153) -> 8^6^2^1^3^7^9 | R147: 9 | AF147: 9 | AL147: 9 | AR147: =_xlfn.TEXTJOIN("^",,AP139:AP153) -> 
C148: 空降 | P148: =_xlfn.TEXTJOIN("^",,M139:M153) -> 101^102^103^104^105 | R148: 空降 | AF148: 空降 | AR148: =_xlfn.TEXTJOIN("^",,AQ139:AQ147) -> 
C149: 101 | G149: =$AF149 -> 101 | J149: =$AF149 -> 101 | M149: =$AF149 -> 101 | P149: =_xlfn.TEXTJOIN("^",,N139:N153) ->  | R149: 101 | AD149: =_xlfn.TEXTJOIN("^",,Z139:Z153) -> 100 | AF149: 101 | AI149: =$AF149 -> 101 | AN149: =$AF149 -> 101
C150: 102 | G150: =$AF150 -> 102 | J150: 102 | M150: 102 | R150: 102 | AD150: =_xlfn.TEXTJOIN("^",,AA139:AA153) -> 0^0^0 | AF150: 102 | AN150: 102
C151: 103 | G151: =$AF151 -> 103 | J151: 103 | M151: 103 | R151: 103 | AD151: =_xlfn.TEXTJOIN("^",,AB139:AB153) ->  | AF151: 103 | AI151: =$AF151 -> 103 | AN151: 103
C152: 104 | G152: =$AF152 -> 104 | J152: 104 | M152: 104 | R152: 104 | AF152: 104 | AN152: =$AF152 -> 104
C153: 105 | G153: =$AF153 -> 105 | J153: 105 | M153: 105 | R153: 105 | AF153: 105 | AI153: =$AF153 -> 105 | AN153: 105
O154: 最终 | P154: =_xlfn.TEXTJOIN("^",,P139:P153) -> 4^2^1^3^5^6^4^5^7^8^2^1^3^9^101^102^103^104^105^6^4^2^1^3^5^7^6^4^2^3^5^7^101^102^103^104^105^6^4^2^1^3^5^7^8^6^2^1^3^7^9^101^102^103^104^105 | AC154: 最终 | AD154: =_xlfn.TEXTJOIN("|",,AD139:AD153) -> 0^0^0|0^0|0^0^0|0^0|100^0|0^0^0^0|0^0^0|100|0^0^0 | AQ154: 最终 | AR154: =_xlfn.TEXTJOIN("^",,AR138:AR153) -> 4^2^1^3^5^4^1^5^101^103^105^6^4^2^3^5^7^6^4^2^3^5^7^8^6^2^1^3^7^9^6^4^1^5^7^101^102^103^104^105
C156: 时间 | D156: 5 | E156: 10 | F156: 16 | G156: 20 | H156: 27 | I156: 35 | J156: 40 | K156: 50 | L156: 60 | M156: 65 | R156: 时间 | S156: 4 | T156: 10 | U156: 25 | V156: 41 | W156: 45 | X156: 60 | Y156: 77 | Z156: 80 | AA156: 95 | AD156: =_xlfn.TEXTJOIN("^",,S157:S165) -> 4^6^14 | AF156: 时间 | AG156: 3 | AH156: 5 | AI156: 8 | AJ156: 12 | AK156: 17 | AL156: 25 | AM156: 35 | AN156: 40 | AR156: =_xlfn.TEXTJOIN("^",,AG157:AG165) -> 3^3^3^3^3
C157: 8 | F157: =F$156 -> 16 | L157: =L$156 -> 60 | P157: =_xlfn.TEXTJOIN("^",,D157:D166) -> 5^5^5^5^5 | R157: 8 | AD157: =_xlfn.TEXTJOIN("^",,T157:T165) -> 3^7 | AF157: 8 | AL157: =AL$156 -> 25 | AR157: =_xlfn.TEXTJOIN("^",,AH157:AH165) -> 5^5^5
C158: 6 | E158: =E$156 -> 10 | H158: =H$156 -> 27 | I158: 35 | K158: =K$156 -> 50 | L158: 60 | P158: =_xlfn.TEXTJOIN("^",,E157:E166) -> 10^10^10^10 | R158: 6 | AD158: =_xlfn.TEXTJOIN("^",,U157:U165) -> 3^4^2 | AF158: 6 | AJ158: =AJ$156 -> 12 | AK158: 17 | AL158: 25 | AM158: 35 | AR158: =_xlfn.TEXTJOIN("^",,AI157:AI165) -> 8^8^8
C159: 4 | D159: =D$156 -> 5 | E159: 10 | G159: =G$156 -> 20 | H159: 27 | I159: 35 | J159: 40 | K159: 50 | M159: =M$156 -> 65 | P159: =_xlfn.TEXTJOIN("^",,F157:F166) -> 16^16^16^16^16 | R159: 4 | AD159: =_xlfn.TEXTJOIN("^",,V157:V165) -> 3^8 | AF159: 4 | AG159: =AG$156 -> 3 | AH159: =AH$156 -> 5 | AI159: =AI$156 -> 8 | AJ159: 12 | AK159: 17 | AM159: 35 | AN159: 40 | AR159: =_xlfn.TEXTJOIN("^",,AJ157:AJ165) -> 12^12^12^12^12^12
C160: 2 | D160: =D$156 -> 5 | F160: =F$156 -> 16 | G160: =G$156 -> 20 | H160: 27 | I160: 35 | J160: 40 | K160: 50 | L160: =L$156 -> 60 | M160: 65 | P160: =_xlfn.TEXTJOIN("^",,G157:G166) -> 20^20^20^20^20 | R160: 2 | AD160: =_xlfn.TEXTJOIN("^",,W157:W165) -> 8^1 | AF160: 2 | AG160: 3 | AJ160: =AJ$156 -> 12 | AK160: =AK$156 -> 17 | AL160: =AL$156 -> 25 | AN160: 40 | AR160: =_xlfn.TEXTJOIN("^",,AK157:AK165) -> 17^17^17^17^17^17
C161: 1 | D161: =D$156 -> 5 | F161: 16 | G161: =G$156 -> 20 | H161: 27 | J161: 40 | K161: 50 | L161: =L$156 -> 60 | M161: 65 | P161: =_xlfn.TEXTJOIN("^",,H157:H166) -> 27^27^27^27^27^27^27 | R161: 1 | S161: 4 | T161: 3 | U161: 3 | V161: 3 | W161: 8 | X161: 2 | Y161: 2 | Z161: 9 | AA161: 2 | AD161: =_xlfn.TEXTJOIN("^",,X157:X165) -> 2^2^3^6 | AF161: 1 | AG161: 3 | AH161: =AH$156 -> 5 | AI161: =AI$156 -> 8 | AL161: 25 | AM161: =AM$156 -> 35 | AN161: 40 | AR161: =_xlfn.TEXTJOIN("^",,AL157:AL165) -> 25^25^25^25^25^25^25
C162: 3 | D162: =D$156 -> 5 | F162: 16 | G162: =G$156 -> 20 | H162: 27 | I162: 35 | J162: 40 | K162: 50 | L162: =L$156 -> 60 | M162: 65 | P162: =_xlfn.TEXTJOIN("^",,I157:I166) -> 35^35^35^35^35^35 | R162: 3 | S162: 6 | T162: 7 | U162: 4 | V162: 8 | W162: 1 | X162: 2 | Y162: 8 | AA162: 9 | AD162: =_xlfn.TEXTJOIN("^",,Y157:Y165) -> 2^8^3 | AF162: 3 | AG162: =AG$156 -> 3 | AJ162: =AJ$156 -> 12 | AK162: 17 | AL162: =AL$156 -> 25 | AN162: =AN$156 -> 40 | AR162: =_xlfn.TEXTJOIN("^",,AM157:AM165) -> 35^35^35^35^35
C163: 5 | D163: 5 | E163: 10 | G163: =G$156 -> 20 | H163: 27 | I163: 35 | J163: 40 | K163: 50 | M163: 65 | P163: =_xlfn.TEXTJOIN("^",,J157:J166) -> 40^40^40^40^40 | R163: 5 | S163: 14 | U163: 2 | X163: 3 | Y163: 3 | AA163: 3 | AD163: =_xlfn.TEXTJOIN("^",,Z157:Z165) -> 9 | AF163: 5 | AG163: 3 | AH163: =AH$156 -> 5 | AI163: =AI$156 -> 8 | AJ163: 12 | AK163: 17 | AM163: =AM$156 -> 35 | AN163: 40 | AR163: =_xlfn.TEXTJOIN("^",,AN157:AN165) -> 40^40^40^40^40
C164: 7 | E164: 10 | H164: =H$156 -> 27 | I164: 35 | K164: 50 | L164: 60 | P164: =_xlfn.TEXTJOIN("^",,K157:K166) -> 50^50^50^50^50^50^50 | R164: 7 | X164: 6 | AD164: =_xlfn.TEXTJOIN("^",,AA157:AA165) -> 2^9^3 | AF164: 7 | AJ164: 12 | AK164: 17 | AL164: 25 | AM164: 35 | AR164: =_xlfn.TEXTJOIN("^",,AO157:AO165) -> 
C165: 9 | F165: =F$156 -> 16 | L165: 60 | P165: =_xlfn.TEXTJOIN("^",,L157:L166) -> 60^60^60^60^60^60^60 | R165: 9 | AD165: =_xlfn.TEXTJOIN("^",,AB157:AB165) ->  | AF165: 9 | AL165: 25 | AR165: =_xlfn.TEXTJOIN("^",,AP157:AP165) -> 
P166: =_xlfn.TEXTJOIN("^",,M157:M166) -> 65^65^65^65^65 | AD166: =_xlfn.TEXTJOIN("^",,AC157:AC165) ->  | AR166: =_xlfn.TEXTJOIN("^",,AQ157:AQ165) -> 
P167: =_xlfn.TEXTJOIN("^",,N157:N166) ->  | AC167: 最终 | AD167: =_xlfn.TEXTJOIN("|",,AD156:AD166) -> 4^6^14|3^7|3^4^2|3^8|8^1|2^2^3^6|2^8^3|9|2^9^3 | AQ167: 最终 | AR167: =_xlfn.TEXTJOIN("^",,AR156:AR166) -> 3^3^3^3^3^5^5^5^8^8^8^12^12^12^12^12^12^17^17^17^17^17^17^25^25^25^25^25^25^25^35^35^35^35^35^40^40^40^40^40
O168: 最终 | P168: =_xlfn.TEXTJOIN("^",,P157:P167) -> 5^5^5^5^5^10^10^10^10^16^16^16^16^16^20^20^20^20^20^27^27^27^27^27^27^27^35^35^35^35^35^35^40^40^40^40^40^50^50^50^50^50^50^50^60^60^60^60^60^60^60^65^65^65^65^65
O169: =COUNT(D157:N166) -> 56 | AC169: =SUM(S157:AB166) -> 112 | AQ169: =COUNT(AG157:AP166) -> 40 | AR169: =AC169+AQ169+O169 -> 208

Sheet 6
E2: =E3-D3 -> 5 | F2: =F3-E3 -> 7 | G2: 8 | H2: 5 | I2: 10 | J2: 5 | K2: 10 | L2: 5 | M2: 10 | T2: =T3-S3 -> 5 | U2: 5 | V2: 15 | W2: 16 | X2: 4 | Y2: 15 | Z2: 15 | AH2: =AH3-AG3 -> 2 | AI2: 3 | AJ2: 5 | AK2: 6 | AL2: 7 | AM2: 10 | AN2: 10 | AO2: 5
A3: 1 | B3: 炎地-1 | C3: 波1·怪物 | D3: 5 | E3: 10 | F3: 17 | G3: 25 | H3: 30 | I3: 40 | J3: 45 | K3: 55 | L3: 60 | M3: 70 | Q3: 3 | R3: 波2·怪物 | S3: 5 | T3: 10 | U3: 15 | V3: 30 | W3: 46 | X3: 50 | Y3: 65 | Z3: 80 | AE3: 1 | AF3: 波3·怪物 | AG3: 2 | AH3: 4 | AI3: 7 | AJ3: 12 | AK3: 18 | AL3: 25 | AM3: 35 | AN3: 45 | AO3: 50
B4: 5m | C4: 8 | G4: 70164 | I4: 70162 | K4: 70164 | P4: =_xlfn.TEXTJOIN("^",,D4:D13) -> 70164^70162^70162^70164 | R4: 8 | AD4: =_xlfn.TEXTJOIN("^",,S4:S13) -> 70163^70164^70161 | AF4: 8 | AR4: =_xlfn.TEXTJOIN("^",,AG4:AG13) -> 70165^70165^70165^70165
C5: 6 | E5: 70161 | F5: 70162 | G5: 70162 | I5: 70164 | K5: 70162 | M5: 70164 | P5: =_xlfn.TEXTJOIN("^",,E4:E13) -> 70161^70161^70164^70164^70161^70161 | R5: 6 | AD5: =_xlfn.TEXTJOIN("^",,T4:T13) -> 70162^70161 | AF5: 6 | AJ5: 70161 | AL5: 70164 | AM5: 70162 | AN5: 70164 | AR5: =_xlfn.TEXTJOIN("^",,AH4:AH13) -> 70162^70162^70162
C6: 4 | D6: 70164 | E6: 70161 | G6: 70161 | H6: 70165 | I6: 70161 | J6: 70165 | K6: 70161 | L6: 70165 | M6: 70162 | P6: =_xlfn.TEXTJOIN("^",,F4:F13) -> 70162^70163^70162^70163^70162 | R6: 4 | AD6: =_xlfn.TEXTJOIN("^",,U4:U13) -> 70165^70162 | AF6: 4 | AG6: 70165 | AI6: 70164 | AJ6: 70161 | AK6: 70163 | AL6: 70162 | AM6: 70161 | AN6: 70162 | AO6: 70165 | AR6: =_xlfn.TEXTJOIN("^",,AI4:AI13) -> 70164^70164^70164
C7: 2 | D7: 70162 | E7: 70164 | F7: 70163 | H7: 70165 | I7: 70161 | J7: 70165 | K7: 70163 | L7: 70165 | M7: 70163 | P7: =_xlfn.TEXTJOIN("^",,G4:G13) -> 70164^70162^70161^70162^70161^70162^70164 | R7: 2 | AD7: =_xlfn.TEXTJOIN("^",,V4:V13) -> 70164^70163^70162^70161 | AF7: 2 | AG7: 70165 | AH7: 70162 | AL7: 70161 | AM7: 70163 | AO7: 70165 | AR7: =_xlfn.TEXTJOIN("^",,AJ4:AJ13) -> 70161^70161^70161^70161
C8: 1 | F8: 70162 | G8: 70162 | H8: 70165 | I8: 70162 | J8: 70165 | L8: 70165 | M8: 70166 | P8: =_xlfn.TEXTJOIN("^",,H4:H13) -> 70165^70165^70165^70165^70165 | R8: 1 | S8: 70163 | T8: 70162 | U8: 70165 | V8: 70164 | W8: 70161 | X8: 70165 | Y8: 70163 | Z8: 70162 | AD8: =_xlfn.TEXTJOIN("^",,W4:W13) -> 70161^70162^70164 | AF8: 1 | AH8: 70162 | AI8: 70164 | AK8: 70163 | AM8: 70164 | AN8: 70162 | AO8: 70165 | AR8: =_xlfn.TEXTJOIN("^",,AK4:AK13) -> 70163^70163^70163
C9: 3 | D9: 70162 | E9: 70164 | F9: 70163 | H9: 70165 | I9: 70161 | J9: 70165 | K9: 70163 | L9: 70165 | M9: 70163 | P9: =_xlfn.TEXTJOIN("^",,I4:I13) -> 70162^70164^70161^70161^70162^70161^70161^70164^70162 | R9: 3 | S9: 70164 | T9: 70161 | U9: 70162 | V9: 70163 | W9: 70162 | X9: 70161 | Y9: 70161 | Z9: 70164 | AD9: =_xlfn.TEXTJOIN("^",,X4:X13) -> 70165^70161 | AF9: 3 | AG9: 70165 | AH9: 70162 | AL9: 70161 | AM9: 70163 | AO9: 70165 | AR9: =_xlfn.TEXTJOIN("^",,AL4:AL13) -> 70164^70162^70161^70161^70162^70164
C10: 5 | D10: 70164 | E10: 70161 | G10: 70161 | H10: 70165 | I10: 70161 | J10: 70165 | K10: 70161 | L10: 70165 | M10: 70162 | P10: =_xlfn.TEXTJOIN("^",,J4:J13) -> 70165^70165^70165^70165^70165 | R10: 5 | S10: 70161 | V10: 70162 | W10: 70164 | Y10: 70162 | Z10: 70161 | AD10: =_xlfn.TEXTJOIN("^",,Y4:Y13) -> 70163^70161^70162 | AF10: 5 | AG10: 70165 | AI10: 70164 | AJ10: 70161 | AK10: 70163 | AL10: 70162 | AM10: 70161 | AN10: 70162 | AO10: 70165 | AR10: =_xlfn.TEXTJOIN("^",,AM4:AM13) -> 70162^70161^70163^70164^70163^70161^70162
C11: 7 | E11: 70161 | F11: 70162 | G11: 70162 | I11: 70164 | K11: 70162 | M11: 70164 | P11: =_xlfn.TEXTJOIN("^",,K4:K13) -> 70164^70162^70161^70163^70163^70161^70162^70164 | R11: 7 | V11: 70161 | AD11: =_xlfn.TEXTJOIN("^",,Z4:Z13) -> 70162^70164^70161 | AF11: 7 | AJ11: 70161 | AL11: 70164 | AM11: 70162 | AN11: 70164 | AR11: =_xlfn.TEXTJOIN("^",,AN4:AN13) -> 70164^70162^70162^70162^70164
C12: 9 | G12: 70164 | I12: 70162 | K12: 70164 | P12: =_xlfn.TEXTJOIN("^",,L4:L13) -> 70165^70165^70165^70165^70165 | R12: 9 | AD12: =_xlfn.TEXTJOIN("^",,AA4:AA13) ->  | AF12: 9 | AR12: =_xlfn.TEXTJOIN("^",,AO4:AO13) -> 70165^70165^70165^70165^70165
P13: =_xlfn.TEXTJOIN("^",,M4:M13) -> 70164^70162^70163^70166^70163^70162^70164 | AD13: =_xlfn.TEXTJOIN("^",,AB4:AB13) ->  | AR13: =_xlfn.TEXTJOIN("^",,AP4:AP13) -> 
P14: =_xlfn.TEXTJOIN("^",,N4:N13) ->  | AD14: =_xlfn.TEXTJOIN("^",,AC4:AC13) ->  | AR14: =_xlfn.TEXTJOIN("^",,AQ4:AQ13) -> 
O15: 最终 | P15: =_xlfn.TEXTJOIN("^",,P4:P14) -> 70164^70162^70162^70164^70161^70161^70164^70164^70161^70161^70162^70163^70162^70163^70162^70164^70162^70161^70162^70161^70162^70164^70165^70165^70165^70165^70165^70162^70164^70161^70161^70162^70161^70161^70164^70162^70165^70165^70165^70165^70165^70164^70162^70161^70163^70163^70161^70162^70164^70165^70165^70165^70165^70165^70164^70162^70163^70166^70163^70162^70164 | AC15: 最终 | AD15: =_xlfn.TEXTJOIN("^",,AD4:AD14) -> 70163^70164^70161^70162^70161^70165^70162^70164^70163^70162^70161^70161^70162^70164^70165^70161^70163^70161^70162^70162^70164^70161 | AQ15: 最终 | AR15: =_xlfn.TEXTJOIN("^",,AR4:AR14) -> 70165^70165^70165^70165^70162^70162^70162^70164^70164^70164^70161^70161^70161^70161^70163^70163^70163^70164^70162^70161^70161^70162^70164^70162^70161^70163^70164^70163^70161^70162^70164^70162^70162^70162^70164^70165^70165^70165^70165^70165
C16: 8 | G16: 火精灵 | I16: 岩浆人 | K16: 火精灵 | R16: 8 | AF16: 8
C17: 6 | E17: 岩浆蝎 | F17: 岩浆人 | G17: 岩浆人 | I17: 火精灵 | K17: 岩浆人 | M17: 火精灵 | R17: 6 | AF17: 6 | AJ17: 岩浆蝎 | AL17: 火精灵 | AM17: 岩浆人 | AN17: 火精灵
C18: 4 | D18: 火精灵 | E18: 岩浆蝎 | G18: 岩浆蝎 | H18: 火山蜘蛛 | I18: 岩浆蝎 | J18: 火山蜘蛛 | K18: 岩浆蝎 | L18: 火山蜘蛛 | M18: 岩浆人 | R18: 4 | AF18: 4 | AG18: 火山蜘蛛 | AI18: 火精灵 | AJ18: 岩浆蝎 | AK18: 岩浆战士 | AL18: 岩浆人 | AM18: 岩浆蝎 | AN18: 岩浆人 | AO18: 火山蜘蛛
C19: 2 | D19: 岩浆人 | E19: 火精灵 | F19: 岩浆战士 | H19: 火山蜘蛛 | I19: 岩浆蝎 | J19: 火山蜘蛛 | K19: 岩浆战士 | L19: 火山蜘蛛 | M19: 岩浆战士 | R19: 2 | AF19: 2 | AG19: 火山蜘蛛 | AH19: 岩浆人 | AL19: 岩浆蝎 | AM19: 岩浆战士 | AO19: 火山蜘蛛
C20: 1 | F20: 岩浆人 | G20: 岩浆人 | H20: 火山蜘蛛 | I20: 岩浆人 | J20: 火山蜘蛛 | L20: 火山蜘蛛 | M20: 蘑菇王 | R20: 1 | S20: 岩浆战士 | T20: 岩浆人 | U20: 火山蜘蛛 | V20: 火精灵 | W20: 岩浆蝎 | X20: 火山蜘蛛 | Y20: 岩浆战士 | Z20: 岩浆人 | AF20: 1 | AH20: 岩浆人 | AI20: 火精灵 | AK20: 岩浆战士 | AM20: 火精灵 | AN20: 岩浆人 | AO20: 火山蜘蛛
C21: 3 | D21: 岩浆人 | E21: 火精灵 | F21: 岩浆战士 | H21: 火山蜘蛛 | I21: 岩浆蝎 | J21: 火山蜘蛛 | K21: 岩浆战士 | L21: 火山蜘蛛 | M21: 岩浆战士 | R21: 3 | S21: 火精灵 | T21: 岩浆蝎 | U21: 岩浆人 | V21: 岩浆战士 | W21: 岩浆人 | X21: 岩浆蝎 | Y21: 岩浆蝎 | Z21: 火精灵 | AF21: 3 | AG21: 火山蜘蛛 | AH21: 岩浆人 | AL21: 岩浆蝎 | AM21: 岩浆战士 | AO21: 火山蜘蛛
C22: 5 | D22: 火精灵 | E22: 岩浆蝎 | G22: 岩浆蝎 | H22: 火山蜘蛛 | I22: 岩浆蝎 | J22: 火山蜘蛛 | K22: 岩浆蝎 | L22: 火山蜘蛛 | M22: 岩浆人 | R22: 5 | S22: 岩浆蝎 | V22: 岩浆人 | W22: 火精灵 | Y22: 岩浆人 | Z22: 岩浆蝎 | AF22: 5 | AG22: 火山蜘蛛 | AI22: 火精灵 | AJ22: 岩浆蝎 | AK22: 岩浆战士 | AL22: 岩浆人 | AM22: 岩浆蝎 | AN22: 岩浆人 | AO22: 火山蜘蛛
C23: 7 | E23: 岩浆蝎 | F23: 岩浆人 | G23: 岩浆人 | I23: 火精灵 | K23: 岩浆人 | M23: 火精灵 | R23: 7 | V23: 岩浆蝎 | AF23: 7 | AJ23: 岩浆蝎 | AL23: 火精灵 | AM23: 岩浆人 | AN23: 火精灵
C24: 9 | G24: 火精灵 | I24: 岩浆人 | K24: 火精灵 | R24: 9 | AF24: 9
C26: 位置 | D26: 5 | E26: 10 | F26: 17 | G26: 25 | H26: 30 | I26: 40 | J26: 45 | K26: 55 | L26: 60 | M26: 70 | R26: 位置 | S26: 5 | T26: 10 | U26: 15 | V26: 30 | W26: 46 | X26: 50 | Y26: 65 | Z26: 80 | AF26: 位置 | AG26: 2 | AH26: 4 | AI26: 7 | AJ26: 12 | AK26: 18 | AL26: 25 | AM26: 35 | AN26: 45 | AO26: 50 | AR26: =_xlfn.TEXTJOIN("^",,AG27:AG41) -> 101^102^104^105
C27: 8 | G27: =$C27 -> 8 | I27: =$C27 -> 8 | K27: =$C27 -> 8 | P27: =_xlfn.TEXTJOIN("^",,D27:D41) -> 4^2^3^5 | R27: 8 | AF27: 8 | AR27: =_xlfn.TEXTJOIN("^",,AH27:AH41) -> 2^1^3
C28: 6 | E28: =$C28 -> 6 | F28: =$C28 -> 6 | G28: 6 | I28: 6 | K28: 6 | M28: =$C28 -> 6 | P28: =_xlfn.TEXTJOIN("^",,E27:E41) -> 6^4^2^3^5^7 | R28: 6 | AD28: =_xlfn.TEXTJOIN("^",,S27:S41) -> 0^0^0 | AF28: 6 | AJ28: =$C28 -> 6 | AL28: =$C28 -> 6 | AM28: 6 | AN28: 6 | AR28: =_xlfn.TEXTJOIN("^",,AI27:AI41) -> 4^1^5
C29: 4 | D29: =$C29 -> 4 | E29: =$C29 -> 4 | G29: 4 | I29: 4 | K29: 4 | M29: 4 | P29: =_xlfn.TEXTJOIN("^",,F27:F41) -> 6^2^1^3^7 | R29: 4 | AD29: =_xlfn.TEXTJOIN("^",,T27:T41) -> 0^0 | AF29: 4 | AI29: =$C29 -> 4 | AJ29: 4 | AK29: =$C29 -> 4 | AL29: 4 | AM29: 4 | AN29: 4 | AR29: =_xlfn.TEXTJOIN("^",,AJ27:AJ41) -> 6^4^5^7
C30: 2 | D30: =$C30 -> 2 | E30: =$C30 -> 2 | F30: =$C30 -> 2 | I30: 2 | K30: 2 | M30: 2 | P30: =_xlfn.TEXTJOIN("^",,G27:G41) -> 8^6^4^1^5^7^9 | R30: 2 | AD30: =_xlfn.TEXTJOIN("^",,U27:U41) -> 100^0 | AF30: 2 | AH30: =$C30 -> 2 | AL30: 2 | AM30: 2 | AR30: =_xlfn.TEXTJOIN("^",,AK27:AK41) -> 4^1^5
C31: 1 | F31: 1 | G31: 1 | I31: 1 | M31: 1 | P31: =_xlfn.TEXTJOIN("^",,H27:H41) -> 101^102^103^104^105 | R31: 1 | S31: 0 | T31: 0 | U31: 100 | V31: 0 | W31: 0 | X31: 100 | Y31: 0 | Z31: 0 | AD31: =_xlfn.TEXTJOIN("^",,V27:V41) -> 0^0^0^0 | AF31: 1 | AH31: 1 | AI31: =$C31 -> 1 | AK31: =$C31 -> 1 | AM31: 1 | AN31: =$C31 -> 1 | AR31: =_xlfn.TEXTJOIN("^",,AL27:AL41) -> 6^4^2^3^5^7
C32: 3 | D32: =$C32 -> 3 | E32: =$C32 -> 3 | F32: 3 | I32: 3 | K32: =$C32 -> 3 | M32: 3 | P32: =_xlfn.TEXTJOIN("^",,I27:I41) -> 8^6^4^2^1^3^5^7^9 | R32: 3 | S32: 0 | T32: 0 | U32: 0 | V32: 0 | W32: 0 | X32: 0 | Y32: 0 | Z32: 0 | AD32: =_xlfn.TEXTJOIN("^",,W27:W41) -> 0^0^0 | AF32: 3 | AH32: 3 | AL32: =$C32 -> 3 | AM32: 3 | AR32: =_xlfn.TEXTJOIN("^",,AM27:AM41) -> 6^4^2^1^3^5^7
C33: 5 | D33: 5 | E33: =$C33 -> 5 | G33: =$C33 -> 5 | I33: 5 | K33: 5 | M33: 5 | P33: =_xlfn.TEXTJOIN("^",,J27:J41) -> 101^102^103^104^105 | R33: 5 | S33: 0 | V33: 0 | W33: 0 | Y33: 0 | Z33: 0 | AD33: =_xlfn.TEXTJOIN("^",,X27:X41) -> 100^0 | AF33: 5 | AI33: =$C33 -> 5 | AJ33: =$C33 -> 5 | AK33: =$C33 -> 5 | AL33: 5 | AM33: 5 | AN33: 5 | AR33: =_xlfn.TEXTJOIN("^",,AN27:AN41) -> 6^4^1^5^7
C34: 7 | E34: =$C34 -> 7 | F34: =$C34 -> 7 | G34: 7 | I34: 7 | K34: 7 | M34: 7 | P34: =_xlfn.TEXTJOIN("^",,K27:K41) -> 8^6^4^2^3^5^7^9 | R34: 7 | V34: 0 | AD34: =_xlfn.TEXTJOIN("^",,Y27:Y41) -> 0^0^0 | AF34: 7 | AJ34: 7 | AL34: 7 | AM34: 7 | AN34: 7 | AR34: =_xlfn.TEXTJOIN("^",,AO27:AO41) -> 101^102^103^104^105
C35: 9 | G35: 9 | I35: 9 | K35: 9 | P35: =_xlfn.TEXTJOIN("^",,L27:L41) -> 101^102^103^104^105 | R35: 9 | AF35: 9 | AR35: =_xlfn.TEXTJOIN("^",,AP27:AP41) -> 
C36: 空降 | P36: =_xlfn.TEXTJOIN("^",,M27:M41) -> 6^4^2^1^3^5^7 | R36: 空降 | AF36: 空降 | AR36: =_xlfn.TEXTJOIN("^",,AQ27:AQ35) -> 
C37: 101 | H37: =$C37 -> 101 | J37: =$C37 -> 101 | L37: =$C37 -> 101 | P37: =_xlfn.TEXTJOIN("^",,N27:N41) ->  | R37: 101 | AD37: =_xlfn.TEXTJOIN("^",,Z27:Z41) -> 0^0^0 | AF37: 101 | AG37: =$C37 -> 101 | AO37: =$C37 -> 101
C38: 102 | H38: 102 | J38: =$C38 -> 102 | L38: 102 | R38: 102 | AD38: =_xlfn.TEXTJOIN("^",,AA27:AA41) ->  | AF38: 102 | AG38: =$C38 -> 102 | AO38: 102
C39: 103 | H39: 103 | J39: =$C39 -> 103 | L39: 103 | R39: 103 | AD39: =_xlfn.TEXTJOIN("^",,AB27:AB41) ->  | AF39: 103 | AO39: 103
C40: 104 | H40: 104 | J40: =$C40 -> 104 | L40: 104 | R40: 104 | AF40: 104 | AG40: =$C40 -> 104 | AO40: =$C40 -> 104
C41: 105 | H41: 105 | J41: =$C41 -> 105 | L41: 105 | R41: 105 | AF41: 105 | AG41: =$C41 -> 105 | AO41: 105
O42: 最终 | P42: =_xlfn.TEXTJOIN("^",,P27:P41) -> 4^2^3^5^6^4^2^3^5^7^6^2^1^3^7^8^6^4^1^5^7^9^101^102^103^104^105^8^6^4^2^1^3^5^7^9^101^102^103^104^105^8^6^4^2^3^5^7^9^101^102^103^104^105^6^4^2^1^3^5^7 | AC42: 最终 | AD42: =_xlfn.TEXTJOIN("^",,AD27:AD41) -> 0^0^0^0^0^100^0^0^0^0^0^0^0^0^100^0^0^0^0^0^0^0 | AQ42: 最终 | AR42: =_xlfn.TEXTJOIN("^",,AR26:AR41) -> 101^102^104^105^2^1^3^4^1^5^6^4^5^7^4^1^5^6^4^2^3^5^7^6^4^2^1^3^5^7^6^4^1^5^7^101^102^103^104^105
C44: 时间 | D44: 5 | E44: 10 | F44: 17 | G44: 25 | H44: 30 | I44: 40 | J44: 45 | K44: 55 | L44: 60 | M44: 70 | R44: 时间 | S44: 5 | T44: 10 | U44: 15 | V44: 30 | W44: 46 | X44: 50 | Y44: 65 | Z44: 80 | AD44: =_xlfn.TEXTJOIN("^",,S45:S53) -> 4^5^15 | AF44: 时间 | AG44: 2 | AH44: 4 | AI44: 7 | AJ44: 12 | AK44: 18 | AL44: 25 | AM44: 35 | AN44: 45 | AO44: 50 | AR44: =_xlfn.TEXTJOIN("^",,AG45:AG53) -> 2^2^2^2
C45: 8 | G45: =G$44 -> 25 | I45: =I$44 -> 40 | K45: =K$44 -> 55 | P45: =_xlfn.TEXTJOIN("^",,D45:D54) -> 5^5^5^5 | R45: 8 | AD45: =_xlfn.TEXTJOIN("^",,T45:T53) -> 4^8 | AF45: 8 | AR45: =_xlfn.TEXTJOIN("^",,AH45:AH53) -> 4^4^4
C46: 6 | E46: =E$44 -> 10 | F46: =F$44 -> 17 | G46: 25 | I46: 40 | K46: 55 | M46: =M$44 -> 70 | P46: =_xlfn.TEXTJOIN("^",,E45:E54) -> 10^10^10^10^10^10 | R46: 6 | AD46: =_xlfn.TEXTJOIN("^",,U45:U53) -> 8^4 | AF46: 6 | AJ46: =AJ$44 -> 12 | AL46: =AL$44 -> 25 | AM46: 35 | AN46: 45 | AR46: =_xlfn.TEXTJOIN("^",,AI45:AI53) -> 7^7^7
C47: 4 | D47: =D$44 -> 5 | E47: 10 | G47: 25 | H47: 30 | I47: 40 | J47: =J$44 -> 45 | K47: 55 | L47: =L$44 -> 60 | M47: 70 | P47: =_xlfn.TEXTJOIN("^",,F45:F54) -> 17^17^17^17^17 | R47: 4 | AD47: =_xlfn.TEXTJOIN("^",,V45:V53) -> 2^2^3^6 | AF47: 4 | AG47: =AG$44 -> 2 | AI47: =AI$44 -> 7 | AJ47: 12 | AK47: =AK$44 -> 18 | AL47: 25 | AM47: 35 | AN47: 45 | AO47: =AO$44 -> 50 | AR47: =_xlfn.TEXTJOIN("^",,AJ45:AJ53) -> 12^12^12^12
C48: 2 | D48: 5 | E48: 10 | F48: 17 | H48: 30 | I48: 40 | J48: 45 | K48: 55 | L48: 60 | M48: 70 | P48: =_xlfn.TEXTJOIN("^",,G45:G54) -> 25^25^25^25^25^25^25 | R48: 2 | AD48: =_xlfn.TEXTJOIN("^",,W45:W53) -> 8^3^2 | AF48: 2 | AG48: =AG$44 -> 2 | AH48: =AH$44 -> 4 | AL48: 25 | AM48: 35 | AO48: =AO$44 -> 50 | AR48: =_xlfn.TEXTJOIN("^",,AK45:AK53) -> 18^18^18
C49: 1 | F49: 17 | G49: 25 | H49: 30 | I49: 40 | J49: 45 | L49: 60 | M49: 70 | P49: =_xlfn.TEXTJOIN("^",,H45:H54) -> 30^30^30^30^30 | R49: 1 | S49: 4 | T49: 4 | U49: 8 | V49: 2 | W49: 8 | X49: 7 | Y49: 2 | Z49: 3 | AD49: =_xlfn.TEXTJOIN("^",,X45:X53) -> 7^5 | AF49: 1 | AH49: 4 | AI49: =AI$44 -> 7 | AK49: =AK$44 -> 18 | AM49: 35 | AN49: =AN$44 -> 45 | AO49: =AO$44 -> 50 | AR49: =_xlfn.TEXTJOIN("^",,AL45:AL53) -> 25^25^25^25^25^25
C50: 3 | D50: =D$44 -> 5 | E50: 10 | F50: 17 | H50: 30 | I50: 40 | J50: 45 | K50: 55 | L50: 60 | M50: 70 | P50: =_xlfn.TEXTJOIN("^",,I45:I54) -> 40^40^40^40^40^40^40^40^40 | R50: 3 | S50: 5 | T50: 8 | U50: 4 | V50: 2 | W50: 3 | X50: 5 | Y50: 8 | Z50: 2 | AD50: =_xlfn.TEXTJOIN("^",,Y45:Y53) -> 2^8^3 | AF50: 3 | AG50: =AG$44 -> 2 | AH50: 4 | AL50: =AL$44 -> 25 | AM50: 35 | AO50: =AO$44 -> 50 | AR50: =_xlfn.TEXTJOIN("^",,AM45:AM53) -> 35^35^35^35^35^35^35
C51: 5 | D51: 5 | E51: 10 | G51: =G$44 -> 25 | H51: 30 | I51: 40 | J51: =J$44 -> 45 | K51: 55 | L51: 60 | M51: 70 | P51: =_xlfn.TEXTJOIN("^",,J45:J54) -> 45^45^45^45^45 | R51: 5 | S51: 15 | V51: 3 | W51: 2 | Y51: 3 | Z51: 9 | AD51: =_xlfn.TEXTJOIN("^",,Z45:Z53) -> 3^2^9 | AF51: 5 | AG51: =AG$44 -> 2 | AI51: =AI$44 -> 7 | AJ51: =AJ$44 -> 12 | AK51: =AK$44 -> 18 | AL51: 25 | AM51: 35 | AN51: 45 | AO51: 50 | AR51: =_xlfn.TEXTJOIN("^",,AN45:AN53) -> 45^45^45^45^45
C52: 7 | E52: 10 | F52: =F$44 -> 17 | G52: 25 | I52: 40 | K52: 55 | M52: 70 | P52: =_xlfn.TEXTJOIN("^",,K45:K54) -> 55^55^55^55^55^55^55^55 | R52: 7 | V52: 6 | AD52: =_xlfn.TEXTJOIN("^",,AA45:AA53) ->  | AF52: 7 | AJ52: 12 | AL52: 25 | AM52: 35 | AN52: 45 | AR52: =_xlfn.TEXTJOIN("^",,AO45:AO53) -> 50^50^50^50^50
C53: 9 | G53: 25 | I53: 40 | K53: 55 | P53: =_xlfn.TEXTJOIN("^",,L45:L54) -> 60^60^60^60^60 | R53: 9 | AD53: =_xlfn.TEXTJOIN("^",,AB45:AB53) ->  | AF53: 9 | AR53: =_xlfn.TEXTJOIN("^",,AP45:AP53) -> 
P54: =_xlfn.TEXTJOIN("^",,M45:M54) -> 70^70^70^70^70^70^70 | AD54: =_xlfn.TEXTJOIN("^",,AC45:AC53) ->  | AR54: =_xlfn.TEXTJOIN("^",,AQ45:AQ53) -> 
P55: =_xlfn.TEXTJOIN("^",,N45:N54) ->  | AC55: 最终 | AD55: =_xlfn.TEXTJOIN("^",,AD44:AD54) -> 4^5^15^4^8^8^4^2^2^3^6^8^3^2^7^5^2^8^3^3^2^9 | AQ55: 最终 | AR55: =_xlfn.TEXTJOIN("^",,AR44:AR54) -> 2^2^2^2^4^4^4^7^7^7^12^12^12^12^18^18^18^25^25^25^25^25^25^35^35^35^35^35^35^35^45^45^45^45^45^50^50^50^50^50
O56: 最终 | P56: =_xlfn.TEXTJOIN("^",,P45:P55) -> 5^5^5^5^10^10^10^10^10^10^17^17^17^17^17^25^25^25^25^25^25^25^30^30^30^30^30^40^40^40^40^40^40^40^40^40^45^45^45^45^45^55^55^55^55^55^55^55^55^60^60^60^60^60^70^70^70^70^70^70^70
O57: =COUNT(D45:N54) -> 61 | AC57: =SUM(S45:AB54) -> 113 | AQ57: =COUNT(AG45:AP54) -> 40 | AR57: =AC57+AQ57+O57 -> 214
E58: =E59-D59 -> 10 | F58: =F59-E59 -> 15 | G58: 5 | H58: 15 | I58: 16 | J58: 4 | K58: 15 | L58: 16 | M58: 4 | T58: =T59-S59 -> 3 | U58: 5 | V58: 7 | W58: 8 | X58: 10 | Y58: 10 | Z58: 5 | AH58: =AH59-AG59 -> 2 | AI58: 4 | AJ58: 6 | AK58: 5 | AL58: 15 | AM58: 16 | AN58: 17 | AO58: 2 | AV58: =AV59-AU59 -> 2 | AW58: 2 | AX58: 2 | AY58: 2 | AZ58: 5 | BA58: 10 | BB58: 5
A59: 3 | B59: 炎地-2 | C59: 波1·怪物 | D59: 5 | E59: 15 | F59: 30 | G59: 35 | H59: 50 | I59: 66 | J59: 70 | K59: 85 | L59: 101 | M59: 105 | Q59: 1 | R59: 波2·怪物 | S59: 2 | T59: 5 | U59: 10 | V59: 17 | W59: 25 | X59: 35 | Y59: 45 | Z59: 50 | AE59: 3 | AF59: 波3·怪物 | AG59: 3 | AH59: 5 | AI59: 9 | AJ59: 15 | AK59: 20 | AL59: 35 | AM59: 51 | AN59: 68 | AO59: 70 | AS59: 1 | AT59: 波4·怪物 | AU59: 2 | AV59: 4 | AW59: 6 | AX59: 8 | AY59: 10 | AZ59: 15 | BA59: 25 | BB59: 30
B60: 5m | C60: 8 | P60: =_xlfn.TEXTJOIN("^",,D60:D69) -> 70171^70172 | R60: 8 | X60: 70174 | AD60: =_xlfn.TEXTJOIN("^",,S60:S69) -> 70172^70172^70172^70172^70172 | AF60: 8 | AR60: =_xlfn.TEXTJOIN("^",,AG60:AG69) -> 70173^70171 | AT60: 8 | BF60: =_xlfn.TEXTJOIN("^",,AU60:AU69) -> 70171^70171^70171^70171
C61: 6 | P61: =_xlfn.TEXTJOIN("^",,E60:E69) -> 70171^70172^70174 | R61: 6 | U61: 70174 | W61: 70172 | X61: 70172 | Y61: 70172 | AD61: =_xlfn.TEXTJOIN("^",,T60:T69) -> 70175^70175^70175^70175^70175 | AF61: 6 | AR61: =_xlfn.TEXTJOIN("^",,AH60:AH69) -> 70172^70171 | AT61: 6 | AZ61: 70174 | BA61: 70172 | BF61: =_xlfn.TEXTJOIN("^",,AV60:AV69) -> 70172^70172^70172
C62: 4 | P62: =_xlfn.TEXTJOIN("^",,F60:F69) -> 70173^70171^70172 | R62: 4 | S62: 70172 | T62: 70175 | U62: 70173 | V62: 70171 | W62: 70171 | X62: 70171 | Y62: 70171 | Z62: 70175 | AD62: =_xlfn.TEXTJOIN("^",,U60:U69) -> 70174^70173^70172^70176^70172^70173^70174 | AF62: 4 | AR62: =_xlfn.TEXTJOIN("^",,AI60:AI69) -> 70171^70172^70174 | AT62: 4 | AU62: 70171 | AV62: 70172 | AX62: 70175 | AY62: 70173 | AZ62: 70172 | BA62: 70171 | BB62: 70175 | BF62: =_xlfn.TEXTJOIN("^",,AW60:AW69) -> 70174^70174
C63: 2 | P63: =_xlfn.TEXTJOIN("^",,G60:G69) -> 70175^70171 | R63: 2 | S63: 70172 | T63: 70175 | U63: 70172 | V63: 70171 | W63: 70171 | X63: 70173 | Y63: 70173 | Z63: 70175 | AD63: =_xlfn.TEXTJOIN("^",,V60:V69) -> 70171^70171^70171^70171^70171 | AF63: 2 | AR63: =_xlfn.TEXTJOIN("^",,AJ60:AJ69) -> 70175^70173 | AT63: 2 | AU63: 70171 | AW63: 70174 | AX63: 70175 | AZ63: 70171 | BA63: 70173 | BB63: 70175 | BF63: =_xlfn.TEXTJOIN("^",,AX60:AX69) -> 70175^70175^70175^70175
C64: 1 | D64: 70171 | E64: 70171 | F64: 70173 | G64: 70175 | H64: 70174 | I64: 70173 | J64: 70175 | K64: 70173 | L64: 70171 | M64: 70175 | P64: =_xlfn.TEXTJOIN("^",,H60:H69) -> 70174^70171^70172 | R64: 1 | S64: 70172 | T64: 70175 | U64: 70176 | V64: 70171 | W64: 70172 | Y64: 70172 | Z64: 70175 | AD64: =_xlfn.TEXTJOIN("^",,W60:W69) -> 70172^70171^70171^70172^70171^70171^70172 | AF64: 1 | AG64: 70173 | AH64: 70172 | AI64: 70171 | AJ64: 70175 | AK64: 70171 | AL64: 70171 | AM64: 70173 | AN64: 70172 | AO64: 70175 | AR64: =_xlfn.TEXTJOIN("^",,AK60:AK69) -> 70171^70172 | AT64: 1 | AV64: 70172 | AY64: 70173 | BA64: 70174 | BF64: =_xlfn.TEXTJOIN("^",,AY60:AY69) -> 70173^70173^70173
C65: 3 | D65: 70172 | E65: 70172 | F65: 70171 | G65: 70171 | H65: 70171 | I65: 70172 | J65: 70172 | K65: 70171 | L65: 70172 | M65: 70173 | P65: =_xlfn.TEXTJOIN("^",,I60:I69) -> 70173^70172^70174 | R65: 3 | S65: 70172 | T65: 70175 | U65: 70172 | V65: 70171 | W65: 70171 | X65: 70173 | Y65: 70173 | Z65: 70175 | AD65: =_xlfn.TEXTJOIN("^",,X60:X69) -> 70174^70172^70171^70173^70173^70171^70172^70174 | AF65: 3 | AG65: 70171 | AH65: 70171 | AI65: 70172 | AJ65: 70173 | AK65: 70172 | AL65: 70174 | AM65: 70171 | AN65: 70174 | AO65: 70172 | AR65: =_xlfn.TEXTJOIN("^",,AL60:AL69) -> 70171^70174^70172 | AT65: 3 | AU65: 70171 | AW65: 70174 | AX65: 70175 | AZ65: 70171 | BA65: 70173 | BB65: 70175 | BF65: =_xlfn.TEXTJOIN("^",,AZ60:AZ69) -> 70174^70172^70171^70171^70172^70174
C66: 5 | E66: 70174 | F66: 70172 | H66: 70172 | I66: 70174 | K66: 70172 | M66: 70176 | P66: =_xlfn.TEXTJOIN("^",,J60:J69) -> 70175^70172 | R66: 5 | S66: 70172 | T66: 70175 | U66: 70173 | V66: 70171 | W66: 70171 | X66: 70171 | Y66: 70171 | Z66: 70175 | AD66: =_xlfn.TEXTJOIN("^",,Y60:Y69) -> 70172^70171^70173^70172^70173^70171^70172 | AF66: 5 | AI66: 70174 | AL66: 70172 | AM66: 70172 | AR66: =_xlfn.TEXTJOIN("^",,AM60:AM69) -> 70173^70171^70172 | AT66: 5 | AU66: 70171 | AV66: 70172 | AX66: 70175 | AY66: 70173 | AZ66: 70172 | BA66: 70171 | BB66: 70175 | BF66: =_xlfn.TEXTJOIN("^",,BA60:BA69) -> 70172^70171^70173^70174^70173^70171^70172
C67: 7 | K67: 70174 | P67: =_xlfn.TEXTJOIN("^",,K60:K69) -> 70173^70171^70172^70174 | R67: 7 | U67: 70174 | W67: 70172 | X67: 70172 | Y67: 70172 | AD67: =_xlfn.TEXTJOIN("^",,Z60:Z69) -> 70175^70175^70175^70175^70175 | AF67: 7 | AR67: =_xlfn.TEXTJOIN("^",,AN60:AN69) -> 70172^70174 | AT67: 7 | AZ67: 70174 | BA67: 70172 | BF67: =_xlfn.TEXTJOIN("^",,BB60:BB69) -> 70175^70175^70175^70175
C68: 9 | P68: =_xlfn.TEXTJOIN("^",,L60:L69) -> 70171^70172 | R68: 9 | X68: 70174 | AD68: =_xlfn.TEXTJOIN("^",,AA60:AA69) ->  | AF68: 9 | AR68: =_xlfn.TEXTJOIN("^",,AO60:AO69) -> 70175^70172 | AT68: 9 | BF68: =_xlfn.TEXTJOIN("^",,BC60:BC69) -> 
P69: =_xlfn.TEXTJOIN("^",,M60:M69) -> 70175^70173^70176 | AD69: =_xlfn.TEXTJOIN("^",,AB60:AB69) ->  | AR69: =_xlfn.TEXTJOIN("^",,AP60:AP69) ->  | BF69: =_xlfn.TEXTJOIN("^",,BD60:BD69) -> 
P70: =_xlfn.TEXTJOIN("^",,N60:N69) ->  | AD70: =_xlfn.TEXTJOIN("^",,AC60:AC69) ->  | AR70: =_xlfn.TEXTJOIN("^",,AQ60:AQ69) ->  | BF70: =_xlfn.TEXTJOIN("^",,BE60:BE69) -> 
O71: 最终 | P71: =_xlfn.TEXTJOIN("^",,P60:P70) -> 70171^70172^70171^70172^70174^70173^70171^70172^70175^70171^70174^70171^70172^70173^70172^70174^70175^70172^70173^70171^70172^70174^70171^70172^70175^70173^70176 | AC71: 最终 | AD71: =_xlfn.TEXTJOIN("^",,AD60:AD70) -> 70172^70172^70172^70172^70172^70175^70175^70175^70175^70175^70174^70173^70172^70176^70172^70173^70174^70171^70171^70171^70171^70171^70172^70171^70171^70172^70171^70171^70172^70174^70172^70171^70173^70173^70171^70172^70174^70172^70171^70173^70172^70173^70171^70172^70175^70175^70175^70175^70175 | AQ71: 最终 | AR71: =_xlfn.TEXTJOIN("^",,AR60:AR70) -> 70173^70171^70172^70171^70171^70172^70174^70175^70173^70171^70172^70171^70174^70172^70173^70171^70172^70172^70174^70175^70172 | BE71: 最终 | BF71: =_xlfn.TEXTJOIN("^",,BF60:BF70) -> 70171^70171^70171^70171^70172^70172^70172^70174^70174^70175^70175^70175^70175^70173^70173^70173^70174^70172^70171^70171^70172^70174^70172^70171^70173^70174^70173^70171^70172^70175^70175^70175^70175
C72: 8 | R72: 8 | X72: 火精灵 | AF72: 8 | AT72: 8
C73: 6 | R73: 6 | U73: 火精灵 | W73: 岩浆人 | X73: 岩浆人 | Y73: 岩浆人 | AF73: 6 | AT73: 6 | AZ73: 火精灵 | BA73: 岩浆人
C74: 4 | R74: 4 | S74: 岩浆人 | T74: 火山蜘蛛 | U74: 岩浆战士 | V74: 岩浆蝎 | W74: 岩浆蝎 | X74: 岩浆蝎 | Y74: 岩浆蝎 | Z74: 火山蜘蛛 | AF74: 4 | AT74: 4 | AU74: 岩浆蝎 | AV74: 岩浆人 | AX74: 火山蜘蛛 | AY74: 岩浆战士 | AZ74: 岩浆人 | BA74: 岩浆蝎 | BB74: 火山蜘蛛
C75: 2 | R75: 2 | S75: 岩浆人 | T75: 火山蜘蛛 | U75: 岩浆人 | V75: 岩浆蝎 | W75: 岩浆蝎 | X75: 岩浆战士 | Y75: 岩浆战士 | Z75: 火山蜘蛛 | AF75: 2 | AT75: 2 | AU75: 岩浆蝎 | AW75: 火精灵 | AX75: 火山蜘蛛 | AZ75: 岩浆蝎 | BA75: 岩浆战士 | BB75: 火山蜘蛛
C76: 1 | D76: 岩浆蝎 | E76: 岩浆蝎 | F76: 岩浆战士 | G76: 火山蜘蛛 | H76: 火精灵 | I76: 岩浆战士 | J76: 火山蜘蛛 | K76: 岩浆战士 | L76: 岩浆蝎 | M76: 火山蜘蛛 | R76: 1 | S76: 岩浆人 | T76: 火山蜘蛛 | U76: 蘑菇王 | V76: 岩浆蝎 | W76: 岩浆人 | Y76: 岩浆人 | Z76: 火山蜘蛛 | AF76: 1 | AG76: 岩浆战士 | AH76: 岩浆人 | AI76: 岩浆蝎 | AJ76: 火山蜘蛛 | AK76: 岩浆蝎 | AL76: 岩浆蝎 | AM76: 岩浆战士 | AN76: 岩浆人 | AO76: 火山蜘蛛 | AT76: 1 | AV76: 岩浆人 | AY76: 岩浆战士 | BA76: 火精灵
C77: 3 | D77: 岩浆人 | E77: 岩浆人 | F77: 岩浆蝎 | G77: 岩浆蝎 | H77: 岩浆蝎 | I77: 岩浆人 | J77: 岩浆人 | K77: 岩浆蝎 | L77: 岩浆人 | M77: 岩浆战士 | R77: 3 | S77: 岩浆人 | T77: 火山蜘蛛 | U77: 岩浆人 | V77: 岩浆蝎 | W77: 岩浆蝎 | X77: 岩浆战士 | Y77: 岩浆战士 | Z77: 火山蜘蛛 | AF77: 3 | AG77: 岩浆蝎 | AH77: 岩浆蝎 | AI77: 岩浆人 | AJ77: 岩浆战士 | AK77: 岩浆人 | AL77: 火精灵 | AM77: 岩浆蝎 | AN77: 火精灵 | AO77: 岩浆人 | AT77: 3 | AU77: 岩浆蝎 | AW77: 火精灵 | AX77: 火山蜘蛛 | AZ77: 岩浆蝎 | BA77: 岩浆战士 | BB77: 火山蜘蛛
C78: 5 | E78: 火精灵 | F78: 岩浆人 | H78: 岩浆人 | I78: 火精灵 | K78: 岩浆人 | M78: 蘑菇王 | R78: 5 | S78: 岩浆人 | T78: 火山蜘蛛 | U78: 岩浆战士 | V78: 岩浆蝎 | W78: 岩浆蝎 | X78: 岩浆蝎 | Y78: 岩浆蝎 | Z78: 火山蜘蛛 | AF78: 5 | AI78: 火精灵 | AL78: 岩浆人 | AM78: 岩浆人 | AT78: 5 | AU78: 岩浆蝎 | AV78: 岩浆人 | AX78: 火山蜘蛛 | AY78: 岩浆战士 | AZ78: 岩浆人 | BA78: 岩浆蝎 | BB78: 火山蜘蛛
C79: 7 | K79: 火精灵 | R79: 7 | U79: 火精灵 | W79: 岩浆人 | X79: 岩浆人 | Y79: 岩浆人 | AF79: 7 | AT79: 7 | AZ79: 火精灵 | BA79: 岩浆人
C80: 9 | R80: 9 | X80: 火精灵 | AF80: 9 | AT80: 9
C82: 位置 | D82: 5 | E82: 15 | F82: 30 | G82: 46 | H82: 50 | I82: 66 | J82: 70 | K82: 85 | L82: 90 | M82: 105 | R82: 位置 | S82: 2 | T82: 5 | U82: 10 | V82: 17 | W82: 25 | X82: 35 | Y82: 45 | Z82: 50 | AF82: 位置 | AG82: 3 | AH82: 5 | AI82: 9 | AJ82: 15 | AK82: 25 | AL82: 40 | AM82: 55 | AN82: 60 | AR82: =_xlfn.TEXTJOIN("^",,AG83:AG97) -> 0^0 | AT82: 位置 | AU82: 2 | AV82: 4 | AW82: 6 | AX82: 8 | AY82: 10 | AZ82: 15 | BA82: 25 | BB82: 30 | BF82: =_xlfn.TEXTJOIN("^",,AU83:AU97) -> 4^2^3^5
C83: 8 | P83: =_xlfn.TEXTJOIN("^",,D83:D97) -> 0^0 | R83: 8 | X83: =$C83 -> 8 | AF83: 8 | AR83: =_xlfn.TEXTJOIN("^",,AH83:AH97) -> 0^0 | AT83: 8 | BF83: =_xlfn.TEXTJOIN("^",,AV83:AV97) -> 4^1^5
C84: 6 | P84: =_xlfn.TEXTJOIN("^",,E83:E97) -> 0^0^0 | R84: 6 | U84: =$C84 -> 6 | W84: =$C84 -> 6 | X84: 6 | Y84: 6 | AD84: =_xlfn.TEXTJOIN("^",,S83:S97) -> 4^2^1^3^5 | AF84: 6 | AR84: =_xlfn.TEXTJOIN("^",,AI83:AI97) -> 0^0^0 | AT84: 6 | AZ84: =$C84 -> 6 | BA84: 6 | BF84: =_xlfn.TEXTJOIN("^",,AW83:AW97) -> 2^3
C85: 4 | P85: =_xlfn.TEXTJOIN("^",,F83:F97) -> 0^0^0 | R85: 4 | S85: =$C85 -> 4 | U85: 4 | V85: 4 | W85: 4 | X85: 4 | Y85: 4 | AD85: =_xlfn.TEXTJOIN("^",,T83:T97) -> 101^102^103^104^105 | AF85: 4 | AR85: =_xlfn.TEXTJOIN("^",,AJ83:AJ97) -> 100^0 | AT85: 4 | AU85: =$C85 -> 4 | AV85: =$C85 -> 4 | AY85: =$C85 -> 4 | AZ85: 4 | BA85: 4 | BF85: =_xlfn.TEXTJOIN("^",,AX83:AX97) -> 101^102^104^105
C86: 2 | P86: =_xlfn.TEXTJOIN("^",,G83:G97) -> 100^0 | R86: 2 | S86: 2 | U86: 2 | V86: 2 | W86: 2 | X86: 2 | Y86: 2 | AD86: =_xlfn.TEXTJOIN("^",,U83:U97) -> 6^4^2^1^3^5^7 | AF86: 2 | AR86: =_xlfn.TEXTJOIN("^",,AK83:AK97) -> 0^0 | AT86: 2 | AU86: 2 | AW86: =$C86 -> 2 | AZ86: 2 | BA86: 2 | BF86: =_xlfn.TEXTJOIN("^",,AY83:AY97) -> 4^1^5
C87: 1 | D87: 0 | E87: 0 | F87: 0 | G87: 100 | H87: 0 | I87: 0 | J87: 100 | K87: 0 | L87: 0 | M87: 100 | P87: =_xlfn.TEXTJOIN("^",,H83:H97) -> 0^0^0 | R87: 1 | S87: 1 | U87: 1 | V87: 1 | W87: 1 | Y87: 1 | AD87: =_xlfn.TEXTJOIN("^",,V83:V97) -> 4^2^1^3^5 | AF87: 1 | AG87: 0 | AH87: 0 | AI87: 0 | AJ87: 100 | AK87: 0 | AL87: 0 | AM87: 0 | AN87: 0 | AO87: 100 | AR87: =_xlfn.TEXTJOIN("^",,AL83:AL97) -> 0^0^0 | AT87: 1 | AV87: =$C87 -> 1 | AY87: =$C87 -> 1 | BA87: 1 | BF87: =_xlfn.TEXTJOIN("^",,AZ83:AZ97) -> 6^4^2^3^5^7
C88: 3 | D88: 0 | E88: 0 | F88: 0 | G88: 0 | H88: 0 | I88: 0 | J88: 0 | K88: 0 | L88: 0 | M88: 0 | P88: =_xlfn.TEXTJOIN("^",,I83:I97) -> 0^0^0 | R88: 3 | S88: 3 | U88: 3 | V88: 3 | W88: 3 | X88: 3 | Y88: 3 | AD88: =_xlfn.TEXTJOIN("^",,W83:W97) -> 6^4^2^1^3^5^7 | AF88: 3 | AG88: 0 | AH88: 0 | AI88: 0 | AJ88: 0 | AK88: 0 | AL88: 0 | AM88: 0 | AN88: 0 | AO88: 0 | AR88: =_xlfn.TEXTJOIN("^",,AM83:AM97) -> 0^0^0 | AT88: 3 | AU88: =$C88 -> 3 | AW88: =$C88 -> 3 | AZ88: =$C88 -> 3 | BA88: 3 | BF88: =_xlfn.TEXTJOIN("^",,BA83:BA97) -> 6^4^2^1^3^5^7
C89: 5 | E89: 0 | F89: 0 | H89: 0 | I89: 0 | K89: 0 | M89: 0 | P89: =_xlfn.TEXTJOIN("^",,J83:J97) -> 100^0 | R89: 5 | S89: 5 | U89: 5 | V89: 5 | W89: 5 | X89: 5 | Y89: 5 | AD89: =_xlfn.TEXTJOIN("^",,X83:X97) -> 8^6^4^2^3^5^7^9 | AF89: 5 | AI89: 0 | AL89: 0 | AM89: 0 | AR89: =_xlfn.TEXTJOIN("^",,AN83:AN97) -> 0^0 | AT89: 5 | AU89: 5 | AV89: =$C89 -> 5 | AY89: =$C89 -> 5 | AZ89: 5 | BA89: 5 | BF89: =_xlfn.TEXTJOIN("^",,BB83:BB97) -> 101^102^104^105
C90: 7 | K90: 0 | P90: =_xlfn.TEXTJOIN("^",,K83:K97) -> 0^0^0^0 | R90: 7 | U90: 7 | W90: 7 | X90: 7 | Y90: 7 | AD90: =_xlfn.TEXTJOIN("^",,Y83:Y97) -> 6^4^2^1^3^5^7 | AF90: 7 | AR90: =_xlfn.TEXTJOIN("^",,AO83:AO97) -> 100^0 | AT90: 7 | AZ90: 7 | BA90: 7 | BF90: =_xlfn.TEXTJOIN("^",,BC83:BC97) -> 
C91: 9 | P91: =_xlfn.TEXTJOIN("^",,L83:L97) -> 0^0 | R91: 9 | X91: 9 | AF91: 9 | AR91: =_xlfn.TEXTJOIN("^",,AP83:AP97) ->  | AT91: 9 | BF91: =_xlfn.TEXTJOIN("^",,BD83:BD97) -> 
C92: 空降 | P92: =_xlfn.TEXTJOIN("^",,M83:M97) -> 100^0^0 | R92: 空降 | AF92: 空降 | AR92: =_xlfn.TEXTJOIN("^",,AQ83:AQ91) ->  | AT92: 空降 | BF92: =_xlfn.TEXTJOIN("^",,BE83:BE91) -> 
C93: 101 | P93: =_xlfn.TEXTJOIN("^",,N83:N97) ->  | R93: 101 | T93: =$C93 -> 101 | Z93: =$C93 -> 101 | AD93: =_xlfn.TEXTJOIN("^",,Z83:Z97) -> 101^102^103^104^105 | AF93: 101 | AT93: 101 | AX93: =$C93 -> 101 | BB93: =$C93 -> 101
C94: 102 | R94: 102 | T94: =$C94 -> 102 | Z94: 102 | AD94: =_xlfn.TEXTJOIN("^",,AA83:AA97) ->  | AF94: 102 | AT94: 102 | AX94: 102 | BB94: 102
C95: 103 | R95: 103 | T95: 103 | Z95: 103 | AD95: =_xlfn.TEXTJOIN("^",,AB83:AB97) ->  | AF95: 103 | AT95: 103
C96: 104 | R96: 104 | T96: 104 | Z96: 104 | AF96: 104 | AT96: 104 | AX96: =$C96 -> 104 | BB96: =$C96 -> 104
C97: 105 | R97: 105 | T97: =$C97 -> 105 | Z97: 105 | AF97: 105 | AT97: 105 | AX97: 105 | BB97: 105
O98: 最终 | P98: =_xlfn.TEXTJOIN("^",,P83:P97) -> 0^0^0^0^0^0^0^0^100^0^0^0^0^0^0^0^100^0^0^0^0^0^0^0^100^0^0 | AC98: 最终 | AD98: =_xlfn.TEXTJOIN("^",,AD83:AD97) -> 4^2^1^3^5^101^102^103^104^105^6^4^2^1^3^5^7^4^2^1^3^5^6^4^2^1^3^5^7^8^6^4^2^3^5^7^9^6^4^2^1^3^5^7^101^102^103^104^105 | AQ98: 最终 | AR98: =_xlfn.TEXTJOIN("^",,AR82:AR97) -> 0^0^0^0^0^0^0^100^0^0^0^0^0^0^0^0^0^0^0^100^0 | BE98: 最终 | BF98: =_xlfn.TEXTJOIN("^",,BF82:BF97) -> 4^2^3^5^4^1^5^2^3^101^102^104^105^4^1^5^6^4^2^3^5^7^6^4^2^1^3^5^7^101^102^104^105
C100: 时间 | D100: 5 | E100: 15 | F100: 30 | G100: 46 | H100: 50 | I100: 66 | J100: 70 | K100: 85 | L100: 90 | M100: 105 | R100: 时间 | S100: 2 | T100: 5 | U100: 10 | V100: 17 | W100: 25 | X100: 35 | Y100: 45 | Z100: 50 | AD100: =_xlfn.TEXTJOIN("^",,S101:S109) -> 2^2^2^2^2 | AF100: 时间 | AG100: 3 | AH100: 5 | AI100: 9 | AJ100: 15 | AK100: 25 | AL100: 40 | AM100: 55 | AN100: 60 | AR100: =_xlfn.TEXTJOIN("^",,AG101:AG109) -> 6^14 | AT100: 时间 | AU100: 2 | AV100: 4 | AW100: 6 | AX100: 8 | AY100: 10 | AZ100: 15 | BA100: 25 | BB100: 30 | BF100: =_xlfn.TEXTJOIN("^",,AU101:AU109) -> 2^2^2^2
C101: 8 | P101: =_xlfn.TEXTJOIN("^",,D101:D110) -> 8^3 | R101: 8 | X101: =X$100 -> 35 | AD101: =_xlfn.TEXTJOIN("^",,T101:T109) -> 5^5^5^5^5 | AF101: 8 | AR101: =_xlfn.TEXTJOIN("^",,AH101:AH109) -> 4^7 | AT101: 8 | BF101: =_xlfn.TEXTJOIN("^",,AV101:AV109) -> 4^4^4
C102: 6 | P102: =_xlfn.TEXTJOIN("^",,E101:E110) -> 7^3^2 | R102: 6 | U102: =U$100 -> 10 | W102: =W$100 -> 25 | X102: 35 | Y102: 45 | AD102: =_xlfn.TEXTJOIN("^",,U101:U109) -> 10^10^10^10^10^10^10 | AF102: 6 | AR102: =_xlfn.TEXTJOIN("^",,AI101:AI109) -> 7^3^3 | AT102: 6 | AZ102: =AZ$100 -> 15 | BA102: 25 | BF102: =_xlfn.TEXTJOIN("^",,AW101:AW109) -> 6^6
C103: 4 | P103: =_xlfn.TEXTJOIN("^",,F101:F110) -> 3^8^2 | R103: 4 | S103: =S$100 -> 2 | T103: =T$100 -> 5 | U103: 10 | V103: 17 | W103: 25 | X103: 35 | Y103: 45 | Z103: 50 | AD103: =_xlfn.TEXTJOIN("^",,V101:V109) -> 17^17^17^17^17 | AF103: 4 | AR103: =_xlfn.TEXTJOIN("^",,AJ101:AJ109) -> 8^3 | AT103: 4 | AU103: =AU$100 -> 2 | AV103: =AV$100 -> 4 | AX103: =AX$100 -> 8 | AY103: =AY$100 -> 10 | AZ103: 15 | BA103: 25 | BB103: =BB$100 -> 30 | BF103: =_xlfn.TEXTJOIN("^",,AX101:AX109) -> 8^8^8^8
C104: 2 | P104: =_xlfn.TEXTJOIN("^",,G101:G110) -> 8^5 | R104: 2 | S104: 2 | T104: 5 | U104: 10 | V104: 17 | W104: 25 | X104: 35 | Y104: 45 | Z104: 50 | AD104: =_xlfn.TEXTJOIN("^",,W101:W109) -> 25^25^25^25^25^25^25 | AF104: 2 | AR104: =_xlfn.TEXTJOIN("^",,AK101:AK109) -> 8^3 | AT104: 2 | AU104: 2 | AW104: =AW$100 -> 6 | AX104: 8 | AZ104: 15 | BA104: 25 | BB104: =BB$100 -> 30 | BF104: =_xlfn.TEXTJOIN("^",,AY101:AY109) -> 10^10^10
C105: 1 | D105: 8 | E105: 7 | F105: 3 | G105: 8 | H105: 2 | I105: 3 | J105: 9 | K105: 2 | L105: 7 | M105: 8 | P105: =_xlfn.TEXTJOIN("^",,H101:H110) -> 2^7^3 | R105: 1 | S105: 2 | T105: 5 | U105: 10 | V105: 17 | W105: 25 | Y105: 45 | Z105: 50 | AD105: =_xlfn.TEXTJOIN("^",,X101:X109) -> 35^35^35^35^35^35^35^35 | AF105: 1 | AG105: 6 | AH105: 4 | AI105: 7 | AJ105: 8 | AK105: 8 | AL105: 6 | AM105: 2 | AN105: 6 | AO105: 8 | AR105: =_xlfn.TEXTJOIN("^",,AL101:AL109) -> 6^2^4 | AT105: 1 | AV105: =AV$100 -> 4 | AY105: =AY$100 -> 10 | BA105: 25 | BF105: =_xlfn.TEXTJOIN("^",,AZ101:AZ109) -> 15^15^15^15^15^15
C106: 3 | D106: 3 | E106: 3 | F106: 8 | G106: 5 | H106: 7 | I106: 4 | J106: 3 | K106: 7 | L106: 4 | M106: 3 | P106: =_xlfn.TEXTJOIN("^",,I101:I110) -> 3^4^3 | R106: 3 | S106: 2 | T106: 5 | U106: 10 | V106: 17 | W106: 25 | X106: 35 | Y106: 45 | Z106: 50 | AD106: =_xlfn.TEXTJOIN("^",,Y101:Y109) -> 45^45^45^45^45^45^45 | AF106: 3 | AG106: 14 | AH106: 7 | AI106: 3 | AJ106: 3 | AK106: 3 | AL106: 2 | AM106: 8 | AN106: 3 | AO106: 3 | AR106: =_xlfn.TEXTJOIN("^",,AM101:AM109) -> 2^8^3 | AT106: 3 | AU106: =AU$100 -> 2 | AW106: =AW$100 -> 6 | AX106: =AX$100 -> 8 | AZ106: =AZ$100 -> 15 | BA106: 25 | BB106: 30 | BF106: =_xlfn.TEXTJOIN("^",,BA101:BA109) -> 25^25^25^25^25^25^25
C107: 5 | E107: 2 | F107: 2 | H107: 3 | I107: 3 | K107: 3 | M107: 1 | P107: =_xlfn.TEXTJOIN("^",,J101:J110) -> 9^3 | R107: 5 | S107: 2 | T107: =T$100 -> 5 | U107: 10 | V107: 17 | W107: 25 | X107: 35 | Y107: 45 | Z107: 50 | AD107: =_xlfn.TEXTJOIN("^",,Z101:Z109) -> 50^50^50^50^50 | AF107: 5 | AI107: 3 | AL107: 4 | AM107: 3 | AR107: =_xlfn.TEXTJOIN("^",,AN101:AN109) -> 6^3 | AT107: 5 | AU107: 2 | AV107: =AV$100 -> 4 | AX107: 8 | AY107: =AY$100 -> 10 | AZ107: 15 | BA107: 25 | BB107: 30 | BF107: =_xlfn.TEXTJOIN("^",,BB101:BB109) -> 30^30^30^30
C108: 7 | K108: 2 | P108: =_xlfn.TEXTJOIN("^",,K101:K110) -> 2^7^3^2 | R108: 7 | U108: 10 | W108: 25 | X108: 35 | Y108: 45 | AD108: =_xlfn.TEXTJOIN("^",,AA101:AA109) ->  | AF108: 7 | AR108: =_xlfn.TEXTJOIN("^",,AO101:AO109) -> 8^3 | AT108: 7 | AZ108: 15 | BA108: 25 | BF108: =_xlfn.TEXTJOIN("^",,BC101:BC109) -> 
C109: 9 | P109: =_xlfn.TEXTJOIN("^",,L101:L110) -> 7^4 | R109: 9 | X109: 35 | AD109: =_xlfn.TEXTJOIN("^",,AB101:AB109) ->  | AF109: 9 | AR109: =_xlfn.TEXTJOIN("^",,AP101:AP109) ->  | AT109: 9 | BF109: =_xlfn.TEXTJOIN("^",,BD101:BD109) -> 
P110: =_xlfn.TEXTJOIN("^",,M101:M110) -> 8^3^1 | AD110: =_xlfn.TEXTJOIN("^",,AC101:AC109) ->  | AR110: =_xlfn.TEXTJOIN("^",,AQ101:AQ109) ->  | BF110: =_xlfn.TEXTJOIN("^",,BE101:BE109) -> 
P111: =_xlfn.TEXTJOIN("^",,N101:N110) ->  | AC111: 最终 | AD111: =_xlfn.TEXTJOIN("^",,AD100:AD110) -> 2^2^2^2^2^5^5^5^5^5^10^10^10^10^10^10^10^17^17^17^17^17^25^25^25^25^25^25^25^35^35^35^35^35^35^35^35^45^45^45^45^45^45^45^50^50^50^50^50 | AQ111: 最终 | AR111: =_xlfn.TEXTJOIN("^",,AR100:AR110) -> 6^14^4^7^7^3^3^8^3^8^3^6^2^4^2^8^3^6^3^8^3 | BE111: 最终 | BF111: =_xlfn.TEXTJOIN("^",,BF100:BF110) -> 2^2^2^2^4^4^4^6^6^8^8^8^8^10^10^10^15^15^15^15^15^15^25^25^25^25^25^25^25^30^30^30^30
O112: 最终 | P112: =_xlfn.TEXTJOIN("^",,P101:P111) -> 8^3^7^3^2^3^8^2^8^5^2^7^3^3^4^3^9^3^2^7^3^2^7^4^8^3^1
O113: =SUM(D101:N110) -> 120 | AC113: =COUNT(S101:AB110) -> 49 | AQ113: =SUM(AG101:AP110) -> 111 | BE113: =COUNT(AU101:BD110) -> 33 | BF113: =AQ113+BE113+AC113+O113 -> 313
E114: =E115-D115 -> 5 | F114: =F115-E115 -> 7 | G114: 8 | H114: 5 | I114: 10 | J114: 5 | K114: 10 | L114: 5 | M114: 10 | T114: =T115-S115 -> 5 | U114: 5 | V114: 5 | W114: 5 | X114: 15 | Y114: 16 | Z114: 17 | AH114: =AH115-AG115 -> 2 | AI114: 4 | AJ114: 6 | AK114: 7 | AL114: 8 | AM114: 10 | AN114: 5 | AV114: =AV115-AU115 -> 2 | AW114: 2 | AX114: 2 | AY114: 2 | AZ114: 7 | BA114: 8 | BB114: 10 | BC114: 10
A115: 1 | B115: 炎地-3 | C115: 波1·怪物 | D115: 5 | E115: 10 | F115: 17 | G115: 25 | H115: 30 | I115: 40 | J115: 45 | K115: 55 | L115: 60 | M115: 70 | Q115: 3 | R115: 波2·怪物 | S115: 5 | T115: 10 | U115: 15 | V115: 20 | W115: 25 | X115: 40 | Y115: 56 | Z115: 73 | AE115: 1 | AF115: 波3·怪物 | AG115: 3 | AH115: 5 | AI115: 9 | AJ115: 15 | AK115: 22 | AL115: 30 | AM115: 40 | AN115: 45 | AS115: 1 | AT115: 波4·怪物 | AU115: 2 | AV115: 4 | AW115: 6 | AX115: 8 | AY115: 10 | AZ115: 17 | BA115: 25 | BB115: 35 | BC115: 45
B116: 5m | C116: 8 | G116: 70184 | K116: 70184 | P116: =_xlfn.TEXTJOIN("^",,D116:D125) -> 70184^70181^70181^70184 | R116: 8 | AD116: =_xlfn.TEXTJOIN("^",,S116:S125) -> 70182^70181 | AF116: 8 | AK116: 70184 | AR116: =_xlfn.TEXTJOIN("^",,AG116:AG125) -> 70185^70185^70185^70185 | AT116: 8 | BB116: 70181 | BF116: =_xlfn.TEXTJOIN("^",,AU116:AU125) -> 70183^70183^70183
C117: 6 | D117: 70184 | F117: 70182 | G117: 70182 | I117: 70182 | K117: 70182 | M117: 70184 | P117: =_xlfn.TEXTJOIN("^",,E116:E125) -> 70182^70182^70182^70182 | R117: 6 | AD117: =_xlfn.TEXTJOIN("^",,T116:T125) -> 70184^70181^70182 | AF117: 6 | AH117: 70182 | AK117: 70182 | AL117: 70182 | AM117: 70184 | AR117: =_xlfn.TEXTJOIN("^",,AH116:AH125) -> 70182^70182^70182 | AT117: 6 | AX117: 70181 | AZ117: 70184 | BA117: 70182 | BB117: 70181 | BC117: 70182 | BF117: =_xlfn.TEXTJOIN("^",,AV116:AV125) -> 70182^70182^70182
C118: 4 | E118: 70182 | F118: 70181 | G118: 70181 | H118: 70185 | I118: 70181 | J118: 70185 | K118: 70181 | L118: 70185 | M118: 70182 | P118: =_xlfn.TEXTJOIN("^",,F116:F125) -> 70182^70181^70183^70182^70183^70181^70182 | R118: 4 | AD118: =_xlfn.TEXTJOIN("^",,U116:U125) -> 70181^70183 | AF118: 4 | AG118: 70185 | AI118: 70184 | AJ118: 70183 | AL118: 70181 | AM118: 70182 | AN118: 70185 | AR118: =_xlfn.TEXTJOIN("^",,AI116:AI125) -> 70184^70181^70181^70181^70184 | AT118: 4 | AV118: 70182 | AX118: 70181 | AY118: 70185 | AZ118: 70182 | BA118: 70181 | BB118: 70181 | BC118: 70182 | BF118: =_xlfn.TEXTJOIN("^",,AW116:AW125) -> 70184^70184
C119: 2 | D119: 70181 | E119: 70182 | F119: 70183 | H119: 70185 | I119: 70183 | J119: 70185 | K119: 70183 | L119: 70185 | M119: 70181 | P119: =_xlfn.TEXTJOIN("^",,G116:G125) -> 70184^70182^70181^70182^70181^70182^70184 | R119: 2 | AD119: =_xlfn.TEXTJOIN("^",,V116:V125) -> 70185^70182 | AF119: 2 | AG119: 70185 | AI119: 70181 | AK119: 70181 | AL119: 70183 | AM119: 70182 | AN119: 70185 | AR119: =_xlfn.TEXTJOIN("^",,AJ116:AJ125) -> 70183^70183^70183 | AT119: 2 | AU119: 70183 | AW119: 70184 | AY119: 70185 | AZ119: 70183 | BB119: 70183 | BC119: 70182 | BF119: =_xlfn.TEXTJOIN("^",,AX116:AX125) -> 70181^70181^70181^70181
C120: 1 | F120: 70182 | G120: 70182 | H120: 70185 | J120: 70185 | L120: 70185 | M120: 70187 | P120: =_xlfn.TEXTJOIN("^",,H116:H125) -> 70185^70185^70185^70185^70185 | R120: 1 | S120: 70182 | T120: 70184 | U120: 70181 | V120: 70185 | W120: 70183 | X120: 70183 | Y120: 70183 | Z120: 70186 | AD120: =_xlfn.TEXTJOIN("^",,W116:W125) -> 70183^70182 | AF120: 1 | AH120: 70182 | AI120: 70181 | AJ120: 70183 | AK120: 70182 | AN120: 70185 | AR120: =_xlfn.TEXTJOIN("^",,AK116:AK125) -> 70184^70182^70181^70182^70181^70182^70184 | AT120: 1 | AU120: 70183 | AV120: 70182 | AY120: 70185 | AZ120: 70187 | BA120: 70184 | BC120: 70182 | BF120: =_xlfn.TEXTJOIN("^",,AY116:AY125) -> 70185^70185^70185^70185^70185
C121: 3 | D121: 70181 | E121: 70182 | F121: 70183 | H121: 70185 | I121: 70183 | J121: 70185 | K121: 70183 | L121: 70185 | M121: 70181 | P121: =_xlfn.TEXTJOIN("^",,I116:I125) -> 70182^70181^70183^70183^70181^70182 | R121: 3 | S121: 70181 | T121: 70181 | U121: 70183 | V121: 70182 | W121: 70182 | X121: 70181 | Y121: 70181 | Z121: 70183 | AD121: =_xlfn.TEXTJOIN("^",,X116:X125) -> 70183^70181^70182^70184 | AF121: 3 | AG121: 70185 | AI121: 70181 | AK121: 70181 | AL121: 70183 | AM121: 70182 | AN121: 70185 | AR121: =_xlfn.TEXTJOIN("^",,AL116:AL125) -> 70182^70181^70183^70183^70181^70182 | AT121: 3 | AU121: 70183 | AW121: 70184 | AY121: 70185 | AZ121: 70183 | BB121: 70183 | BC121: 70182 | BF121: =_xlfn.TEXTJOIN("^",,AZ116:AZ125) -> 70184^70182^70183^70187^70183^70182^70184
C122: 5 | E122: 70182 | F122: 70181 | G122: 70181 | H122: 70185 | I122: 70181 | J122: 70185 | K122: 70181 | L122: 70185 | M122: 70182 | P122: =_xlfn.TEXTJOIN("^",,J116:J125) -> 70185^70185^70185^70185^70185 | R122: 5 | T122: 70182 | X122: 70182 | Y122: 70182 | Z122: 70182 | AD122: =_xlfn.TEXTJOIN("^",,Y116:Y125) -> 70183^70181^70182 | AF122: 5 | AG122: 70185 | AI122: 70184 | AJ122: 70183 | AL122: 70181 | AM122: 70182 | AN122: 70185 | AR122: =_xlfn.TEXTJOIN("^",,AM116:AM125) -> 70184^70182^70182^70182^70182^70184 | AT122: 5 | AV122: 70182 | AX122: 70181 | AY122: 70185 | AZ122: 70182 | BA122: 70181 | BB122: 70181 | BC122: 70182 | BF122: =_xlfn.TEXTJOIN("^",,BA116:BA125) -> 70182^70181^70184^70181^70182
C123: 7 | D123: 70184 | F123: 70182 | G123: 70182 | I123: 70182 | K123: 70182 | M123: 70184 | P123: =_xlfn.TEXTJOIN("^",,K116:K125) -> 70184^70182^70181^70183^70183^70181^70182^70184 | R123: 7 | X123: 70184 | Z123: 70187 | AD123: =_xlfn.TEXTJOIN("^",,Z116:Z125) -> 70186^70183^70182^70187 | AF123: 7 | AH123: 70182 | AK123: 70182 | AL123: 70182 | AM123: 70184 | AR123: =_xlfn.TEXTJOIN("^",,AN116:AN125) -> 70185^70185^70185^70185^70185 | AT123: 7 | AX123: 70181 | AZ123: 70184 | BA123: 70182 | BB123: 70181 | BC123: 70182 | BF123: =_xlfn.TEXTJOIN("^",,BB116:BB125) -> 70181^70181^70181^70183^70183^70181^70181^70181
C124: 9 | G124: 70184 | K124: 70184 | P124: =_xlfn.TEXTJOIN("^",,L116:L125) -> 70185^70185^70185^70185^70185 | R124: 9 | AD124: =_xlfn.TEXTJOIN("^",,AA116:AA125) ->  | AF124: 9 | AK124: 70184 | AR124: =_xlfn.TEXTJOIN("^",,AO116:AO125) ->  | AT124: 9 | BB124: 70181 | BF124: =_xlfn.TEXTJOIN("^",,BC116:BC125) -> 70182^70182^70182^70182^70182^70182^70182
P125: =_xlfn.TEXTJOIN("^",,M116:M125) -> 70184^70182^70181^70187^70181^70182^70184 | AD125: =_xlfn.TEXTJOIN("^",,AB116:AB125) ->  | AR125: =_xlfn.TEXTJOIN("^",,AP116:AP125) ->  | BF125: =_xlfn.TEXTJOIN("^",,BD116:BD125) -> 
P126: =_xlfn.TEXTJOIN("^",,N116:N125) ->  | AD126: =_xlfn.TEXTJOIN("^",,AC116:AC125) ->  | AR126: =_xlfn.TEXTJOIN("^",,AQ116:AQ125) ->  | BF126: =_xlfn.TEXTJOIN("^",,BE116:BE125) -> 
O127: 最终 | P127: =_xlfn.TEXTJOIN("^",,P116:P126) -> 70184^70181^70181^70184^70182^70182^70182^70182^70182^70181^70183^70182^70183^70181^70182^70184^70182^70181^70182^70181^70182^70184^70185^70185^70185^70185^70185^70182^70181^70183^70183^70181^70182^70185^70185^70185^70185^70185^70184^70182^70181^70183^70183^70181^70182^70184^70185^70185^70185^70185^70185^70184^70182^70181^70187^70181^70182^70184 | AC127: 最终 | AD127: =_xlfn.TEXTJOIN("^",,AD116:AD126) -> 70182^70181^70184^70181^70182^70181^70183^70185^70182^70183^70182^70183^70181^70182^70184^70183^70181^70182^70186^70183^70182^70187 | AQ127: 最终 | AR127: =_xlfn.TEXTJOIN("^",,AR116:AR126) -> 70185^70185^70185^70185^70182^70182^70182^70184^70181^70181^70181^70184^70183^70183^70183^70184^70182^70181^70182^70181^70182^70184^70182^70181^70183^70183^70181^70182^70184^70182^70182^70182^70182^70184^70185^70185^70185^70185^70185 | BE127: 最终 | BF127: =_xlfn.TEXTJOIN("^",,BF116:BF126) -> 70183^70183^70183^70182^70182^70182^70184^70184^70181^70181^70181^70181^70185^70185^70185^70185^70185^70184^70182^70183^70187^70183^70182^70184^70182^70181^70184^70181^70182^70181^70181^70181^70183^70183^70181^70181^70181^70182^70182^70182^70182^70182^70182^70182
C128: 8 | G128: 火精灵 | K128: 火精灵 | R128: 8 | AF128: 8 | AK128: 火精灵 | AT128: 8 | BB128: 岩浆蝎
C129: 6 | D129: 火精灵 | F129: 岩浆人 | G129: 岩浆人 | I129: 岩浆人 | K129: 岩浆人 | M129: 火精灵 | R129: 6 | AF129: 6 | AH129: 岩浆人 | AK129: 岩浆人 | AL129: 岩浆人 | AM129: 火精灵 | AT129: 6 | AX129: 岩浆蝎 | AZ129: 火精灵 | BA129: 岩浆人 | BB129: 岩浆蝎 | BC129: 岩浆人
C130: 4 | E130: 岩浆人 | F130: 岩浆蝎 | G130: 岩浆蝎 | H130: 火山蜘蛛 | I130: 岩浆蝎 | J130: 火山蜘蛛 | K130: 岩浆蝎 | L130: 火山蜘蛛 | M130: 岩浆人 | R130: 4 | AF130: 4 | AG130: 火山蜘蛛 | AI130: 火精灵 | AJ130: 岩浆战士 | AL130: 岩浆蝎 | AM130: 岩浆人 | AN130: 火山蜘蛛 | AT130: 4 | AV130: 岩浆人 | AX130: 岩浆蝎 | AY130: 火山蜘蛛 | AZ130: 岩浆人 | BA130: 岩浆蝎 | BB130: 岩浆蝎 | BC130: 岩浆人
C131: 2 | D131: 岩浆蝎 | E131: 岩浆人 | F131: 岩浆战士 | H131: 火山蜘蛛 | I131: 岩浆战士 | J131: 火山蜘蛛 | K131: 岩浆战士 | L131: 火山蜘蛛 | M131: 岩浆蝎 | R131: 2 | AF131: 2 | AG131: 火山蜘蛛 | AI131: 岩浆蝎 | AK131: 岩浆蝎 | AL131: 岩浆战士 | AM131: 岩浆人 | AN131: 火山蜘蛛 | AT131: 2 | AU131: 岩浆战士 | AW131: 火精灵 | AY131: 火山蜘蛛 | AZ131: 岩浆战士 | BB131: 岩浆战士 | BC131: 岩浆人
C132: 1 | F132: 岩浆人 | G132: 岩浆人 | H132: 火山蜘蛛 | J132: 火山蜘蛛 | L132: 火山蜘蛛 | M132: 蘑菇王 | R132: 1 | S132: 岩浆人 | T132: 火精灵 | U132: 岩浆蝎 | V132: 火山蜘蛛 | W132: 岩浆战士 | X132: 岩浆战士 | Y132: 岩浆战士 | Z132: 岩浆巨兽 | AF132: 1 | AH132: 岩浆人 | AI132: 岩浆蝎 | AJ132: 岩浆战士 | AK132: 岩浆人 | AN132: 火山蜘蛛 | AT132: 1 | AU132: 岩浆战士 | AV132: 岩浆人 | AY132: 火山蜘蛛 | AZ132: 蘑菇王 | BA132: 火精灵 | BC132: 岩浆人
C133: 3 | D133: 岩浆蝎 | E133: 岩浆人 | F133: 岩浆战士 | H133: 火山蜘蛛 | I133: 岩浆战士 | J133: 火山蜘蛛 | K133: 岩浆战士 | L133: 火山蜘蛛 | M133: 岩浆蝎 | R133: 3 | S133: 岩浆蝎 | T133: 岩浆蝎 | U133: 岩浆战士 | V133: 岩浆人 | W133: 岩浆人 | X133: 岩浆蝎 | Y133: 岩浆蝎 | Z133: 岩浆战士 | AF133: 3 | AG133: 火山蜘蛛 | AI133: 岩浆蝎 | AK133: 岩浆蝎 | AL133: 岩浆战士 | AM133: 岩浆人 | AN133: 火山蜘蛛 | AT133: 3 | AU133: 岩浆战士 | AW133: 火精灵 | AY133: 火山蜘蛛 | AZ133: 岩浆战士 | BB133: 岩浆战士 | BC133: 岩浆人
C134: 5 | E134: 岩浆人 | F134: 岩浆蝎 | G134: 岩浆蝎 | H134: 火山蜘蛛 | I134: 岩浆蝎 | J134: 火山蜘蛛 | K134: 岩浆蝎 | L134: 火山蜘蛛 | M134: 岩浆人 | R134: 5 | T134: 岩浆人 | X134: 岩浆人 | Y134: 岩浆人 | Z134: 岩浆人 | AF134: 5 | AG134: 火山蜘蛛 | AI134: 火精灵 | AJ134: 岩浆战士 | AL134: 岩浆蝎 | AM134: 岩浆人 | AN134: 火山蜘蛛 | AT134: 5 | AV134: 岩浆人 | AX134: 岩浆蝎 | AY134: 火山蜘蛛 | AZ134: 岩浆人 | BA134: 岩浆蝎 | BB134: 岩浆蝎 | BC134: 岩浆人
C135: 7 | D135: 火精灵 | F135: 岩浆人 | G135: 岩浆人 | I135: 岩浆人 | K135: 岩浆人 | M135: 火精灵 | R135: 7 | X135: 火精灵 | Z135: 蘑菇王 | AF135: 7 | AH135: 岩浆人 | AK135: 岩浆人 | AL135: 岩浆人 | AM135: 火精灵 | AT135: 7 | AX135: 岩浆蝎 | AZ135: 火精灵 | BA135: 岩浆人 | BB135: 岩浆蝎 | BC135: 岩浆人
C136: 9 | G136: 火精灵 | K136: 火精灵 | R136: 9 | AF136: 9 | AK136: 火精灵 | AT136: 9 | BB136: 岩浆蝎
C138: 位置 | D138: 5 | E138: 10 | F138: 17 | G138: 25 | H138: 30 | I138: 40 | J138: 45 | K138: 55 | L138: 60 | M138: 70 | R138: 位置 | S138: 5 | T138: 10 | U138: 15 | V138: 20 | W138: 25 | X138: 40 | Y138: 56 | Z138: 73 | AF138: 位置 | AG138: 3 | AH138: 5 | AI138: 9 | AJ138: 15 | AK138: 22 | AL138: 30 | AM138: 40 | AN138: 45 | AR138: =_xlfn.TEXTJOIN("^",,AG139:AG153) -> 101^102^104^105 | AT138: 位置 | AU138: 2 | AV138: 4 | AW138: 6 | AX138: 8 | AY138: 10 | AZ138: 17 | BA138: 25 | BB138: 35 | BC138: 45 | BF138: =_xlfn.TEXTJOIN("^",,AU139:AU153) -> 2^1^3
C139: 8 | G139: =$AT139 -> 8 | K139: =$AT139 -> 8 | P139: =_xlfn.TEXTJOIN("^",,D139:D153) -> 6^2^3^7 | R139: 8 | AF139: 8 | AK139: =$AT139 -> 8 | AR139: =_xlfn.TEXTJOIN("^",,AH139:AH153) -> 6^1^7 | AT139: 8 | BB139: =$AT139 -> 8 | BF139: =_xlfn.TEXTJOIN("^",,AV139:AV153) -> 4^1^5
C140: 6 | D140: =$AT140 -> 6 | F140: =$AT140 -> 6 | G140: 6 | I140: =$AT140 -> 6 | K140: 6 | M140: =$AT140 -> 6 | P140: =_xlfn.TEXTJOIN("^",,E139:E153) -> 4^2^3^5 | R140: 6 | AD140: =_xlfn.TEXTJOIN("^",,S139:S153) -> 0^0 | AF140: 6 | AH140: =$AT140 -> 6 | AK140: 6 | AL140: 6 | AM140: 6 | AR140: =_xlfn.TEXTJOIN("^",,AI139:AI153) -> 4^2^1^3^5 | AT140: 6 | AX140: =$AT140 -> 6 | AZ140: =$AT140 -> 6 | BA140: 6 | BB140: 6 | BC140: =$AT140 -> 6 | BF140: =_xlfn.TEXTJOIN("^",,AW139:AW153) -> 2^3
C141: 4 | E141: =$AT141 -> 4 | F141: 4 | G141: 4 | I141: 4 | K141: 4 | M141: 4 | P141: =_xlfn.TEXTJOIN("^",,F139:F153) -> 6^4^2^1^3^5^7 | R141: 4 | AD141: =_xlfn.TEXTJOIN("^",,T139:T153) -> 0^0^0 | AF141: 4 | AI141: =$AT141 -> 4 | AJ141: =$AT141 -> 4 | AL141: 4 | AM141: 4 | AR141: =_xlfn.TEXTJOIN("^",,AJ139:AJ153) -> 4^1^5 | AT141: 4 | AV141: =$AT141 -> 4 | AX141: 4 | AZ141: 4 | BA141: 4 | BB141: 4 | BC141: 4 | BF141: =_xlfn.TEXTJOIN("^",,AX139:AX153) -> 6^4^5^7
C142: 2 | D142: =$AT142 -> 2 | E142: 2 | F142: 2 | I142: 2 | K142: 2 | M142: 2 | P142: =_xlfn.TEXTJOIN("^",,G139:G153) -> 8^6^4^1^5^7^9 | R142: 2 | AD142: =_xlfn.TEXTJOIN("^",,U139:U153) -> 0^0 | AF142: 2 | AI142: 2 | AK142: =$AT142 -> 2 | AL142: 2 | AM142: 2 | AR142: =_xlfn.TEXTJOIN("^",,AK139:AK153) -> 8^6^2^1^3^7^9 | AT142: 2 | AU142: =$AT142 -> 2 | AW142: =$AT142 -> 2 | AZ142: 2 | BB142: 2 | BC142: 2 | BF142: =_xlfn.TEXTJOIN("^",,AY139:AY153) -> 101^102^103^104^105
C143: 1 | F143: 1 | G143: =$AT143 -> 1 | M143: 1 | P143: =_xlfn.TEXTJOIN("^",,H139:H153) -> 101^102^103^104^105 | R143: 1 | S143: 0 | T143: 0 | U143: 0 | V143: 100 | W143: 0 | X143: 0 | Y143: 0 | Z143: 0 | AD143: =_xlfn.TEXTJOIN("^",,V139:V153) -> 100^0 | AF143: 1 | AH143: =$AT143 -> 1 | AI143: 1 | AJ143: =$AT143 -> 1 | AK143: 1 | AR143: =_xlfn.TEXTJOIN("^",,AL139:AL153) -> 6^4^2^3^5^7 | AT143: 1 | AU143: =$AT143 -> 1 | AV143: =$AT143 -> 1 | AZ143: 1 | BA143: =$AT143 -> 1 | BC143: 1 | BF143: =_xlfn.TEXTJOIN("^",,AZ139:AZ153) -> 6^4^2^1^3^5^7
